Workbook

Sheet Cover Page
C8: Waltham Forest - Practice Clinical Trends (LDP) Report
B19: General Health | C19: The number and percentage of patients on GP register aged over 16 with BMI and smoking status recorded
B20: Hypertension | C20: The number and percentage of patients on hypertension registers. The number and percentage of patients on register with blood pressure measured within last 9 months is less than 150/90
B21: CHD | C21: The number and percentage of patients on CHD register. Indicators included: cholesterol.
B22: Stroke/TIA | C22: The number and percentage of patients on Stroke/TIA register. Indicators included: BP recorded - BP <140/90.
B23: CVD Risk | C23: The number and percentage of patients eligible for CVD risk score (aged 25 -84). Indicators included: QRISK score, QRISK greater than 20% and proxy review
B24: Diabetes | C24: The number and percentage of patients on diabetes register. Indicators include: blood pressure; cholesterol; HbA1c; flu vaccination
B25: Mental Health | C25: The number and percentage of patients on Mental Health register. Indicators included: severe mental illness review and smoking status
B26: CKD | C26: The number and percentage of patients on CKD register. Indicators included: blood pressure and new diagnosis within 6 months
B27: COPD | C27: The number and percentage of patients on COPD register. Indicators included: severe or very severe COPD (FEV1<50) and smoking status
C30: N/A indicates either that no usable data has been returned or that calculation of a proportion is impossible

Sheet Full Explanatory Notes
A8: Worksheet | B8: Description of column contents
A9: General Health | B9: Patients aged 16 and over on the GP register
B10: Patients aged 16 and over on the GP register, with a BMI recorded in the last 12 months
B11: Patients aged 16 and over on the GP register, with a BMI ≥30 & <35
B12: Patients aged 16 and over on the GP register, with a BMI ≥ 35 & <40
B13: Patients aged 16 and over on the GP register, with a BMI ≥ 40
B14: Patients aged 16 and over on the GP register with smoking status recorded in the last 12 months
B15: Patients aged 16 and over on the GP register with smoking status recorded in the last 12 months, recorded as being a smoker.
A17: Hypertension | B17: Patients on the Hypertension register.
B18: Patients on the Hypertension register with BP recorded in the last 12 months.
B19: Patients on the Hypertension register with BP < 140/90 (Patients aged under 80) < 150/90 ( Aged 80 and over) (last 12m)
A21: CHD | B21: Patients on the CHD register
B22: Patients on the CHD register with cholesterol recorded in the last 12 months.
B23: Patients on the CHD register with last measured cholesterol < 5mmol in the last 12 months
A25: Stroke/TIA | B25: Patients on the Stroke/TIA register
B26: Patients on the Stroke/TIA register with a BP recorded in last 12 months
B27: Patients on the Stroke/TIA register with BP recorded in the last 12 months with BP < 140/90
A29: CVD Risk | B29: Patients eligible for a CVD risk score (aged 25 - 84 excluding CVD)
B30: Patients with a QRISK or Framingham risk score done.
B31: Patients with a Q Risk score of 20% or higher
B32: Patients with a Q Risk score of 20% or higher and an annual review or proxy annual review
A34: Diabetes | B34: Patients on the diabetes register
B35: Patients on the diabetes register with BP recorded in the last 12 months
B36: Patients on the diabetes register with latest BP < 145/85 in the last 12 months
B37: Patients on the diabetes register with last measured cholesterol, measured within the last 15 months < 5mmol/l
B38: Patients on the diabetes register with last HbA1c < 59in the last 12 months
B39: Patients on the diabetes register with a Flu Jab within the last 12 months.
A42: Mental Health | B42: Patients on the Mental Health register
B43: Patients on the Mental Health register with a review recorded within the last 12 months.
B44: Patients on the Mental Health register with smoking status recorded within the last 12 months
B45: Patients on the Mental Health register with smoking status recorded within the last 12 months recorded as a smoker
B46: Patients on the Mental Health register with smoking status recorded within the last 12 months referred to the stop smoking clinic
B47: Patients on the Mental Health register with smoking status recorded within the last 12 months who are recorded as quitters
B48: Patients with Mental Health with blood pressure recorded in the last 12m
B49: Patients with Mental Health with QRISK recorded in the last 12m
B50: Patients with Mental Health with QRISK 20% or higher in the last 12m
A52: CKD | B52: Patients on the CKD register
B53: Patients on the CKD register with blood pressure recorded
B54: Patients on the CKD register with blood pressure < 140/90
B55: Patients on the CKD register with new diagnosis of CKD in the last 6 months
A58: COPD | B58: Patients on COPD register
B59: No of patients with severe or very severe COPD (FEV1<50)
B60: No. of COPD Patients with smoking status recorded (last 12m) or never smoked
B61: No. of COPD patients recorded as a Smoker
B62: No. of COPD Patients who are current smokers & referred to the Stop Smoking Clinic (12m)
B63: No of COPD with flu vaccination (12m)
B64: No of COPD with pneumococcal vaccination ever
B65: No of COPD patients referred to pulmonary rehab ever

Sheet 2018-19 Changes (hidden)
A1: OLD (2017-2018) | C1: NEW (2018-2019) | E1: NEW (2019-20)
A2: List Size | C2: List Size | E2: List Size
A3: Age 16+ | C3: Age 16+ | E3: Age 16+
A4: % list size | C4: % list size | E4: % list size
A5: 16+ and BMI (last 15m) | C5: 16+ and BMI (last 12m) | E5: 16+ and BMI (last 12m)
A6: % 16+ | C6: % 16+ | E6: % 16+
A7: BMI 25 to 29 | C7: BMI ≥30 & <35 | E7: BMI ≥30 & <35
A8: % 16+ | C8: % 16+ | E8: % 16+
A9: BMI ≥ 30 | C9: BMI ≥ 35 & <40 | E9: BMI ≥ 35 & <40
A10: %16+ | C10: %16+ | E10: %16+
A11: BMI ≥ 40 | C11: BMI ≥ 40 | E11: BMI ≥ 40
A12: %16+ | C12: %16+ | E12: %16+
A13: Smoking status (last 15m) incl. never smoked | C13: Smoking status (last 12m) incl. never smoked | E13: Smoking status (last 12m) incl. never smoked
A14: % 16+ | C14: % 16+ | E14: % 16+
A15: Age 16+ and current smoker (last 15m) | C15: Age 16+ and current smoker (last 12m) | E15: Age 16+ and current smoker (last 12m)
A16: % 16+ | C16: % 16+ | E16: % 16+
A18: Hypertension Register | C18: Hypertension Register | E18: Hypertension Register
A19: % list size | C19: % list size | E19: % list size
A20: Hypertension and BP (last 9m) | C20: Hypertension and BP (last 12m) | E20: Hypertension and BP (last 12m)
A21: % Hypertension Register | C21: % Hypertension Register | E21: % Hypertension Register
A22: Hypertension and BP ≤ 150/90 (last 9m) | C22: Hypertension and BP < 140/90 (Patients aged under 80) < 150/90 ( Aged 80 and over) (last 12m) | E22: Hypertension and BP < 140/90 (Patients aged under 80) < 150/90 ( Aged 80 and over) (last 12m)
A23: % Hypertension Register | C23: % Hypertension Register | E23: % Hypertension Register
A25: CHD register | C25: CHD register | E25: CHD register
A26: % list size | C26: % list size | E26: % list size
A27: Cholesterol (last 15m) | C27: Cholesterol (last 12m) | E27: Cholesterol (last 12m)
A28: % CHD register | C28: % CHD register | E28: % CHD register
A29: Cholesterol ≤ 5 (last 15m) | C29: Cholesterol < 5 (last 12m) | E29: Cholesterol < 5 (last 12m)
A30: % CHD register | C30: % CHD register | E30: % CHD register
A31: BP (last 9m) | C31: BP ≤ 150/90 (last 9m) | E31: BP ≤ 150/90 (last 9m)
A32: % CHD register | C32: % CHD register | E32: % CHD register
A33: BP ≤ 150/90 (last 9m)
A34: % CHD register | E34: Stroke/TIA register
A35: CHD annual review or proxy review | E35: % list size
A36: % CHD register | E36: BP Recorded
A37: CHD diagnosed in last 6 months | E37: % Stroke/TIA register
A38: % CHD register | E38: BP <140/90 (last 12m)
E39: % Stroke/TIA register
A41: Aged 35 to 74 (exc CVD) | C41: Aged 25 to 84 (exc CVD) | E41: Aged 25 to 84 (exc CVD)
A42: CVD (QRISK or Framingham) risk score done | C42: QRISK recorded (5 years) | E42: QRISK recorded (5 years)
A43: % of patients aged 35 to 74 (exc CVD) | C43: % of patients aged 25 to 84 (exc CVD) | E43: % of patients aged 25 to 84 (exc CVD)
A44: QRISK ≥ 20% | C44: QRISK ≥ 20% | E44: QRISK ≥ 20%
A45: % QRISK Score recorded | C45: % QRISK Score recorded | E45: % QRISK Score recorded
A46: QRISK ≥ 20% and proxy review (BP and Chol last 15m) | C46: QRISK ≥ 20% and proxy review (BP and Chol last 12m) | E46: QRISK ≥ 20% and proxy review (BP and Chol last 12m)
A47: % Patients with QRISK ≥ 20% | C47: % Patients with QRISK ≥ 20% | E47: % Patients with QRISK ≥ 20%
A49: Diabetes register | C49: Diabetes register | E49: Diabetes register
A50: % List size | C50: % List size | E50: % List size
A51: BP (last 15m) | C51: BP (last 12m) | E51: BP (last 12m)
A52: % Diabetes Register | C52: % Diabetes Register | E52: % Diabetes Register
A53: BP ≤ 145/85 (last 15m) | C53: BP < 145/85 (last 12m) | E53: BP < 145/85 (last 12m)
A54: % Diabetes Register | C54: % Diabetes Register | E54: % Diabetes Register
A55: Cholesterol < 5mmols (last 15m) | C55: Cholesterol < 5mmols (last 12m) | E55: Cholesterol < 5mmols (last 12m)
A56: % Diabetes Register | C56: % Diabetes Register | E56: % Diabetes Register
A57: HbA1c ≤ 59(last 15m) | C57: HbA1c < 59 (last 12m) | E57: HbA1c < 59 (last 12m)
A58: % Diabetes register | C58: % Diabetes register | E58: % Diabetes register
A59: Flu jab (last 15m) | C59: Flu jab (last 12m) | E59: Flu jab (From August 2019)
A60: % Diabetes Register | C60: % Diabetes Register | E60: % Diabetes Register
A61: Annual review/ called or proxy (last 15m)
A62: % Diabetes register
A63: Cholesterol (last 15m)
A64: % Diabetes Register
A65: HbA1c ≤ 86 (last 15m)
A66: % Diabetes Register
A67: Diabetes retinal screening (last 15m)
A68: % Diabetes register
A69: Retinal screening (last 15m)
A70: % Diabetes register
A71: Neuropathy testing (last 15m)
A72: % Diabetes Register
A73: Microalbuminuria (last 15m)
A74: % Diabetes Register
A75: Type 1 Diabetes
A76: % Diabetes Register
A77: Type 2 Diabetes
A78: % Diabetes Register
A79: No Type Recorded
A80: % Diabetes Register
A81: Type 2 diabetes excluding insulin prescriptions (last 15 m)
A82: % Type 2 Diabetes
A83: Newly Diagnosed Diabetes (Last 1m)
A84: Newly Diagnosed Diabetes - Type 1
A85: Newly Diagnosed Diabetes - Type 2
A86: Newly Diagnosed Diabetes - Type Not Recorded
A87: Diabetics under 18 years old
A88: Diabetics Under 18 with HbA1c ≤ 59 (last 15m)
A89: % of Diabetics under 18
A90: No. of patients with diabetes diagnosed with CKD in the last 15m
A91: % Diabetes Register
A92: No. of patients with diabetes diagnosed with CHD and/or Stroke/TIA in the last 12 months
A93: % Diabetes Register
A94: No. of patients with diabetes diagnosed with Depression in the last 12 months
A95: %Diabetes Register
A96: No. of patients who have ever had gestational diabetes
A97: No. of patients who have ever had gestational diabetes who are also on diabetes register
A98: % of patients with gestational diabetes
A100: SMI register (QOF) | C100: Mental Health register | E100: Mental Health register
A101: % list size | C101: % list size | E101: % list size
A102: No. of SMI Patients with smoking status recorded (last 12m) or never smoked | C102: No. of Mental Health Patients with smoking status recorded (last 12m) or never smoked | E102: No. of Mental Health Patients with smoking status recorded (last 12m) or never smoked
A103: % SMI Register | C103: % Mental Health Register | E103: % Mental Health Register
A104: No. of SMI patients recorded as a Smoker | C104: No. of Mental Health patients recorded as a Smoker | E104: No. of Mental Health patients recorded as a Smoker
A105: % SMI Register | C105: % Mental Health Register | E105: % Mental Health Register
A106: No. of SMI Patients who are current smokers & referred to the Stop Smoking Clinic | C106: No. of Mental Health Patients who are current smokers & referred to the Stop Smoking Clinic | E106: No. of Mental Health Patients who are current smokers & referred to the Stop Smoking Clinic
A107: % SMI Register | C107: % Mental Health Register | E107: % Mental Health Register
A108: No. Of SMI Patients who are recorded as quitters | C108: No. Of Mental Health Patients who are recorded as quitters | E108: No. Of Mental Health Patients who are recorded as quitters
A109: % SMI Register | C109: % Mental Health Register | E109: % Mental Health Register
A110: Patients with SMI with QRISK recorded in the last 12m | C110: Patients with Mental Health with QRISK recorded in the last 12m | E110: Patients with Mental Health with QRISK recorded in the last 12m
A111: % SMI Register | C111: % Mental Health Register | E111: % Mental Health Register
A112: Patients with SMI with QRISK 20% or higher in the last 12m | C112: Patients with Mental Health with QRISK 20% or higher in the last 12m | E112: Patients with Mental Health with QRISK 20% or higher in the last 12m
A113: % patients with QRISK recorded 20% or higher | C113: % patients with QRISK recorded | E113: % patients with QRISK recorded
A114: Patients with SMI with BP & QRisk on the same day in the last 12m | C114: Patients with Mental Health with BP & QRisk on the same day in the last 12m | E114: Patients with Mental Health with BP & QRisk on the same day in the last 12m
A115: % Patients with SMI with BP & QRisk on the same day in the last 12m | C115: % Mental Health Register | E115: % Mental Health Register
A117: No. of patients on CKD register (QOF definition) | C117: No. of patients on CKD register | E117: No. of patients on CKD register
A118: % List Size | C118: % List Size | E118: % List Size
A119: BP Recorded (last 15m) | C119: BP Recorded (last 12m) | E119: BP Recorded (last 12m)
A120: % CKD register | C120: % CKD register | E120: % CKD register
A121: BP ≤ 140/90 | C121: BP < 140/90 | E121: BP < 140/90
A122: % CKD register | C122: % CKD register | E122: % CKD register
A123: No of patients with new diagnosis of CKD (last 6m) | C123: No of patients with new diagnosis of CKD (last 6m) | E123: No of patients with new diagnosis of CKD (last 6m)
A124: % CKD register | C124: % CKD register | E124: % CKD register
C126: No. of patients on COPD register | E126: No. of patients on COPD register
C127: % List Size | E127: % List Size
C128: No of patients with severe or very severe COPD (FEV1<50) | E128: No of patients with severe or very severe COPD (FEV1<50)
C129: % COPD register | E129: % COPD register
C130: No. of COPD Patients with smoking status recorded (last 12m) or never smoked | E130: No. of COPD Patients with smoking status recorded (last 12m) or never smoked
C131: % COPD | E131: % COPD
C132: No. of COPD patients recorded as a Smoker | E132: No. of COPD patients recorded as a Smoker
C133: % COPD | E133: % COPD
C134: No. of COPD Patients who are current smokers & referred to the Stop Smoking Clinic | E134: No. of COPD Patients who are current smokers & referred to the Stop Smoking Clinic
C135: % of current COPD smokers | E135: % of current COPD smokers
C136: No of COPD with flu vaccination (12m) | E136: No of COPD with flu vaccination (From August 2019)
C137: % of COPD register | E137: % of COPD register
C138: No of COPD with pneumococcal vaccination ever | E138: No of COPD with pneumococcal vaccination ever
C139: % of COPD register | E139: % of COPD register
C140: No of COPD patients referred to pulmonary rehab ever | E140: No of COPD patients referred to pulmonary rehab ever
C141: % of COPD register | E141: % of COPD register

Sheet Data (hidden)
A1: 2019-04-01 | C1: 01 LDP | E1: Last Run: | G1: Population Count | H1: 1173529 | K1: Search | L1: 01. Listsize | M1: LDP.04.11: Diabetes and BP in last 12 months | N1: LDP.05: CVD 25-84yrs (excl CVD) | O1: LDP.08.02 CKD Diagnosed (Last 6m) | P1: LDP.08.03 CKD and BP Recorded (last 12 m) | Q1: CSPMH. 01.03 QRisk Recorded (12m) | R1: CSPMH. 01.03.01 BP recorded on same day as QRisk (12m) | S1: CSPMH. 01.03.02 Qrisk>=20 (12m) | T1: LDP.08.01 CKD and BP less than 140/90 (last 12 m) | U1: LDP.08 CKD Register | V1: LDP.05.01: CVD QRISK greater than or equal 20% | W1: LDP.05.01.01: CVD Proxy Annual Review (last 12m) | X1: LDP.05.02: Cardiovascular Risk Score Done (5y) | Y1: LDP.04.09: Diabetes BP less than 145/85 (last 12m) | Z1: LDP.04.08: Diabetes Chol less than 5mmol (last 12m) | AA1: LDP.01.01.01: Obesity BMI more than or equal to 35 less than 40 (last 12m) | AB1: LDP.01.01.02: Obesity BMI between 30-35 (last 12m) | AC1: LDP.01.01.03: Obesity BMI equal to or over 40 (last 12m) | AD1: LDP.01.02: Smoking Status (last 12m) or Never Smoked (25yrs+) | AE1: LDP.01.03: Current Smoker (last 12m) | AF1: LDP.01.01: Obesity BMI recorded (last 12m) | AG1: LDP.01: Aged 16yrs+ | AH1: CSPMH.01 SMI Register | AI1: CSPMH.01.02 Smoking Status Recorded (12m) | AJ1: CSPMH.01.02.01 Current Smoker (12m) | AK1: CSPMH 01.02.01.01 Ref to clinic 12m | AL1: CSPMH.01.02.02 Ex-smoker Recorded (latest 12m) | AM1: LDP.02: Hypertension Register | AN1: LDP.02.01: Hypertension and BP < 140/90 (age under 80) < 150/90 (Age 80+) | AO1: LDP.04.07: Diabetes Influenza Vaccinations (From August 2018) | AP1: LDP.04.01: Diabetes HbA1c <7.5% OR <59mmol (last 12m) | AQ1: LDP.02.02: Hypertension BP recorded (last 12m) | AR1: LDP.03: CHD Register | AS1: LDP.03.01: CHD Chol less than 5mmol (last 12m) | AT1: LDP.03.04: CHD Cholesterol recorded (last 12m) | AU1: LDP.04: Diabetes Register | AV1: LDP.09 COPD Register | AW1: LDP.09.01 Patients with severe or very severe COPD (FEV1<50) | AX1: LDP.09.02 Patients with smoking status recorded (last 12m) or never smoked | AY1: LDP.09.03 COPD patients recorded as a Smoker | AZ1: LDP.09.04 COPD Patients who are current smokers & referred to the Stop Smoking C | BA1: LDP.09.05 No of COPD with flu vaccination (From August 2018) | BB1: LDP.09.06 No of COPD with pneumococcal vaccination ever | BC1: LDP.09.07 No of COPD patients referred to pulmonary rehab ever | BD1: LDP.03.02: CHD BP less than or equal 150/90 (last 9m) | BE1: LDP.10 Stroke or TIA register | BF1: LDP.10.01: Stroke/TIA BP recorded (last 12m) | BG1: LDP.10.02 Patients on Stroke/TIA register with BP <140/90 (12m)
A2: 2019-04-01 | E2: 2019-05-13T09:43:00 | G2: Males | H2: 586875 | J2: Organisation Code
A3: 2019-04-01 | E3: Relative Date: | G3: Females | H3: 586654 | J3: F84676 | L3: 4401 | M3: 267 | N3: 2905 | O3: 11 | P3: 133 | Q3: 34 | R3: 32 | S3: 5 | T3: 119 | U3: 137 | V3: 192 | W3: 156 | X3: 1484 | Y3: 255 | Z3: 215 | AA3: 70 | AB3: 209 | AC3: 44 | AD3: 2300 | AE3: 382 | AF3: 1280 | AG3: 3536 | AH3: 55 | AI3: 47 | AJ3: 26 | AK3: 2 | AL3: 6 | AM3: 295 | AN3: 233 | AO3: 206 | AP3: 174 | AQ3: 282 | AR3: 51 | AS3: 43 | AT3: 48 | AU3: 281 | AV3: 68 | AW3: 14 | AX3: 68 | AY3: 36 | AZ3: 4 | BA3: 49 | BB3: 52 | BC3: 60 | BD3: 42 | BE3: 22 | BF3: 20 | BG3: 19
A4: 2019-04-01 | E4: 2019-05-01 | J4: F86001 | L4: 7940 | M4: 451 | N4: 5371 | O4: 54 | P4: 262 | Q4: 44 | R4: 20 | S4: 6 | T4: 178 | U4: 294 | V4: 202 | W4: 131 | X4: 2252 | Y4: 372 | Z4: 281 | AA4: 126 | AB4: 273 | AC4: 60 | AD4: 4375 | AE4: 458 | AF4: 1542 | AG4: 6435 | AH4: 98 | AI4: 79 | AJ4: 24 | AK4: 0 | AL4: 22 | AM4: 919 | AN4: 533 | AO4: 312 | AP4: 246 | AQ4: 823 | AR4: 156 | AS4: 84 | AT4: 107 | AU4: 493 | AV4: 107 | AW4: 16 | AX4: 98 | AY4: 30 | AZ4: 0 | BA4: 65 | BB4: 67 | BC4: 9 | BD4: 125 | BE4: 71 | BF4: 62 | BG4: 44
A5: 2019-04-01 | J5: F86005 | L5: 8200 | M5: 287 | N5: 5462 | O5: 7 | P5: 298 | Q5: 9 | R5: 5 | S5: 1 | T5: 196 | U5: 345 | V5: 171 | W5: 139 | X5: 2455 | Y5: 248 | Z5: 202 | AA5: 109 | AB5: 287 | AC5: 67 | AD5: 4486 | AE5: 512 | AF5: 2002 | AG5: 6354 | AH5: 52 | AI5: 35 | AJ5: 20 | AK5: 0 | AL5: 2 | AM5: 792 | AN5: 446 | AO5: 206 | AP5: 197 | AQ5: 718 | AR5: 87 | AS5: 62 | AT5: 73 | AU5: 295 | AV5: 110 | AW5: 16 | AX5: 97 | AY5: 35 | AZ5: 1 | BA5: 87 | BB5: 75 | BC5: 14 | BD5: 70 | BE5: 60 | BF5: 54 | BG5: 35
A6: 2019-04-01 | J6: F86006 | L6: 6199 | M6: 379 | N6: 4128 | O6: 13 | P6: 150 | Q6: 4 | R6: 4 | S6: 0 | T6: 72 | U6: 170 | V6: 73 | W6: 45 | X6: 1003 | Y6: 269 | Z6: 281 | AA6: 91 | AB6: 185 | AC6: 54 | AD6: 3315 | AE6: 371 | AF6: 1033 | AG6: 4931 | AH6: 51 | AI6: 28 | AJ6: 15 | AK6: 1 | AL6: 6 | AM6: 794 | AN6: 365 | AO6: 226 | AP6: 207 | AQ6: 703 | AR6: 101 | AS6: 61 | AT6: 70 | AU6: 414 | AV6: 53 | AW6: 21 | AX6: 51 | AY6: 22 | AZ6: 1 | BA6: 28 | BB6: 24 | BC6: 3 | BD6: 81 | BE6: 55 | BF6: 51 | BG6: 29
A7: 2019-04-01 | J7: F86011 | L7: 9264 | M7: 681 | N7: 3876 | O7: 11 | P7: 228 | Q7: 35 | R7: 23 | S7: 3 | T7: 171 | U7: 256 | V7: 238 | W7: 150 | X7: 1930 | Y7: 586 | Z7: 450 | AA7: 149 | AB7: 354 | AC7: 92 | AD7: 5532 | AE7: 689 | AF7: 1846 | AG7: 7562 | AH7: 153 | AI7: 123 | AJ7: 54 | AK7: 6 | AL7: 25 | AM7: 1202 | AN7: 735 | AO7: 493 | AP7: 376 | AQ7: 1070 | AR7: 236 | AS7: 130 | AT7: 166 | AU7: 727 | AV7: 102 | AW7: 23 | AX7: 99 | AY7: 28 | AZ7: 1 | BA7: 76 | BB7: 78 | BC7: 9 | BD7: 194 | BE7: 152 | BF7: 147 | BG7: 116
A8: 2019-04-01 | J8: F86030 | L8: 8091 | M8: 497 | N8: 5254 | O8: 12 | P8: 165 | Q8: 12 | R8: 7 | S8: 3 | T8: 122 | U8: 172 | V8: 384 | W8: 293 | X8: 4072 | Y8: 432 | Z8: 415 | AA8: 98 | AB8: 298 | AC8: 44 | AD8: 4422 | AE8: 341 | AF8: 1530 | AG8: 6356 | AH8: 54 | AI8: 35 | AJ8: 12 | AK8: 1 | AL8: 4 | AM8: 733 | AN8: 468 | AO8: 426 | AP8: 319 | AQ8: 667 | AR8: 169 | AS8: 130 | AT8: 145 | AU8: 531 | AV8: 44 | AW8: 5 | AX8: 41 | AY8: 12 | AZ8: 0 | BA8: 33 | BB8: 31 | BC8: 1 | BD8: 125 | BE8: 53 | BF8: 47 | BG8: 30
A9: 2019-04-01 | J9: F86036 | L9: 15798 | M9: 734 | N9: 11041 | O9: 28 | P9: 325 | Q9: 39 | R9: 22 | S9: 6 | T9: 254 | U9: 360 | V9: 206 | W9: 135 | X9: 2713 | Y9: 667 | Z9: 555 | AA9: 234 | AB9: 623 | AC9: 134 | AD9: 9485 | AE9: 927 | AF9: 3630 | AG9: 12744 | AH9: 235 | AI9: 176 | AJ9: 74 | AK9: 3 | AL9: 38 | AM9: 1460 | AN9: 834 | AO9: 569 | AP9: 486 | AQ9: 1221 | AR9: 243 | AS9: 157 | AT9: 185 | AU9: 817 | AV9: 117 | AW9: 30 | AX9: 103 | AY9: 50 | AZ9: 1 | BA9: 86 | BB9: 91 | BC9: 31 | BD9: 193 | BE9: 119 | BF9: 105 | BG9: 69
A10: 2019-04-01 | J10: F86038 | L10: 10989 | M10: 727 | N10: 6586 | O10: 130 | P10: 231 | Q10: 25 | R10: 18 | S10: 5 | T10: 172 | U10: 246 | V10: 438 | W10: 314 | X10: 4398 | Y10: 541 | Z10: 485 | AA10: 166 | AB10: 408 | AC10: 89 | AD10: 5684 | AE10: 460 | AF10: 1709 | AG10: 8262 | AH10: 133 | AI10: 78 | AJ10: 25 | AK10: 0 | AL10: 5 | AM10: 1097 | AN10: 623 | AO10: 519 | AP10: 396 | AQ10: 988 | AR10: 255 | AS10: 165 | AT10: 196 | AU10: 782 | AV10: 38 | AW10: 3 | AX10: 35 | AY10: 10 | AZ10: 0 | BA10: 27 | BB10: 18 | BC10: 4 | BD10: 189 | BE10: 107 | BF10: 98 | BG10: 63
A11: 2019-04-01 | J11: F86044 | L11: 8955 | M11: 333 | N11: 6380 | O11: 8 | P11: 141 | Q11: 26 | R11: 23 | S11: 6 | T11: 90 | U11: 168 | V11: 242 | W11: 142 | X11: 1288 | Y11: 258 | Z11: 205 | AA11: 88 | AB11: 225 | AC11: 74 | AD11: 5260 | AE11: 682 | AF11: 1310 | AG11: 7426 | AH11: 108 | AI11: 79 | AJ11: 34 | AK11: 0 | AL11: 5 | AM11: 766 | AN11: 388 | AO11: 229 | AP11: 192 | AQ11: 656 | AR11: 88 | AS11: 50 | AT11: 58 | AU11: 373 | AV11: 34 | AW11: 10 | AX11: 28 | AY11: 17 | AZ11: 0 | BA11: 24 | BB11: 21 | BC11: 8 | BD11: 65 | BE11: 48 | BF11: 43 | BG11: 25
A12: 2019-04-01 | J12: F86045 | L12: 1912 | M12: 129 | N12: 1383 | O12: 4 | P12: 60 | Q12: 11 | R12: 2 | S12: 3 | T12: 19 | U12: 60 | V12: 85 | W12: 68 | X12: 624 | Y12: 116 | Z12: 110 | AA12: 50 | AB12: 125 | AC12: 24 | AD12: 1198 | AE12: 150 | AF12: 599 | AG12: 1638 | AH12: 32 | AI12: 29 | AJ12: 9 | AK12: 0 | AL12: 5 | AM12: 260 | AN12: 92 | AO12: 102 | AP12: 85 | AQ12: 229 | AR12: 55 | AS12: 42 | AT12: 51 | AU12: 134 | AV12: 26 | AW12: 2 | AX12: 23 | AY12: 6 | AZ12: 0 | BA12: 20 | BB12: 18 | BC12: 2 | BD12: 45 | BE12: 24 | BF12: 22 | BG12: 7
A13: 2019-04-01 | J13: F86058 | L13: 15129 | M13: 689 | N13: 9852 | O13: 10 | P13: 338 | Q13: 113 | R13: 14 | S13: 11 | T13: 268 | U13: 363 | V13: 463 | W13: 314 | X13: 3962 | Y13: 587 | Z13: 479 | AA13: 269 | AB13: 724 | AC13: 153 | AD13: 7957 | AE13: 1083 | AF13: 3804 | AG13: 11684 | AH13: 187 | AI13: 127 | AJ13: 67 | AK13: 0 | AL13: 27 | AM13: 1461 | AN13: 918 | AO13: 511 | AP13: 362 | AQ13: 1261 | AR13: 218 | AS13: 138 | AT13: 162 | AU13: 714 | AV13: 103 | AW13: 17 | AX13: 89 | AY13: 31 | AZ13: 1 | BA13: 80 | BB13: 80 | BC13: 7 | BD13: 195 | BE13: 110 | BF13: 101 | BG13: 78
A14: 2019-04-01 | J14: F86062 | L14: 7084 | M14: 415 | N14: 4893 | O14: 6 | P14: 151 | Q14: 12 | R14: 12 | S14: 3 | T14: 111 | U14: 168 | V14: 274 | W14: 187 | X14: 1450 | Y14: 315 | Z14: 281 | AA14: 124 | AB14: 354 | AC14: 72 | AD14: 4419 | AE14: 622 | AF14: 2315 | AG14: 5789 | AH14: 97 | AI14: 83 | AJ14: 31 | AK14: 1 | AL14: 16 | AM14: 844 | AN14: 459 | AO14: 319 | AP14: 218 | AQ14: 749 | AR14: 147 | AS14: 83 | AT14: 97 | AU14: 460 | AV14: 68 | AW14: 17 | AX14: 62 | AY14: 20 | AZ14: 3 | BA14: 48 | BB14: 46 | BC14: 3 | BD14: 112 | BE14: 71 | BF14: 66 | BG14: 40
A15: 2019-04-01 | J15: F86078 | L15: 7360 | M15: 336 | N15: 4982 | O15: 11 | P15: 113 | Q15: 4 | R15: 0 | S15: 0 | T15: 68 | U15: 135 | V15: 396 | W15: 244 | X15: 2008 | Y15: 237 | Z15: 213 | AA15: 93 | AB15: 236 | AC15: 44 | AD15: 4242 | AE15: 399 | AF15: 1201 | AG15: 6193 | AH15: 57 | AI15: 33 | AJ15: 13 | AK15: 0 | AL15: 7 | AM15: 1198 | AN15: 641 | AO15: 238 | AP15: 203 | AQ15: 961 | AR15: 184 | AS15: 91 | AT15: 112 | AU15: 367 | AV15: 95 | AW15: 10 | AX15: 77 | AY15: 27 | AZ15: 0 | BA15: 70 | BB15: 58 | BC15: 5 | BD15: 128 | BE15: 109 | BF15: 90 | BG15: 57
A16: 2019-04-01 | J16: F86086 | L16: 5885 | M16: 260 | N16: 3675 | O16: 40 | P16: 88 | Q16: 6 | R16: 5 | S16: 1 | T16: 59 | U16: 95 | V16: 134 | W16: 88 | X16: 875 | Y16: 215 | Z16: 157 | AA16: 115 | AB16: 288 | AC16: 65 | AD16: 3141 | AE16: 416 | AF16: 1484 | AG16: 4443 | AH16: 75 | AI16: 66 | AJ16: 31 | AK16: 0 | AL16: 12 | AM16: 488 | AN16: 260 | AO16: 174 | AP16: 145 | AQ16: 413 | AR16: 93 | AS16: 42 | AT16: 58 | AU16: 274 | AV16: 33 | AW16: 4 | AX16: 30 | AY16: 9 | AZ16: 0 | BA16: 24 | BB16: 19 | BC16: 2 | BD16: 77 | BE16: 29 | BF16: 26 | BG16: 17
A17: 2019-04-01 | J17: F86088 | L17: 4746 | M17: 304 | N17: 3293 | O17: 31 | P17: 146 | Q17: 5 | R17: 4 | S17: 0 | T17: 106 | U17: 167 | V17: 84 | W17: 57 | X17: 852 | Y17: 242 | Z17: 221 | AA17: 67 | AB17: 185 | AC17: 42 | AD17: 2532 | AE17: 224 | AF17: 973 | AG17: 3973 | AH17: 42 | AI17: 27 | AJ17: 6 | AK17: 0 | AL17: 4 | AM17: 663 | AN17: 375 | AO17: 224 | AP17: 187 | AQ17: 539 | AR17: 101 | AS17: 59 | AT17: 66 | AU17: 338 | AV17: 43 | AW17: 10 | AX17: 36 | AY17: 10 | AZ17: 0 | BA17: 35 | BB17: 36 | BC17: 7 | BD17: 64 | BE17: 34 | BF17: 27 | BG17: 22
A18: 2019-04-01 | J18: F86607 | L18: 14154 | M18: 605 | N18: 9302 | O18: 25 | P18: 165 | Q18: 50 | R18: 30 | S18: 7 | T18: 120 | U18: 175 | V18: 468 | W18: 310 | X18: 4027 | Y18: 452 | Z18: 392 | AA18: 178 | AB18: 478 | AC18: 93 | AD18: 7625 | AE18: 841 | AF18: 3296 | AG18: 10810 | AH18: 184 | AI18: 148 | AJ18: 64 | AK18: 3 | AL18: 23 | AM18: 1207 | AN18: 676 | AO18: 437 | AP18: 300 | AQ18: 1104 | AR18: 197 | AS18: 105 | AT18: 128 | AU18: 625 | AV18: 94 | AW18: 17 | AX18: 87 | AY18: 42 | AZ18: 4 | BA18: 74 | BB18: 72 | BC18: 21 | BD18: 150 | BE18: 105 | BF18: 100 | BG18: 80
A19: 2019-04-01 | J19: F86616 | L19: 6670 | M19: 276 | N19: 4369 | O19: 16 | P19: 240 | Q19: 7 | R19: 1 | S19: 1 | T19: 191 | U19: 259 | V19: 277 | W19: 176 | X19: 1728 | Y19: 232 | Z19: 198 | AA19: 104 | AB19: 281 | AC19: 66 | AD19: 3664 | AE19: 408 | AF19: 1551 | AG19: 5238 | AH19: 42 | AI19: 26 | AJ19: 15 | AK19: 0 | AL19: 2 | AM19: 782 | AN19: 512 | AO19: 210 | AP19: 170 | AQ19: 725 | AR19: 185 | AS19: 108 | AT19: 124 | AU19: 287 | AV19: 57 | AW19: 12 | AX19: 51 | AY19: 16 | AZ19: 0 | BA19: 45 | BB19: 39 | BC19: 3 | BD19: 146 | BE19: 72 | BF19: 69 | BG19: 59
A20: 2019-04-01 | J20: F86621 | L20: 5674 | M20: 306 | N20: 4100 | O20: 3 | P20: 144 | Q20: 4 | R20: 3 | S20: 0 | T20: 108 | U20: 164 | V20: 54 | W20: 38 | X20: 541 | Y20: 275 | Z20: 238 | AA20: 54 | AB20: 177 | AC20: 26 | AD20: 3349 | AE20: 302 | AF20: 1170 | AG20: 4794 | AH20: 73 | AI20: 52 | AJ20: 18 | AK20: 0 | AL20: 13 | AM20: 615 | AN20: 422 | AO20: 293 | AP20: 210 | AQ20: 551 | AR20: 102 | AS20: 65 | AT20: 72 | AU20: 313 | AV20: 29 | AW20: 3 | AX20: 27 | AY20: 10 | AZ20: 0 | BA20: 21 | BB20: 27 | BC20: 23 | BD20: 84 | BE20: 47 | BF20: 47 | BG20: 38
A21: 2019-04-01 | J21: F86625 | L21: 6111 | M21: 382 | N21: 4056 | O21: 95 | P21: 155 | Q21: 13 | R21: 3 | S21: 4 | T21: 101 | U21: 177 | V21: 141 | W21: 112 | X21: 1006 | Y21: 269 | Z21: 272 | AA21: 81 | AB21: 232 | AC21: 65 | AD21: 3137 | AE21: 335 | AF21: 1225 | AG21: 4908 | AH21: 97 | AI21: 70 | AJ21: 32 | AK21: 2 | AL21: 15 | AM21: 719 | AN21: 382 | AO21: 267 | AP21: 233 | AQ21: 634 | AR21: 134 | AS21: 72 | AT21: 94 | AU21: 404 | AV21: 62 | AW21: 9 | AX21: 58 | AY21: 17 | AZ21: 2 | BA21: 44 | BB21: 38 | BC21: 3 | BD21: 97 | BE21: 57 | BF21: 52 | BG21: 34
A22: 2019-04-01 | J22: F86626 | L22: 5305 | M22: 199 | N22: 3598 | O22: 3 | P22: 76 | Q22: 7 | R22: 6 | S22: 1 | T22: 52 | U22: 81 | V22: 148 | W22: 111 | X22: 718 | Y22: 151 | Z22: 138 | AA22: 64 | AB22: 163 | AC22: 35 | AD22: 2744 | AE22: 232 | AF22: 913 | AG22: 4185 | AH22: 35 | AI22: 26 | AJ22: 10 | AK22: 0 | AL22: 2 | AM22: 434 | AN22: 273 | AO22: 124 | AP22: 125 | AQ22: 401 | AR22: 68 | AS22: 47 | AT22: 54 | AU22: 205 | AV22: 21 | AW22: 6 | AX22: 20 | AY22: 4 | AZ22: 0 | BA22: 14 | BB22: 12 | BC22: 1 | BD22: 56 | BE22: 26 | BF22: 24 | BG22: 18
A23: 2019-04-01 | J23: F86627 | L23: 13888 | M23: 788 | N23: 8938 | O23: 21 | P23: 606 | Q23: 36 | R23: 27 | S23: 9 | T23: 328 | U23: 670 | V23: 629 | W23: 417 | X23: 2808 | Y23: 539 | Z23: 484 | AA23: 256 | AB23: 626 | AC23: 149 | AD23: 8109 | AE23: 978 | AF23: 2883 | AG23: 11332 | AH23: 207 | AI23: 150 | AJ23: 71 | AK23: 12 | AL23: 25 | AM23: 1869 | AN23: 939 | AO23: 516 | AP23: 446 | AQ23: 1717 | AR23: 409 | AS23: 234 | AT23: 282 | AU23: 819 | AV23: 241 | AW23: 49 | AX23: 217 | AY23: 72 | AZ23: 6 | BA23: 171 | BB23: 163 | BC23: 41 | BD23: 300 | BE23: 255 | BF23: 234 | BG23: 137
A24: 2019-04-01 | J24: F86644 | L24: 10868 | M24: 506 | N24: 6982 | O24: 144 | P24: 241 | Q24: 36 | R24: 29 | S24: 8 | T24: 164 | U24: 272 | V24: 274 | W24: 177 | X24: 1843 | Y24: 325 | Z24: 319 | AA24: 123 | AB24: 325 | AC24: 72 | AD24: 5699 | AE24: 638 | AF24: 1717 | AG24: 8450 | AH24: 153 | AI24: 118 | AJ24: 55 | AK24: 0 | AL24: 23 | AM24: 1238 | AN24: 634 | AO24: 344 | AP24: 299 | AQ24: 1038 | AR24: 205 | AS24: 116 | AT24: 145 | AU24: 567 | AV24: 112 | AW24: 19 | AX24: 97 | AY24: 37 | AZ24: 2 | BA24: 76 | BB24: 80 | BC24: 13 | BD24: 156 | BE24: 80 | BF24: 68 | BG24: 46
A25: 2019-04-01 | J25: F86650 | L25: 8203 | M25: 437 | N25: 5522 | O25: 32 | P25: 141 | Q25: 11 | R25: 8 | S25: 2 | T25: 88 | U25: 169 | V25: 205 | W25: 113 | X25: 1410 | Y25: 327 | Z25: 288 | AA25: 120 | AB25: 329 | AC25: 87 | AD25: 4417 | AE25: 530 | AF25: 2016 | AG25: 6589 | AH25: 112 | AI25: 54 | AJ25: 27 | AK25: 0 | AL25: 14 | AM25: 732 | AN25: 328 | AO25: 248 | AP25: 249 | AQ25: 633 | AR25: 117 | AS25: 65 | AT25: 76 | AU25: 483 | AV25: 62 | AW25: 13 | AX25: 45 | AY25: 15 | AZ25: 1 | BA25: 42 | BB25: 37 | BC25: 10 | BD25: 90 | BE25: 71 | BF25: 64 | BG25: 37
A26: 2019-04-01 | J26: F86664 | L26: 8332 | M26: 330 | N26: 5288 | O26: 25 | P26: 140 | Q26: 18 | R26: 16 | S26: 5 | T26: 115 | U26: 169 | V26: 174 | W26: 82 | X26: 1345 | Y26: 290 | Z26: 211 | AA26: 131 | AB26: 299 | AC26: 73 | AD26: 4478 | AE26: 421 | AF26: 1624 | AG26: 6567 | AH26: 91 | AI26: 60 | AJ26: 36 | AK26: 0 | AL26: 6 | AM26: 885 | AN26: 487 | AO26: 355 | AP26: 177 | AQ26: 683 | AR26: 180 | AS26: 74 | AT26: 88 | AU26: 394 | AV26: 104 | AW26: 22 | AX26: 92 | AY26: 32 | AZ26: 0 | BA26: 98 | BB26: 69 | BC26: 15 | BD26: 135 | BE26: 86 | BF26: 73 | BG26: 55
A27: 2019-04-01 | J27: F86666 | L27: 14133 | M27: 748 | N27: 9594 | O27: 37 | P27: 322 | Q27: 109 | R27: 94 | S27: 21 | T27: 215 | U27: 366 | V27: 615 | W27: 415 | X27: 4349 | Y27: 604 | Z27: 525 | AA27: 259 | AB27: 578 | AC27: 141 | AD27: 7501 | AE27: 912 | AF27: 3327 | AG27: 11406 | AH27: 222 | AI27: 182 | AJ27: 84 | AK27: 0 | AL27: 23 | AM27: 1650 | AN27: 904 | AO27: 568 | AP27: 451 | AQ27: 1426 | AR27: 197 | AS27: 121 | AT27: 139 | AU27: 828 | AV27: 99 | AW27: 28 | AX27: 89 | AY27: 41 | AZ27: 0 | BA27: 67 | BB27: 76 | BC27: 5 | BD27: 157 | BE27: 108 | BF27: 92 | BG27: 71
A28: 2019-04-01 | J28: F86679 | L28: 5757 | M28: 240 | N28: 3628 | O28: 22 | P28: 77 | Q28: 10 | R28: 9 | S28: 1 | T28: 50 | U28: 80 | V28: 118 | W28: 88 | X28: 1049 | Y28: 207 | Z28: 162 | AA28: 86 | AB28: 213 | AC28: 49 | AD28: 3071 | AE28: 385 | AF28: 1387 | AG28: 4317 | AH28: 34 | AI28: 29 | AJ28: 13 | AK28: 1 | AL28: 4 | AM28: 469 | AN28: 309 | AO28: 140 | AP28: 145 | AQ28: 430 | AR28: 56 | AS28: 32 | AT28: 39 | AU28: 250 | AV28: 41 | AW28: 11 | AX28: 37 | AY28: 12 | AZ28: 0 | BA28: 25 | BB28: 16 | BC28: 8 | BD28: 47 | BE28: 40 | BF28: 37 | BG28: 30
A29: 2019-04-01 | J29: F86689 | L29: 4059 | M29: 119 | N29: 2835 | O29: 13 | P29: 82 | Q29: 6 | R29: 2 | S29: 1 | T29: 59 | U29: 83 | V29: 42 | W29: 29 | X29: 512 | Y29: 82 | Z29: 82 | AA29: 35 | AB29: 115 | AC29: 33 | AD29: 2277 | AE29: 131 | AF29: 785 | AG29: 3147 | AH29: 27 | AI29: 17 | AJ29: 6 | AK29: 0 | AL29: 5 | AM29: 287 | AN29: 150 | AO29: 103 | AP29: 76 | AQ29: 261 | AR29: 54 | AS29: 35 | AT29: 41 | AU29: 124 | AV29: 33 | AW29: 1 | AX29: 29 | AY29: 9 | AZ29: 0 | BA29: 24 | BB29: 19 | BC29: 4 | BD29: 40 | BE29: 21 | BF29: 21 | BG29: 13
A30: 2019-04-01 | J30: F86696 | L30: 5139 | M30: 294 | N30: 3449 | O30: 16 | P30: 161 | Q30: 5 | R30: 2 | S30: 0 | T30: 82 | U30: 186 | V30: 102 | W30: 74 | X30: 823 | Y30: 233 | Z30: 205 | AA30: 83 | AB30: 177 | AC30: 33 | AD30: 1641 | AE30: 266 | AF30: 1118 | AG30: 4130 | AH30: 47 | AI30: 29 | AJ30: 14 | AK30: 0 | AL30: 7 | AM30: 553 | AN30: 278 | AO30: 251 | AP30: 167 | AQ30: 487 | AR30: 96 | AS30: 67 | AT30: 83 | AU30: 333 | AV30: 32 | AW30: 7 | AX30: 29 | AY30: 5 | AZ30: 0 | BA30: 22 | BB30: 13 | BC30: 2 | BD30: 81 | BE30: 40 | BF30: 36 | BG30: 20
A31: 2019-04-01 | J31: F86700 | L31: 3772 | M31: 204 | N31: 2461 | O31: 23 | P31: 246 | Q31: 6 | R31: 6 | S31: 0 | T31: 189 | U31: 274 | V31: 163 | W31: 109 | X31: 592 | Y31: 187 | Z31: 152 | AA31: 58 | AB31: 166 | AC31: 29 | AD31: 2041 | AE31: 185 | AF31: 866 | AG31: 3054 | AH31: 50 | AI31: 35 | AJ31: 12 | AK31: 2 | AL31: 6 | AM31: 772 | AN31: 508 | AO31: 175 | AP31: 141 | AQ31: 684 | AR31: 135 | AS31: 70 | AT31: 82 | AU31: 216 | AV31: 121 | AW31: 20 | AX31: 110 | AY31: 38 | AZ31: 2 | BA31: 104 | BB31: 92 | BC31: 30 | BD31: 101 | BE31: 89 | BF31: 78 | BG31: 61
A32: 2019-04-01 | J32: F86701 | L32: 3282 | M32: 222 | N32: 2284 | O32: 5 | P32: 114 | Q32: 28 | R32: 20 | S32: 3 | T32: 93 | U32: 126 | V32: 152 | W32: 117 | X32: 966 | Y32: 194 | Z32: 171 | AA32: 52 | AB32: 175 | AC32: 24 | AD32: 1834 | AE32: 232 | AF32: 945 | AG32: 2693 | AH32: 75 | AI32: 58 | AJ32: 32 | AK32: 0 | AL32: 11 | AM32: 425 | AN32: 288 | AO32: 193 | AP32: 137 | AQ32: 386 | AR32: 59 | AS32: 41 | AT32: 47 | AU32: 232 | AV32: 19 | AW32: 4 | AX32: 19 | AY32: 8 | AZ32: 0 | BA32: 19 | BB32: 19 | BC32: 2 | BD32: 48 | BE32: 30 | BF32: 27 | BG32: 19
A33: 2019-04-01 | J33: F86705 | L33: 3029 | M33: 168 | N33: 2100 | O33: 24 | P33: 49 | Q33: 4 | R33: 4 | S33: 2 | T33: 32 | U33: 54 | V33: 115 | W33: 88 | X33: 1089 | Y33: 121 | Z33: 114 | AA33: 52 | AB33: 156 | AC33: 28 | AD33: 1698 | AE33: 205 | AF33: 826 | AG33: 2463 | AH33: 24 | AI33: 16 | AJ33: 7 | AK33: 0 | AL33: 2 | AM33: 288 | AN33: 160 | AO33: 148 | AP33: 100 | AQ33: 249 | AR33: 51 | AS33: 30 | AT33: 34 | AU33: 176 | AV33: 29 | AW33: 4 | AX33: 22 | AY33: 11 | AZ33: 0 | BA33: 28 | BB33: 16 | BC33: 3 | BD33: 39 | BE33: 20 | BF33: 19 | BG33: 12
A34: 2019-04-01 | J34: F86708 | L34: 2776 | M34: 176 | N34: 1676 | O34: 28 | P34: 67 | Q34: 13 | R34: 11 | S34: 4 | T34: 44 | U34: 69 | V34: 123 | W34: 81 | X34: 907 | Y34: 133 | Z34: 105 | AA34: 63 | AB34: 156 | AC34: 45 | AD34: 1526 | AE34: 122 | AF34: 656 | AG34: 2164 | AH34: 29 | AI34: 25 | AJ34: 7 | AK34: 0 | AL34: 5 | AM34: 377 | AN34: 182 | AO34: 125 | AP34: 89 | AQ34: 344 | AR34: 61 | AS34: 34 | AT34: 42 | AU34: 194 | AV34: 14 | AW34: 3 | AX34: 14 | AY34: 5 | AZ34: 0 | BA34: 10 | BB34: 8 | BC34: 4 | BD34: 42 | BE34: 33 | BF34: 29 | BG34: 15
A35: 2019-04-01 | J35: F86712 | L35: 3085 | M35: 196 | N35: 2200 | O35: 4 | P35: 77 | Q35: 3 | R35: 3 | S35: 0 | T35: 48 | U35: 82 | V35: 31 | W35: 22 | X35: 411 | Y35: 161 | Z35: 154 | AA35: 54 | AB35: 126 | AC35: 31 | AD35: 1850 | AE35: 177 | AF35: 806 | AG35: 2605 | AH35: 21 | AI35: 16 | AJ35: 7 | AK35: 0 | AL35: 2 | AM35: 350 | AN35: 196 | AO35: 165 | AP35: 129 | AQ35: 323 | AR35: 50 | AS35: 27 | AT35: 32 | AU35: 210 | AV35: 12 | AW35: 5 | AX35: 11 | AY35: 1 | AZ35: 1 | BA35: 10 | BB35: 11 | BC35: 0 | BD35: 40 | BE35: 13 | BF35: 13 | BG35: 9
A36: 2019-04-01 | J36: Y01291 | L36: 8792 | M36: 415 | N36: 5647 | O36: 39 | P36: 433 | Q36: 10 | R36: 3 | S36: 0 | T36: 292 | U36: 516 | V36: 374 | W36: 209 | X36: 2215 | Y36: 391 | Z36: 329 | AA36: 137 | AB36: 416 | AC36: 80 | AD36: 4624 | AE36: 440 | AF36: 2216 | AG36: 7033 | AH36: 81 | AI36: 64 | AJ36: 30 | AK36: 0 | AL36: 13 | AM36: 1172 | AN36: 724 | AO36: 279 | AP36: 249 | AQ36: 1041 | AR36: 201 | AS36: 123 | AT36: 145 | AU36: 434 | AV36: 114 | AW36: 31 | AX36: 108 | AY36: 26 | AZ36: 0 | BA36: 79 | BB36: 72 | BC36: 17 | BD36: 172 | BE36: 123 | BF36: 112 | BG36: 79
A37: 2019-04-01 | J37: Y01839 | L37: 6549 | M37: 361 | N37: 4330 | O37: 57 | P37: 123 | Q37: 27 | R37: 17 | S37: 4 | T37: 97 | U37: 135 | V37: 188 | W37: 142 | X37: 1131 | Y37: 310 | Z37: 241 | AA37: 95 | AB37: 222 | AC37: 84 | AD37: 3672 | AE37: 486 | AF37: 1148 | AG37: 5221 | AH37: 97 | AI37: 67 | AJ37: 29 | AK37: 0 | AL37: 11 | AM37: 743 | AN37: 441 | AO37: 209 | AP37: 209 | AQ37: 630 | AR37: 119 | AS37: 71 | AT37: 87 | AU37: 400 | AV37: 93 | AW37: 5 | AX37: 80 | AY37: 39 | AZ37: 0 | BA37: 67 | BB37: 73 | BC37: 4 | BD37: 93 | BE37: 52 | BF37: 47 | BG37: 31
A38: 2019-04-01 | J38: Y02585 | L38: 8112 | M38: 168 | N38: 5815 | O38: 1 | P38: 29 | Q38: 15 | R38: 14 | S38: 1 | T38: 18 | U38: 31 | V38: 92 | W38: 66 | X38: 2503 | Y38: 119 | Z38: 91 | AA38: 70 | AB38: 219 | AC38: 52 | AD38: 4032 | AE38: 624 | AF38: 1365 | AG38: 6607 | AH38: 79 | AI38: 53 | AJ38: 24 | AK38: 0 | AL38: 11 | AM38: 310 | AN38: 154 | AO38: 106 | AP38: 87 | AQ38: 277 | AR38: 39 | AS38: 28 | AT38: 33 | AU38: 176 | AV38: 30 | AW38: 4 | AX38: 28 | AY38: 18 | AZ38: 1 | BA38: 20 | BB38: 10 | BC38: 1 | BD38: 32 | BE38: 28 | BF38: 23 | BG38: 19
A39: 2019-04-01 | J39: Total | L39: 269643 | M39: 13629 | N39: 177255 | O39: 1009 | P39: 6517 | Q39: 797 | R39: 499 | S39: 127 | T39: 4491 | U39: 7274 | V39: 8067 | W39: 5439 | X39: 63339 | Y39: 10942 | Z39: 9421 | AA39: 4004 | AB39: 10403 | AC39: 2353 | AD39: 147337 | AE39: 16566 | AF39: 58098 | AG39: 215039 | AH39: 3209 | AI39: 2340 | AJ39: 1034 | AK39: 34 | AL39: 407 | AM39: 28849 | AN39: 16317 | AO39: 10010 | AP39: 7982 | AQ39: 25304 | AR39: 4899 | AS39: 2902 | AT39: 3461 | AU39: 14670 | AV39: 2460 | AW39: 471 | AX39: 2207 | AY39: 801 | AZ39: 31 | BA39: 1812 | BB39: 1676 | BC39: 375 | BD39: 3811 | BE39: 2460 | BF39: 2224 | BG39: 1534

Sheet Data 17-18 (hidden)
A1: 2019-03-01 | C1: 01 LDP | E1: Last Run: | G1: Population Count | H1: 1154235 | K1: Search | L1: 01. Listsize | M1: LDP.04.15.01 Diabetes HbA1C <=7.5% OR <=59mmol (15m) *REMOVE* | N1: LDP.04.11: Diabetes and BP in last 12 months | O1: LDP.05: CVD 25-84yrs (excl CVD) | P1: LDP.08.02 CKD Diagnosed (Last 6m) | Q1: LDP.08.03 CKD and BP Recorded (last 12 m) | R1: CSPMH. 01.03 QRisk Recorded (12m) | S1: CSPMH. 01.03.01 BP recorded on same day as QRisk (12m) | T1: CSPMH. 01.03.02 Qrisk>=20 (12m) | U1: LDP.08.01 CKD and BP less than 140/90 (last 12 m) | V1: LDP.08 CKD Register | W1: LDP.05.01: CVD QRISK greater than or equal 20% | X1: LDP.05.01.01: CVD Proxy Annual Review (last 12m) | Y1: LDP.05.02: Cardiovascular Risk Score Done (5y) | Z1: LDP.04.09: Diabetes BP less than 145/85 (last 12m) | AA1: LDP.04.08: Diabetes Chol less than 5mmol (last 12m) | AB1: LDP.01.01.01: Obesity BMI more than or equal to 35 less than 40 (last 12m) | AC1: LDP.01.01.02: Obesity BMI between 30-35 (last 12m) | AD1: LDP.01.01.03: Obesity BMI equal to or over 40 (last 12m) | AE1: LDP.01.02: Smoking Status (last 12m) or Never Smoked (25yrs+) | AF1: LDP.01.03: Current Smoker (last 12m) | AG1: LDP.01.01: Obesity BMI recorded (last 12m) | AH1: LDP.01: Aged 16yrs+ | AI1: CSPMH.01 SMI Register | AJ1: CSPMH.01.02 Smoking Status Recorded (12m) | AK1: CSPMH.01.02.01 Current Smoker (15m) | AL1: CSPMH 01.02.01.01 Ref to clinic 15m | AM1: CSPMH.01.02.02 Ex-smoker Recorded (latest 15m) | AN1: LDP.02: Hypertension Register | AO1: LDP.02.01: Hypertension and BP < 140/90 (age under 80) < 150/90 (Age 80+) | AP1: LDP.04.03: Diabetes Digital retinal screening or Seen by retinal screener *REMOV | AQ1: LDP.04.07: Diabetes Influenza Vaccinations (last 12m) | AR1: LDP.04.01: Diabetes HbA1c <7.5% OR <59mmol (last 12m) | AS1: LDP.02.02: Hypertension BP recorded (last 12m) | AT1: LDP.03: CHD Register | AU1: LDP.03.01: CHD Chol less than 5mmol (last 12m) | AV1: LDP.03.04: CHD Cholesterol recorded (last 12m) | AW1: LDP.04: Diabetes Register | AX1: LDP.09 COPD Register | AY1: LDP.09.01 Patients with severe or very severe COPD (FEV1<50) | AZ1: LDP.09.02 Patients with smoking status recorded (last 12m) or never smoked | BA1: LDP.09.03 COPD patients recorded as a Smoker | BB1: LDP.09.04 COPD Patients who are current smokers & referred to the Stop Smoking C | BC1: LDP.09.05 No of COPD with flu vaccination (12m) | BD1: LDP.09.06 No of COPD with pneumococcal vaccination ever | BE1: LDP.09.07 No of COPD patients referred to pulmonary rehab ever | BF1: LDP.03.02: CHD BP less than or equal 150/90 (last 9m)
A2: 2019-03-01 | E2: 2019-04-02T09:19:00 | G2: Males | H2: 576127 | J2: Organisation Code
A3: 2019-03-01 | E3: Relative Date: | G3: Females | H3: 578108 | J3: F86001 | L3: 7954 | M3: 1 | N3: 458 | O3: 5387 | P3: 64 | Q3: 256 | R3: 40 | S3: 18 | T3: 5 | U3: 175 | V3: 290 | W3: 207 | X3: 137 | Y3: 2221 | Z3: 400 | AA3: 276 | AB3: 118 | AC3: 263 | AD3: 58 | AE3: 4395 | AF3: 459 | AG3: 1505 | AH3: 6443 | AI3: 99 | AJ3: 81 | AK3: 24 | AL3: 0 | AM3: 21 | AN3: 909 | AO3: 537 | AP3: 2 | AQ3: 310 | AR3: 247 | AS3: 821 | AT3: 148 | AU3: 82 | AV3: 105 | AW3: 493 | AX3: 103 | AY3: 16 | AZ3: 95 | BA3: 30 | BB3: 0 | BC3: 64 | BD3: 65 | BE3: 9 | BF3: 123
A4: 2019-03-01 | E4: 2019-04-01 | J4: F86005 | L4: 8251 | M4: 2 | N4: 285 | O4: 5511 | P4: 6 | Q4: 307 | R4: 9 | S4: 4 | T4: 2 | U4: 206 | V4: 353 | W4: 174 | X4: 145 | Y4: 2442 | Z4: 248 | AA4: 201 | AB4: 114 | AC4: 283 | AD4: 71 | AE4: 4510 | AF4: 525 | AG4: 2042 | AH4: 6400 | AI4: 58 | AJ4: 39 | AK4: 20 | AL4: 0 | AM4: 3 | AN4: 813 | AO4: 460 | AP4: 2 | AQ4: 208 | AR4: 202 | AS4: 742 | AT4: 87 | AU4: 62 | AV4: 71 | AW4: 296 | AX4: 109 | AY4: 15 | AZ4: 98 | BA4: 39 | BB4: 1 | BC4: 87 | BD4: 75 | BE4: 15 | BF4: 75
A5: 2019-03-01 | J5: F86006 | L5: 6190 | M5: 1 | N5: 382 | O5: 4118 | P5: 18 | Q5: 148 | R5: 4 | S5: 4 | T5: 0 | U5: 72 | V5: 168 | W5: 72 | X5: 43 | Y5: 986 | Z5: 275 | AA5: 280 | AB5: 86 | AC5: 173 | AD5: 52 | AE5: 3293 | AF5: 367 | AG5: 979 | AH5: 4909 | AI5: 56 | AJ5: 26 | AK5: 16 | AL5: 1 | AM5: 4 | AN5: 784 | AO5: 358 | AP5: 0 | AQ5: 228 | AR5: 210 | AS5: 694 | AT5: 102 | AU5: 61 | AV5: 72 | AW5: 417 | AX5: 53 | AY5: 21 | AZ5: 52 | BA5: 23 | BB5: 1 | BC5: 28 | BD5: 24 | BE5: 3 | BF5: 79
A6: 2019-03-01 | J6: F86011 | L6: 9262 | M6: 0 | N6: 667 | O6: 3854 | P6: 11 | Q6: 233 | R6: 36 | S6: 24 | T6: 4 | U6: 176 | V6: 257 | W6: 239 | X6: 154 | Y6: 1919 | Z6: 591 | AA6: 454 | AB6: 143 | AC6: 360 | AD6: 93 | AE6: 5549 | AF6: 697 | AG6: 1839 | AH6: 7552 | AI6: 158 | AJ6: 127 | AK6: 56 | AL6: 6 | AM6: 26 | AN6: 1208 | AO6: 764 | AP6: 1 | AQ6: 487 | AR6: 374 | AS6: 1086 | AT6: 234 | AU6: 135 | AV6: 170 | AW6: 709 | AX6: 101 | AY6: 25 | AZ6: 100 | BA6: 29 | BB6: 1 | BC6: 74 | BD6: 78 | BE6: 9 | BF6: 201
A7: 2019-03-01 | J7: F86030 | L7: 8112 | M7: 0 | N7: 512 | O7: 5265 | P7: 12 | Q7: 164 | R7: 14 | S7: 8 | T7: 3 | U7: 124 | V7: 170 | W7: 386 | X7: 311 | Y7: 4094 | Z7: 451 | AA7: 440 | AB7: 97 | AC7: 298 | AD7: 41 | AE7: 4452 | AF7: 351 | AG7: 1555 | AH7: 6373 | AI7: 55 | AJ7: 36 | AK7: 13 | AL7: 1 | AM7: 6 | AN7: 743 | AO7: 484 | AP7: 405 | AQ7: 433 | AR7: 350 | AS7: 688 | AT7: 166 | AU7: 136 | AV7: 151 | AW7: 535 | AX7: 43 | AY7: 5 | AZ7: 42 | BA7: 12 | BB7: 0 | BC7: 32 | BD7: 30 | BE7: 1 | BF7: 132
A8: 2019-03-01 | J8: F86036 | L8: 15820 | M8: 0 | N8: 787 | O8: 11059 | P8: 35 | Q8: 344 | R8: 43 | S8: 24 | T8: 6 | U8: 268 | V8: 363 | W8: 208 | X8: 140 | Y8: 2685 | Z8: 733 | AA8: 610 | AB8: 243 | AC8: 657 | AD8: 138 | AE8: 9516 | AF8: 936 | AG8: 3677 | AH8: 12766 | AI8: 234 | AJ8: 184 | AK8: 78 | AL8: 3 | AM8: 40 | AN8: 1473 | AO8: 898 | AP8: 562 | AQ8: 582 | AR8: 521 | AS8: 1287 | AT8: 236 | AU8: 156 | AV8: 182 | AW8: 833 | AX8: 120 | AY8: 29 | AZ8: 105 | BA8: 50 | BB8: 1 | BC8: 88 | BD8: 94 | BE8: 30 | BF8: 186
A9: 2019-03-01 | J9: F86038 | L9: 10948 | M9: 0 | N9: 743 | O9: 6562 | P9: 135 | Q9: 227 | R9: 24 | S9: 15 | T9: 6 | U9: 172 | V9: 242 | W9: 438 | X9: 323 | Y9: 4395 | Z9: 554 | AA9: 498 | AB9: 173 | AC9: 411 | AD9: 85 | AE9: 5675 | AF9: 456 | AG9: 1728 | AH9: 8224 | AI9: 131 | AJ9: 76 | AK9: 26 | AL9: 1 | AM9: 5 | AN9: 1088 | AO9: 635 | AP9: 14 | AQ9: 522 | AR9: 400 | AS9: 988 | AT9: 251 | AU9: 169 | AV9: 195 | AW9: 788 | AX9: 30 | AY9: 3 | AZ9: 28 | BA9: 9 | BB9: 0 | BC9: 21 | BD9: 16 | BE9: 4 | BF9: 190
A10: 2019-03-01 | J10: F86044 | L10: 8916 | M10: 0 | N10: 350 | O10: 6356 | P10: 8 | Q10: 146 | R10: 28 | S10: 24 | T10: 6 | U10: 93 | V10: 168 | W10: 244 | X10: 154 | Y10: 1286 | Z10: 283 | AA10: 228 | AB10: 94 | AC10: 225 | AD10: 72 | AE10: 5280 | AF10: 706 | AG10: 1323 | AH10: 7392 | AI10: 113 | AJ10: 85 | AK10: 35 | AL10: 0 | AM10: 6 | AN10: 778 | AO10: 421 | AP10: 114 | AQ10: 241 | AR10: 214 | AS10: 668 | AT10: 87 | AU10: 49 | AV10: 60 | AW10: 391 | AX10: 34 | AY10: 11 | AZ10: 29 | BA10: 18 | BB10: 0 | BC10: 25 | BD10: 22 | BE10: 8 | BF10: 69
A11: 2019-03-01 | J11: F86045 | L11: 1901 | M11: 0 | N11: 127 | O11: 1377 | P11: 6 | Q11: 60 | R11: 10 | S11: 2 | T11: 3 | U11: 19 | V11: 60 | W11: 85 | X11: 70 | Y11: 605 | Z11: 119 | AA11: 109 | AB11: 51 | AC11: 115 | AD11: 22 | AE11: 1187 | AF11: 151 | AG11: 581 | AH11: 1628 | AI11: 30 | AJ11: 29 | AK11: 10 | AL11: 0 | AM11: 5 | AN11: 257 | AO11: 91 | AP11: 0 | AQ11: 101 | AR11: 84 | AS11: 225 | AT11: 54 | AU11: 42 | AV11: 49 | AW11: 134 | AX11: 26 | AY11: 2 | AZ11: 23 | BA11: 6 | BB11: 0 | BC11: 20 | BD11: 18 | BE11: 2 | BF11: 49
A12: 2019-03-01 | J12: F86058 | L12: 15520 | M12: 2 | N12: 710 | O12: 10121 | P12: 10 | Q12: 357 | R12: 118 | S12: 14 | T12: 12 | U12: 294 | V12: 387 | W12: 470 | X12: 325 | Y12: 4030 | Z12: 626 | AA12: 493 | AB12: 280 | AC12: 724 | AD12: 157 | AE12: 8172 | AF12: 1104 | AG12: 3865 | AH12: 11987 | AI12: 204 | AJ12: 136 | AK12: 72 | AL12: 0 | AM12: 27 | AN12: 1498 | AO12: 979 | AP12: 6 | AQ12: 520 | AR12: 378 | AS12: 1311 | AT12: 221 | AU12: 139 | AV12: 163 | AW12: 738 | AX12: 104 | AY12: 17 | AZ12: 94 | BA12: 34 | BB12: 1 | BC12: 83 | BD12: 80 | BE12: 9 | BF12: 205
A13: 2019-03-01 | J13: F86062 | L13: 7020 | M13: 0 | N13: 422 | O13: 4847 | P13: 5 | Q13: 174 | R13: 15 | S13: 14 | T13: 4 | U13: 118 | V13: 187 | W13: 268 | X13: 196 | Y13: 1401 | Z13: 350 | AA13: 291 | AB13: 127 | AC13: 386 | AD13: 65 | AE13: 4415 | AF13: 632 | AG13: 2437 | AH13: 5741 | AI13: 100 | AJ13: 90 | AK13: 34 | AL13: 2 | AM13: 18 | AN13: 842 | AO13: 472 | AP13: 122 | AQ13: 325 | AR13: 235 | AS13: 741 | AT13: 145 | AU13: 89 | AV13: 101 | AW13: 468 | AX13: 66 | AY13: 17 | AZ13: 61 | BA13: 20 | BB13: 3 | BC13: 47 | BD13: 45 | BE13: 3 | BF13: 115
A14: 2019-03-01 | J14: F86078 | L14: 7372 | M14: 1 | N14: 347 | O14: 4986 | P14: 13 | Q14: 114 | R14: 7 | S14: 1 | T14: 0 | U14: 68 | V14: 136 | W14: 398 | X14: 253 | Y14: 1996 | Z14: 250 | AA14: 218 | AB14: 100 | AC14: 227 | AD14: 46 | AE14: 4233 | AF14: 397 | AG14: 1179 | AH14: 6203 | AI14: 74 | AJ14: 41 | AK14: 15 | AL14: 0 | AM14: 8 | AN14: 1199 | AO14: 646 | AP14: 2 | AQ14: 244 | AR14: 201 | AS14: 973 | AT14: 186 | AU14: 93 | AV14: 113 | AW14: 377 | AX14: 94 | AY14: 10 | AZ14: 78 | BA14: 28 | BB14: 0 | BC14: 70 | BD14: 56 | BE14: 3 | BF14: 134
A15: 2019-03-01 | J15: F86086 | L15: 5859 | M15: 0 | N15: 264 | O15: 3659 | P15: 41 | Q15: 87 | R15: 8 | S15: 7 | T15: 2 | U15: 60 | V15: 93 | W15: 135 | X15: 91 | Y15: 878 | Z15: 217 | AA15: 160 | AB15: 119 | AC15: 288 | AD15: 65 | AE15: 3165 | AF15: 439 | AG15: 1494 | AH15: 4427 | AI15: 73 | AJ15: 65 | AK15: 30 | AL15: 0 | AM15: 13 | AN15: 492 | AO15: 261 | AP15: 2 | AQ15: 176 | AR15: 152 | AS15: 425 | AT15: 90 | AU15: 40 | AV15: 58 | AW15: 275 | AX15: 33 | AY15: 4 | AZ15: 33 | BA15: 8 | BB15: 0 | BC15: 24 | BD15: 19 | BE15: 2 | BF15: 76
A16: 2019-03-01 | J16: F86088 | L16: 4727 | M16: 0 | N16: 308 | O16: 3287 | P16: 29 | Q16: 154 | R16: 6 | S16: 4 | T16: 0 | U16: 117 | V16: 173 | W16: 83 | X16: 57 | Y16: 856 | Z16: 257 | AA16: 232 | AB16: 70 | AC16: 191 | AD16: 42 | AE16: 2578 | AF16: 240 | AG16: 1016 | AH16: 3965 | AI16: 44 | AJ16: 31 | AK16: 8 | AL16: 0 | AM16: 4 | AN16: 657 | AO16: 408 | AP16: 2 | AQ16: 224 | AR16: 187 | AS16: 567 | AT16: 98 | AU16: 62 | AV16: 71 | AW16: 336 | AX16: 43 | AY16: 10 | AZ16: 38 | BA16: 10 | BB16: 0 | BC16: 35 | BD16: 36 | BE16: 7 | BF16: 69
A17: 2019-03-01 | J17: F86607 | L17: 14186 | M17: 2 | N17: 613 | O17: 9338 | P17: 23 | Q17: 162 | R17: 49 | S17: 31 | T17: 7 | U17: 116 | V17: 176 | W17: 467 | X17: 305 | Y17: 4010 | Z17: 447 | AA17: 397 | AB17: 190 | AC17: 477 | AD17: 90 | AE17: 7701 | AF17: 870 | AG17: 3296 | AH17: 10843 | AI17: 187 | AJ17: 153 | AK17: 64 | AL17: 4 | AM17: 27 | AN17: 1227 | AO17: 662 | AP17: 423 | AQ17: 440 | AR17: 314 | AS17: 1120 | AT17: 195 | AU17: 104 | AV17: 127 | AW17: 635 | AX17: 93 | AY17: 16 | AZ17: 89 | BA17: 40 | BB17: 3 | BC17: 73 | BD17: 71 | BE17: 20 | BF17: 145
A18: 2019-03-01 | J18: F86616 | L18: 6598 | M18: 0 | N18: 288 | O18: 4320 | P18: 22 | Q18: 251 | R18: 9 | S18: 1 | T18: 1 | U18: 198 | V18: 260 | W18: 278 | X18: 183 | Y18: 1702 | Z18: 249 | AA18: 207 | AB18: 102 | AC18: 280 | AD18: 73 | AE18: 3673 | AF18: 415 | AG18: 1540 | AH18: 5187 | AI18: 48 | AJ18: 34 | AK18: 17 | AL18: 0 | AM18: 5 | AN18: 785 | AO18: 532 | AP18: 3 | AQ18: 219 | AR18: 182 | AS18: 738 | AT18: 186 | AU18: 110 | AV18: 126 | AW18: 300 | AX18: 54 | AY18: 11 | AZ18: 49 | BA18: 14 | BB18: 0 | BC18: 43 | BD18: 38 | BE18: 3 | BF18: 152
A19: 2019-03-01 | J19: F86621 | L19: 5661 | M19: 0 | N19: 299 | O19: 4088 | P19: 3 | Q19: 147 | R19: 3 | S19: 3 | T19: 1 | U19: 111 | V19: 164 | W19: 51 | X19: 39 | Y19: 507 | Z19: 274 | AA19: 240 | AB19: 52 | AC19: 178 | AD19: 26 | AE19: 3318 | AF19: 304 | AG19: 1124 | AH19: 4775 | AI19: 78 | AJ19: 52 | AK19: 19 | AL19: 0 | AM19: 13 | AN19: 612 | AO19: 424 | AP19: 8 | AQ19: 290 | AR19: 214 | AS19: 548 | AT19: 99 | AU19: 68 | AV19: 75 | AW19: 306 | AX19: 29 | AY19: 4 | AZ19: 26 | BA19: 10 | BB19: 0 | BC19: 22 | BD19: 27 | BE19: 23 | BF19: 86
A20: 2019-03-01 | J20: F86625 | L20: 6122 | M20: 2 | N20: 385 | O20: 4063 | P20: 93 | Q20: 176 | R20: 14 | S20: 4 | T20: 4 | U20: 112 | V20: 192 | W20: 140 | X20: 115 | Y20: 985 | Z20: 270 | AA20: 292 | AB20: 88 | AC20: 233 | AD20: 69 | AE20: 3167 | AF20: 345 | AG20: 1241 | AH20: 4910 | AI20: 101 | AJ20: 76 | AK20: 36 | AL20: 1 | AM20: 16 | AN20: 718 | AO20: 410 | AP20: 9 | AQ20: 271 | AR20: 246 | AS20: 654 | AT20: 134 | AU20: 75 | AV20: 98 | AW20: 405 | AX20: 63 | AY20: 9 | AZ20: 61 | BA20: 18 | BB20: 1 | BC20: 44 | BD20: 39 | BE20: 3 | BF20: 96
A21: 2019-03-01 | J21: F86626 | L21: 5296 | M21: 0 | N21: 207 | O21: 3585 | P21: 4 | Q21: 78 | R21: 6 | S21: 5 | T21: 1 | U21: 63 | V21: 82 | W21: 148 | X21: 112 | Y21: 691 | Z21: 171 | AA21: 140 | AB21: 62 | AC21: 162 | AD21: 33 | AE21: 2746 | AF21: 236 | AG21: 884 | AH21: 4175 | AI21: 37 | AJ21: 27 | AK21: 12 | AL21: 1 | AM21: 2 | AN21: 435 | AO21: 297 | AP21: 117 | AQ21: 124 | AR21: 130 | AS21: 401 | AT21: 69 | AU21: 48 | AV21: 55 | AW21: 209 | AX21: 21 | AY21: 6 | AZ21: 21 | BA21: 5 | BB21: 0 | BC21: 14 | BD21: 12 | BE21: 1 | BF21: 60
A22: 2019-03-01 | J22: F86627 | L22: 13930 | M22: 2 | N22: 802 | O22: 8962 | P22: 23 | Q22: 610 | R22: 35 | S22: 27 | T22: 9 | U22: 339 | V22: 674 | W22: 620 | X22: 421 | Y22: 2758 | Z22: 548 | AA22: 508 | AB22: 253 | AC22: 629 | AD22: 144 | AE22: 8177 | AF22: 988 | AG22: 2875 | AH22: 11361 | AI22: 216 | AJ22: 160 | AK22: 74 | AL22: 11 | AM22: 26 | AN22: 1889 | AO22: 951 | AP22: 14 | AQ22: 534 | AR22: 465 | AS22: 1734 | AT22: 410 | AU22: 239 | AV22: 288 | AW22: 840 | AX22: 239 | AY22: 48 | AZ22: 221 | BA22: 74 | BB22: 5 | BC22: 170 | BD22: 162 | BE22: 39 | BF22: 304
A23: 2019-03-01 | J23: F86644 | L23: 10982 | M23: 1 | N23: 519 | O23: 7041 | P23: 160 | Q23: 247 | R23: 36 | S23: 27 | T23: 5 | U23: 166 | V23: 277 | W23: 270 | X23: 171 | Y23: 1786 | Z23: 329 | AA23: 330 | AB23: 125 | AC23: 329 | AD23: 83 | AE23: 5746 | AF23: 640 | AG23: 1746 | AH23: 8523 | AI23: 165 | AJ23: 124 | AK23: 53 | AL23: 0 | AM23: 28 | AN23: 1259 | AO23: 642 | AP23: 144 | AQ23: 355 | AR23: 306 | AS23: 1059 | AT23: 210 | AU23: 117 | AV23: 145 | AW23: 592 | AX23: 112 | AY23: 18 | AZ23: 98 | BA23: 39 | BB23: 0 | BC23: 77 | BD23: 80 | BE23: 12 | BF23: 157
A24: 2019-03-01 | J24: F86650 | L24: 8246 | M24: 1 | N24: 452 | O24: 5548 | P24: 31 | Q24: 141 | R24: 10 | S24: 8 | T24: 2 | U24: 91 | V24: 168 | W24: 205 | X24: 114 | Y24: 1404 | Z24: 361 | AA24: 299 | AB24: 111 | AC24: 328 | AD24: 89 | AE24: 4444 | AF24: 534 | AG24: 1995 | AH24: 6622 | AI24: 111 | AJ24: 54 | AK24: 26 | AL24: 0 | AM24: 14 | AN24: 742 | AO24: 352 | AP24: 1 | AQ24: 258 | AR24: 258 | AS24: 653 | AT24: 121 | AU24: 67 | AV24: 78 | AW24: 497 | AX24: 63 | AY24: 13 | AZ24: 51 | BA24: 16 | BB24: 1 | BC24: 43 | BD24: 37 | BE24: 10 | BF24: 98
A25: 2019-03-01 | J25: F86664 | L25: 8266 | M25: 0 | N25: 342 | O25: 5244 | P25: 25 | Q25: 146 | R25: 12 | S25: 10 | T25: 1 | U25: 121 | V25: 169 | W25: 147 | X25: 63 | Y25: 1244 | Z25: 294 | AA25: 217 | AB25: 115 | AC25: 276 | AD25: 73 | AE25: 4442 | AF25: 403 | AG25: 1508 | AH25: 6525 | AI25: 98 | AJ25: 65 | AK25: 39 | AL25: 0 | AM25: 9 | AN25: 880 | AO25: 501 | AP25: 3 | AQ25: 355 | AR25: 182 | AS25: 692 | AT25: 179 | AU25: 68 | AV25: 83 | AW25: 396 | AX25: 104 | AY25: 21 | AZ25: 93 | BA25: 32 | BB25: 0 | BC25: 98 | BD25: 68 | BE25: 14 | BF25: 130
A26: 2019-03-01 | J26: F86666 | L26: 14096 | M26: 3 | N26: 756 | O26: 9555 | P26: 34 | Q26: 401 | R26: 116 | S26: 100 | T26: 24 | U26: 268 | V26: 448 | W26: 606 | X26: 421 | Y26: 4340 | Z26: 630 | AA26: 544 | AB26: 279 | AC26: 599 | AD26: 144 | AE26: 7525 | AF26: 942 | AG26: 3459 | AH26: 11363 | AI26: 219 | AJ26: 184 | AK26: 87 | AL26: 0 | AM26: 25 | AN26: 1637 | AO26: 928 | AP26: 244 | AQ26: 566 | AR26: 475 | AS26: 1445 | AT26: 195 | AU26: 124 | AV26: 147 | AW26: 818 | AX26: 100 | AY26: 28 | AZ26: 92 | BA26: 44 | BB26: 0 | BC26: 67 | BD26: 76 | BE26: 5 | BF26: 156
A27: 2019-03-01 | J27: F86679 | L27: 5735 | M27: 0 | N27: 242 | O27: 3625 | P27: 26 | Q27: 78 | R27: 10 | S27: 9 | T27: 1 | U27: 52 | V27: 81 | W27: 116 | X27: 92 | Y27: 1046 | Z27: 209 | AA27: 168 | AB27: 83 | AC27: 219 | AD27: 50 | AE27: 3075 | AF27: 378 | AG27: 1381 | AH27: 4303 | AI27: 38 | AJ27: 34 | AK27: 13 | AL27: 1 | AM27: 6 | AN27: 470 | AO27: 313 | AP27: 57 | AQ27: 141 | AR27: 149 | AS27: 427 | AT27: 55 | AU27: 34 | AV27: 41 | AW27: 249 | AX27: 40 | AY27: 12 | AZ27: 37 | BA27: 13 | BB27: 0 | BC27: 25 | BD27: 17 | BE27: 8 | BF27: 49
A28: 2019-03-01 | J28: F86689 | L28: 4013 | M28: 1 | N28: 118 | O28: 2803 | P28: 9 | Q28: 78 | R28: 6 | S28: 2 | T28: 1 | U28: 58 | V28: 79 | W28: 38 | X28: 25 | Y28: 489 | Z28: 85 | AA28: 81 | AB28: 32 | AC28: 106 | AD28: 29 | AE28: 2252 | AF28: 127 | AG28: 732 | AH28: 3111 | AI28: 27 | AJ28: 17 | AK28: 6 | AL28: 0 | AM28: 4 | AN28: 285 | AO28: 155 | AP28: 1 | AQ28: 102 | AR28: 75 | AS28: 258 | AT28: 54 | AU28: 35 | AV28: 41 | AW28: 123 | AX28: 32 | AY28: 1 | AZ28: 29 | BA28: 10 | BB28: 0 | BC28: 24 | BD28: 19 | BE28: 4 | BF28: 42
A29: 2019-03-01 | J29: F86696 | L29: 5094 | M29: 0 | N29: 296 | O29: 3402 | P29: 13 | Q29: 159 | R29: 6 | S29: 2 | T29: 1 | U29: 85 | V29: 182 | W29: 95 | X29: 70 | Y29: 799 | Z29: 236 | AA29: 206 | AB29: 81 | AC29: 177 | AD29: 33 | AE29: 1635 | AF29: 277 | AG29: 1135 | AH29: 4088 | AI29: 52 | AJ29: 30 | AK29: 14 | AL29: 0 | AM29: 9 | AN29: 548 | AO29: 274 | AP29: 1 | AQ29: 252 | AR29: 168 | AS29: 488 | AT29: 95 | AU29: 68 | AV29: 82 | AW29: 334 | AX29: 30 | AY29: 8 | AZ29: 28 | BA29: 5 | BB29: 0 | BC29: 22 | BD29: 14 | BE29: 1 | BF29: 86
A30: 2019-03-01 | J30: F86700 | L30: 3766 | M30: 1 | N30: 217 | O30: 2459 | P30: 15 | Q30: 242 | R30: 6 | S30: 6 | T30: 0 | U30: 190 | V30: 272 | W30: 163 | X30: 102 | Y30: 580 | Z30: 204 | AA30: 167 | AB30: 57 | AC30: 163 | AD30: 31 | AE30: 2063 | AF30: 190 | AG30: 911 | AH30: 3052 | AI30: 52 | AJ30: 37 | AK30: 12 | AL30: 2 | AM30: 7 | AN30: 775 | AO30: 530 | AP30: 2 | AQ30: 187 | AR30: 154 | AS30: 694 | AT30: 135 | AU30: 72 | AV30: 82 | AW30: 230 | AX30: 123 | AY30: 21 | AZ30: 117 | BA30: 40 | BB30: 1 | BC30: 106 | BD30: 94 | BE30: 28 | BF30: 105
A31: 2019-03-01 | J31: F86701 | L31: 3270 | M31: 0 | N31: 226 | O31: 2280 | P31: 6 | Q31: 107 | R31: 27 | S31: 18 | T31: 3 | U31: 88 | V31: 116 | W31: 149 | X31: 122 | Y31: 946 | Z31: 204 | AA31: 174 | AB31: 50 | AC31: 176 | AD31: 25 | AE31: 1841 | AF31: 237 | AG31: 961 | AH31: 2681 | AI31: 74 | AJ31: 57 | AK31: 32 | AL31: 0 | AM31: 12 | AN31: 423 | AO31: 297 | AP31: 170 | AQ31: 194 | AR31: 142 | AS31: 387 | AT31: 58 | AU31: 40 | AV31: 46 | AW31: 232 | AX31: 19 | AY31: 4 | AZ31: 19 | BA31: 8 | BB31: 0 | BC31: 19 | BD31: 19 | BE31: 2 | BF31: 50
A32: 2019-03-01 | J32: F86705 | L32: 2995 | M32: 0 | N32: 168 | O32: 2071 | P32: 23 | Q32: 50 | R32: 5 | S32: 5 | T32: 2 | U32: 32 | V32: 53 | W32: 115 | X32: 84 | Y32: 1070 | Z32: 121 | AA32: 111 | AB32: 57 | AC32: 156 | AD32: 28 | AE32: 1685 | AF32: 206 | AG32: 810 | AH32: 2432 | AI32: 29 | AJ32: 20 | AK32: 10 | AL32: 0 | AM32: 2 | AN32: 287 | AO32: 162 | AP32: 2 | AQ32: 152 | AR32: 104 | AS32: 256 | AT32: 51 | AU32: 31 | AV32: 35 | AW32: 182 | AX32: 28 | AY32: 4 | AZ32: 24 | BA32: 11 | BB32: 0 | BC32: 27 | BD32: 15 | BE32: 3 | BF32: 41
A33: 2019-03-01 | J33: F86708 | L33: 2784 | M33: 1 | N33: 173 | O33: 1684 | P33: 29 | Q33: 65 | R33: 11 | S33: 9 | T33: 3 | U33: 43 | V33: 67 | W33: 127 | X33: 86 | Y33: 912 | Z33: 132 | AA33: 109 | AB33: 66 | AC33: 155 | AD33: 50 | AE33: 1528 | AF33: 123 | AG33: 667 | AH33: 2167 | AI33: 28 | AJ33: 23 | AK33: 7 | AL33: 0 | AM33: 4 | AN33: 376 | AO33: 182 | AP33: 81 | AQ33: 127 | AR33: 90 | AS33: 343 | AT33: 56 | AU33: 33 | AV33: 40 | AW33: 197 | AX33: 14 | AY33: 3 | AZ33: 14 | BA33: 5 | BB33: 0 | BC33: 10 | BD33: 8 | BE33: 4 | BF33: 41
A34: 2019-03-01 | J34: F86712 | L34: 3066 | M34: 0 | N34: 209 | O34: 2185 | P34: 4 | Q34: 82 | R34: 3 | S34: 3 | T34: 0 | U34: 56 | V34: 85 | W34: 30 | X34: 21 | Y34: 401 | Z34: 179 | AA34: 158 | AB34: 53 | AC34: 126 | AD34: 31 | AE34: 1858 | AF34: 180 | AG34: 817 | AH34: 2592 | AI34: 20 | AJ34: 17 | AK34: 6 | AL34: 1 | AM34: 5 | AN34: 354 | AO34: 211 | AP34: 0 | AQ34: 167 | AR34: 135 | AS34: 338 | AT34: 49 | AU34: 27 | AV34: 32 | AW34: 215 | AX34: 12 | AY34: 5 | AZ34: 12 | BA34: 2 | BB34: 1 | BC34: 10 | BD34: 11 | BE34: 0 | BF34: 40
A35: 2019-03-01 | J35: Y01291 | L35: 8804 | M35: 0 | N35: 421 | O35: 5663 | P35: 37 | Q35: 431 | R35: 12 | S35: 4 | T35: 0 | U35: 295 | V35: 520 | W35: 374 | X35: 205 | Y35: 2200 | Z35: 397 | AA35: 325 | AB35: 137 | AC35: 415 | AD35: 74 | AE35: 4650 | AF35: 451 | AG35: 2200 | AH35: 7053 | AI35: 83 | AJ35: 65 | AK35: 31 | AL35: 0 | AM35: 13 | AN35: 1189 | AO35: 718 | AP35: 1 | AQ35: 288 | AR35: 253 | AS35: 1051 | AT35: 203 | AU35: 115 | AV35: 136 | AW35: 447 | AX35: 112 | AY35: 31 | AZ35: 104 | BA35: 26 | BB35: 0 | BC35: 78 | BD35: 69 | BE35: 15 | BF35: 170
A36: 2019-03-01 | J36: Y01839 | L36: 6537 | M36: 0 | N36: 364 | O36: 4325 | P36: 51 | Q36: 114 | R36: 28 | S36: 17 | T36: 4 | U36: 91 | V36: 125 | W36: 186 | X36: 145 | Y36: 1118 | Z36: 316 | AA36: 243 | AB36: 92 | AC36: 222 | AD36: 85 | AE36: 3665 | AF36: 499 | AG36: 1129 | AH36: 5218 | AI36: 100 | AJ36: 74 | AK36: 32 | AL36: 0 | AM36: 12 | AN36: 746 | AO36: 460 | AP36: 2 | AQ36: 209 | AR36: 205 | AS36: 639 | AT36: 121 | AU36: 66 | AV36: 82 | AW36: 399 | AX36: 93 | AY36: 6 | AZ36: 83 | BA36: 42 | BB36: 0 | BC36: 67 | BD36: 73 | BE36: 4 | BF36: 93
A37: 2019-03-01 | J37: Y02585 | L37: 8137 | M37: 2 | N37: 170 | O37: 5853 | P37: 1 | Q37: 27 | R37: 15 | S37: 14 | T37: 2 | U37: 17 | V37: 30 | W37: 89 | X37: 64 | Y37: 2488 | Z37: 116 | AA37: 97 | AB37: 75 | AC37: 223 | AD37: 49 | AE37: 4080 | AF37: 637 | AG37: 1388 | AH37: 6642 | AI37: 82 | AJ37: 53 | AK37: 26 | AL37: 0 | AM37: 10 | AN37: 325 | AO37: 162 | AP37: 1 | AQ37: 105 | AR37: 90 | AS37: 290 | AT37: 43 | AU37: 30 | AV37: 35 | AW37: 179 | AX37: 28 | AY37: 3 | AZ37: 27 | BA37: 16 | BB37: 1 | BC37: 19 | BD37: 10 | BE37: 1 | BF37: 35
A38: 2019-03-01 | J38: Total | L38: 265436 | M38: 23 | N38: 13629 | O38: 174483 | P38: 1025 | Q38: 6563 | R38: 781 | S38: 468 | T38: 125 | U38: 4554 | V38: 7267 | W38: 7821 | X38: 5359 | Y38: 61270 | Z38: 11126 | AA38: 9503 | AB38: 3975 | AC38: 10230 | AD38: 2316 | AE38: 145691 | AF38: 16442 | AG38: 57019 | AH38: 211633 | AI38: 3274 | AJ38: 2402 | AK38: 1053 | AL38: 35 | AM38: 435 | AN38: 28703 | AO38: 16577 | AP38: 2518 | AQ38: 9937 | AR38: 8092 | AS38: 25431 | AT38: 4823 | AU38: 2886 | AV38: 3435 | AW38: 14575 | AX38: 2368 | AY38: 457 | AZ38: 2171 | BA38: 786 | BB38: 21 | BC38: 1756 | BD38: 1617 | BE38: 305 | BF38: 3839

Sheet Control Panel (hidden)
B1: Control Panel | C1: 2018-06-30 | G1: Select Dates
B2: General Health | G2: April 2021 | O2: OrgID | P2: 4 | Q2: =$P$6&ADDRESS(1,P2)&":"&ADDRESS($P$7,P2) -> 'WF LDP TABLE'!$D$1:$D$10000 | T2: OrgID_A | U2: 10 | V2: =$U$6&ADDRESS(1,U2)&":"&ADDRESS($U$7,U2) -> 'Data 17-18'!$J$1:$J$1000
A3: List Size | B3: 01. Listsize | C3: List Size | G3: May 2021 | O3: REL_D | P3: 2 | Q3: =$P$6&ADDRESS(1,P3)&":"&ADDRESS($P$7,P3) -> 'WF LDP TABLE'!$B$1:$B$10000 | T3: REL_DA | U3: 1 | V3: =$U$6&ADDRESS(1,U3)&":"&ADDRESS($U$7,U3) -> 'Data 17-18'!$A$1:$A$1000
A4: Age 16+ | B4: LDP.01: Aged 16yrs+ | C4: Age 16+ | D4: Age 16+ | E4: Age 16+ | G4: June 2021 | O4: IND | P4: - | Q4: =$P$6&ADDRESS(P11,1)&":"&ADDRESS(P11,P8) -> 'WF LDP TABLE'!$A$1:$BU$1 | T4: IND_A | U4: - | V4: =$U$6&ADDRESS(U11,1)&":"&ADDRESS(U11,U8) -> 'Data 17-18'!$A$1:$BU$1
A5: % list size | B5: ="%"&B4 -> %LDP.01: Aged 16yrs+ | C5: % list size | D5: % list size | E5: % list size | G5: July 2021 | O5: NwID | P5: 2 | Q5: =$P$6&ADDRESS(1,P5)&":"&ADDRESS($P$7,P5) -> 'WF LDP TABLE'!$B$1:$B$10000 | T5: NwID_A | U5: 2 | V5: =$U$6&ADDRESS(1,U5)&":"&ADDRESS($U$7,U5) -> 'Data 17-18'!$B$1:$B$1000
A6: 16+ and BMI (last 12m) | B6: LDP.01.01: Obesity BMI recorded (last 12m) | C6: 16+ and BMI (last 12m) | D6: 16+ and BMI (last 12m) | E6: 16+ and BMI (last 12m) | G6: August 2021 | O6: Data | P6: =IF(P9="N","BLANK!","'"&P10&"'!") -> 'WF LDP TABLE'! | T6: Data | U6: =IF(U9="N","BLANK!","'"&U10&"'!") -> 'Data 17-18'!
A7: % 16+ | B7: ="%"&B6 -> %LDP.01.01: Obesity BMI recorded (last 12m) | C7: % 16+ | D7: % 16+ | E7: % 16+ | G7: September 2021 | O7: Rows | P7: 10000 | T7: Rows | U7: 1000
A8: BMI 25 to 29 | B8: LDP.01.01.02: Obesity BMI between 30-35 (last 12m) | C8: BMI 25 to 29 | D8: BMI ≥30 & <35 | E8: BMI ≥30 & <35 | G8: October 2021 | O8: Columns | P8: 73 | T8: Columns | U8: 73
A9: % 16+ | B9: ="%"&B8 -> %LDP.01.01.02: Obesity BMI between 30-35 (last 12m) | C9: % 16+ | D9: % 16+ | E9: % 16+ | G9: November 2021 | O9: Data (Y/N) | P9: Y | T9: Data (Y/N) | U9: Y
A10: BMI ≥ 30 | B10: LDP.01.01.01: Obesity BMI more than or equal to 35 less than 40 (last 12m) | C10: BMI ≥ 30 | D10: BMI ≥ 35 & <40 | E10: BMI ≥ 35 & <40 | G10: December 2021 | O10: Q Work Sheet | P10: WF LDP TABLE | Q10: =$P$6&ADDRESS(1,1)&":"&ADDRESS(P7,P8) -> 'WF LDP TABLE'!$A$1:$BU$10000 | T10: Q Work Sheet | U10: Data 17-18 | V10: =$U$6&ADDRESS(1,1)&":"&ADDRESS(U7,U8) -> 'Data 17-18'!$A$1:$BU$1000
A11: %16+ | B11: ="%"&B10 -> %LDP.01.01.01: Obesity BMI more than or equal to 35 less than 40 (last 12m) | C11: %16+ | D11: %16+ | E11: %16+ | G11: January 2022 | O11: Header Row | P11: 1 | T11: Header Row | U11: 1
A12: BMI ≥ 40 | B12: LDP.01.01.03: Obesity BMI equal to or over 40 (last 12m) | C12: BMI ≥ 40 | D12: BMI ≥ 40 | E12: BMI ≥ 40 | G12: February 2022 | O12: Header Row 2 | P12: 3 | T12: Header Row 2 | U12: 3
A13: %16+ | B13: ="%"&B12 -> %LDP.01.01.03: Obesity BMI equal to or over 40 (last 12m) | C13: %16+ | D13: %16+ | E13: %16+ | G13: March 2022
A14: Smoking status (last 12m) incl. never smoked | B14: LDP.01.02: Smoking Status (last 12m) or Never Smoked (25yrs+) | C14: Smoking status (last 12m) incl. never smoked | D14: Smoking status (last 12m) incl. never smoked | E14: Smoking status (last 12m) incl. never smoked | I14: April 2021 | J14: 2021-05-01
A15: % 16+ | B15: ="%"&B14 -> %LDP.01.02: Smoking Status (last 12m) or Never Smoked (25yrs+) | C15: % 16+ | D15: % 16+ | E15: % 16+ | I15: May 2021 | J15: 2021-06-01
A16: Age 16+ and current smoker (last 12m) | B16: LDP.01.03: Current Smoker (last 12m) | C16: Age 16+ and current smoker (last 12m) | D16: Age 16+ and current smoker (last 12m) | E16: Age 16+ and current smoker (last 12m) | I16: June 2021 | J16: 2021-07-01
A17: % 16+ | B17: ="%"&B16 -> %LDP.01.03: Current Smoker (last 12m) | C17: % 16+ | D17: % 16+ | E17: % 16+ | I17: July 2021 | J17: 2021-08-01
B18: Hypertension | I18: August 2021 | J18: 2021-09-01
A19: Hypertension Register | B19: LDP.02: Hypertension Register | C19: Hypertension Register | D19: Hypertension Register | E19: Hypertension Register | I19: September 2021 | J19: 2021-10-01
A20: % list size | B20: ="%"&B19 -> %LDP.02: Hypertension Register | C20: % list size | D20: % list size | E20: % list size | I20: October 2021 | J20: 2021-11-01
A21: Hypertension and BP (last 9m) | B21: LDP.02.02: Hypertension BP recorded (last 12m) | C21: Hypertension and BP (last 9m) | D21: Hypertension and BP (last 12m) | E21: Hypertension and BP (last 12m) | I21: November 2021 | J21: 2021-12-01
A22: % Hypertension Register | B22: ="%"&B21 -> %LDP.02.02: Hypertension BP recorded (last 12m) | C22: % Hypertension Register | D22: % Hypertension Register | E22: % Hypertension Register | I22: December 2021 | J22: 2022-01-01
A23: Hypertension and BP ≤ 150/90 (last 9m) | B23: LDP.02.01: Hypertension and BP < 140/90 (age under 80) < 150/90 (Age 80+) | C23: Hypertension and BP ≤ 150/90 (last 9m) | D23: Hypertension and BP < 140/90 (Patients aged under 80) < 150/90 ( Aged 80 and over) (last 12m) | E23: Hypertension and BP < 140/90 (Patients aged under 80) < 150/90 ( Aged 80 and over) (last 12m) | I23: January 2022 | J23: 2022-02-01
A24: % Hypertension Register | B24: ="%"&B23 -> %LDP.02.01: Hypertension and BP < 140/90 (age under 80) < 150/90 (Age 80+) | C24: % Hypertension Register | D24: % Hypertension Register | E24: % Hypertension Register | I24: February 2022 | J24: 2022-03-01
B25: CHD | I25: March 2022 | J25: 2022-04-01
A26: CHD register | B26: LDP.03: CHD Register | C26: CHD register | D26: CHD register | E26: CHD register
A27: % list size | B27: ="%"&B26 -> %LDP.03: CHD Register | C27: % list size | D27: % list size | E27: % list size
A28: Cholesterol (last 12m) | B28: LDP.03.04: CHD Cholesterol recorded (last 12m) | C28: Cholesterol (last 12m) | D28: Cholesterol (last 12m) | E28: Cholesterol (last 12m)
A29: % CHD register | B29: ="%"&B28 -> %LDP.03.04: CHD Cholesterol recorded (last 12m) | C29: % CHD register | D29: % CHD register | E29: % CHD register
A30: Cholesterol ≤ 5 (last 12m) | B30: LDP.03.01: CHD Chol less than 5mmol (last 12m) | C30: Cholesterol ≤ 5 (last 12m) | D30: Cholesterol < 5 (last 12m) | E30: Cholesterol < 5 (last 12m)
A31: % CHD register | B31: ="%"&B30 -> %LDP.03.01: CHD Chol less than 5mmol (last 12m) | C31: % CHD register | D31: % CHD register | E31: % CHD register
A32: BP (last 9m) | B32: LDP.03.02: CHD BP less than or equal 150/90 (last 9m) | C32: BP (last 9m) | D32: BP ≤ 150/90 (last 9m) | E32: BP ≤ 150/90 (last 9m)
A33: % CHD register | B33: ="%"&B32 -> %LDP.03.02: CHD BP less than or equal 150/90 (last 9m) | C33: % CHD register | D33: % CHD register | E33: % CHD register
A34: BP ≤ 150/90 (last 9m) | B34: LDP.03.05: CHD BP recorded (last 9m) | C34: BP ≤ 150/90 (last 9m)
A35: % CHD register | B35: ="%"&B34 -> %LDP.03.05: CHD BP recorded (last 9m) | C35: % CHD register
A36: CHD annual review or proxy review | B36: LDP.03.03: CHD Annual Review & Proxy (last 12m) | C36: CHD annual review or proxy review
A37: % CHD register | B37: ="%"&B36 -> %LDP.03.03: CHD Annual Review & Proxy (last 12m) | C37: % CHD register
A38: CHD diagnosed in last 6 months | B38: LDP.03.06: CHD Diagnosed (Last 6 months) | C38: CHD diagnosed in last 6 months
A39: % CHD register | B39: ="%"&B38 -> %LDP.03.06: CHD Diagnosed (Last 6 months) | C39: % CHD register
B40: Stroke/TIA
B41: LDP.10 Stroke or TIA register | E41: Stroke/TIA register
B42: %LDP.10 Stroke or TIA register | E42: % list size
B43: LDP.10.01: Stroke/TIA BP recorded (last 12m) | E43: Patients on Stroke/TIA register with BP recorded
B44: %LDP.10.01: Stroke/TIA BP recorded (last 12m) | E44: % of stroke register
B45: LDP.10.02 Patients on Stroke/TIA register with BP <140/90 (12m) | E45: Patients on Stroke/TIA register with BP <140/90 (12m)
B46: %LDP.10.02 Patients on Stroke/TIA register with BP <140/90 (12m) | E46: % of stroke register
B47: CVD Risk
A48: Aged 35 to 74 (exc CVD) | B48: LDP.05: CVD 25-84yrs (excl CVD) | C48: Aged 35 to 74 (exc CVD) | D48: Aged 25 to 84 (exc CVD) | E48: Aged 25 to 84 (exc CVD)
A49: CVD (QRISK or Framingham) risk score done | B49: LDP.05.02: Cardiovascular Risk Score Done (5y) | C49: CVD (QRISK or Framingham) risk score done | D49: QRISK recorded (5 years) | E49: QRISK recorded (5 years)
A50: % of patients aged 35 to 74 (exc CVD) | B50: ="%"&B49 -> %LDP.05.02: Cardiovascular Risk Score Done (5y) | C50: % of patients aged 35 to 74 (exc CVD) | D50: % of patients aged 25 to 84 (exc CVD) | E50: % of patients aged 25 to 84 (exc CVD)
A51: QRISK ≥ 20% | B51: LDP.05.01: CVD QRISK greater than or equal 20% | C51: QRISK ≥ 20% | D51: QRISK ≥ 20% | E51: QRISK ≥ 20%
A52: % QRISK Score recorded | B52: ="%"&B51 -> %LDP.05.01: CVD QRISK greater than or equal 20% | C52: % QRISK Score recorded | D52: % QRISK Score recorded | E52: % QRISK Score recorded
A53: QRISK ≥ 20% and proxy review (BP and Chol last 12m) | B53: LDP.05.01.01: CVD Proxy Annual Review (last 12m) | C53: QRISK ≥ 20% and proxy review (BP and Chol last 12m) | D53: QRISK ≥ 20% and proxy review (BP and Chol last 12m) | E53: QRISK ≥ 20% and proxy review (BP and Chol last 12m)
A54: % Patients with QRISK ≥ 20% | B54: ="%"&B53 -> %LDP.05.01.01: CVD Proxy Annual Review (last 12m) | C54: % Patients with QRISK ≥ 20% | D54: % Patients with QRISK ≥ 20% | E54: % Patients with QRISK ≥ 20%
B55: Diabetes
A56: Diabetes register | B56: LDP.04: Diabetes Register | C56: Diabetes register | D56: Diabetes register | E56: Diabetes register
A57: % List size | B57: ="%"&B56 -> %LDP.04: Diabetes Register | C57: % List size | D57: % List size | E57: % List size
A58: Annual review/ called or proxy (last 12m) | B58: LDP.04.02: Diabetes Called & Annual Review or Proxy (last 12m) | C58: Annual review/ called or proxy (last 12m) | D58: BP (last 12m) | E58: BP (last 12m)
A59: % Diabetes register | B59: ="%"&B58 -> %LDP.04.02: Diabetes Called & Annual Review or Proxy (last 12m) | C59: % Diabetes register | D59: % Diabetes Register | E59: % Diabetes Register
A60: BP (last 12m) | B60: LDP.04.11: Diabetes and BP in last 12 months | C60: BP (last 12m) | D60: BP < 145/85 (last 12m) | E60: BP < 145/85 (last 12m)
A61: % Diabetes Register | B61: ="%"&B60 -> %LDP.04.11: Diabetes and BP in last 12 months | C61: % Diabetes Register | D61: % Diabetes Register | E61: % Diabetes Register | G61: Practices
A62: BP ≤ 145/85 (last 12m) | B62: LDP.04.09: Diabetes BP less than 145/85 (last 12m) | C62: BP ≤ 145/85 (last 12m) | D62: Cholesterol < 5mmols (last 12m) | E62: Cholesterol < 5mmols (last 12m) | H62: The Firs Medical Centre | I62: F86001
A63: % Diabetes Register | B63: ="%"&B62 -> %LDP.04.09: Diabetes BP less than 145/85 (last 12m) | C63: % Diabetes Register | D63: % Diabetes Register | E63: % Diabetes Register | H63: Penryhn Surgery | I63: F86005
A64: Cholesterol (last 12m) | B64: LDP.04.12: Diabetes and cholesterol in last 15 mths | C64: Cholesterol (last 12m) | D64: HbA1c < 59 (last 12m) | E64: HbA1c < 59 (last 12m) | H64: Seymour Medical Centre | I64: F86006
A65: % Diabetes Register | B65: ="%"&B64 -> %LDP.04.12: Diabetes and cholesterol in last 15 mths | C65: % Diabetes Register | D65: % Diabetes register | E65: % Diabetes register | H65: The Manor Practice | I65: F86011
A66: Cholesterol < 5mmols (last 12m) | B66: LDP.04.08: Diabetes Chol less than 5mmol (last 12m) | C66: Cholesterol < 5mmols (last 12m) | D66: Flu jab (last 12m) | E66: Flu jab (From August 2021) | H66: Queens Road Medical Centre | I66: F86030
A67: % Diabetes Register | B67: ="%"&B66 -> %LDP.04.08: Diabetes Chol less than 5mmol (last 12m) | C67: % Diabetes Register | D67: % Diabetes Register | E67: % Diabetes Register | H67: The Allum Medical Centre | I67: F86036
A68: HbA1c ≤ 59(last 12m) | B68: LDP.04.01: Diabetes HbA1c <7.5% OR <59mmol (last 12m) | C68: HbA1c ≤ 59(last 12m) | H68: SMA Medical Centre | I68: F86038
A69: % Diabetes register | B69: ="%"&B68 -> %LDP.04.01: Diabetes HbA1c <7.5% OR <59mmol (last 12m) | C69: % Diabetes register | H69: Crawley Road Medical Centre | I69: F86044
A70: HbA1c ≤ 86 (last 12m) | B70: LDP.04.10: Diabetes HbA1c <=10% OR <=86mmol (last 12m) | C70: HbA1c ≤ 86 (last 12m) | H70: High Road Surgery | I70: F86045
A71: % Diabetes Register | B71: ="%"&B70 -> %LDP.04.10: Diabetes HbA1c <=10% OR <=86mmol (last 12m) | C71: % Diabetes Register | H71: St James Medical Practice Ltd | I71: F86058
A72: Diabetes retinal screening (last 12m) | B72: LDP.04.03: Diabetes Digital retinal screening or Seen by retinal screener | C72: Diabetes retinal screening (last 12m) | H72: The Grove Road Medical Centre | I72: F86062
A73: % Diabetes register | B73: ="%"&B72 -> %LDP.04.03: Diabetes Digital retinal screening or Seen by retinal screener | C73: % Diabetes register | H73: The Ridgeway Surgery | I73: F86078
A74: Retinal screening (last 12m) | B74: LDP.04.04: Diabetes Retinal Screening (QoF) (last 12m) | C74: Retinal screening (last 12m) | H74: Dr Dhital Practice | I74: F86086
A75: % Diabetes register | B75: ="%"&B74 -> %LDP.04.04: Diabetes Retinal Screening (QoF) (last 12m) | C75: % Diabetes register | H75: The Lyndhurst Surgery | I75: F86088
A76: Neuropathy testing (last 12m) | B76: LDP.04.05: Diabetes Neuropathy Test (last 12m) | C76: Neuropathy testing (last 12m) | H76: Addison Road Medical Practice | I76: F86607
A77: % Diabetes Register | B77: ="%"&B76 -> %LDP.04.05: Diabetes Neuropathy Test (last 12m) | C77: % Diabetes Register | H77: The Old Church Surgery | I77: F86616
A78: Microalbuminuria (last 12m) | B78: LDP.04.06: Diabetes Microalbuminuria Test (latest last 12m) | C78: Microalbuminuria (last 12m) | H78: Green Man Medical Centre | I78: F86621
A79: % Diabetes Register | B79: ="%"&B78 -> %LDP.04.06: Diabetes Microalbuminuria Test (latest last 12m) | C79: % Diabetes Register | H79: L.L. Medical Care Ltd (Agarwal & Agrawal Practice) | I79: F86625
A80: Flu jab (last 12m) | B80: LDP.04.07: Diabetes Influenza Vaccinations (From August 2018) | C80: Flu jab (last 12m) | H80: Dr Shantir's Practice - Forest Road Medical Centre | I80: F86626
A81: % Diabetes Register | B81: ="%"&B80 -> %LDP.04.07: Diabetes Influenza Vaccinations (From August 2018) | C81: % Diabetes Register | H81: Churchill Medical Centre | I81: F86627
A82: Type 1 Diabetes | B82: LDP.04.13. Type 1 Diabetes | C82: Type 1 Diabetes | H82: Waltham Forest Community And FHS Ltd | I82: F86644
A83: % Diabetes Register | B83: ="%"&B82 -> %LDP.04.13. Type 1 Diabetes | C83: % Diabetes Register | H83: Lime Tree Surgery | I83: F86650
A84: Type 2 Diabetes | B84: LDP.04.14. Type 2 Diabetes | C84: Type 2 Diabetes | H84: Larkshall Medical Centre | I84: F86664
A85: % Diabetes Register | B85: ="%"&B84 -> %LDP.04.14. Type 2 Diabetes | C85: % Diabetes Register | H85: The Harrow Rd GP Surgery | I85: F86666
A86: No Type Recorded | B86: No Type Recorded | C86: No Type Recorded | H86: Higham Hill Medical Centre | I86: F86679
A87: % Diabetes Register | B87: ="%"&B86 -> %No Type Recorded | C87: % Diabetes Register | H87: The Bailey Practice | I87: F86689
A88: Type 2 diabetes excluding insulin prescriptions (last 15 m) | B88: LDP 04.14.01 Excl Insulin Prescription (12m) | C88: Type 2 diabetes excluding insulin prescriptions (last 15 m) | H88: Francis Road Medical Centre | I88: F86696
A89: % Type 2 Diabetes | B89: ="%"&B88 -> %LDP 04.14.01 Excl Insulin Prescription (12m) | C89: % Type 2 Diabetes | H89: Kingshead Medical Practice | I89: F86700
A90: Newly Diagnosed Diabetes (Last 1m) | B90: LDP.04.19 Newly Diagnosed Diabetes (last 1m) | C90: Newly Diagnosed Diabetes (Last 1m) | H90: Kiyani Medical Practice | I90: F86701
A91: Newly Diagnosed Diabetes - Type 1 | B91: LDP.04.19.01 Newly Diagnosed Type 1 | C91: Newly Diagnosed Diabetes - Type 1 | H91: Langthorne Sharma Family Practice | I91: F86705
A92: Newly Diagnosed Diabetes - Type 2 | B92: LDP.04.19.02 Newly Diagnosed Type 2 | C92: Newly Diagnosed Diabetes - Type 2 | H92: Claremont Medical Centre | I92: F86708
A93: Newly Diagnosed Diabetes - Type Not Recorded | B93: ="%"&B92 -> %LDP.04.19.02 Newly Diagnosed Type 2 | C93: Newly Diagnosed Diabetes - Type Not Recorded | H93: Hampton Medical Centre | I93: F86712
A94: Diabetics under 18 years old | B94: LDP.04.15 Diabetes (under 18) | C94: Diabetics under 18 years old | H94: Chingford Medical Practice | I94: Y01291
A95: Diabetics Under 18 with HbA1c ≤ 59 (last 12m) | B95: LDP.04.15.01 Diabetes HbA1C <=7.5% OR <=59mmol (12m) | C95: Diabetics Under 18 with HbA1c ≤ 59 (last 12m) | H95: Lime Tree and Sinnott Healthcare Ltd | I95: Y01839
A96: % of Diabetics under 18 | B96: ="%"&B95 -> %LDP.04.15.01 Diabetes HbA1C <=7.5% OR <=59mmol (12m) | C96: % of Diabetics under 18 | H96: Waltham Forest | I96: Total
A97: No. of patients with diabetes diagnosed with CKD in the last 12m | B97: LDP.04.16 Diabetes and CKD Diagnosed (12m) | C97: No. of patients with diabetes diagnosed with CKD in the last 12m
A98: % Diabetes Register | B98: ="%"&B97 -> %LDP.04.16 Diabetes and CKD Diagnosed (12m) | C98: % Diabetes Register
A99: No. of patients with diabetes diagnosed with CHD and/or Stroke/TIA in the last 12 months | B99: LDP.04.17 Diabetes and Stroke or CHD Diagnosed (12m) | C99: No. of patients with diabetes diagnosed with CHD and/or Stroke/TIA in the last 12 months
A100: % Diabetes Register | B100: ="%"&B99 -> %LDP.04.17 Diabetes and Stroke or CHD Diagnosed (12m) | C100: % Diabetes Register
A101: No. of patients with diabetes diagnosed with Depression in the last 12 months | B101: LDP.04.18 Diabetes and Depression (last 12m) | C101: No. of patients with diabetes diagnosed with Depression in the last 12 months
A102: %Diabetes Register | B102: ="%"&B101 -> %LDP.04.18 Diabetes and Depression (last 12m) | C102: %Diabetes Register
A103: No. of patients who have ever had gestational diabetes | B103: LDP.07 Gestational Diabetes | C103: No. of patients who have ever had gestational diabetes
A104: No. of patients who have ever had gestational diabetes who are also on diabetes register | B104: LDP.07.01 Diabetes dx after Gestational Diabetes | C104: No. of patients who have ever had gestational diabetes who are also on diabetes register
A105: % of patients with gestational diabetes | B105: ="%"&B104 -> %LDP.07.01 Diabetes dx after Gestational Diabetes | C105: % of patients with gestational diabetes
B106: Mental Health
A107: SMI register (QOF) | B107: CSPMH.01 SMI Register | C107: SMI register (QOF) | D107: Mental Health register | E107: Mental Health register
A108: % list size | B108: ="%"&B107 -> %CSPMH.01 SMI Register | C108: % list size | D108: % list size | E108: % list size
A109: No. of SMI Patients with smoking status recorded (last 12m) or never smoked | B109: CSPMH.01.02 Smoking Status Recorded (12m) | C109: No. of SMI Patients with smoking status recorded (last 12m) or never smoked | D109: No. of Mental Health Patients with smoking status recorded (last 12m) or never smoked | E109: No. of Mental Health Patients with smoking status recorded (last 12m) or never smoked
A110: % SMI Register | B110: ="%"&B109 -> %CSPMH.01.02 Smoking Status Recorded (12m) | C110: % SMI Register | D110: % Mental Health Register | E110: % Mental Health Register
A111: No. of SMI patients recorded as a Smoker | B111: CSPMH.01.02.01 Current Smoker (12m) | C111: No. of SMI patients recorded as a Smoker | D111: No. of Mental Health patients recorded as a Smoker | E111: No. of Mental Health patients recorded as a Smoker
A112: % SMI Register | B112: ="%"&B111 -> %CSPMH.01.02.01 Current Smoker (12m) | C112: % SMI Register | D112: % Mental Health Register | E112: % Mental Health Register
A113: No. of SMI Patients who are current smokers & referred to the Stop Smoking Clinic | B113: CSPMH 01.02.01.01 Ref to clinic 12m | C113: No. of SMI Patients who are current smokers & referred to the Stop Smoking Clinic | D113: No. of Mental Health Patients who are current smokers & referred to the Stop Smoking Clinic | E113: No. of Mental Health Patients who are current smokers & referred to the Stop Smoking Clinic
A114: % SMI Register | B114: ="%"&B113 -> %CSPMH 01.02.01.01 Ref to clinic 12m | C114: % SMI Register | D114: % Mental Health Register | E114: % Mental Health Register
A115: No. Of SMI Patients who are recorded as quitters | B115: CSPMH.01.02.02 Ex-smoker Recorded (latest 12m) | C115: No. Of SMI Patients who are recorded as quitters | D115: No. Of Mental Health Patients who are recorded as quitters | E115: No. Of Mental Health Patients who are recorded as quitters
A116: % SMI Register | B116: ="%"&B115 -> %CSPMH.01.02.02 Ex-smoker Recorded (latest 12m) | C116: % SMI Register | D116: % Mental Health Register | E116: % Mental Health Register
A117: Patients with SMI with QRISK recorded in the last 12m | B117: CSPMH. 01.03 QRisk Recorded (12m) | C117: Patients with SMI with QRISK recorded in the last 12m | D117: Patients with Mental Health with QRISK recorded in the last 12m | E117: Patients with Mental Health with QRISK recorded in the last 12m
A118: % SMI Register | B118: ="%"&B117 -> %CSPMH. 01.03 QRisk Recorded (12m) | C118: % SMI Register | D118: % Mental Health Register | E118: % Mental Health Register
A119: Patients with SMI with QRISK 20% or higher in the last 12m | B119: CSPMH. 01.03.02 Qrisk>=20 (12m) | C119: Patients with SMI with QRISK 20% or higher in the last 12m | D119: Patients with Mental Health with QRISK 20% or higher in the last 12m | E119: Patients with Mental Health with QRISK 20% or higher in the last 12m
A120: % patients with QRISK recorded 20% or higher | B120: ="%"&B119 -> %CSPMH. 01.03.02 Qrisk>=20 (12m) | C120: % patients with QRISK recorded 20% or higher | D120: % patients with QRISK recorded | E120: % patients with QRISK recorded
A121: Patients with SMI with BP & QRisk on the same day in the last 12m | B121: CSPMH. 01.03.01 BP recorded on same day as QRisk (12m) | C121: Patients with SMI with BP & QRisk on the same day in the last 12m | D121: Patients with Mental Health with BP & QRisk on the same day in the last 12m | E121: Patients with Mental Health with BP & QRisk on the same day in the last 12m
A122: % Patients with SMI with BP & QRisk on the same day in the last 12m | B122: ="%"&B121 -> %CSPMH. 01.03.01 BP recorded on same day as QRisk (12m) | C122: % Patients with SMI with BP & QRisk on the same day in the last 12m | D122: % Mental Health Register | E122: % Mental Health Register
B123: CKD
A124: No. of patients on CKD register (QOF definition) | B124: LDP.08 CKD Register | C124: No. of patients on CKD register | D124: No. of patients on CKD register | E124: No. of patients on CKD register
A125: % List Size | B125: ="%"&B124 -> %LDP.08 CKD Register | C125: % List Size | D125: % List Size | E125: % List Size
A126: BP Recorded (last 12m) | B126: LDP.08.03 CKD and BP Recorded (last 12 m) | C126: BP Recorded (last 12m) | D126: BP Recorded (last 12m) | E126: BP Recorded (last 12m)
A127: % CKD register | B127: ="%"&B126 -> %LDP.08.03 CKD and BP Recorded (last 12 m) | C127: % CKD register | D127: % CKD register | E127: % CKD register
A128: BP ≤ 140/90 | B128: LDP.08.01 CKD and BP less than 140/90 (last 12 m) | C128: BP ≤ 140/90 | D128: BP < 140/90 | E128: BP < 140/90
A129: % CKD register | B129: ="%"&B128 -> %LDP.08.01 CKD and BP less than 140/90 (last 12 m) | C129: % CKD register | D129: % CKD register | E129: % CKD register
A130: No of patients with new diagnosis of CKD (last 6m) | B130: LDP.08.02 CKD Diagnosed (Last 6m) | C130: No of patients with new diagnosis of CKD (last 6m) | D130: No of patients with new diagnosis of CKD (last 6m) | E130: No of patients with new diagnosis of CKD (last 6m)
A131: % CKD register | B131: ="%"&B130 -> %LDP.08.02 CKD Diagnosed (Last 6m) | C131: % CKD register | D131: % CKD register | E131: % CKD register
B132: COPD
B133: LDP.09 COPD Register | C133: No. of patients on COPD register
B134: ="%"&B133 -> %LDP.09 COPD Register | C134: % List Size
B135: LDP.09.01 Patients with severe or very severe COPD (FEV1<50) | C135: No of patients with severe or very severe COPD (FEV1<50)
B136: ="%"&B135 -> %LDP.09.01 Patients with severe or very severe COPD (FEV1<50) | C136: % COPD register
B137: LDP.09.02 Patients with smoking status recorded (last 12m) or never smoked | C137: No. of COPD Patients with smoking status recorded (last 12m) or never smoked
B138: ="%"&B137 -> %LDP.09.02 Patients with smoking status recorded (last 12m) or never smoked | C138: % COPD
B139: LDP.09.03 COPD patients recorded as a Smoker | C139: No. of COPD patients recorded as a Smoker
B140: ="%"&B139 -> %LDP.09.03 COPD patients recorded as a Smoker | C140: % COPD
B141: LDP.09.04 COPD Patients who are current smokers & referred to the Stop Smoking C | C141: No. of COPD Patients who are current smokers & referred to the Stop Smoking Clinic (12m)
B142: ="%"&B141 -> %LDP.09.04 COPD Patients who are current smokers & referred to the Stop Smoking C | C142: % of current COPD smokers
B143: LDP.09.05 No of COPD with flu vaccination (From August 2018) | C143: No of COPD with flu vaccination (From August 2021)
B144: ="%"&B143 -> %LDP.09.05 No of COPD with flu vaccination (From August 2018) | C144: % of COPD register
B145: LDP.09.06 No of COPD with pneumococcal vaccination ever | C145: No of COPD with pneumococcal vaccination ever
B146: ="%"&B145 -> %LDP.09.06 No of COPD with pneumococcal vaccination ever | C146: % of COPD register
B147: LDP.09.07 No of COPD patients referred to pulmonary rehab ever | C147: No of COPD patients referred to pulmonary rehab ever
B148: ="%"&B147 -> %LDP.09.07 No of COPD patients referred to pulmonary rehab ever | C148: % of COPD register

Sheet Month by month
C2: Waltham Forest | H2: Practice Clinical Trends (LDP) Report Summary 2021 / 2022
D3: 2020-04-01 | E3: 2021-04-01 | F3: 2021-05-01 | G3: 2021-06-01 | H3: 2021-07-01 | I3: 2021-08-01 | J3: 2021-09-01 | K3: 2021-10-01 | L3: 2021-11-01 | M3: 2021-12-01 | N3: 2022-01-01 | O3: 2022-02-01 | P3: 2022-03-01 | Q3: 2022-04-01
C4: =VLOOKUP(C2,'Control Panel'!H61:I112,2,FALSE) -> Total | D4: 2020-03-01 | E4: 2021-03-01 | F4: 2021-04-01 | G4: 2021-05-01 | H4: 2021-06-01 | I4: 2021-07-01 | J4: 2021-08-01 | K4: 2021-09-01 | L4: 2021-10-01 | M4: 2021-11-01 | N4: 2021-12-01 | O4: 2022-01-01 | P4: 2022-02-01 | Q4: 2022-03-01
C6: ='Control Panel'!B2 -> General Health
A7: ='Control Panel'!B3 -> 01. Listsize | B7: 01. Listsize | C7: ='Control Panel'!C3 -> List Size | D7: =SUMIFS(OFFSET(REL_D,,MATCH($A7,IND,0)-2),REL_D,D$3,OrgID,$C$4) -> 266163 | E7: 267248 | F7: 281413 | G7: 267785 | H7: 268154 | I7: 268418 | J7: 268730 | K7: 268596 | L7: 269393 | M7: 269037 | N7: 269368 | O7: 269495 | P7: 269561 | Q7: 269929
A8: ='Control Panel'!B4 -> LDP.01: Aged 16yrs+ | B8: LDP.01: Aged 16yrs+ | C8: ='Control Panel'!D4 -> Age 16+ | D8: 213103 | E8: 214483 | F8: 226132 | G8: 215139 | H8: 215568 | I8: 215850 | J8: 216195 | K8: 216107 | L8: 216809 | M8: 216576 | N8: 216987 | O8: 217147 | P8: 217206 | Q8: 217516
A9: ='Control Panel'!B5 -> %LDP.01: Aged 16yrs+ | B9: %LDP.01: Aged 16yrs+ | C9: ='Control Panel'!D5 -> % list size | D9: =IFERROR(D8/D7,"N/A") -> 0.801 | E9: 0.803 | F9: =IFERROR(F8/F7,"N/A") -> 0.804 | G9: =IFERROR(G8/G7,"N/A") -> 0.803 | H9: 0.804 | I9: 0.804 | J9: 0.805 | K9: 0.805 | L9: 0.805 | M9: 0.805 | N9: 0.806 | O9: 0.806 | P9: 0.806 | Q9: 0.806
A10: ='Control Panel'!B6 -> LDP.01.01: Obesity BMI recorded (last 12m) | B10: LDP.01.01: Obesity BMI recorded (last 12m) | C10: ='Control Panel'!D6 -> 16+ and BMI (last 12m) | D10: =SUMIFS(OFFSET(REL_D,,MATCH($A10,IND,0)-2),REL_D,D$3,OrgID,$C$4) -> 56953 | E10: 32095 | F10: 36186 | G10: 37128 | H10: 39159 | I10: 40830 | J10: 42054 | K10: 43647 | L10: 45018 | M10: 46494 | N10: 47462 | O10: 48634 | P10: 49874 | Q10: 50850
A11: ='Control Panel'!B7 -> %LDP.01.01: Obesity BMI recorded (last 12m) | B11: %LDP.01.01: Obesity BMI recorded (last 12m) | C11: ='Control Panel'!D7 -> % 16+ | D11: =IFERROR(D10/D8,"N/A") -> 0.267 | E11: 0.15 | F11: =IFERROR(F10/F8,"N/A") -> 0.16 | G11: =IFERROR(G10/G8,"N/A") -> 0.173 | H11: 0.182 | I11: 0.189 | J11: 0.195 | K11: 0.202 | L11: 0.208 | M11: 0.215 | N11: 0.219 | O11: 0.224 | P11: 0.23 | Q11: 0.234
A12: LDP.01.01.02: Obesity BMI between 30-35 (last 12m) | B12: LDP.01.01.02: Obesity BMI between 30-35 (last 12m) | C12: ='Control Panel'!D8 -> BMI ≥30 & <35 | D12: =SUMIFS(OFFSET(REL_D,,MATCH($A12,IND,0)-2),REL_D,D$3,OrgID,$C$4) -> 10419 | E12: 5907 | F12: 6569 | G12: 6750 | H12: 7126 | I12: 7459 | J12: 7738 | K12: 8039 | L12: 8283 | M12: 8572 | N12: 8724 | O12: 8985 | P12: 9319 | Q12: 9584
A13: ='Control Panel'!B9 -> %LDP.01.01.02: Obesity BMI between 30-35 (last 12m) | B13: %LDP.01.01.02: Obesity BMI between 30-35 (last 12m) | C13: ='Control Panel'!D9 -> % 16+ | D13: =IFERROR(D12/D8,"N/A") -> 0.049 | E13: 0.028 | F13: =IFERROR(F12/F8,"N/A") -> 0.029 | G13: =IFERROR(G12/G8,"N/A") -> 0.031 | H13: 0.033 | I13: 0.035 | J13: 0.036 | K13: 0.037 | L13: 0.038 | M13: 0.04 | N13: 0.04 | O13: 0.041 | P13: 0.043 | Q13: 0.044
A14: LDP.01.01.01: Obesity BMI more than or equal to 35 less than 40 (last 12m) | B14: LDP.01.01.01: Obesity BMI more than or equal to 35 less than 40 (last 12m) | C14: ='Control Panel'!D10 -> BMI ≥ 35 & <40 | D14: =SUMIFS(OFFSET(REL_D,,MATCH($A14,IND,0)-2),REL_D,D$3,OrgID,$C$4) -> 4230 | E14: 2319 | F14: 2654 | G14: 2726 | H14: 2865 | I14: 3001 | J14: 3136 | K14: 3301 | L14: 3431 | M14: 3543 | N14: 3638 | O14: 3750 | P14: 3825 | Q14: 3934
A15: ='Control Panel'!B11 -> %LDP.01.01.01: Obesity BMI more than or equal to 35 less than 40 (last 12m) | B15: %LDP.01.01.01: Obesity BMI more than or equal to 35 less than 40 (last 12m) | C15: ='Control Panel'!D11 -> %16+ | D15: =IFERROR(D14/D8,"N/A") -> 0.02 | E15: 0.011 | F15: =IFERROR(F14/F8,"N/A") -> 0.012 | G15: =IFERROR(G14/G8,"N/A") -> 0.013 | H15: 0.013 | I15: 0.014 | J15: 0.015 | K15: 0.015 | L15: 0.016 | M15: 0.016 | N15: 0.017 | O15: 0.017 | P15: 0.018 | Q15: 0.018
A16: ='Control Panel'!B12 -> LDP.01.01.03: Obesity BMI equal to or over 40 (last 12m) | B16: LDP.01.01.03: Obesity BMI equal to or over 40 (last 12m) | C16: ='Control Panel'!D12 -> BMI ≥ 40 | D16: =SUMIFS(OFFSET(REL_D,,MATCH($A16,IND,0)-2),REL_D,D$3,OrgID,$C$4) -> 2468 | E16: 1496 | F16: 1688 | G16: 1760 | H16: 1854 | I16: 1926 | J16: 2006 | K16: 2109 | L16: 2146 | M16: 2218 | N16: 2253 | O16: 2290 | P16: 2369 | Q16: 2445
A17: ='Control Panel'!B13 -> %LDP.01.01.03: Obesity BMI equal to or over 40 (last 12m) | B17: %LDP.01.01.03: Obesity BMI equal to or over 40 (last 12m) | C17: ='Control Panel'!D13 -> %16+ | D17: =IFERROR(D16/D8,"N/A") -> 0.012 | E17: 0.007 | F17: =IFERROR(F16/F8,"N/A") -> 0.007 | G17: =IFERROR(G16/G8,"N/A") -> 0.008 | H17: 0.009 | I17: 0.009 | J17: 0.009 | K17: 0.01 | L17: 0.01 | M17: 0.01 | N17: 0.01 | O17: 0.011 | P17: 0.011 | Q17: 0.011
A18: ='Control Panel'!B14 -> LDP.01.02: Smoking Status (last 12m) or Never Smoked (25yrs+) | B18: LDP.01.02: Smoking Status (last 12m) or Never Smoked (25yrs+) | C18: ='Control Panel'!D14 -> Smoking status (last 12m) incl. never smoked | D18: =SUMIFS(OFFSET(REL_D,,MATCH($A18,IND,0)-2),REL_D,D$3,OrgID,$C$4) -> 146219 | E18: 130452 | F18: 138689 | G18: 132033 | H18: 132685 | I18: 133179 | J18: 134269 | K18: 135111 | L18: 136165 | M18: 137009 | N18: 137700 | O18: 138403 | P18: 139007 | Q18: 139372
A19: ='Control Panel'!B15 -> %LDP.01.02: Smoking Status (last 12m) or Never Smoked (25yrs+) | B19: %LDP.01.02: Smoking Status (last 12m) or Never Smoked (25yrs+) | C19: ='Control Panel'!D15 -> % 16+ | D19: =IFERROR(D18/D8,"N/A") -> 0.686 | E19: 0.608 | F19: =IFERROR(F18/F8,"N/A") -> 0.613 | G19: =IFERROR(G18/G8,"N/A") -> 0.614 | H19: 0.616 | I19: 0.617 | J19: 0.621 | K19: 0.625 | L19: 0.628 | M19: 0.633 | N19: 0.635 | O19: 0.637 | P19: 0.64 | Q19: 0.641
A20: ='Control Panel'!B16 -> LDP.01.03: Current Smoker (last 12m) | B20: LDP.01.03: Current Smoker (last 12m) | C20: ='Control Panel'!D16 -> Age 16+ and current smoker (last 12m) | D20: =SUMIFS(OFFSET(REL_D,,MATCH($A20,IND,0)-2),REL_D,D$3,OrgID,$C$4) -> 15312 | E20: 8597 | F20: 9655 | G20: 9366 | H20: 9661 | I20: 9895 | J20: 10270 | K20: 10641 | L20: 10962 | M20: 11247 | N20: 11431 | O20: 11651 | P20: 11928 | Q20: 11914
A21: ='Control Panel'!B17 -> %LDP.01.03: Current Smoker (last 12m) | B21: %LDP.01.03: Current Smoker (last 12m) | C21: ='Control Panel'!D17 -> % 16+ | D21: =IFERROR(D20/D8,"N/A") -> 0.072 | E21: 0.04 | F21: =IFERROR(F20/F8,"N/A") -> 0.043 | G21: =IFERROR(G20/G8,"N/A") -> 0.044 | H21: 0.045 | I21: 0.046 | J21: 0.048 | K21: 0.049 | L21: 0.051 | M21: 0.052 | N21: 0.053 | O21: 0.054 | P21: 0.055 | Q21: 0.055
A22: ='Control Panel'!B18 -> Hypertension | B22: Hypertension | C22: ='Control Panel'!B18 -> Hypertension
A23: ='Control Panel'!B19 -> LDP.02: Hypertension Register | B23: LDP.02: Hypertension Register | C23: ='Control Panel'!D19 -> Hypertension Register | D23: =SUMIFS(OFFSET(REL_D,,MATCH($A23,IND,0)-2),REL_D,D$3,OrgID,$C$4) -> 28734 | E23: 28246 | F23: 29867 | G23: 28242 | H23: 28203 | I23: 28181 | J23: 28167 | K23: 28142 | L23: 28187 | M23: 28315 | N23: 28294 | O23: 28326 | P23: 28304 | Q23: 28424
A24: ='Control Panel'!B20 -> %LDP.02: Hypertension Register | B24: %LDP.02: Hypertension Register | C24: ='Control Panel'!D20 -> % list size | D24: =IFERROR(D23/D7,"N/A") -> 0.108 | E24: 0.106 | F24: =IFERROR(F23/F7,"N/A") -> 0.106 | G24: =IFERROR(G23/G7,"N/A") -> 0.105 | H24: 0.105 | I24: 0.105 | J24: 0.105 | K24: 0.105 | L24: 0.105 | M24: 0.105 | N24: 0.105 | O24: 0.105 | P24: 0.105 | Q24: 0.105
A25: ='Control Panel'!B21 -> LDP.02.02: Hypertension BP recorded (last 12m) | B25: LDP.02.02: Hypertension BP recorded (last 12m) | C25: ='Control Panel'!D21 -> Hypertension and BP (last 12m) | D25: =SUMIFS(OFFSET(REL_D,,MATCH($A25,IND,0)-2),REL_D,D$3,OrgID,$C$4) -> 24893 | E25: 16677 | F25: 18331 | G25: 17819 | H25: 18245 | I25: 18808 | J25: 19409 | K25: 19565 | L25: 20036 | M25: 20724 | N25: 21043 | O25: 21354 | P25: 21534 | Q25: 22014
A26: ='Control Panel'!B22 -> %LDP.02.02: Hypertension BP recorded (last 12m) | B26: %LDP.02.02: Hypertension BP recorded (last 12m) | C26: ='Control Panel'!D22 -> % Hypertension Register | D26: =IFERROR(D25/D23,"N/A") -> 0.866 | E26: 0.59 | F26: =IFERROR(F25/F23,"N/A") -> 0.614 | G26: =IFERROR(G25/G23,"N/A") -> 0.631 | H26: 0.647 | I26: 0.667 | J26: 0.689 | K26: 0.695 | L26: 0.711 | M26: 0.732 | N26: 0.744 | O26: 0.754 | P26: 0.761 | Q26: 0.774
A27: LDP.02.01: Hypertension and BP < 140/90 (age under 80) < 150/90 (Age 80+) | B27: LDP.02.01: Hypertension and BP < 140/90 (age under 80) < 150/90 (Age 80+) | C27: ='Control Panel'!D23 -> Hypertension and BP < 140/90 (Patients aged under 80) < 150/90 ( Aged 80 and over) (last 12m) | D27: =SUMIFS(OFFSET(REL_D,,MATCH($A27,IND,0)-2),REL_D,D$3,OrgID,$C$4) -> 17010 | E27: 11415 | F27: 12473 | G27: 12148 | H27: 12445 | I27: 12893 | J27: 13328 | K27: 13453 | L27: 13743 | M27: 14091 | N27: 14345 | O27: 14481 | P27: 14633 | Q27: 14988
A28: %LDP.02.01: Hypertension and BP < 140/90 (age under 80) < 150/90 (Age 80+) | B28: %LDP.02.01: Hypertension and BP < 140/90 (age under 80) < 150/90 (Age 80+) | C28: ='Control Panel'!D24 -> % Hypertension Register | D28: =IFERROR(D27/D23,"N/A") -> 0.592 | E28: 0.404 | F28: =IFERROR(F27/F23,"N/A") -> 0.418 | G28: =IFERROR(G27/G23,"N/A") -> 0.43 | H28: 0.441 | I28: 0.458 | J28: 0.473 | K28: 0.478 | L28: 0.488 | M28: 0.498 | N28: 0.507 | O28: 0.511 | P28: 0.517 | Q28: 0.527
A29: ='Control Panel'!B25 -> CHD | B29: CHD | C29: ='Control Panel'!B25 -> CHD
A30: ='Control Panel'!B26 -> LDP.03: CHD Register | B30: LDP.03: CHD Register | C30: ='Control Panel'!D26 -> CHD register | D30: =SUMIFS(OFFSET(REL_D,,MATCH($A30,IND,0)-2),REL_D,D$3,OrgID,$C$4) -> 4806 | E30: 4681 | F30: 4917 | G30: 4679 | H30: 4688 | I30: 4671 | J30: 4669 | K30: 4665 | L30: 4672 | M30: 4674 | N30: 4680 | O30: 4662 | P30: 4645 | Q30: 4648
A31: ='Control Panel'!B27 -> %LDP.03: CHD Register | B31: %LDP.03: CHD Register | C31: ='Control Panel'!D27 -> % list size | D31: =IFERROR(D30/D7,"N/A") -> 0.018 | E31: 0.018 | F31: =IFERROR(F30/F7,"N/A") -> 0.017 | G31: =IFERROR(G30/G7,"N/A") -> 0.017 | H31: 0.017 | I31: 0.017 | J31: 0.017 | K31: 0.017 | L31: 0.017 | M31: 0.017 | N31: 0.017 | O31: 0.017 | P31: 0.017 | Q31: 0.017
A32: ='Control Panel'!B28 -> LDP.03.04: CHD Cholesterol recorded (last 12m) | B32: LDP.03.04: CHD Cholesterol recorded (last 12m) | C32: ='Control Panel'!D28 -> Cholesterol (last 12m) | D32: =SUMIFS(OFFSET(REL_D,,MATCH($A32,IND,0)-2),REL_D,D$3,OrgID,$C$4) -> 3293 | E32: 2713 | F32: 2994 | G32: 2904 | H32: 2937 | I32: 2953 | J32: 2979 | K32: 2895 | L32: 2899 | M32: 2906 | N32: 2930 | O32: 2960 | P32: 2961 | Q32: 2981
A33: ='Control Panel'!B29 -> %LDP.03.04: CHD Cholesterol recorded (last 12m) | B33: %LDP.03.04: CHD Cholesterol recorded (last 12m) | C33: ='Control Panel'!D29 -> % CHD register | D33: =IFERROR(D32/D30,"N/A") -> 0.685 | E33: 0.58 | F33: =IFERROR(F32/F30,"N/A") -> 0.609 | G33: =IFERROR(G32/G30,"N/A") -> 0.621 | H33: 0.626 | I33: 0.632 | J33: 0.638 | K33: 0.621 | L33: 0.621 | M33: 0.622 | N33: 0.626 | O33: 0.635 | P33: 0.637 | Q33: 0.641
A34: LDP.03.01: CHD Chol less than 5mmol (last 12m) | B34: LDP.03.01: CHD Chol less than 5mmol (last 12m) | C34: ='Control Panel'!D30 -> Cholesterol < 5 (last 12m) | D34: =SUMIFS(OFFSET(REL_D,,MATCH($A34,IND,0)-2),REL_D,D$3,OrgID,$C$4) -> 2790 | E34: 2328 | F34: 2569 | G34: 2486 | H34: 2507 | I34: 2513 | J34: 2546 | K34: 2460 | L34: 2461 | M34: 2468 | N34: 2468 | O34: 2485 | P34: 2485 | Q34: 2515
A35: ='Control Panel'!B31 -> %LDP.03.01: CHD Chol less than 5mmol (last 12m) | B35: %LDP.03.01: CHD Chol less than 5mmol (last 12m) | C35: ='Control Panel'!D31 -> % CHD register | D35: =IFERROR(D34/D30,"N/A") -> 0.581 | E35: 0.497 | F35: =IFERROR(F34/F30,"N/A") -> 0.522 | G35: =IFERROR(G34/G30,"N/A") -> 0.531 | H35: 0.535 | I35: 0.538 | J35: 0.545 | K35: 0.527 | L35: 0.527 | M35: 0.528 | N35: 0.527 | O35: 0.533 | P35: 0.535 | Q35: 0.541
A36: ='Control Panel'!B32 -> LDP.03.02: CHD BP less than or equal 150/90 (last 9m) | B36: LDP.03.02: CHD BP less than or equal 150/90 (last 9m) | C36: ='Control Panel'!D32 -> BP ≤ 150/90 (last 9m) | D36: =SUMIFS(OFFSET(REL_D,,MATCH($A36,IND,0)-2),REL_D,D$3,OrgID,$C$4) -> 3643 | E36: 2143 | F36: 2313 | G36: 2241 | H36: 2295 | I36: 2353 | J36: 2423 | K36: 2448 | L36: 2512 | M36: 2603 | N36: 2668 | O36: 2671 | P36: 2700 | Q36: 2761
A37: ='Control Panel'!B33 -> %LDP.03.02: CHD BP less than or equal 150/90 (last 9m) | B37: %LDP.03.02: CHD BP less than or equal 150/90 (last 9m) | C37: ='Control Panel'!D33 -> % CHD register | D37: =IFERROR(D36/D30,"N/A") -> 0.758 | E37: 0.458 | F37: =IFERROR(F36/F30,"N/A") -> 0.47 | G37: =IFERROR(G36/G30,"N/A") -> 0.479 | H37: 0.49 | I37: 0.504 | J37: 0.519 | K37: 0.525 | L37: 0.538 | M37: 0.557 | N37: 0.57 | O37: 0.573 | P37: 0.581 | Q37: 0.594
C38: ='Control Panel'!B40 -> Stroke/TIA
A39: LDP.10 Stroke or TIA register | C39: Stroke/TIA register | D39: =SUMIFS(OFFSET(REL_D,,MATCH($A39,IND,0)-2),REL_D,D$3,OrgID,$C$4) -> 2468 | E39: 2470 | F39: 2622 | G39: 2490 | H39: 2491 | I39: 2488 | J39: 2489 | K39: 2488 | L39: 2496 | M39: 2507 | N39: 2506 | O39: 2512 | P39: 2521 | Q39: 2522
A40: %LDP.10 Stroke or TIA register | C40: % list size | D40: =IFERROR(D39/D23,"N/A") -> 0.086 | E40: 0.087 | F40: =IFERROR(F39/F23,"N/A") -> 0.088 | G40: =IFERROR(G39/G23,"N/A") -> 0.088 | H40: 0.088 | I40: 0.088 | J40: 0.088 | K40: 0.088 | L40: 0.089 | M40: 0.089 | N40: 0.089 | O40: 0.089 | P40: 0.089 | Q40: 0.089
A41: LDP.10.01: Stroke/TIA BP recorded (last 12m) | C41: Patients on Stroke/TIA register with BP recorded | D41: =SUMIFS(OFFSET(REL_D,,MATCH($A41,IND,0)-2),REL_D,D$3,OrgID,$C$4) -> 2202 | E41: 1586 | F41: 1738 | G41: 1677 | H41: 1681 | I41: 1720 | J41: 1770 | K41: 1791 | L41: 1846 | M41: 1903 | N41: 1938 | O41: 1959 | P41: 1993 | Q41: 2027
A42: %LDP.10.01: Stroke/TIA BP recorded (last 12m) | C42: % of stroke register | D42: =IFERROR(D41/D39,"N/A") -> 0.892 | E42: 0.642 | F42: =IFERROR(F41/F39,"N/A") -> 0.663 | G42: =IFERROR(G41/G39,"N/A") -> 0.673 | H42: 0.675 | I42: 0.691 | J42: 0.711 | K42: 0.72 | L42: 0.74 | M42: 0.759 | N42: 0.773 | O42: 0.78 | P42: 0.791 | Q42: 0.804
A43: LDP.10.02 Patients on Stroke/TIA register with BP <140/90 (12m) | C43: Patients on Stroke/TIA register with BP <140/90 (12m) | D43: =SUMIFS(OFFSET(REL_D,,MATCH($A43,IND,0)-2),REL_D,D$3,OrgID,$C$4) -> 1580 | E43: 1164 | F43: 1277 | G43: 1227 | H43: 1225 | I43: 1259 | J43: 1296 | K43: 1315 | L43: 1350 | M43: 1391 | N43: 1409 | O43: 1420 | P43: 1422 | Q43: 1466
A44: %LDP.10.02 Patients on Stroke/TIA register with BP <140/90 (12m) | C44: % of stroke register | D44: =IFERROR(D43/D39,"N/A") -> 0.64 | E44: 0.471 | F44: =IFERROR(F43/F39,"N/A") -> 0.487 | G44: =IFERROR(G43/G39,"N/A") -> 0.493 | H44: 0.492 | I44: 0.506 | J44: 0.521 | K44: 0.529 | L44: 0.541 | M44: 0.555 | N44: 0.562 | O44: 0.565 | P44: 0.564 | Q44: 0.581
A45: ='Control Panel'!B47 -> CVD Risk | B45: CVD Risk | C45: ='Control Panel'!B47 -> CVD Risk
A46: ='Control Panel'!B48 -> LDP.05: CVD 25-84yrs (excl CVD) | B46: LDP.05: CVD 25-84yrs (excl CVD) | C46: ='Control Panel'!D48 -> Aged 25 to 84 (exc CVD) | D46: =SUMIFS(OFFSET(REL_D,,MATCH($A46,IND,0)-2),REL_D,D$3,OrgID,$C$4) -> 175944 | E46: 179497 | F46: 189294 | G46: 180065 | H46: 180349 | I46: 180557 | J46: 180819 | K46: 180776 | L46: 181372 | M46: 181244 | N46: 181587 | O46: 181676 | P46: 181679 | Q46: 181906
A47: ='Control Panel'!B49 -> LDP.05.02: Cardiovascular Risk Score Done (5y) | B47: LDP.05.02: Cardiovascular Risk Score Done (5y) | C47: ='Control Panel'!D49 -> QRISK recorded (5 years) | D47: 64792 | E47: 63427 | F47: 66237 | G47: 63607 | H47: 63620 | I47: 63610 | J47: 63711 | K47: 61825 | L47: 61929 | M47: 62041 | N47: 62212 | O47: 62329 | P47: 62623 | Q47: 63078
A48: ='Control Panel'!B50 -> %LDP.05.02: Cardiovascular Risk Score Done (5y) | B48: %LDP.05.02: Cardiovascular Risk Score Done (5y) | C48: ='Control Panel'!D50 -> % of patients aged 25 to 84 (exc CVD) | D48: =IFERROR(D46/D7,"N/A") -> 0.661 | E48: 0.672 | F48: =IFERROR(F46/F7,"N/A") -> 0.673 | G48: =IFERROR(G46/G7,"N/A") -> 0.672 | H48: 0.673 | I48: 0.673 | J48: 0.673 | K48: 0.673 | L48: 0.673 | M48: 0.674 | N48: 0.674 | O48: 0.674 | P48: 0.674 | Q48: 0.674
A49: ='Control Panel'!B51 -> LDP.05.01: CVD QRISK greater than or equal 20% | B49: LDP.05.01: CVD QRISK greater than or equal 20% | C49: ='Control Panel'!D51 -> QRISK ≥ 20% | D49: =SUMIFS(OFFSET(REL_D,,MATCH($A49,IND,0)-2),REL_D,D$3,OrgID,$C$4) -> 8894 | E49: 8809 | F49: 9220 | G49: 8893 | H49: 8921 | I49: 8979 | J49: 9047 | K49: 9065 | L49: 9097 | M49: 9135 | N49: 9175 | O49: 9197 | P49: 9281 | Q49: 9378
A50: ='Control Panel'!B52 -> %LDP.05.01: CVD QRISK greater than or equal 20% | B50: %LDP.05.01: CVD QRISK greater than or equal 20% | C50: ='Control Panel'!D52 -> % QRISK Score recorded | D50: =IFERROR(D49/D47,"N/A") -> 0.137 | E50: 0.139 | F50: =IFERROR(F49/F47,"N/A") -> 0.139 | G50: =IFERROR(G49/G47,"N/A") -> 0.14 | H50: 0.14 | I50: 0.141 | J50: 0.142 | K50: 0.147 | L50: 0.147 | M50: 0.147 | N50: 0.147 | O50: 0.148 | P50: 0.148 | Q50: 0.149
A51: ='Control Panel'!B53 -> LDP.05.01.01: CVD Proxy Annual Review (last 12m) | B51: LDP.05.01.01: CVD Proxy Annual Review (last 12m) | C51: ='Control Panel'!D53 -> QRISK ≥ 20% and proxy review (BP and Chol last 12m) | D51: =SUMIFS(OFFSET(REL_D,,MATCH($A51,IND,0)-2),REL_D,D$3,OrgID,$C$4) -> 5958 | E51: 3748 | F51: 4166 | G51: 4209 | H51: 4408 | I51: 4571 | J51: 4718 | K51: 4658 | L51: 4738 | M51: 4926 | N51: 5079 | O51: 5215 | P51: 5358 | Q51: 5459
A52: ='Control Panel'!B54 -> %LDP.05.01.01: CVD Proxy Annual Review (last 12m) | B52: %LDP.05.01.01: CVD Proxy Annual Review (last 12m) | C52: ='Control Panel'!D54 -> % Patients with QRISK ≥ 20% | D52: =IFERROR(D51/D47,"N/A") -> 0.092 | E52: 0.059 | F52: =IFERROR(F51/F47,"N/A") -> 0.063 | G52: =IFERROR(G51/G47,"N/A") -> 0.066 | H52: 0.069 | I52: 0.072 | J52: 0.074 | K52: 0.075 | L52: 0.077 | M52: 0.079 | N52: 0.082 | O52: 0.084 | P52: 0.086 | Q52: 0.087
A53: ='Control Panel'!B55 -> Diabetes | B53: Diabetes | C53: ='Control Panel'!B55 -> Diabetes
A54: ='Control Panel'!B56 -> LDP.04: Diabetes Register | B54: LDP.04: Diabetes Register | C54: ='Control Panel'!D56 -> Diabetes register | D54: =SUMIFS(OFFSET(REL_D,,MATCH($A54,IND,0)-2),REL_D,D$3,OrgID,$C$4) -> 14532 | E54: 14587 | F54: 15485 | G54: 14670 | H54: 14744 | I54: 14799 | J54: 14872 | K54: 14923 | L54: 14979 | M54: 15007 | N54: 15032 | O54: 15045 | P54: 15067 | Q54: 15139
A55: ='Control Panel'!B57 -> %LDP.04: Diabetes Register | B55: %LDP.04: Diabetes Register | C55: ='Control Panel'!D57 -> % List size | D55: =IFERROR(D54/D7,"N/A") -> 0.055 | E55: 0.055 | F55: =IFERROR(F54/F7,"N/A") -> 0.055 | G55: =IFERROR(G54/G7,"N/A") -> 0.055 | H55: 0.055 | I55: 0.055 | J55: 0.055 | K55: 0.056 | L55: 0.056 | M55: 0.056 | N55: 0.056 | O55: 0.056 | P55: 0.056 | Q55: 0.056
A56: ='Control Panel'!B60 -> LDP.04.11: Diabetes and BP in last 12 months | B56: LDP.04.11: Diabetes and BP in last 12 months | C56: ='Control Panel'!D58 -> BP (last 12m) | D56: =SUMIFS(OFFSET(REL_D,,MATCH($A56,IND,0)-2),REL_D,D$3,OrgID,$C$4) -> 13496 | E56: 9639 | F56: 10618 | G56: 10344 | H56: 10690 | I56: 10988 | J56: 11255 | K56: 11412 | L56: 11498 | M56: 11783 | N56: 11929 | O56: 12049 | P56: 12182 | Q56: 12456
A57: ='Control Panel'!B61 -> %LDP.04.11: Diabetes and BP in last 12 months | B57: %LDP.04.11: Diabetes and BP in last 12 months | C57: ='Control Panel'!D59 -> % Diabetes Register | D57: =IFERROR(D56/D54,"N/A") -> 0.929 | E57: 0.661 | F57: =IFERROR(F56/F54,"N/A") -> 0.686 | G57: =IFERROR(G56/G54,"N/A") -> 0.705 | H57: 0.725 | I57: 0.742 | J57: 0.757 | K57: 0.765 | L57: 0.768 | M57: 0.785 | N57: 0.794 | O57: 0.801 | P57: 0.809 | Q57: 0.823
A58: LDP.04.09: Diabetes BP less than 145/85 (last 12m) | B58: LDP.04.09: Diabetes BP less than 145/85 (last 12m) | C58: ='Control Panel'!D60 -> BP < 145/85 (last 12m) | D58: =SUMIFS(OFFSET(REL_D,,MATCH($A58,IND,0)-2),REL_D,D$3,OrgID,$C$4) -> 10973 | E58: 7678 | F58: 8413 | G58: 8185 | H58: 8484 | I58: 8762 | J58: 8964 | K58: 9071 | L58: 9154 | M58: 9325 | N58: 9434 | O58: 9522 | P58: 9602 | Q58: 9858
A59: ='Control Panel'!B63 -> %LDP.04.09: Diabetes BP less than 145/85 (last 12m) | B59: %LDP.04.09: Diabetes BP less than 145/85 (last 12m) | C59: ='Control Panel'!D61 -> % Diabetes Register | D59: =IFERROR(D58/D54,"N/A") -> 0.755 | E59: 0.526 | F59: =IFERROR(F58/F54,"N/A") -> 0.543 | G59: =IFERROR(G58/G54,"N/A") -> 0.558 | H59: 0.575 | I59: 0.592 | J59: 0.603 | K59: 0.608 | L59: 0.611 | M59: 0.621 | N59: 0.628 | O59: 0.633 | P59: 0.637 | Q59: 0.651
A60: LDP.04.08: Diabetes Chol less than 5mmol (last 12m) | B60: LDP.04.08: Diabetes Chol less than 5mmol (last 12m) | C60: ='Control Panel'!D62 -> Cholesterol < 5mmols (last 12m) | D60: =SUMIFS(OFFSET(REL_D,,MATCH($A60,IND,0)-2),REL_D,D$3,OrgID,$C$4) -> 9428 | E60: 7726 | F60: 8549 | G60: 8132 | H60: 8152 | I60: 8150 | J60: 8222 | K60: 8102 | L60: 8074 | M60: 8092 | N60: 8214 | O60: 8258 | P60: 8281 | Q60: 8365
A61: ='Control Panel'!B67 -> %LDP.04.08: Diabetes Chol less than 5mmol (last 12m) | B61: %LDP.04.08: Diabetes Chol less than 5mmol (last 12m) | C61: ='Control Panel'!D63 -> % Diabetes Register | D61: =IFERROR(D60/D54,"N/A") -> 0.649 | E61: 0.53 | F61: =IFERROR(F60/F54,"N/A") -> 0.552 | G61: =IFERROR(G60/G54,"N/A") -> 0.554 | H61: 0.553 | I61: 0.551 | J61: 0.553 | K61: 0.543 | L61: 0.539 | M61: 0.539 | N61: 0.546 | O61: 0.549 | P61: 0.55 | Q61: 0.553
A62: LDP.04.01: Diabetes HbA1c <7.5% OR <59mmol (last 12m) | B62: LDP.04.01: Diabetes HbA1c <7.5% OR <59mmol (last 12m) | C62: ='Control Panel'!D64 -> HbA1c < 59 (last 12m) | D62: =SUMIFS(OFFSET(REL_D,,MATCH($A62,IND,0)-2),REL_D,D$3,OrgID,$C$4) -> 7871 | E62: 6506 | F62: 7040 | G62: 6633 | H62: 6590 | I62: 6538 | J62: 6605 | K62: 6546 | L62: 6614 | M62: 6761 | N62: 6906 | O62: 7057 | P62: 7126 | Q62: 7255
A63: ='Control Panel'!B69 -> %LDP.04.01: Diabetes HbA1c <7.5% OR <59mmol (last 12m) | B63: %LDP.04.01: Diabetes HbA1c <7.5% OR <59mmol (last 12m) | C63: ='Control Panel'!D65 -> % Diabetes register | D63: =IFERROR(D62/D54,"N/A") -> 0.542 | E63: 0.446 | F63: =IFERROR(F62/F54,"N/A") -> 0.455 | G63: =IFERROR(G62/G54,"N/A") -> 0.452 | H63: 0.447 | I63: 0.442 | J63: 0.444 | K63: 0.439 | L63: 0.442 | M63: 0.451 | N63: 0.459 | O63: 0.469 | P63: 0.473 | Q63: 0.479
A64: ='Control Panel'!B80 -> LDP.04.07: Diabetes Influenza Vaccinations (From August 2018) | B64: LDP.04.07: Diabetes Influenza Vaccinations (last 12m) | C64: ='Control Panel'!E66 -> Flu jab (From August 2021) | D64: =SUMIFS(OFFSET(REL_D,,MATCH($A64,IND,0)-2),REL_D,D$3,OrgID,$C$4) -> 9687 | E64: 9562 | F64: 0 | G64: 0 | H64: 0 | I64: 0 | J64: 0 | K64: 2271 | L64: 6400 | M64: 7928 | N64: 8493 | O64: 8747 | P64: 8888 | Q64: 8978
A65: ='Control Panel'!B81 -> %LDP.04.07: Diabetes Influenza Vaccinations (From August 2018) | B65: %LDP.04.07: Diabetes Influenza Vaccinations (last 12m) | C65: ='Control Panel'!D67 -> % Diabetes Register | D65: =IFERROR(D64/D54,"N/A") -> 0.667 | E65: 0.656 | F65: =IFERROR(F64/F54,"N/A") -> 0 | G65: =IFERROR(G64/G54,"N/A") -> 0 | H65: 0 | I65: 0 | J65: 0 | K65: 0.152 | L65: 0.427 | M65: 0.528 | N65: 0.565 | O65: 0.581 | P65: 0.59 | Q65: 0.593
C66: ='Control Panel'!B106 -> Mental Health
A67: ='Control Panel'!B107 -> CSPMH.01 SMI Register | B67: CSPMH.01 SMI Register | C67: ='Control Panel'!D107 -> Mental Health register | D67: =SUMIFS(OFFSET(REL_D,,MATCH($A67,IND,0)-2),REL_D,D$3,OrgID,$C$4) -> 3228 | E67: 3166 | F67: 3313 | G67: 3163 | H67: 3169 | I67: 3171 | J67: 3184 | K67: 3169 | L67: 3167 | M67: 3186 | N67: 3201 | O67: 3185 | P67: 3192 | Q67: 3204
A68: ='Control Panel'!B108 -> %CSPMH.01 SMI Register | B68: %CSPMH.01 SMI Register | C68: ='Control Panel'!D108 -> % list size | D68: =IFERROR(D67/D7,"N/A") -> 0.012 | E68: 0.012 | F68: =IFERROR(F67/F7,"N/A") -> 0.012 | G68: =IFERROR(G67/G7,"N/A") -> 0.012 | H68: 0.012 | I68: 0.012 | J68: 0.012 | K68: 0.012 | L68: 0.012 | M68: 0.012 | N68: 0.012 | O68: 0.012 | P68: 0.012 | Q68: 0.012
A69: ='Control Panel'!B109 -> CSPMH.01.02 Smoking Status Recorded (12m) | B69: CSPMH.01.02 Smoking Status Recorded (12m) | C69: ='Control Panel'!D109 -> No. of Mental Health Patients with smoking status recorded (last 12m) or never smoked | D69: =SUMIFS(OFFSET(REL_D,,MATCH($A69,IND,0)-2),REL_D,D$3,OrgID,$C$4) -> 2352 | E69: 2511 | F69: 2648 | G69: 2519 | H69: 2523 | I69: 2529 | J69: 2543 | K69: 2549 | L69: 2579 | M69: 2622 | N69: 2648 | O69: 2655 | P69: 2686 | Q69: 2709
A70: ='Control Panel'!B110 -> %CSPMH.01.02 Smoking Status Recorded (12m) | B70: %CSPMH.01.02 Smoking Status Recorded (12m) | C70: ='Control Panel'!D110 -> % Mental Health Register | D70: =IFERROR(D69/D67,"N/A") -> 0.729 | E70: 0.793 | F70: =IFERROR(F69/F67,"N/A") -> 0.799 | G70: =IFERROR(G69/G67,"N/A") -> 0.796 | H70: 0.796 | I70: 0.798 | J70: 0.799 | K70: 0.804 | L70: 0.814 | M70: 0.823 | N70: 0.827 | O70: 0.834 | P70: 0.841 | Q70: 0.846
A71: ='Control Panel'!B111 -> CSPMH.01.02.01 Current Smoker (12m) | B71: CSPMH.01.02.01 Current Smoker (15m) | C71: ='Control Panel'!D111 -> No. of Mental Health patients recorded as a Smoker | D71: =SUMIFS(OFFSET(REL_D,,MATCH($A71,IND,0)-2),REL_D,D$3,OrgID,$C$4) -> 988 | E71: 705 | F71: 749 | G71: 716 | H71: 711 | I71: 710 | J71: 719 | K71: 734 | L71: 775 | M71: 818 | N71: 830 | O71: 850 | P71: 884 | Q71: 901
A72: ='Control Panel'!B112 -> %CSPMH.01.02.01 Current Smoker (12m) | B72: %CSPMH.01.02.01 Current Smoker (15m) | C72: ='Control Panel'!D112 -> % Mental Health Register | D72: =IFERROR(D71/D67,"N/A") -> 0.306 | E72: 0.223 | F72: =IFERROR(F71/F67,"N/A") -> 0.226 | G72: =IFERROR(G71/G67,"N/A") -> 0.226 | H72: 0.224 | I72: 0.224 | J72: 0.226 | K72: 0.232 | L72: 0.245 | M72: 0.257 | N72: 0.259 | O72: 0.267 | P72: 0.277 | Q72: 0.281
A73: ='Control Panel'!B113 -> CSPMH 01.02.01.01 Ref to clinic 12m | B73: CSPMH 01.02.01.01 Ref to clinic 15m | C73: ='Control Panel'!D113 -> No. of Mental Health Patients who are current smokers & referred to the Stop Smoking Clinic | D73: =SUMIFS(OFFSET(REL_D,,MATCH($A73,IND,0)-2),REL_D,D$3,OrgID,$C$4) -> 19 | E73: 21 | F73: 25 | G73: 22 | H73: 20 | I73: 22 | J73: 22 | K73: 19 | L73: 22 | M73: 19 | N73: 18 | O73: 17 | P73: 19 | Q73: 20
A74: ='Control Panel'!B114 -> %CSPMH 01.02.01.01 Ref to clinic 12m | B74: %CSPMH 01.02.01.01 Ref to clinic 15m | C74: ='Control Panel'!D114 -> % Mental Health Register | D74: =IFERROR(D73/D67,"N/A") -> 0.006 | E74: 0.007 | F74: =IFERROR(F73/F67,"N/A") -> 0.008 | G74: =IFERROR(G73/G67,"N/A") -> 0.007 | H74: 0.006 | I74: 0.007 | J74: 0.007 | K74: 0.006 | L74: 0.007 | M74: 0.006 | N74: 0.006 | O74: 0.005 | P74: 0.006 | Q74: 0.006
A75: ='Control Panel'!B115 -> CSPMH.01.02.02 Ex-smoker Recorded (latest 12m) | B75: CSPMH.01.02.02 Ex-smoker Recorded (latest 15m) | C75: ='Control Panel'!D115 -> No. Of Mental Health Patients who are recorded as quitters | D75: =SUMIFS(OFFSET(REL_D,,MATCH($A75,IND,0)-2),REL_D,D$3,OrgID,$C$4) -> 454 | E75: 154 | F75: 184 | G75: 167 | H75: 169 | I75: 176 | J75: 189 | K75: 189 | L75: 187 | M75: 204 | N75: 213 | O75: 208 | P75: 215 | Q75: 222
A76: ='Control Panel'!B116 -> %CSPMH.01.02.02 Ex-smoker Recorded (latest 12m) | B76: %CSPMH.01.02.02 Ex-smoker Recorded (latest 15m) | C76: ='Control Panel'!D116 -> % Mental Health Register | D76: =IFERROR(D75/D67,"N/A") -> 0.141 | E76: 0.049 | F76: =IFERROR(F75/F67,"N/A") -> 0.056 | G76: =IFERROR(G75/G67,"N/A") -> 0.053 | H76: 0.053 | I76: 0.056 | J76: 0.059 | K76: 0.06 | L76: 0.059 | M76: 0.064 | N76: 0.067 | O76: 0.065 | P76: 0.067 | Q76: 0.069
A77: ='Control Panel'!B117 -> CSPMH. 01.03 QRisk Recorded (12m) | B77: CSPMH. 01.03 QRisk Recorded (12m) | C77: ='Control Panel'!D117 -> Patients with Mental Health with QRISK recorded in the last 12m | D77: =SUMIFS(OFFSET(REL_D,,MATCH($A77,IND,0)-2),REL_D,D$3,OrgID,$C$4) -> 1017 | E77: 615 | F77: 661 | G77: 663 | H77: 685 | I77: 731 | J77: 787 | K77: 833 | L77: 880 | M77: 909 | N77: 921 | O77: 920 | P77: 962 | Q77: 1014
A78: ='Control Panel'!B118 -> %CSPMH. 01.03 QRisk Recorded (12m) | B78: %CSPMH. 01.03 QRisk Recorded (12m) | C78: ='Control Panel'!D118 -> % Mental Health Register | D78: =IFERROR(D77/D67,"N/A") -> 0.315 | E78: 0.194 | F78: =IFERROR(F77/F67,"N/A") -> 0.2 | G78: =IFERROR(G77/G67,"N/A") -> 0.21 | H78: 0.216 | I78: 0.231 | J78: 0.247 | K78: 0.263 | L78: 0.278 | M78: 0.285 | N78: 0.288 | O78: 0.289 | P78: 0.301 | Q78: 0.316
A79: ='Control Panel'!B119 -> CSPMH. 01.03.02 Qrisk>=20 (12m) | B79: CSPMH. 01.03.02 Qrisk>=20 (12m) | C79: ='Control Panel'!D119 -> Patients with Mental Health with QRISK 20% or higher in the last 12m | D79: =SUMIFS(OFFSET(REL_D,,MATCH($A79,IND,0)-2),REL_D,D$3,OrgID,$C$4) -> 189 | E79: 106 | F79: 116 | G79: 118 | H79: 118 | I79: 128 | J79: 135 | K79: 136 | L79: 147 | M79: 149 | N79: 158 | O79: 156 | P79: 165 | Q79: 182
A80: ='Control Panel'!B120 -> %CSPMH. 01.03.02 Qrisk>=20 (12m) | B80: %CSPMH. 01.03.02 Qrisk>=20 (12m) | C80: ='Control Panel'!D120 -> % patients with QRISK recorded | D80: =IFERROR(D79/D67,"N/A") -> 0.059 | E80: 0.033 | F80: =IFERROR(F79/F67,"N/A") -> 0.035 | G80: =IFERROR(G79/G67,"N/A") -> 0.037 | H80: 0.037 | I80: 0.04 | J80: 0.042 | K80: 0.043 | L80: 0.046 | M80: 0.047 | N80: 0.049 | O80: 0.049 | P80: 0.052 | Q80: 0.057
A81: ='Control Panel'!B121 -> CSPMH. 01.03.01 BP recorded on same day as QRisk (12m) | B81: CSPMH. 01.03.01 BP recorded on same day as QRisk (12m) | C81: ='Control Panel'!D121 -> Patients with Mental Health with BP & QRisk on the same day in the last 12m | D81: =SUMIFS(OFFSET(REL_D,,MATCH($A81,IND,0)-2),REL_D,D$3,OrgID,$C$4) -> 582 | E81: 308 | F81: 336 | G81: 350 | H81: 379 | I81: 417 | J81: 462 | K81: 518 | L81: 557 | M81: 565 | N81: 563 | O81: 553 | P81: 551 | Q81: 568
A82: ='Control Panel'!B122 -> %CSPMH. 01.03.01 BP recorded on same day as QRisk (12m) | B82: %CSPMH. 01.03.01 BP recorded on same day as QRisk (12m) | C82: ='Control Panel'!D122 -> % Mental Health Register | D82: =IFERROR(D81/D67,"N/A") -> 0.18 | E82: 0.097 | F82: =IFERROR(F81/F67,"N/A") -> 0.101 | G82: =IFERROR(G81/G67,"N/A") -> 0.111 | H82: 0.12 | I82: 0.132 | J82: 0.145 | K82: 0.163 | L82: 0.176 | M82: 0.177 | N82: 0.176 | O82: 0.174 | P82: 0.173 | Q82: 0.177
A83: =VLOOKUP(C83,'Control Panel'!A122:B248,2,FALSE) ->  | C83: ='Control Panel'!B123 -> CKD
A84: LDP.08 CKD Register | B84: LDP.08 CKD Register | C84: ='Control Panel'!C124 -> No. of patients on CKD register | D84: =SUMIFS(OFFSET(REL_D,,MATCH($A84,IND,0)-2),REL_D,D$3,OrgID,$C$4) -> 7882 | E84: 8162 | F84: 8471 | G84: 8127 | H84: 8129 | I84: 8123 | J84: 8144 | K84: 8185 | L84: 8236 | M84: 8237 | N84: 8190 | O84: 8183 | P84: 8225 | Q84: 8232
A85: =VLOOKUP(C85,'Control Panel'!A124:B250,2,FALSE) -> %LDP.08 CKD Register | B85: %LDP.08 CKD Register | C85: ='Control Panel'!C125 -> % List Size | D85: =IFERROR(D84/D7,"N/A") -> 0.03 | E85: 0.031 | F85: =IFERROR(F84/F7,"N/A") -> 0.03 | G85: =IFERROR(G84/G7,"N/A") -> 0.03 | H85: 0.03 | I85: 0.03 | J85: 0.03 | K85: 0.03 | L85: 0.031 | M85: 0.031 | N85: 0.03 | O85: 0.03 | P85: 0.031 | Q85: 0.03
A86: =VLOOKUP(C86,'Control Panel'!A125:B251,2,FALSE) -> LDP.08.03 CKD and BP Recorded (last 12 m) | B86: LDP.08.03 CKD and BP Recorded (last 12 m) | C86: ='Control Panel'!C126 -> BP Recorded (last 12m) | D86: =SUMIFS(OFFSET(REL_D,,MATCH($A86,IND,0)-2),REL_D,D$3,OrgID,$C$4) -> 6937 | E86: 5134 | F86: 5495 | G86: 5376 | H86: 5511 | I86: 5592 | J86: 5740 | K86: 5702 | L86: 5803 | M86: 5983 | N86: 6028 | O86: 6116 | P86: 6217 | Q86: 6312
A87: =VLOOKUP(C87,'Control Panel'!A126:B252,2,FALSE) -> %LDP.08.03 CKD and BP Recorded (last 12 m) | B87: %LDP.08.03 CKD and BP Recorded (last 12 m) | C87: ='Control Panel'!C127 -> % CKD register | D87: =IFERROR(D86/D84,"N/A") -> 0.88 | E87: 0.629 | F87: =IFERROR(F86/F84,"N/A") -> 0.649 | G87: =IFERROR(G86/G84,"N/A") -> 0.661 | H87: 0.678 | I87: 0.688 | J87: 0.705 | K87: 0.697 | L87: 0.705 | M87: 0.726 | N87: 0.736 | O87: 0.747 | P87: 0.756 | Q87: 0.767
A88: LDP.08.01 CKD and BP less than 140/90 (last 12 m) | B88: LDP.08.01 CKD and BP less than 140/90 (last 12 m) | C88: ='Control Panel'!C128 -> BP ≤ 140/90 | D88: =SUMIFS(OFFSET(REL_D,,MATCH($A88,IND,0)-2),REL_D,D$3,OrgID,$C$4) -> 4925 | E88: 3679 | F88: 3895 | G88: 3803 | H88: 3914 | I88: 3993 | J88: 4082 | K88: 4028 | L88: 4080 | M88: 4210 | N88: 4261 | O88: 4319 | P88: 4359 | Q88: 4428
A89: =VLOOKUP(C89,'Control Panel'!A128:B254,2,FALSE) -> %LDP.08.01 CKD and BP less than 140/90 (last 12 m) | B89: %LDP.08.01 CKD and BP less than 140/90 (last 12 m) | C89: ='Control Panel'!C129 -> % CKD register | D89: =IFERROR(D88/D84,"N/A") -> 0.625 | E89: 0.451 | F89: =IFERROR(F88/F84,"N/A") -> 0.46 | G89: =IFERROR(G88/G84,"N/A") -> 0.468 | H89: 0.481 | I89: 0.492 | J89: 0.501 | K89: 0.492 | L89: 0.495 | M89: 0.511 | N89: 0.52 | O89: 0.528 | P89: 0.53 | Q89: 0.538
A90: =VLOOKUP(C90,'Control Panel'!A129:B255,2,FALSE) -> LDP.08.02 CKD Diagnosed (Last 6m) | B90: LDP.08.02 CKD Diagnosed (Last 6m) | C90: ='Control Panel'!C130 -> No of patients with new diagnosis of CKD (last 6m) | D90: =SUMIFS(OFFSET(REL_D,,MATCH($A90,IND,0)-2),REL_D,D$3,OrgID,$C$4) -> 687 | E90: 470 | F90: 433 | G90: 387 | H90: 365 | I90: 365 | J90: 376 | K90: 323 | L90: 379 | M90: 393 | N90: 374 | O90: 353 | P90: 410 | Q90: 352
A91: =VLOOKUP(C91,'Control Panel'!A130:B256,2,FALSE) -> %LDP.08.02 CKD Diagnosed (Last 6m) | B91: %LDP.08.02 CKD Diagnosed (Last 6m) | C91: ='Control Panel'!C131 -> % CKD register | D91: =IFERROR(D90/D84,"N/A") -> 0.087 | E91: 0.058 | F91: =IFERROR(F90/F84,"N/A") -> 0.051 | G91: =IFERROR(G90/G84,"N/A") -> 0.048 | H91: 0.045 | I91: 0.045 | J91: 0.046 | K91: 0.039 | L91: 0.046 | M91: 0.048 | N91: 0.046 | O91: 0.043 | P91: 0.05 | Q91: 0.043
C92: ='Control Panel'!B132 -> COPD
A93: LDP.09 COPD Register | B93: LDP.09 COPD Register | C93: ='Control Panel'!C133 -> No. of patients on COPD register | D93: =SUMIFS(OFFSET(REL_D,,MATCH($A93,IND,0)-2),REL_D,D$3,OrgID,$C$4) -> 2353 | E93: 2297 | F93: 2416 | G93: 2274 | H93: 2270 | I93: 2253 | J93: 2247 | K93: 2232 | L93: 2225 | M93: 2229 | N93: 2221 | O93: 2209 | P93: 2203 | Q93: 2214
A94: ="%"&A93 -> %LDP.09 COPD Register | B94: %LDP.09 COPD Register | C94: ='Control Panel'!C134 -> % List Size | D94: =IFERROR(D93/D7,"N/A") -> 0.009 | E94: 0.009 | F94: =IFERROR(F93/F7,"N/A") -> 0.009 | G94: =IFERROR(G93/G7,"N/A") -> 0.008 | H94: 0.008 | I94: 0.008 | J94: 0.008 | K94: 0.008 | L94: 0.008 | M94: 0.008 | N94: 0.008 | O94: 0.008 | P94: 0.008 | Q94: 0.008
A95: LDP.09.01 Patients with severe or very severe COPD (FEV1<50) | B95: LDP.09.01 Patients with severe or very severe COPD (FEV1<50) | C95: ='Control Panel'!C135 -> No of patients with severe or very severe COPD (FEV1<50) | D95: =SUMIFS(OFFSET(REL_D,,MATCH($A95,IND,0)-2),REL_D,D$3,OrgID,$C$4) -> 452 | E95: 406 | F95: 444 | G95: 398 | H95: 399 | I95: 397 | J95: 390 | K95: 387 | L95: 381 | M95: 377 | N95: 373 | O95: 366 | P95: 361 | Q95: 360
A96: ="%"&A95 -> %LDP.09.01 Patients with severe or very severe COPD (FEV1<50) | B96: %LDP.09.01 Patients with severe or very severe COPD (FEV1<50) | C96: ='Control Panel'!C136 -> % COPD register | D96: =IFERROR(D95/D93,"N/A") -> 0.192 | E96: 0.177 | F96: =IFERROR(F95/F93,"N/A") -> 0.184 | G96: =IFERROR(G95/G93,"N/A") -> 0.175 | H96: 0.176 | I96: 0.176 | J96: 0.174 | K96: 0.173 | L96: 0.171 | M96: 0.169 | N96: 0.168 | O96: 0.166 | P96: 0.164 | Q96: 0.163
A97: LDP.09.02 Patients with smoking status recorded (last 12m) or never smoked | B97: LDP.09.02 Patients with smoking status recorded (last 12m) or never smoked | C97: ='Control Panel'!C137 -> No. of COPD Patients with smoking status recorded (last 12m) or never smoked | D97: =SUMIFS(OFFSET(REL_D,,MATCH($A97,IND,0)-2),REL_D,D$3,OrgID,$C$4) -> 2084 | E97: 1805 | F97: 1874 | G97: 1716 | H97: 1667 | I97: 1651 | J97: 1732 | K97: 1771 | L97: 1816 | M97: 1852 | N97: 1870 | O97: 1880 | P97: 1879 | Q97: 1895
A98: ="%"&A97 -> %LDP.09.02 Patients with smoking status recorded (last 12m) or never smoked | B98: %LDP.09.02 Patients with smoking status recorded (last 12m) or never smoked | C98: ='Control Panel'!C138 -> % COPD | D98: =IFERROR(D97/D93,"N/A") -> 0.886 | E98: 0.786 | F98: =IFERROR(F97/F93,"N/A") -> 0.776 | G98: =IFERROR(G97/G93,"N/A") -> 0.755 | H98: 0.734 | I98: 0.733 | J98: 0.771 | K98: 0.793 | L98: 0.816 | M98: 0.831 | N98: 0.842 | O98: 0.851 | P98: 0.853 | Q98: 0.856
A99: LDP.09.03 COPD patients recorded as a Smoker | B99: LDP.09.03 COPD patients recorded as a Smoker | C99: ='Control Panel'!C139 -> No. of COPD patients recorded as a Smoker | D99: =SUMIFS(OFFSET(REL_D,,MATCH($A99,IND,0)-2),REL_D,D$3,OrgID,$C$4) -> 745 | E99: 640 | F99: 663 | G99: 600 | H99: 586 | I99: 581 | J99: 609 | K99: 615 | L99: 630 | M99: 650 | N99: 651 | O99: 657 | P99: 646 | Q99: 659
A100: ="%"&A99 -> %LDP.09.03 COPD patients recorded as a Smoker | B100: %LDP.09.03 COPD patients recorded as a Smoker | C100: ='Control Panel'!C140 -> % COPD | D100: =IFERROR(D99/D93,"N/A") -> 0.317 | E100: 0.279 | F100: =IFERROR(F99/F93,"N/A") -> 0.274 | G100: =IFERROR(G99/G93,"N/A") -> 0.264 | H100: 0.258 | I100: 0.258 | J100: 0.271 | K100: 0.276 | L100: 0.283 | M100: 0.292 | N100: 0.293 | O100: 0.297 | P100: 0.293 | Q100: 0.298
A101: LDP.09.04 COPD Patients who are current smokers & referred to the Stop Smoking C | B101: LDP.09.04 COPD Patients who are current smokers & referred to the Stop Smoking C | C101: ='Control Panel'!C141 -> No. of COPD Patients who are current smokers & referred to the Stop Smoking Clinic (12m) | D101: =SUMIFS(OFFSET(REL_D,,MATCH($A101,IND,0)-2),REL_D,D$3,OrgID,$C$4) -> 34 | E101: 24 | F101: 27 | G101: 22 | H101: 21 | I101: 22 | J101: 25 | K101: 28 | L101: 29 | M101: 27 | N101: 28 | O101: 26 | P101: 24 | Q101: 22
A102: ="%"&A101 -> %LDP.09.04 COPD Patients who are current smokers & referred to the Stop Smoking C | B102: %LDP.09.04 COPD Patients who are current smokers & referred to the Stop Smoking C | C102: ='Control Panel'!C142 -> % of current COPD smokers | D102: =IFERROR(D101/D99,"N/A") -> 0.046 | E102: 0.038 | F102: =IFERROR(F101/F99,"N/A") -> 0.041 | G102: =IFERROR(G101/G99,"N/A") -> 0.037 | H102: 0.036 | I102: 0.038 | J102: 0.041 | K102: 0.046 | L102: 0.046 | M102: 0.042 | N102: 0.043 | O102: 0.04 | P102: 0.037 | Q102: 0.033
A103: LDP.09.05 No of COPD with flu vaccination (From August 2018) | B103: LDP.09.05 No of COPD with flu vaccination (12m) | C103: ='Control Panel'!C143 -> No of COPD with flu vaccination (From August 2021) | D103: =SUMIFS(OFFSET(REL_D,,MATCH($A103,IND,0)-2),REL_D,D$3,OrgID,$C$4) -> 1703 | E103: 1678 | F103: 0 | G103: 0 | H103: 0 | I103: 0 | J103: 0 | K103: 363 | L103: 1170 | M103: 1389 | N103: 1472 | O103: 1504 | P103: 1525 | Q103: 1539
A104: ="%"&A103 -> %LDP.09.05 No of COPD with flu vaccination (From August 2018) | B104: %LDP.09.05 No of COPD with flu vaccination (12m) | C104: ='Control Panel'!C144 -> % of COPD register | D104: =IFERROR(D103/D93,"N/A") -> 0.724 | E104: 0.731 | F104: =IFERROR(F103/F93,"N/A") -> 0 | G104: =IFERROR(G103/G93,"N/A") -> 0 | H104: 0 | I104: 0 | J104: 0 | K104: 0.163 | L104: 0.526 | M104: 0.623 | N104: 0.663 | O104: 0.681 | P104: 0.692 | Q104: 0.695
A105: LDP.09.06 No of COPD with pneumococcal vaccination ever | B105: LDP.09.06 No of COPD with pneumococcal vaccination ever | C105: ='Control Panel'!C145 -> No of COPD with pneumococcal vaccination ever | D105: =SUMIFS(OFFSET(REL_D,,MATCH($A105,IND,0)-2),REL_D,D$3,OrgID,$C$4) -> 1652 | E105: 1654 | F105: 1725 | G105: 1644 | H105: 1646 | I105: 1638 | J105: 1635 | K105: 1636 | L105: 1644 | M105: 1657 | N105: 1653 | O105: 1635 | P105: 1645 | Q105: 1654
A106: ="%"&A105 -> %LDP.09.06 No of COPD with pneumococcal vaccination ever | B106: %LDP.09.06 No of COPD with pneumococcal vaccination ever | C106: ='Control Panel'!C146 -> % of COPD register | D106: =IFERROR(D105/D93,"N/A") -> 0.702 | E106: 0.72 | F106: =IFERROR(F105/F93,"N/A") -> 0.714 | G106: =IFERROR(G105/G93,"N/A") -> 0.723 | H106: 0.725 | I106: 0.727 | J106: 0.728 | K106: 0.733 | L106: 0.739 | M106: 0.743 | N106: 0.744 | O106: 0.74 | P106: 0.747 | Q106: 0.747
A107: LDP.09.07 No of COPD patients referred to pulmonary rehab ever | B107: LDP.09.07 No of COPD patients referred to pulmonary rehab ever | C107: ='Control Panel'!C147 -> No of COPD patients referred to pulmonary rehab ever | D107: =SUMIFS(OFFSET(REL_D,,MATCH($A107,IND,0)-2),REL_D,D$3,OrgID,$C$4) -> 789 | E107: 944 | F107: 1018 | G107: 959 | H107: 977 | I107: 983 | J107: 1000 | K107: 1037 | L107: 1062 | M107: 1086 | N107: 1102 | O107: 1114 | P107: 1115 | Q107: 1131
A108: ="%"&A107 -> %LDP.09.07 No of COPD patients referred to pulmonary rehab ever | B108: %LDP.09.07 No of COPD patients referred to pulmonary rehab ever | C108: ='Control Panel'!C148 -> % of COPD register | D108: =IFERROR(D107/D93,"N/A") -> 0.335 | E108: 0.411 | F108: =IFERROR(F107/F93,"N/A") -> 0.421 | G108: =IFERROR(G107/G93,"N/A") -> 0.422 | H108: 0.43 | I108: 0.436 | J108: 0.445 | K108: 0.465 | L108: 0.477 | M108: 0.487 | N108: 0.496 | O108: 0.504 | P108: 0.506 | Q108: 0.511

Sheet General Health
C1: 01. Listsize | D1: =INDEX('Control Panel'!$B$3:$B$17,COLUMN(D1)-COLUMN($C$1)+1) -> LDP.01: Aged 16yrs+ | E1: =INDEX('Control Panel'!$B$3:$B$17,COLUMN(E1)-COLUMN($C$1)+1) -> %LDP.01: Aged 16yrs+ | F1: =INDEX('Control Panel'!$B$3:$B$17,COLUMN(F1)-COLUMN($C$1)+1) -> LDP.01.01: Obesity BMI recorded (last 12m) | G1: =INDEX('Control Panel'!$B$3:$B$17,COLUMN(G1)-COLUMN($C$1)+1) -> %LDP.01.01: Obesity BMI recorded (last 12m) | H1: =INDEX('Control Panel'!$B$3:$B$17,COLUMN(H1)-COLUMN($C$1)+1) -> LDP.01.01.02: Obesity BMI between 30-35 (last 12m) | I1: =INDEX('Control Panel'!$B$3:$B$17,COLUMN(I1)-COLUMN($C$1)+1) -> %LDP.01.01.02: Obesity BMI between 30-35 (last 12m) | J1: =INDEX('Control Panel'!$B$3:$B$17,COLUMN(J1)-COLUMN($C$1)+1) -> LDP.01.01.01: Obesity BMI more than or equal to 35 less than 40 (last 12m) | K1: =INDEX('Control Panel'!$B$3:$B$17,COLUMN(K1)-COLUMN($C$1)+1) -> %LDP.01.01.01: Obesity BMI more than or equal to 35 less than 40 (last 12m) | L1: =INDEX('Control Panel'!$B$3:$B$17,COLUMN(L1)-COLUMN($C$1)+1) -> LDP.01.01.03: Obesity BMI equal to or over 40 (last 12m) | M1: =INDEX('Control Panel'!$B$3:$B$17,COLUMN(M1)-COLUMN($C$1)+1) -> %LDP.01.01.03: Obesity BMI equal to or over 40 (last 12m) | N1: =INDEX('Control Panel'!$B$3:$B$17,COLUMN(N1)-COLUMN($C$1)+1) -> LDP.01.02: Smoking Status (last 12m) or Never Smoked (25yrs+) | O1: =INDEX('Control Panel'!$B$3:$B$17,COLUMN(O1)-COLUMN($C$1)+1) -> %LDP.01.02: Smoking Status (last 12m) or Never Smoked (25yrs+) | P1: =INDEX('Control Panel'!$B$3:$B$17,COLUMN(P1)-COLUMN($C$1)+1) -> LDP.01.03: Current Smoker (last 12m) | Q1: =INDEX('Control Panel'!$B$3:$B$17,COLUMN(Q1)-COLUMN($C$1)+1) -> %LDP.01.03: Current Smoker (last 12m)
C2: Waltham Forest - Practice Clinical Trends (LDP) Report
B3: =VLOOKUP(C3,'Control Panel'!I14:J25,2,FALSE) -> 2022-04-01 | C3: March 2022 | D3: =VLOOKUP(C3,'Control Panel'!I14:J25,2,FALSE) -> 44652
B4: 2020-02-01 | C4: ='Control Panel'!B2 -> General Health
A5: Home | C5: =VLOOKUP(C1,'Control Panel'!$B$3:$C$131,2,FALSE) -> List Size | D5: =VLOOKUP(D1,'Control Panel'!$B$3:$D$131,3,FALSE) -> Age 16+ | E5: =VLOOKUP(E1,'Control Panel'!$B$3:$D$131,3,FALSE) -> % list size | F5: =VLOOKUP(F1,'Control Panel'!$B$3:$D$131,3,FALSE) -> 16+ and BMI (last 12m) | G5: =VLOOKUP(G1,'Control Panel'!$B$3:$D$131,3,FALSE) -> % 16+ | H5: =VLOOKUP(H1,'Control Panel'!$B$3:$D$131,3,FALSE) -> BMI ≥30 & <35 | I5: =VLOOKUP(I1,'Control Panel'!$B$3:$D$131,3,FALSE) -> % 16+ | J5: =VLOOKUP(J1,'Control Panel'!$B$3:$D$131,3,FALSE) -> BMI ≥ 35 & <40 | K5: =VLOOKUP(K1,'Control Panel'!$B$3:$D$131,3,FALSE) -> %16+ | L5: =VLOOKUP(L1,'Control Panel'!$B$3:$D$131,3,FALSE) -> BMI ≥ 40 | M5: =VLOOKUP(M1,'Control Panel'!$B$3:$D$131,3,FALSE) -> %16+ | N5: =VLOOKUP(N1,'Control Panel'!$B$3:$D$131,3,FALSE) -> Smoking status (last 12m) incl. never smoked | O5: =VLOOKUP(O1,'Control Panel'!$B$3:$D$131,3,FALSE) -> % 16+ | P5: =VLOOKUP(P1,'Control Panel'!$B$3:$D$131,3,FALSE) -> Age 16+ and current smoker (last 12m) | Q5: =VLOOKUP(Q1,'Control Panel'!$B$3:$D$131,3,FALSE) -> % 16+
A6: Practice Name | B6: Total | C6: =SUM(C7:C40) -> 269929 | D6: =SUM(D7:D40) -> 217516 | E6: =IFERROR(D6/C6,"N/A") -> 0.806 | F6: =SUM(F7:F40) -> 50850 | G6: =IFERROR(F6/$D$6,"N/A") -> 0.234 | H6: =SUM(H7:H40) -> 9584 | I6: =IFERROR(H6/$D$6,"N/A") -> 0.044 | J6: =SUM(J7:J40) -> 3934 | K6: =IFERROR(J6/$D$6,"N/A") -> 0.018 | L6: =SUM(L7:L40) -> 2445 | M6: =IFERROR(L6/$D$6,"N/A") -> 0.011 | N6: =SUM(N7:N40) -> 139372 | O6: =IFERROR(N6/$D$6,"N/A") -> 0.641 | P6: =SUM(P7:P40) -> 11914 | Q6: =IFERROR(P6/$D$6,"N/A") -> 0.055
A7: ='Control Panel'!H62 -> The Firs Medical Centre | B7: ='Control Panel'!I62 -> F86001 | C7: =SUMIFS(OFFSET(REL_D,,MATCH(C$1,IND,0)-2),REL_D,$D$3,OrgID,$B7) -> 7729 | D7: 6363 | E7: =IFERROR(D7/$C7,"N/A") -> 0.823 | F7: =SUMIFS(OFFSET(REL_D,,MATCH(F$1,IND,0)-2),REL_D,$D$3,OrgID,$B7) -> 1445 | G7: =IFERROR(F7/$D7,"N/A") -> 0.227 | H7: =SUMIFS(OFFSET(REL_D,,MATCH(H$1,IND,0)-2),REL_D,$D$3,OrgID,$B7) -> 266 | I7: =IFERROR(H7/$D7,"N/A") -> 0.042 | J7: =SUMIFS(OFFSET(REL_D,,MATCH(J$1,IND,0)-2),REL_D,$D$3,OrgID,$B7) -> 126 | K7: =IFERROR(J7/$D7,"N/A") -> 0.02 | L7: =SUMIFS(OFFSET(REL_D,,MATCH(L$1,IND,0)-2),REL_D,$D$3,OrgID,$B7) -> 74 | M7: =IFERROR(L7/$D7,"N/A") -> 0.012 | N7: =SUMIFS(OFFSET(REL_D,,MATCH(N$1,IND,0)-2),REL_D,$D$3,OrgID,$B7) -> 4014 | O7: =IFERROR(N7/$D7,"N/A") -> 0.631 | P7: =SUMIFS(OFFSET(REL_D,,MATCH(P$1,IND,0)-2),REL_D,$D$3,OrgID,$B7) -> 271 | Q7: =IFERROR(P7/$D7,"N/A") -> 0.043
A8: ='Control Panel'!H63 -> Penryhn Surgery | B8: ='Control Panel'!I63 -> F86005 | C8: 9510 | D8: 7491 | E8: 0.788 | F8: 2001 | G8: 0.267 | H8: 331 | I8: 0.044 | J8: 124 | K8: 0.017 | L8: 86 | M8: 0.011 | N8: 4499 | O8: 0.601 | P8: 452 | Q8: 0.06
A9: ='Control Panel'!H64 -> Seymour Medical Centre | B9: ='Control Panel'!I64 -> F86006 | C9: 6825 | D9: 5530 | E9: 0.81 | F9: 567 | G9: 0.103 | H9: 130 | I9: 0.024 | J9: 60 | K9: 0.011 | L9: 63 | M9: 0.011 | N9: 3073 | O9: 0.556 | P9: 195 | Q9: 0.035
A10: ='Control Panel'!H65 -> The Manor Practice | B10: ='Control Panel'!I65 -> F86011 | C10: 9698 | D10: 8066 | E10: 0.832 | F10: 1673 | G10: 0.207 | H10: 351 | I10: 0.044 | J10: 144 | K10: 0.018 | L10: 92 | M10: 0.011 | N10: 5163 | O10: 0.64 | P10: 502 | Q10: 0.062
A11: ='Control Panel'!H66 -> Queens Road Medical Centre | B11: ='Control Panel'!I66 -> F86030 | C11: 8161 | D11: 6518 | E11: 0.799 | F11: 1090 | G11: 0.167 | H11: 198 | I11: 0.03 | J11: 76 | K11: 0.012 | L11: 37 | M11: 0.006 | N11: 4496 | O11: 0.69 | P11: 232 | Q11: 0.036
A12: ='Control Panel'!H67 -> The Allum Medical Centre | B12: ='Control Panel'!I67 -> F86036 | C12: 14732 | D12: 11844 | E12: 0.804 | F12: 2782 | G12: 0.235 | H12: 500 | I12: 0.042 | J12: 182 | K12: 0.015 | L12: 121 | M12: 0.01 | N12: 7846 | O12: 0.662 | P12: 539 | Q12: 0.046
A13: ='Control Panel'!H68 -> SMA Medical Centre | B13: ='Control Panel'!I68 -> F86038 | C13: 11105 | D13: 8534 | E13: 0.768 | F13: 2508 | G13: 0.294 | H13: 590 | I13: 0.069 | J13: 270 | K13: 0.032 | L13: 145 | M13: 0.017 | N13: 5319 | O13: 0.623 | P13: 401 | Q13: 0.047
A14: ='Control Panel'!H69 -> Crawley Road Medical Centre | B14: ='Control Panel'!I69 -> F86044 | C14: 10802 | D14: 8879 | E14: 0.822 | F14: 1567 | G14: 0.176 | H14: 248 | I14: 0.028 | J14: 99 | K14: 0.011 | L14: 72 | M14: 0.008 | N14: 4877 | O14: 0.549 | P14: 397 | Q14: 0.045
A15: ='Control Panel'!H70 -> High Road Surgery | B15: ='Control Panel'!I70 -> F86045 | C15: 2026 | D15: 1742 | E15: 0.86 | F15: 577 | G15: 0.331 | H15: 126 | I15: 0.072 | J15: 52 | K15: 0.03 | L15: 19 | M15: 0.011 | N15: 1127 | O15: 0.647 | P15: 125 | Q15: 0.072
A16: ='Control Panel'!H71 -> St James Medical Practice Ltd | B16: ='Control Panel'!I71 -> F86058 | C16: 16561 | D16: 13173 | E16: 0.795 | F16: 3490 | G16: 0.265 | H16: 555 | I16: 0.042 | J16: 224 | K16: 0.017 | L16: 155 | M16: 0.012 | N16: 8558 | O16: 0.65 | P16: 857 | Q16: 0.065
A17: ='Control Panel'!H72 -> The Grove Road Medical Centre | B17: ='Control Panel'!I72 -> F86062 | C17: 7155 | D17: 5831 | E17: 0.815 | F17: 1760 | G17: 0.302 | H17: 250 | I17: 0.043 | J17: 106 | K17: 0.018 | L17: 58 | M17: 0.01 | N17: 4109 | O17: 0.705 | P17: 462 | Q17: 0.079
A18: ='Control Panel'!H73 -> The Ridgeway Surgery | B18: ='Control Panel'!I73 -> F86078 | C18: 6869 | D18: 5847 | E18: 0.851 | F18: 745 | G18: 0.127 | H18: 143 | I18: 0.024 | J18: 69 | K18: 0.012 | L18: 36 | M18: 0.006 | N18: 3585 | O18: 0.613 | P18: 171 | Q18: 0.029
A19: ='Control Panel'!H74 -> Dr Dhital Practice | B19: ='Control Panel'!I74 -> F86086 | C19: 6265 | D19: 4757 | E19: 0.759 | F19: 785 | G19: 0.165 | H19: 171 | I19: 0.036 | J19: 66 | K19: 0.014 | L19: 38 | M19: 0.008 | N19: 2847 | O19: 0.598 | P19: 197 | Q19: 0.041
A20: ='Control Panel'!H75 -> The Lyndhurst Surgery | B20: ='Control Panel'!I75 -> F86088 | C20: 5027 | D20: 4278 | E20: 0.851 | F20: 649 | G20: 0.152 | H20: 137 | I20: 0.032 | J20: 48 | K20: 0.011 | L20: 35 | M20: 0.008 | N20: 2487 | O20: 0.581 | P20: 161 | Q20: 0.038
A21: ='Control Panel'!H76 -> Addison Road Medical Practice | B21: ='Control Panel'!I76 -> F86607 | C21: 15547 | D21: 12163 | E21: 0.782 | F21: 2711 | G21: 0.223 | H21: 458 | I21: 0.038 | J21: 196 | K21: 0.016 | L21: 111 | M21: 0.009 | N21: 8894 | O21: 0.731 | P21: 803 | Q21: 0.066
A22: ='Control Panel'!H77 -> The Old Church Surgery | B22: ='Control Panel'!I77 -> F86616 | C22: 7996 | D22: 6212 | E22: 0.777 | F22: 1698 | G22: 0.273 | H22: 342 | I22: 0.055 | J22: 134 | K22: 0.022 | L22: 64 | M22: 0.01 | N22: 4118 | O22: 0.663 | P22: 311 | Q22: 0.05
A23: ='Control Panel'!H78 -> Green Man Medical Centre | B23: ='Control Panel'!I78 -> F86621 | C23: 6445 | D23: 5429 | E23: 0.842 | F23: 1121 | G23: 0.206 | H23: 186 | I23: 0.034 | J23: 52 | K23: 0.01 | L23: 45 | M23: 0.008 | N23: 3527 | O23: 0.65 | P23: 272 | Q23: 0.05
A24: ='Control Panel'!H79 -> L.L. Medical Care Ltd (Agarwal & Agrawal Practice) | B24: ='Control Panel'!I79 -> F86625 | C24: 5882 | D24: 4827 | E24: 0.821 | F24: 1087 | G24: 0.225 | H24: 204 | I24: 0.042 | J24: 114 | K24: 0.024 | L24: 81 | M24: 0.017 | N24: 2770 | O24: 0.574 | P24: 218 | Q24: 0.045
A25: ='Control Panel'!H80 -> Dr Shantir's Practice - Forest Road Medical Centre | B25: ='Control Panel'!I80 -> F86626 | C25: 7021 | D25: 5602 | E25: 0.798 | F25: 1104 | G25: 0.197 | H25: 177 | I25: 0.032 | J25: 79 | K25: 0.014 | L25: 42 | M25: 0.007 | N25: 3425 | O25: 0.611 | P25: 261 | Q25: 0.047
A26: ='Control Panel'!H81 -> Churchill Medical Centre | B26: ='Control Panel'!I81 -> F86627 | C26: 13283 | D26: 10885 | E26: 0.819 | F26: 3015 | G26: 0.277 | H26: 709 | I26: 0.065 | J26: 286 | K26: 0.026 | L26: 173 | M26: 0.016 | N26: 6748 | O26: 0.62 | P26: 714 | Q26: 0.066
A27: ='Control Panel'!H82 -> Waltham Forest Community And FHS Ltd | B27: ='Control Panel'!I82 -> F86644 | C27: =SUMIFS(OFFSET(REL_D,,MATCH(C$1,IND,0)-2),REL_D,$D$3,OrgID,$B27) -> 9254 | D27: 7352 | E27: 0.794 | F27: 1232 | G27: 0.168 | H27: 228 | I27: 0.031 | J27: 121 | K27: 0.016 | L27: 80 | M27: 0.011 | N27: 4521 | O27: 0.615 | P27: 345 | Q27: 0.047
A28: ='Control Panel'!H83 -> Lime Tree Surgery | B28: ='Control Panel'!I83 -> F86650 | C28: 8080 | D28: 6547 | E28: 0.81 | F28: 1959 | G28: 0.299 | H28: 359 | I28: 0.055 | J28: 133 | K28: 0.02 | L28: 79 | M28: 0.012 | N28: 4229 | O28: 0.646 | P28: 396 | Q28: 0.06
A29: ='Control Panel'!H84 -> Larkshall Medical Centre | B29: ='Control Panel'!I84 -> F86664 | C29: 8471 | D29: 6798 | E29: 0.803 | F29: 1746 | G29: 0.257 | H29: 361 | I29: 0.053 | J29: 137 | K29: 0.02 | L29: 65 | M29: 0.01 | N29: 4696 | O29: 0.691 | P29: 389 | Q29: 0.057
A30: ='Control Panel'!H85 -> The Harrow Rd GP Surgery | B30: ='Control Panel'!I85 -> F86666 | C30: 14983 | D30: 12213 | E30: 0.815 | F30: 3240 | G30: 0.265 | H30: 629 | I30: 0.052 | J30: 274 | K30: 0.022 | L30: 172 | M30: 0.014 | N30: 7964 | O30: 0.652 | P30: 827 | Q30: 0.068
A31: ='Control Panel'!H86 -> Higham Hill Medical Centre | B31: ='Control Panel'!I86 -> F86679 | C31: 6372 | D31: 4882 | E31: 0.766 | F31: 1338 | G31: 0.274 | H31: 225 | I31: 0.046 | J31: 87 | K31: 0.018 | L31: 61 | M31: 0.012 | N31: 3326 | O31: 0.681 | P31: 316 | Q31: 0.065
A32: ='Control Panel'!H87 -> The Bailey Practice | B32: ='Control Panel'!I87 -> F86689 | C32: 4395 | D32: 3309 | E32: 0.753 | F32: 684 | G32: 0.207 | H32: 78 | I32: 0.024 | J32: 51 | K32: 0.015 | L32: 30 | M32: 0.009 | N32: 2669 | O32: 0.807 | P32: 281 | Q32: 0.085
A33: ='Control Panel'!H88 -> Francis Road Medical Centre | B33: ='Control Panel'!I88 -> F86696 | C33: 6883 | D33: 5690 | E33: 0.827 | F33: 786 | G33: 0.138 | H33: 128 | I33: 0.022 | J33: 57 | K33: 0.01 | L33: 35 | M33: 0.006 | N33: 3324 | O33: 0.584 | P33: 265 | Q33: 0.047
A34: ='Control Panel'!H89 -> Kingshead Medical Practice | B34: ='Control Panel'!I89 -> F86700 | C34: 3901 | D34: 3176 | E34: 0.814 | F34: 746 | G34: 0.235 | H34: 149 | I34: 0.047 | J34: 50 | K34: 0.016 | L34: 31 | M34: 0.01 | N34: 1961 | O34: 0.617 | P34: 152 | Q34: 0.048
A35: ='Control Panel'!H90 -> Kiyani Medical Practice | B35: ='Control Panel'!I90 -> F86701 | C35: 3853 | D35: 3145 | E35: 0.816 | F35: 1006 | G35: 0.32 | H35: 197 | I35: 0.063 | J35: 70 | K35: 0.022 | L35: 49 | M35: 0.016 | N35: 2029 | O35: 0.645 | P35: 252 | Q35: 0.08
A36: ='Control Panel'!H91 -> Langthorne Sharma Family Practice | B36: ='Control Panel'!I91 -> F86705 | C36: 3512 | D36: 2958 | E36: 0.842 | F36: 939 | G36: 0.317 | H36: 169 | I36: 0.057 | J36: 66 | K36: 0.022 | L36: 30 | M36: 0.01 | N36: 2010 | O36: 0.68 | P36: 187 | Q36: 0.063
A37: ='Control Panel'!H92 -> Claremont Medical Centre | B37: ='Control Panel'!I92 -> F86708 | C37: 2782 | D37: 2250 | E37: =IFERROR(D37/$C37,"N/A") -> 0.809 | F37: 633 | G37: =IFERROR(F37/$D37,"N/A") -> 0.281 | H37: 141 | I37: =IFERROR(H37/$D37,"N/A") -> 0.063 | J37: 49 | K37: =IFERROR(J37/$D37,"N/A") -> 0.022 | L37: 34 | M37: =IFERROR(L37/$D37,"N/A") -> 0.015 | N37: 1471 | O37: =IFERROR(N37/$D37,"N/A") -> 0.654 | P37: 104 | Q37: =IFERROR(P37/$D37,"N/A") -> 0.046
A38: ='Control Panel'!H93 -> Hampton Medical Centre | B38: ='Control Panel'!I93 -> F86712 | C38: 3395 | D38: 2868 | E38: 0.845 | F38: 644 | G38: 0.225 | H38: 108 | I38: 0.038 | J38: 42 | K38: 0.015 | L38: 21 | M38: 0.007 | N38: 1720 | O38: 0.6 | P38: 96 | Q38: 0.033
A39: ='Control Panel'!H94 -> Chingford Medical Practice | B39: ='Control Panel'!I94 -> Y01291 | C39: 9173 | D39: 7387 | E39: 0.805 | F39: 2731 | G39: 0.37 | H39: 566 | I39: 0.077 | J39: 213 | K39: 0.029 | L39: 150 | M39: 0.02 | N39: 4887 | O39: 0.662 | P39: 500 | Q39: 0.068
A40: ='Control Panel'!H95 -> Lime Tree and Sinnott Healthcare Ltd | B40: ='Control Panel'!I95 -> Y01839 | C40: 6236 | D40: 4970 | E40: =IFERROR(D40/$C40,"N/A") -> 0.797 | F40: 791 | G40: =IFERROR(F40/$D40,"N/A") -> 0.159 | H40: 174 | I40: =IFERROR(H40/$D40,"N/A") -> 0.035 | J40: 77 | K40: =IFERROR(J40/$D40,"N/A") -> 0.015 | L40: 61 | M40: =IFERROR(L40/$D40,"N/A") -> 0.012 | N40: 3083 | O40: =IFERROR(N40/$D40,"N/A") -> 0.62 | P40: 263 | Q40: =IFERROR(P40/$D40,"N/A") -> 0.053

Sheet Hypertension
C1: 01. Listsize | D1: =INDEX('Control Panel'!$B$19:$B$24,COLUMN(D1)-COLUMN($D$1)+1) -> LDP.02: Hypertension Register | E1: =INDEX('Control Panel'!$B$19:$B$24,COLUMN(E1)-COLUMN($D$1)+1) -> %LDP.02: Hypertension Register | F1: =INDEX('Control Panel'!$B$19:$B$24,COLUMN(F1)-COLUMN($D$1)+1) -> LDP.02.02: Hypertension BP recorded (last 12m) | G1: =INDEX('Control Panel'!$B$19:$B$24,COLUMN(G1)-COLUMN($D$1)+1) -> %LDP.02.02: Hypertension BP recorded (last 12m) | H1: =INDEX('Control Panel'!$B$19:$B$24,COLUMN(H1)-COLUMN($D$1)+1) -> LDP.02.01: Hypertension and BP < 140/90 (age under 80) < 150/90 (Age 80+) | I1: =INDEX('Control Panel'!$B$19:$B$24,COLUMN(I1)-COLUMN($D$1)+1) -> %LDP.02.01: Hypertension and BP < 140/90 (age under 80) < 150/90 (Age 80+)
C2: Waltham Forest - Practice Clinical Trends (LDP) Report
B3: =VLOOKUP(C3,'Control Panel'!I14:J25,2,FALSE) -> 2022-04-01 | C3: March 2022 | D3: =VLOOKUP(C3,'Control Panel'!I14:J25,2,FALSE) -> 44652
B4: 2020-02-01 | C4: ='Control Panel'!B18 -> Hypertension
A5: Home | C5: =VLOOKUP(C1,'Control Panel'!$B$3:$C$131,2,FALSE) -> List Size | D5: =VLOOKUP(D1,'Control Panel'!$B$3:$D$131,3,FALSE) -> Hypertension Register | E5: =VLOOKUP(E1,'Control Panel'!$B$3:$D$131,3,FALSE) -> % list size | F5: =VLOOKUP(F1,'Control Panel'!$B$3:$D$131,3,FALSE) -> Hypertension and BP (last 12m) | G5: =VLOOKUP(G1,'Control Panel'!$B$3:$D$131,3,FALSE) -> % Hypertension Register | H5: =VLOOKUP(H1,'Control Panel'!$B$3:$D$131,3,FALSE) -> Hypertension and BP < 140/90 (Patients aged under 80) < 150/90 ( Aged 80 and over) (last 12m) | I5: =VLOOKUP(I1,'Control Panel'!$B$3:$D$131,3,FALSE) -> % Hypertension Register
A6: Practice Name | B6: Total | C6: =SUM(C7:C40) -> 269929 | D6: =SUM(D7:D40) -> 28424 | E6: =IFERROR(D6/C6,"N/A") -> 0.105 | F6: =SUM(F7:F40) -> 22014 | G6: =IFERROR(F6/D6,"N/A") -> 0.774 | H6: =SUM(H7:H40) -> 14988 | I6: =IFERROR(H6/D6,"N/A") -> 0.527
A7: ='Control Panel'!H62 -> The Firs Medical Centre | B7: ='Control Panel'!I62 -> F86001 | C7: =SUMIFS(OFFSET(REL_D,,MATCH(C$1,IND,0)-2),REL_D,$D$3,OrgID,$B7) -> 7729 | D7: 898 | E7: =IFERROR(D7/C7,"N/A") -> 0.116 | F7: =SUMIFS(OFFSET(REL_D,,MATCH(F$1,IND,0)-2),REL_D,$D$3,OrgID,$B7) -> 707 | G7: =IFERROR(F7/D7,"N/A") -> 0.787 | H7: =SUMIFS(OFFSET(REL_D,,MATCH(H$1,IND,0)-2),REL_D,$D$3,OrgID,$B7) -> 493 | I7: =IFERROR(H7/D7,"N/A") -> 0.549
A8: ='Control Panel'!H63 -> Penryhn Surgery | B8: ='Control Panel'!I63 -> F86005 | C8: 9510 | D8: 808 | E8: =IFERROR(D8/C8,"N/A") -> 0.085 | F8: 624 | G8: =IFERROR(F8/D8,"N/A") -> 0.772 | H8: 449 | I8: =IFERROR(H8/D8,"N/A") -> 0.556
A9: ='Control Panel'!H64 -> Seymour Medical Centre | B9: ='Control Panel'!I64 -> F86006 | C9: 6825 | D9: 847 | E9: 0.124 | F9: 688 | G9: 0.812 | H9: 393 | I9: 0.464
A10: ='Control Panel'!H65 -> The Manor Practice | B10: ='Control Panel'!I65 -> F86011 | C10: 9698 | D10: 1141 | E10: 0.118 | F10: 922 | G10: 0.808 | H10: 588 | I10: 0.515
A11: ='Control Panel'!H66 -> Queens Road Medical Centre | B11: ='Control Panel'!I66 -> F86030 | C11: 8161 | D11: 739 | E11: 0.091 | F11: 689 | G11: 0.932 | H11: 547 | I11: 0.74
A12: ='Control Panel'!H67 -> The Allum Medical Centre | B12: ='Control Panel'!I67 -> F86036 | C12: 14732 | D12: 1419 | E12: 0.096 | F12: 980 | G12: 0.691 | H12: 717 | I12: 0.505
A13: ='Control Panel'!H68 -> SMA Medical Centre | B13: ='Control Panel'!I68 -> F86038 | C13: 11105 | D13: 1065 | E13: 0.096 | F13: 941 | G13: 0.884 | H13: 731 | I13: 0.686
A14: ='Control Panel'!H69 -> Crawley Road Medical Centre | B14: ='Control Panel'!I69 -> F86044 | C14: 10802 | D14: 764 | E14: 0.071 | F14: 593 | G14: 0.776 | H14: 430 | I14: 0.563
A15: ='Control Panel'!H70 -> High Road Surgery | B15: ='Control Panel'!I70 -> F86045 | C15: 2026 | D15: 261 | E15: 0.129 | F15: 210 | G15: 0.805 | H15: 152 | I15: 0.582
A16: ='Control Panel'!H71 -> St James Medical Practice Ltd | B16: ='Control Panel'!I71 -> F86058 | C16: 16561 | D16: 1475 | E16: 0.089 | F16: 1212 | G16: 0.822 | H16: 901 | I16: 0.611
A17: ='Control Panel'!H72 -> The Grove Road Medical Centre | B17: ='Control Panel'!I72 -> F86062 | C17: 7155 | D17: 804 | E17: 0.112 | F17: 524 | G17: 0.652 | H17: 324 | I17: 0.403
A18: ='Control Panel'!H73 -> The Ridgeway Surgery | B18: ='Control Panel'!I73 -> F86078 | C18: 6869 | D18: 1076 | E18: 0.157 | F18: 595 | G18: 0.553 | H18: 372 | I18: 0.346
A19: ='Control Panel'!H74 -> Dr Dhital Practice | B19: ='Control Panel'!I74 -> F86086 | C19: 6265 | D19: 504 | E19: 0.08 | F19: 321 | G19: 0.637 | H19: 238 | I19: 0.472
A20: ='Control Panel'!H75 -> The Lyndhurst Surgery | B20: ='Control Panel'!I75 -> F86088 | C20: 5027 | D20: 678 | E20: 0.135 | F20: 458 | G20: 0.676 | H20: 305 | I20: 0.45
A21: ='Control Panel'!H76 -> Addison Road Medical Practice | B21: ='Control Panel'!I76 -> F86607 | C21: 15547 | D21: 1311 | E21: 0.084 | F21: 1042 | G21: 0.795 | H21: 685 | I21: 0.523
A22: ='Control Panel'!H77 -> The Old Church Surgery | B22: ='Control Panel'!I77 -> F86616 | C22: 7996 | D22: 846 | E22: 0.106 | F22: 789 | G22: 0.933 | H22: 522 | I22: 0.617
A23: ='Control Panel'!H78 -> Green Man Medical Centre | B23: ='Control Panel'!I78 -> F86621 | C23: 6445 | D23: 597 | E23: 0.093 | F23: 399 | G23: 0.668 | H23: 268 | I23: 0.449
A24: ='Control Panel'!H79 -> L.L. Medical Care Ltd (Agarwal & Agrawal Practice) | B24: ='Control Panel'!I79 -> F86625 | C24: 5882 | D24: 685 | E24: 0.116 | F24: 556 | G24: 0.812 | H24: 341 | I24: 0.498
A25: ='Control Panel'!H80 -> Dr Shantir's Practice - Forest Road Medical Centre | B25: ='Control Panel'!I80 -> F86626 | C25: 7021 | D25: 544 | E25: 0.077 | F25: 349 | G25: 0.642 | H25: 240 | I25: 0.441
A26: ='Control Panel'!H81 -> Churchill Medical Centre | B26: ='Control Panel'!I81 -> F86627 | C26: 13283 | D26: 1831 | E26: 0.138 | F26: 1526 | G26: 0.833 | H26: 972 | I26: 0.531
A27: ='Control Panel'!H82 -> Waltham Forest Community And FHS Ltd | B27: ='Control Panel'!I82 -> F86644 | C27: =SUMIFS(OFFSET(REL_D,,MATCH(C$1,IND,0)-2),REL_D,$D$3,OrgID,$B27) -> 9254 | D27: 1097 | E27: 0.119 | F27: 713 | G27: 0.65 | H27: 417 | I27: 0.38
A28: ='Control Panel'!H83 -> Lime Tree Surgery | B28: ='Control Panel'!I83 -> F86650 | C28: 8080 | D28: 690 | E28: 0.085 | F28: 536 | G28: 0.777 | H28: 384 | I28: 0.557
A29: ='Control Panel'!H84 -> Larkshall Medical Centre | B29: ='Control Panel'!I84 -> F86664 | C29: 8471 | D29: 876 | E29: 0.103 | F29: 563 | G29: 0.643 | H29: 411 | I29: 0.469
A30: ='Control Panel'!H85 -> The Harrow Rd GP Surgery | B30: ='Control Panel'!I85 -> F86666 | C30: 14983 | D30: 1829 | E30: 0.122 | F30: 1481 | G30: 0.81 | H30: 1041 | I30: 0.569
A31: ='Control Panel'!H86 -> Higham Hill Medical Centre | B31: ='Control Panel'!I86 -> F86679 | C31: 6372 | D31: 463 | E31: 0.073 | F31: 370 | G31: 0.799 | H31: 288 | I31: 0.622
A32: ='Control Panel'!H87 -> The Bailey Practice | B32: ='Control Panel'!I87 -> F86689 | C32: 4395 | D32: 297 | E32: 0.068 | F32: 264 | G32: 0.889 | H32: 200 | I32: 0.673
A33: ='Control Panel'!H88 -> Francis Road Medical Centre | B33: ='Control Panel'!I88 -> F86696 | C33: 6883 | D33: 585 | E33: 0.085 | F33: 513 | G33: 0.877 | H33: 349 | I33: 0.597
A34: ='Control Panel'!H89 -> Kingshead Medical Practice | B34: ='Control Panel'!I89 -> F86700 | C34: 3901 | D34: 738 | E34: 0.189 | F34: 651 | G34: 0.882 | H34: 443 | I34: 0.6
A35: ='Control Panel'!H90 -> Kiyani Medical Practice | B35: ='Control Panel'!I90 -> F86701 | C35: 3853 | D35: 466 | E35: 0.121 | F35: 373 | G35: 0.8 | H35: 247 | I35: 0.53
A36: ='Control Panel'!H91 -> Langthorne Sharma Family Practice | B36: ='Control Panel'!I91 -> F86705 | C36: 3512 | D36: 338 | E36: 0.096 | F36: 273 | G36: 0.808 | H36: 194 | I36: 0.574
A37: ='Control Panel'!H92 -> Claremont Medical Centre | B37: ='Control Panel'!I92 -> F86708 | C37: 2782 | D37: 370 | E37: 0.133 | F37: 279 | G37: 0.754 | H37: 183 | I37: 0.495
A38: ='Control Panel'!H93 -> Hampton Medical Centre | B38: ='Control Panel'!I93 -> F86712 | C38: 3395 | D38: 350 | E38: 0.103 | F38: 303 | G38: 0.866 | H38: 192 | I38: 0.549
A39: ='Control Panel'!H94 -> Chingford Medical Practice | B39: ='Control Panel'!I94 -> Y01291 | C39: 9173 | D39: 1326 | E39: 0.145 | F39: 1197 | G39: 0.903 | H39: 736 | I39: 0.555
A40: ='Control Panel'!H95 -> Lime Tree and Sinnott Healthcare Ltd | B40: ='Control Panel'!I95 -> Y01839 | C40: 6236 | D40: 706 | E40: 0.113 | F40: 373 | G40: 0.528 | H40: 235 | I40: 0.333

Sheet CHD
C1: 01. Listsize | D1: =INDEX('Control Panel'!$B$26:$B$39,COLUMN(D1)-COLUMN($D$1)+1) -> LDP.03: CHD Register | E1: =INDEX('Control Panel'!$B$26:$B$39,COLUMN(E1)-COLUMN($D$1)+1) -> %LDP.03: CHD Register | F1: =INDEX('Control Panel'!$B$26:$B$39,COLUMN(F1)-COLUMN($D$1)+1) -> LDP.03.04: CHD Cholesterol recorded (last 12m) | G1: =INDEX('Control Panel'!$B$26:$B$39,COLUMN(G1)-COLUMN($D$1)+1) -> %LDP.03.04: CHD Cholesterol recorded (last 12m) | H1: =INDEX('Control Panel'!$B$26:$B$39,COLUMN(H1)-COLUMN($D$1)+1) -> LDP.03.01: CHD Chol less than 5mmol (last 12m) | I1: =INDEX('Control Panel'!$B$26:$B$39,COLUMN(I1)-COLUMN($D$1)+1) -> %LDP.03.01: CHD Chol less than 5mmol (last 12m) | J1: =INDEX('Control Panel'!$B$26:$B$39,COLUMN(J1)-COLUMN($D$1)+1) -> LDP.03.02: CHD BP less than or equal 150/90 (last 9m) | K1: =INDEX('Control Panel'!$B$26:$B$39,COLUMN(K1)-COLUMN($D$1)+1) -> %LDP.03.02: CHD BP less than or equal 150/90 (last 9m)
C2: Waltham Forest - Practice Clinical Trends (LDP) Report
B3: =VLOOKUP(C3,'Control Panel'!I14:J25,2,FALSE) -> 2022-04-01 | C3: March 2022 | D3: =VLOOKUP(C3,'Control Panel'!I14:J25,2,FALSE) -> 44652
B4: 2020-02-01 | C4: ='Control Panel'!B25 -> CHD
A5: Home | C5: =VLOOKUP(C1,'Control Panel'!$B$3:$C$131,2,FALSE) -> List Size | D5: =VLOOKUP(D1,'Control Panel'!$B$3:$D$131,3,FALSE) -> CHD register | E5: =VLOOKUP(E1,'Control Panel'!$B$3:$D$131,3,FALSE) -> % list size | F5: =VLOOKUP(F1,'Control Panel'!$B$3:$D$131,3,FALSE) -> Cholesterol (last 12m) | G5: =VLOOKUP(G1,'Control Panel'!$B$3:$D$131,3,FALSE) -> % CHD register | H5: =VLOOKUP(H1,'Control Panel'!$B$3:$D$131,3,FALSE) -> Cholesterol < 5 (last 12m) | I5: =VLOOKUP(I1,'Control Panel'!$B$3:$D$131,3,FALSE) -> % CHD register | J5: =VLOOKUP(J1,'Control Panel'!$B$3:$D$131,3,FALSE) -> BP ≤ 150/90 (last 9m) | K5: =VLOOKUP(K1,'Control Panel'!$B$3:$D$131,3,FALSE) -> % CHD register
A6: Practice Name | B6: Total | C6: =SUM(C7:C40) -> 269929 | D6: =SUM(D7:D40) -> 4648 | E6: =IFERROR(D6/C6,"N/A") -> 0.017 | F6: =SUM(F7:F40) -> 2981 | G6: =IFERROR(F6/D6,"N/A") -> 0.641 | H6: =SUM(H7:H40) -> 2515 | I6: =IFERROR(H6/D6,"N/A") -> 0.541 | J6: =SUM(J7:J40) -> 2761 | K6: =IFERROR(J6/D6,"N/A") -> 0.594
A7: ='Control Panel'!H62 -> The Firs Medical Centre | B7: ='Control Panel'!I62 -> F86001 | C7: =SUMIFS(OFFSET(REL_D,,MATCH(C$1,IND,0)-2),REL_D,$D$3,OrgID,$B7) -> 7729 | D7: 160 | E7: =IFERROR(D7/C7,"N/A") -> 0.021 | F7: =SUMIFS(OFFSET(REL_D,,MATCH(F$1,IND,0)-2),REL_D,$D$3,OrgID,$B7) -> 89 | G7: =IFERROR(F7/$D7,"N/A") -> 0.556 | H7: =SUMIFS(OFFSET(REL_D,,MATCH(H$1,IND,0)-2),REL_D,$D$3,OrgID,$B7) -> 68 | I7: =IFERROR(H7/$D7,"N/A") -> 0.425 | J7: =SUMIFS(OFFSET(REL_D,,MATCH(J$1,IND,0)-2),REL_D,$D$3,OrgID,$B7) -> 89 | K7: =IFERROR(J7/$D7,"N/A") -> 0.556
A8: ='Control Panel'!H63 -> Penryhn Surgery | B8: ='Control Panel'!I63 -> F86005 | C8: 9510 | D8: 87 | E8: =IFERROR(D8/C8,"N/A") -> 0.009 | F8: 55 | G8: =IFERROR(F8/$D8,"N/A") -> 0.632 | H8: 45 | I8: =IFERROR(H8/$D8,"N/A") -> 0.517 | J8: 60 | K8: =IFERROR(J8/$D8,"N/A") -> 0.69
A9: ='Control Panel'!H64 -> Seymour Medical Centre | B9: ='Control Panel'!I64 -> F86006 | C9: 6825 | D9: 99 | E9: 0.015 | F9: 70 | G9: 0.707 | H9: 55 | I9: 0.556 | J9: 51 | K9: 0.515
A10: ='Control Panel'!H65 -> The Manor Practice | B10: ='Control Panel'!I65 -> F86011 | C10: 9698 | D10: 223 | E10: 0.023 | F10: 131 | G10: 0.587 | H10: 107 | I10: 0.48 | J10: 142 | K10: 0.637
A11: ='Control Panel'!H66 -> Queens Road Medical Centre | B11: ='Control Panel'!I66 -> F86030 | C11: 8161 | D11: 157 | E11: 0.019 | F11: 146 | G11: 0.93 | H11: 131 | I11: 0.834 | J11: 113 | K11: 0.72
A12: ='Control Panel'!H67 -> The Allum Medical Centre | B12: ='Control Panel'!I67 -> F86036 | C12: 14732 | D12: 230 | E12: 0.016 | F12: 141 | G12: 0.613 | H12: 115 | I12: 0.5 | J12: 136 | K12: 0.591
A13: ='Control Panel'!H68 -> SMA Medical Centre | B13: ='Control Panel'!I68 -> F86038 | C13: 11105 | D13: 252 | E13: 0.023 | F13: 179 | G13: 0.71 | H13: 154 | I13: 0.611 | J13: 183 | K13: 0.726
A14: ='Control Panel'!H69 -> Crawley Road Medical Centre | B14: ='Control Panel'!I69 -> F86044 | C14: 10802 | D14: 88 | E14: 0.008 | F14: 45 | G14: 0.511 | H14: 38 | I14: 0.432 | J14: 51 | K14: 0.58
A15: ='Control Panel'!H70 -> High Road Surgery | B15: ='Control Panel'!I70 -> F86045 | C15: 2026 | D15: 53 | E15: 0.026 | F15: 49 | G15: 0.925 | H15: 37 | I15: 0.698 | J15: 37 | K15: 0.698
A16: ='Control Panel'!H71 -> St James Medical Practice Ltd | B16: ='Control Panel'!I71 -> F86058 | C16: 16561 | D16: 217 | E16: 0.013 | F16: 133 | G16: 0.613 | H16: 115 | I16: 0.53 | J16: 152 | K16: 0.7
A17: ='Control Panel'!H72 -> The Grove Road Medical Centre | B17: ='Control Panel'!I72 -> F86062 | C17: 7155 | D17: 139 | E17: 0.019 | F17: 93 | G17: 0.669 | H17: 81 | I17: 0.583 | J17: 79 | K17: 0.568
A18: ='Control Panel'!H73 -> The Ridgeway Surgery | B18: ='Control Panel'!I73 -> F86078 | C18: 6869 | D18: 175 | E18: 0.025 | F18: 101 | G18: 0.577 | H18: 86 | I18: 0.491 | J18: 61 | K18: 0.349
A19: ='Control Panel'!H74 -> Dr Dhital Practice | B19: ='Control Panel'!I74 -> F86086 | C19: 6265 | D19: 90 | E19: 0.014 | F19: 49 | G19: 0.544 | H19: 41 | I19: 0.456 | J19: 56 | K19: 0.622
A20: ='Control Panel'!H75 -> The Lyndhurst Surgery | B20: ='Control Panel'!I75 -> F86088 | C20: 5027 | D20: 104 | E20: 0.021 | F20: 74 | G20: 0.712 | H20: 70 | I20: 0.673 | J20: 55 | K20: 0.529
A21: ='Control Panel'!H76 -> Addison Road Medical Practice | B21: ='Control Panel'!I76 -> F86607 | C21: 15547 | D21: 195 | E21: 0.013 | F21: 118 | G21: 0.605 | H21: 105 | I21: 0.538 | J21: 118 | K21: 0.605
A22: ='Control Panel'!H77 -> The Old Church Surgery | B22: ='Control Panel'!I77 -> F86616 | C22: 7996 | D22: 162 | E22: 0.02 | F22: 101 | G22: 0.623 | H22: 93 | I22: 0.574 | J22: 103 | K22: 0.636
A23: ='Control Panel'!H78 -> Green Man Medical Centre | B23: ='Control Panel'!I78 -> F86621 | C23: 6445 | D23: 108 | E23: 0.017 | F23: 76 | G23: 0.704 | H23: 63 | I23: 0.583 | J23: 59 | K23: 0.546
A24: ='Control Panel'!H79 -> L.L. Medical Care Ltd (Agarwal & Agrawal Practice) | B24: ='Control Panel'!I79 -> F86625 | C24: 5882 | D24: 134 | E24: 0.023 | F24: 74 | G24: 0.552 | H24: 63 | I24: 0.47 | J24: 86 | K24: 0.642
A25: ='Control Panel'!H80 -> Dr Shantir's Practice - Forest Road Medical Centre | B25: ='Control Panel'!I80 -> F86626 | C25: 7021 | D25: 90 | E25: 0.013 | F25: 49 | G25: 0.544 | H25: 38 | I25: 0.422 | J25: 50 | K25: 0.556
A26: ='Control Panel'!H81 -> Churchill Medical Centre | B26: ='Control Panel'!I81 -> F86627 | C26: 13283 | D26: 362 | E26: 0.027 | F26: 258 | G26: 0.713 | H26: 210 | I26: 0.58 | J26: 178 | K26: 0.492
A27: ='Control Panel'!H82 -> Waltham Forest Community And FHS Ltd | B27: ='Control Panel'!I82 -> F86644 | C27: =SUMIFS(OFFSET(REL_D,,MATCH(C$1,IND,0)-2),REL_D,$D$3,OrgID,$B27) -> 9254 | D27: 185 | E27: 0.02 | F27: 95 | G27: 0.514 | H27: 82 | I27: 0.443 | J27: 95 | K27: 0.514
A28: ='Control Panel'!H83 -> Lime Tree Surgery | B28: ='Control Panel'!I83 -> F86650 | C28: 8080 | D28: 115 | E28: 0.014 | F28: 65 | G28: 0.565 | H28: 54 | I28: 0.47 | J28: 83 | K28: 0.722
A29: ='Control Panel'!H84 -> Larkshall Medical Centre | B29: ='Control Panel'!I84 -> F86664 | C29: 8471 | D29: 173 | E29: 0.02 | F29: 88 | G29: 0.509 | H29: 70 | I29: 0.405 | J29: 101 | K29: 0.584
A30: ='Control Panel'!H85 -> The Harrow Rd GP Surgery | B30: ='Control Panel'!I85 -> F86666 | C30: 14983 | D30: 194 | E30: 0.013 | F30: 145 | G30: 0.747 | H30: 114 | I30: 0.588 | J30: 131 | K30: 0.675
A31: ='Control Panel'!H86 -> Higham Hill Medical Centre | B31: ='Control Panel'!I86 -> F86679 | C31: 6372 | D31: 50 | E31: 0.008 | F31: 40 | G31: 0.8 | H31: 37 | I31: 0.74 | J31: 40 | K31: 0.8
A32: ='Control Panel'!H87 -> The Bailey Practice | B32: ='Control Panel'!I87 -> F86689 | C32: 4395 | D32: 57 | E32: 0.013 | F32: 33 | G32: 0.579 | H32: 31 | I32: 0.544 | J32: 35 | K32: 0.614
A33: ='Control Panel'!H88 -> Francis Road Medical Centre | B33: ='Control Panel'!I88 -> F86696 | C33: 6883 | D33: 101 | E33: 0.015 | F33: 70 | G33: 0.693 | H33: 60 | I33: 0.594 | J33: 61 | K33: 0.604
A34: ='Control Panel'!H89 -> Kingshead Medical Practice | B34: ='Control Panel'!I89 -> F86700 | C34: 3901 | D34: 111 | E34: 0.028 | F34: 64 | G34: 0.577 | H34: 53 | I34: 0.477 | J34: 65 | K34: 0.586
A35: ='Control Panel'!H90 -> Kiyani Medical Practice | B35: ='Control Panel'!I90 -> F86701 | C35: 3853 | D35: 54 | E35: 0.014 | F35: 34 | G35: 0.63 | H35: 29 | I35: 0.537 | J35: 32 | K35: 0.593
A36: ='Control Panel'!H91 -> Langthorne Sharma Family Practice | B36: ='Control Panel'!I91 -> F86705 | C36: 3512 | D36: 60 | E36: 0.017 | F36: 41 | G36: 0.683 | H36: 35 | I36: 0.583 | J36: 46 | K36: 0.767
A37: ='Control Panel'!H92 -> Claremont Medical Centre | B37: ='Control Panel'!I92 -> F86708 | C37: 2782 | D37: 57 | E37: 0.02 | F37: 35 | G37: 0.614 | H37: 31 | I37: 0.544 | J37: 29 | K37: 0.509
A38: ='Control Panel'!H93 -> Hampton Medical Centre | B38: ='Control Panel'!I93 -> F86712 | C38: 3395 | D38: 49 | E38: 0.014 | F38: 34 | G38: 0.694 | H38: 30 | I38: 0.612 | J38: 29 | K38: 0.592
A39: ='Control Panel'!H94 -> Chingford Medical Practice | B39: ='Control Panel'!I94 -> Y01291 | C39: 9173 | D39: 207 | E39: 0.023 | F39: 154 | G39: 0.744 | H39: 129 | I39: 0.623 | J39: 116 | K39: 0.56
A40: ='Control Panel'!H95 -> Lime Tree and Sinnott Healthcare Ltd | B40: ='Control Panel'!I95 -> Y01839 | C40: 6236 | D40: 110 | E40: =IFERROR(D40/C40,"N/A") -> 0.018 | F40: 52 | G40: =IFERROR(F40/$D40,"N/A") -> 0.473 | H40: 45 | I40: =IFERROR(H40/$D40,"N/A") -> 0.409 | J40: 39 | K40: 0.355

Sheet Stroke
C1: 01. Listsize | D1: LDP.10 Stroke or TIA register | E1: %LDP.10 Stroke or TIA register | F1: LDP.10.01: Stroke/TIA BP recorded (last 12m) | G1: %LDP.10.01: Stroke/TIA BP recorded (last 12m) | H1: LDP.10.02 Patients on Stroke/TIA register with BP <140/90 (12m) | I1: %LDP.10.02 Patients on Stroke/TIA register with BP <140/90 (12m)
C2: Waltham Forest - Practice Clinical Trends (LDP) Report
B3: =VLOOKUP(C3,'Control Panel'!I14:J25,2,FALSE) -> 2022-04-01 | C3: March 2022 | D3: =VLOOKUP(C3,'Control Panel'!I14:J25,2,FALSE) -> 44652
B4: 2020-02-01 | C4: ='Control Panel'!B40 -> Stroke/TIA
A5: Home | C5: =VLOOKUP(C1,'Control Panel'!$B$3:$C$131,2,FALSE) -> List Size | D5: Stroke/TIA register | E5: % list size | F5: Patients on Stroke/TIA register with BP recorded | G5: % of stroke register | H5: Patients on Stroke/TIA register with BP <140/90 (12m) | I5: % of stroke register
A6: Practice Name | B6: Total | C6: =SUM(C7:C40) -> 269929 | D6: =SUM(D7:D40) -> 2522 | E6: =IFERROR(D6/C6,"N/A") -> 0.009 | F6: =SUM(F7:F40) -> 2027 | G6: =IFERROR(F6/D6,"N/A") -> 0.804 | H6: =SUM(H7:H40) -> 1466 | I6: =IFERROR(H6/D6,"N/A") -> 0.581
A7: ='Control Panel'!H62 -> The Firs Medical Centre | B7: ='Control Panel'!I62 -> F86001 | C7: =SUMIFS(OFFSET(REL_D,,MATCH(C$1,IND,0)-2),REL_D,$D$3,OrgID,$B7) -> 7729 | D7: 80 | E7: =IFERROR(D7/C7,"N/A") -> 0.01 | F7: =SUMIFS(OFFSET(REL_D,,MATCH(F$1,IND,0)-2),REL_D,$D$3,OrgID,$B7) -> 64 | G7: =IFERROR(F7/D7,"N/A") -> 0.8 | H7: =SUMIFS(OFFSET(REL_D,,MATCH(H$1,IND,0)-2),REL_D,$D$3,OrgID,$B7) -> 43 | I7: =IFERROR(H7/D7,"N/A") -> 0.538
A8: ='Control Panel'!H63 -> Penryhn Surgery | B8: ='Control Panel'!I63 -> F86005 | C8: 9510 | D8: 59 | E8: =IFERROR(D8/C8,"N/A") -> 0.006 | F8: 43 | G8: =IFERROR(F8/D8,"N/A") -> 0.729 | H8: 27 | I8: =IFERROR(H8/D8,"N/A") -> 0.458
A9: ='Control Panel'!H64 -> Seymour Medical Centre | B9: ='Control Panel'!I64 -> F86006 | C9: 6825 | D9: 63 | E9: 0.009 | F9: 56 | G9: 0.889 | H9: 36 | I9: 0.571
A10: ='Control Panel'!H65 -> The Manor Practice | B10: ='Control Panel'!I65 -> F86011 | C10: 9698 | D10: 145 | E10: 0.015 | F10: 125 | G10: 0.862 | H10: 89 | I10: 0.614
A11: ='Control Panel'!H66 -> Queens Road Medical Centre | B11: ='Control Panel'!I66 -> F86030 | C11: 8161 | D11: 52 | E11: 0.006 | F11: 50 | G11: 0.962 | H11: 39 | I11: 0.75
A12: ='Control Panel'!H67 -> The Allum Medical Centre | B12: ='Control Panel'!I67 -> F86036 | C12: 14732 | D12: 131 | E12: 0.009 | F12: 110 | G12: 0.84 | H12: 74 | I12: 0.565
A13: ='Control Panel'!H68 -> SMA Medical Centre | B13: ='Control Panel'!I68 -> F86038 | C13: 11105 | D13: 106 | E13: 0.01 | F13: 93 | G13: 0.877 | H13: 76 | I13: 0.717
A14: ='Control Panel'!H69 -> Crawley Road Medical Centre | B14: ='Control Panel'!I69 -> F86044 | C14: 10802 | D14: 64 | E14: 0.006 | F14: 49 | G14: 0.766 | H14: 28 | I14: 0.438
A15: ='Control Panel'!H70 -> High Road Surgery | B15: ='Control Panel'!I70 -> F86045 | C15: 2026 | D15: 22 | E15: 0.011 | F15: 17 | G15: 0.773 | H15: 14 | I15: 0.636
A16: ='Control Panel'!H71 -> St James Medical Practice Ltd | B16: ='Control Panel'!I71 -> F86058 | C16: 16561 | D16: 118 | E16: 0.007 | F16: 102 | G16: 0.864 | H16: 83 | I16: 0.703
A17: ='Control Panel'!H72 -> The Grove Road Medical Centre | B17: ='Control Panel'!I72 -> F86062 | C17: 7155 | D17: 70 | E17: 0.01 | F17: 65 | G17: 0.929 | H17: 45 | I17: 0.643
A18: ='Control Panel'!H73 -> The Ridgeway Surgery | B18: ='Control Panel'!I73 -> F86078 | C18: 6869 | D18: 108 | E18: 0.016 | F18: 61 | G18: 0.565 | H18: 46 | I18: 0.426
A19: ='Control Panel'!H74 -> Dr Dhital Practice | B19: ='Control Panel'!I74 -> F86086 | C19: 6265 | D19: 45 | E19: 0.007 | F19: 29 | G19: 0.644 | H19: 26 | I19: 0.578
A20: ='Control Panel'!H75 -> The Lyndhurst Surgery | B20: ='Control Panel'!I75 -> F86088 | C20: 5027 | D20: 32 | E20: 0.006 | F20: 22 | G20: 0.688 | H20: 11 | I20: 0.344
A21: ='Control Panel'!H76 -> Addison Road Medical Practice | B21: ='Control Panel'!I76 -> F86607 | C21: 15547 | D21: 123 | E21: 0.008 | F21: 88 | G21: 0.715 | H21: 53 | I21: 0.431
A22: ='Control Panel'!H77 -> The Old Church Surgery | B22: ='Control Panel'!I77 -> F86616 | C22: 7996 | D22: 87 | E22: 0.011 | F22: 78 | G22: 0.897 | H22: 66 | I22: 0.759
A23: ='Control Panel'!H78 -> Green Man Medical Centre | B23: ='Control Panel'!I78 -> F86621 | C23: 6445 | D23: 54 | E23: 0.008 | F23: 41 | G23: 0.759 | H23: 28 | I23: 0.519
A24: ='Control Panel'!H79 -> L.L. Medical Care Ltd (Agarwal & Agrawal Practice) | B24: ='Control Panel'!I79 -> F86625 | C24: 5882 | D24: 70 | E24: 0.012 | F24: 62 | G24: 0.886 | H24: 47 | I24: 0.671
A25: ='Control Panel'!H80 -> Dr Shantir's Practice - Forest Road Medical Centre | B25: ='Control Panel'!I80 -> F86626 | C25: 7021 | D25: 25 | E25: 0.004 | F25: 18 | G25: 0.72 | H25: 13 | I25: 0.52
A26: ='Control Panel'!H81 -> Churchill Medical Centre | B26: ='Control Panel'!I81 -> F86627 | C26: 13283 | D26: 208 | E26: 0.016 | F26: 164 | G26: 0.788 | H26: 114 | I26: 0.548
A27: ='Control Panel'!H82 -> Waltham Forest Community And FHS Ltd | B27: ='Control Panel'!I82 -> F86644 | C27: =SUMIFS(OFFSET(REL_D,,MATCH(C$1,IND,0)-2),REL_D,$D$3,OrgID,$B27) -> 9254 | D27: 71 | E27: 0.008 | F27: 51 | G27: 0.718 | H27: 41 | I27: 0.577
A28: ='Control Panel'!H83 -> Lime Tree Surgery | B28: ='Control Panel'!I83 -> F86650 | C28: 8080 | D28: 79 | E28: 0.01 | F28: 60 | G28: 0.759 | H28: 42 | I28: 0.532
A29: ='Control Panel'!H84 -> Larkshall Medical Centre | B29: ='Control Panel'!I84 -> F86664 | C29: 8471 | D29: 96 | E29: 0.011 | F29: 68 | G29: 0.708 | H29: 56 | I29: 0.583
A30: ='Control Panel'!H85 -> The Harrow Rd GP Surgery | B30: ='Control Panel'!I85 -> F86666 | C30: 14983 | D30: 124 | E30: 0.008 | F30: 101 | G30: 0.815 | H30: 69 | I30: 0.556
A31: ='Control Panel'!H86 -> Higham Hill Medical Centre | B31: ='Control Panel'!I86 -> F86679 | C31: 6372 | D31: 33 | E31: 0.005 | F31: 28 | G31: 0.848 | H31: 27 | I31: 0.818
A32: ='Control Panel'!H87 -> The Bailey Practice | B32: ='Control Panel'!I87 -> F86689 | C32: 4395 | D32: 24 | E32: 0.005 | F32: 23 | G32: 0.958 | H32: 19 | I32: 0.792
A33: ='Control Panel'!H88 -> Francis Road Medical Centre | B33: ='Control Panel'!I88 -> F86696 | C33: 6883 | D33: 51 | E33: 0.007 | F33: 44 | G33: 0.863 | H33: 31 | I33: 0.608
A34: ='Control Panel'!H89 -> Kingshead Medical Practice | B34: ='Control Panel'!I89 -> F86700 | C34: 3901 | D34: 92 | E34: 0.024 | F34: 79 | G34: 0.859 | H34: 63 | I34: 0.685
A35: ='Control Panel'!H90 -> Kiyani Medical Practice | B35: ='Control Panel'!I90 -> F86701 | C35: 3853 | D35: 38 | E35: 0.01 | F35: 31 | G35: 0.816 | H35: 22 | I35: 0.579
A36: ='Control Panel'!H91 -> Langthorne Sharma Family Practice | B36: ='Control Panel'!I91 -> F86705 | C36: 3512 | D36: 20 | E36: 0.006 | F36: 20 | G36: 1 | H36: 11 | I36: 0.55
A37: ='Control Panel'!H92 -> Claremont Medical Centre | B37: ='Control Panel'!I92 -> F86708 | C37: 2782 | D37: 29 | E37: 0.01 | F37: 24 | G37: 0.828 | H37: 14 | I37: 0.483
A38: ='Control Panel'!H93 -> Hampton Medical Centre | B38: ='Control Panel'!I93 -> F86712 | C38: 3395 | D38: 16 | E38: 0.005 | F38: 15 | G38: 0.938 | H38: 8 | I38: 0.5
A39: ='Control Panel'!H94 -> Chingford Medical Practice | B39: ='Control Panel'!I94 -> Y01291 | C39: 9173 | D39: 128 | E39: 0.014 | F39: 108 | G39: 0.844 | H39: 73 | I39: 0.57
A40: ='Control Panel'!H95 -> Lime Tree and Sinnott Healthcare Ltd | B40: ='Control Panel'!I95 -> Y01839 | C40: 6236 | D40: 59 | E40: 0.009 | F40: 38 | G40: 0.644 | H40: 32 | I40: 0.542

Sheet CVD Risk
C1: 01. Listsize | D1: =INDEX('Control Panel'!$B$48:$B$54,COLUMN(D1)-COLUMN($D$1)+1) -> LDP.05: CVD 25-84yrs (excl CVD) | E1: =INDEX('Control Panel'!$B$48:$B$54,COLUMN(E1)-COLUMN($D$1)+1) -> LDP.05.02: Cardiovascular Risk Score Done (5y) | F1: =INDEX('Control Panel'!$B$48:$B$54,COLUMN(F1)-COLUMN($D$1)+1) -> %LDP.05.02: Cardiovascular Risk Score Done (5y) | G1: =INDEX('Control Panel'!$B$48:$B$54,COLUMN(G1)-COLUMN($D$1)+1) -> LDP.05.01: CVD QRISK greater than or equal 20% | H1: =INDEX('Control Panel'!$B$48:$B$54,COLUMN(H1)-COLUMN($D$1)+1) -> %LDP.05.01: CVD QRISK greater than or equal 20% | I1: =INDEX('Control Panel'!$B$48:$B$54,COLUMN(I1)-COLUMN($D$1)+1) -> LDP.05.01.01: CVD Proxy Annual Review (last 12m) | J1: =INDEX('Control Panel'!$B$48:$B$54,COLUMN(J1)-COLUMN($D$1)+1) -> %LDP.05.01.01: CVD Proxy Annual Review (last 12m)
C2: Waltham Forest - Practice Clinical Trends (LDP) Report
B3: =VLOOKUP(C3,'Control Panel'!I14:J25,2,FALSE) -> 2022-04-01 | C3: March 2022 | D3: =VLOOKUP(C3,'Control Panel'!I14:J25,2,FALSE) -> 44652
B4: 2020-02-01 | C4: ='Control Panel'!B47 -> CVD Risk
A5: Home | C5: =VLOOKUP(C1,'Control Panel'!$B$3:$C$131,2,FALSE) -> List Size | D5: =VLOOKUP(D1,'Control Panel'!$B$3:$D$131,3,FALSE) -> Aged 25 to 84 (exc CVD) | E5: =VLOOKUP(E1,'Control Panel'!$B$3:$D$131,3,FALSE) -> QRISK recorded (5 years) | F5: =VLOOKUP(F1,'Control Panel'!$B$3:$D$131,3,FALSE) -> % of patients aged 25 to 84 (exc CVD) | G5: =VLOOKUP(G1,'Control Panel'!$B$3:$D$131,3,FALSE) -> QRISK ≥ 20% | H5: =VLOOKUP(H1,'Control Panel'!$B$3:$D$131,3,FALSE) -> % QRISK Score recorded | I5: =VLOOKUP(I1,'Control Panel'!$B$3:$D$131,3,FALSE) -> QRISK ≥ 20% and proxy review (BP and Chol last 12m) | J5: =VLOOKUP(J1,'Control Panel'!$B$3:$D$131,3,FALSE) -> % Patients with QRISK ≥ 20%
A6: Practice Name | B6: Total | C6: =SUM(C7:C40) -> 269929 | D6: =SUM(D7:D40) -> 181906 | E6: =SUM(E7:E40) -> 63078 | F6: =IFERROR(E6/D6,"N/A") -> 0.347 | G6: =SUM(G7:G40) -> 9378 | H6: =IFERROR(G6/E6,"N/A") -> 0.149 | I6: =SUM(I7:I40) -> 5459 | J6: =IFERROR(I6/G6,"N/A") -> 0.582
A7: ='Control Panel'!H62 -> The Firs Medical Centre | B7: ='Control Panel'!I62 -> F86001 | C7: =SUMIFS(OFFSET(REL_D,,MATCH(C$1,IND,0)-2),REL_D,$D$3,OrgID,$B7) -> 7729 | D7: 5286 | E7: 2087 | F7: =IFERROR(E7/$D7,"N/A") -> 0.395 | G7: =SUMIFS(OFFSET(REL_D,,MATCH(G$1,IND,0)-2),REL_D,$D$3,OrgID,$B7) -> 233 | H7: =IFERROR(G7/$E7,"N/A") -> 0.112 | I7: =SUMIFS(OFFSET(REL_D,,MATCH(I$1,IND,0)-2),REL_D,$D$3,OrgID,$B7) -> 119 | J7: =IFERROR(I7/$G7,"N/A") -> 0.511
A8: ='Control Panel'!H63 -> Penryhn Surgery | B8: ='Control Panel'!I63 -> F86005 | C8: 9510 | D8: 6477 | E8: 2245 | F8: =IFERROR(E8/$D8,"N/A") -> 0.347 | G8: 229 | H8: =IFERROR(G8/$E8,"N/A") -> 0.102 | I8: 151 | J8: =IFERROR(I8/$G8,"N/A") -> 0.659
A9: ='Control Panel'!H64 -> Seymour Medical Centre | B9: ='Control Panel'!I64 -> F86006 | C9: 6825 | D9: 4620 | E9: 1272 | F9: 0.275 | G9: 137 | H9: 0.108 | I9: 69 | J9: 0.504
A10: ='Control Panel'!H65 -> The Manor Practice | B10: ='Control Panel'!I65 -> F86011 | C10: 9698 | D10: 6502 | E10: 1875 | F10: 0.288 | G10: 445 | H10: 0.237 | I10: 256 | J10: 0.575
A11: ='Control Panel'!H66 -> Queens Road Medical Centre | B11: ='Control Panel'!I66 -> F86030 | C11: 8161 | D11: 5408 | E11: 1635 | F11: 0.302 | G11: 388 | H11: 0.237 | I11: 300 | J11: 0.773
A12: ='Control Panel'!H67 -> The Allum Medical Centre | B12: ='Control Panel'!I67 -> F86036 | C12: 14732 | D12: 10148 | E12: 3632 | F12: 0.358 | G12: 526 | H12: 0.145 | I12: 296 | J12: 0.563
A13: ='Control Panel'!H68 -> SMA Medical Centre | B13: ='Control Panel'!I68 -> F86038 | C13: 11105 | D13: 6781 | E13: 2616 | F13: 0.386 | G13: 482 | H13: 0.184 | I13: 315 | J13: 0.654
A14: ='Control Panel'!H69 -> Crawley Road Medical Centre | B14: ='Control Panel'!I69 -> F86044 | C14: 10802 | D14: 7735 | E14: 1466 | F14: 0.19 | G14: 279 | H14: 0.19 | I14: 168 | J14: 0.602
A15: ='Control Panel'!H70 -> High Road Surgery | B15: ='Control Panel'!I70 -> F86045 | C15: 2026 | D15: 1440 | E15: 810 | F15: 0.563 | G15: 104 | H15: 0.128 | I15: 79 | J15: 0.76
A16: ='Control Panel'!H71 -> St James Medical Practice Ltd | B16: ='Control Panel'!I71 -> F86058 | C16: 16561 | D16: 11214 | E16: 3724 | F16: 0.332 | G16: 471 | H16: 0.126 | I16: 290 | J16: 0.616
A17: ='Control Panel'!H72 -> The Grove Road Medical Centre | B17: ='Control Panel'!I72 -> F86062 | C17: 7155 | D17: 4926 | E17: 1408 | F17: 0.286 | G17: 283 | H17: 0.201 | I17: 143 | J17: 0.505
A18: ='Control Panel'!H73 -> The Ridgeway Surgery | B18: ='Control Panel'!I73 -> F86078 | C18: 6869 | D18: 4716 | E18: 1581 | F18: 0.335 | G18: 351 | H18: 0.222 | I18: 140 | J18: 0.399
A19: ='Control Panel'!H74 -> Dr Dhital Practice | B19: ='Control Panel'!I74 -> F86086 | C19: 6265 | D19: 3956 | E19: 790 | F19: 0.2 | G19: 138 | H19: 0.175 | I19: 70 | J19: 0.507
A20: ='Control Panel'!H75 -> The Lyndhurst Surgery | B20: ='Control Panel'!I75 -> F86088 | C20: 5027 | D20: 3562 | E20: 851 | F20: 0.239 | G20: 131 | H20: 0.154 | I20: 75 | J20: 0.573
A21: ='Control Panel'!H76 -> Addison Road Medical Practice | B21: ='Control Panel'!I76 -> F86607 | C21: 15547 | D21: 10546 | E21: 4778 | F21: 0.453 | G21: 515 | H21: 0.108 | I21: 271 | J21: 0.526
A22: ='Control Panel'!H77 -> The Old Church Surgery | B22: ='Control Panel'!I77 -> F86616 | C22: 7996 | D22: 5180 | E22: 2239 | F22: 0.432 | G22: 319 | H22: 0.142 | I22: 181 | J22: 0.567
A23: ='Control Panel'!H78 -> Green Man Medical Centre | B23: ='Control Panel'!I78 -> F86621 | C23: 6445 | D23: 4719 | E23: 777 | F23: 0.165 | G23: 130 | H23: 0.167 | I23: 85 | J23: 0.654
A24: ='Control Panel'!H79 -> L.L. Medical Care Ltd (Agarwal & Agrawal Practice) | B24: ='Control Panel'!I79 -> F86625 | C24: 5882 | D24: 3947 | E24: 1056 | F24: 0.268 | G24: 145 | H24: 0.137 | I24: 94 | J24: 0.648
A25: ='Control Panel'!H80 -> Dr Shantir's Practice - Forest Road Medical Centre | B25: ='Control Panel'!I80 -> F86626 | C25: 7021 | D25: 4750 | E25: 1471 | F25: 0.31 | G25: 180 | H25: 0.122 | I25: 85 | J25: 0.472
A26: ='Control Panel'!H81 -> Churchill Medical Centre | B26: ='Control Panel'!I81 -> F86627 | C26: 13283 | D26: 8666 | E26: 3178 | F26: 0.367 | G26: 688 | H26: 0.216 | I26: 424 | J26: 0.616
A27: ='Control Panel'!H82 -> Waltham Forest Community And FHS Ltd | B27: ='Control Panel'!I82 -> F86644 | C27: =SUMIFS(OFFSET(REL_D,,MATCH(C$1,IND,0)-2),REL_D,$D$3,OrgID,$B27) -> 9254 | D27: 5999 | E27: 2411 | F27: 0.402 | G27: 343 | H27: 0.142 | I27: 149 | J27: 0.434
A28: ='Control Panel'!H83 -> Lime Tree Surgery | B28: ='Control Panel'!I83 -> F86650 | C28: 8080 | D28: 5506 | E28: 1701 | F28: 0.309 | G28: 297 | H28: 0.175 | I28: 143 | J28: 0.481
A29: ='Control Panel'!H84 -> Larkshall Medical Centre | B29: ='Control Panel'!I84 -> F86664 | C29: 8471 | D29: 5496 | E29: 2496 | F29: 0.454 | G29: 246 | H29: 0.099 | I29: 104 | J29: 0.423
A30: ='Control Panel'!H85 -> The Harrow Rd GP Surgery | B30: ='Control Panel'!I85 -> F86666 | C30: 14983 | D30: 10347 | E30: 4719 | F30: 0.456 | G30: 691 | H30: 0.146 | I30: 451 | J30: 0.653
A31: ='Control Panel'!H86 -> Higham Hill Medical Centre | B31: ='Control Panel'!I86 -> F86679 | C31: 6372 | D31: 4155 | E31: 986 | F31: 0.237 | G31: 128 | H31: 0.13 | I31: 98 | J31: 0.766
A32: ='Control Panel'!H87 -> The Bailey Practice | B32: ='Control Panel'!I87 -> F86689 | C32: 4395 | D32: 2969 | E32: 718 | F32: 0.242 | G32: 60 | H32: 0.084 | I32: 30 | J32: 0.5
A33: ='Control Panel'!H88 -> Francis Road Medical Centre | B33: ='Control Panel'!I88 -> F86696 | C33: 6883 | D33: 4826 | E33: 1889 | F33: 0.391 | G33: 210 | H33: 0.111 | I33: 153 | J33: 0.729
A34: ='Control Panel'!H89 -> Kingshead Medical Practice | B34: ='Control Panel'!I89 -> F86700 | C34: 3901 | D34: 2509 | E34: 582 | F34: 0.232 | G34: 131 | H34: 0.225 | I34: 57 | J34: 0.435
A35: ='Control Panel'!H90 -> Kiyani Medical Practice | B35: ='Control Panel'!I90 -> F86701 | C35: 3853 | D35: 2667 | E35: 1559 | F35: 0.585 | G35: 188 | H35: 0.121 | I35: 104 | J35: 0.553
A36: ='Control Panel'!H91 -> Langthorne Sharma Family Practice | B36: ='Control Panel'!I91 -> F86705 | C36: 3512 | D36: 2550 | E36: 1391 | F36: 0.545 | G36: 153 | H36: 0.11 | I36: 109 | J36: 0.712
A37: ='Control Panel'!H92 -> Claremont Medical Centre | B37: ='Control Panel'!I92 -> F86708 | C37: 2782 | D37: 1766 | E37: 813 | F37: 0.46 | G37: 121 | H37: 0.149 | I37: 63 | J37: 0.521
A38: ='Control Panel'!H93 -> Hampton Medical Centre | B38: ='Control Panel'!I93 -> F86712 | C38: 3395 | D38: 2450 | E38: 529 | F38: 0.216 | G38: 54 | H38: 0.102 | I38: 31 | J38: 0.574
A39: ='Control Panel'!H94 -> Chingford Medical Practice | B39: ='Control Panel'!I94 -> Y01291 | C39: 9173 | D39: 5911 | E39: 2651 | F39: 0.448 | G39: 397 | H39: 0.15 | I39: 268 | J39: 0.675
A40: ='Control Panel'!H95 -> Lime Tree and Sinnott Healthcare Ltd | B40: ='Control Panel'!I95 -> Y01839 | C40: 6236 | D40: 4176 | E40: 1142 | F40: =IFERROR(E40/$D40,"N/A") -> 0.273 | G40: 185 | H40: =IFERROR(G40/$E40,"N/A") -> 0.162 | I40: 88 | J40: =IFERROR(I40/$G40,"N/A") -> 0.476

Sheet Diabetes
C1: 01. Listsize | D1: ='Control Panel'!B56 -> LDP.04: Diabetes Register | E1: =INDEX('Control Panel'!$B$56:$B$105,COLUMN(E1)-COLUMN($D$1)+1) -> %LDP.04: Diabetes Register | F1: ='Control Panel'!B60 -> LDP.04.11: Diabetes and BP in last 12 months | G1: ='Control Panel'!B61 -> %LDP.04.11: Diabetes and BP in last 12 months | H1: ='Control Panel'!B62 -> LDP.04.09: Diabetes BP less than 145/85 (last 12m) | I1: ='Control Panel'!B63 -> %LDP.04.09: Diabetes BP less than 145/85 (last 12m) | J1: ='Control Panel'!B66 -> LDP.04.08: Diabetes Chol less than 5mmol (last 12m) | K1: ='Control Panel'!B67 -> %LDP.04.08: Diabetes Chol less than 5mmol (last 12m) | L1: ='Control Panel'!B68 -> LDP.04.01: Diabetes HbA1c <7.5% OR <59mmol (last 12m) | M1: ='Control Panel'!B69 -> %LDP.04.01: Diabetes HbA1c <7.5% OR <59mmol (last 12m) | N1: ='Control Panel'!B80 -> LDP.04.07: Diabetes Influenza Vaccinations (From August 2018) | O1: ='Control Panel'!B81 -> %LDP.04.07: Diabetes Influenza Vaccinations (From August 2018)
C2: Waltham Forest - Practice Clinical Trends (LDP) Report
B3: =VLOOKUP(C3,'Control Panel'!I14:J25,2,FALSE) -> 2022-04-01 | C3: March 2022 | D3: =VLOOKUP(C3,'Control Panel'!I14:J25,2,FALSE) -> 44652
B4: 2020-02-01 | C4: ='Control Panel'!B55 -> Diabetes
A5: Home | C5: =VLOOKUP(C1,'Control Panel'!$B$3:$C$131,2,FALSE) -> List Size | D5: ='Control Panel'!D56 -> Diabetes register | E5: ='Control Panel'!C57 -> % List size | F5: ='Control Panel'!D58 -> BP (last 12m) | G5: ='Control Panel'!D59 -> % Diabetes Register | H5: ='Control Panel'!D60 -> BP < 145/85 (last 12m) | I5: ='Control Panel'!D61 -> % Diabetes Register | J5: ='Control Panel'!D62 -> Cholesterol < 5mmols (last 12m) | K5: ='Control Panel'!D63 -> % Diabetes Register | L5: ='Control Panel'!D64 -> HbA1c < 59 (last 12m) | M5: ='Control Panel'!D65 -> % Diabetes register | N5: ='Control Panel'!E66 -> Flu jab (From August 2021) | O5: ='Control Panel'!D67 -> % Diabetes Register
A6: Practice Name | B6: Total | C6: =SUM(C7:C40) -> 269929 | D6: =SUM(D7:D40) -> 15139 | E6: =IFERROR(D6/C6,"N/A") -> 0.056 | F6: =SUM(F7:F40) -> 12456 | G6: =IFERROR(F6/D6,"N/A") -> 0.823 | H6: =SUM(H7:H40) -> 9858 | I6: =IFERROR(H6/$D$6,"N/A") -> 0.651 | J6: =SUM(J7:J40) -> 8365 | K6: =IFERROR(J6/$D$6,"N/A") -> 0.553 | L6: =SUM(L7:L40) -> 7255 | M6: =IFERROR(L6/$D$6,"N/A") -> 0.479 | N6: =SUM(N7:N40) -> 8978 | O6: =IFERROR(N6/$D$6,"N/A") -> 0.593
A7: ='Control Panel'!H62 -> The Firs Medical Centre | B7: ='Control Panel'!I62 -> F86001 | C7: =SUMIFS(OFFSET(REL_D,,MATCH(C$1,IND,0)-2),REL_D,$D$3,OrgID,$B7) -> 7729 | D7: 554 | E7: =IFERROR(D7/C7,"N/A") -> 0.072 | F7: =SUMIFS(OFFSET(REL_D,,MATCH(F$1,IND,0)-2),REL_D,$D$3,OrgID,$B7) -> 465 | G7: =IFERROR(F7/$D7,"N/A") -> 0.839 | H7: =SUMIFS(OFFSET(REL_D,,MATCH(H$1,IND,0)-2),REL_D,$D$3,OrgID,$B7) -> 393 | I7: 0.709 | J7: =SUMIFS(OFFSET(REL_D,,MATCH(J$1,IND,0)-2),REL_D,$D$3,OrgID,$B7) -> 263 | K7: =IFERROR(J7/$D7,"N/A") -> 0.475 | L7: =SUMIFS(OFFSET(REL_D,,MATCH(L$1,IND,0)-2),REL_D,$D$3,OrgID,$B7) -> 265 | M7: =IFERROR(L7/$D7,"N/A") -> 0.478 | N7: =SUMIFS(OFFSET(REL_D,,MATCH(N$1,IND,0)-2),REL_D,$D$3,OrgID,$B7) -> 292 | O7: =IFERROR(N7/$D7,"N/A") -> 0.527
A8: ='Control Panel'!H63 -> Penryhn Surgery | B8: ='Control Panel'!I63 -> F86005 | C8: 9510 | D8: 362 | E8: =IFERROR(D8/C8,"N/A") -> 0.038 | F8: 298 | G8: =IFERROR(F8/$D8,"N/A") -> 0.823 | H8: 232 | I8: =IFERROR(H8/$D8,"N/A") -> 0.641 | J8: 205 | K8: =IFERROR(J8/$D8,"N/A") -> 0.566 | L8: 172 | M8: =IFERROR(L8/$D8,"N/A") -> 0.475 | N8: 213 | O8: =IFERROR(N8/$D8,"N/A") -> 0.588
A9: ='Control Panel'!H64 -> Seymour Medical Centre | B9: ='Control Panel'!I64 -> F86006 | C9: 6825 | D9: 440 | E9: 0.064 | F9: 362 | G9: 0.823 | H9: 241 | I9: 0.548 | J9: 239 | K9: 0.543 | L9: 197 | M9: 0.448 | N9: 261 | O9: 0.593
A10: ='Control Panel'!H65 -> The Manor Practice | B10: ='Control Panel'!I65 -> F86011 | C10: 9698 | D10: 747 | E10: 0.077 | F10: 649 | G10: 0.869 | H10: 473 | I10: 0.633 | J10: 394 | K10: 0.527 | L10: 337 | M10: 0.451 | N10: 434 | O10: 0.581
A11: ='Control Panel'!H66 -> Queens Road Medical Centre | B11: ='Control Panel'!I66 -> F86030 | C11: 8161 | D11: 556 | E11: 0.068 | F11: 525 | G11: 0.944 | H11: 475 | I11: 0.854 | J11: 415 | K11: 0.746 | L11: 340 | M11: 0.612 | N11: 417 | O11: 0.75
A12: ='Control Panel'!H67 -> The Allum Medical Centre | B12: ='Control Panel'!I67 -> F86036 | C12: 14732 | D12: 787 | E12: 0.053 | F12: 628 | G12: 0.798 | H12: 499 | I12: 0.634 | J12: 435 | K12: 0.553 | L12: 363 | M12: 0.461 | N12: 442 | O12: 0.562
A13: ='Control Panel'!H68 -> SMA Medical Centre | B13: ='Control Panel'!I68 -> F86038 | C13: 11105 | D13: 798 | E13: 0.072 | F13: 749 | G13: 0.939 | H13: 676 | I13: 0.847 | J13: 430 | K13: 0.539 | L13: 364 | M13: 0.456 | N13: 518 | O13: 0.649
A14: ='Control Panel'!H69 -> Crawley Road Medical Centre | B14: ='Control Panel'!I69 -> F86044 | C14: 10802 | D14: 428 | E14: 0.04 | F14: 387 | G14: 0.904 | H14: 328 | I14: 0.766 | J14: 244 | K14: 0.57 | L14: 227 | M14: 0.53 | N14: 214 | O14: 0.5
A15: ='Control Panel'!H70 -> High Road Surgery | B15: ='Control Panel'!I70 -> F86045 | C15: 2026 | D15: 135 | E15: 0.067 | F15: 121 | G15: 0.896 | H15: 108 | I15: 0.8 | J15: 103 | K15: 0.763 | L15: 80 | M15: 0.593 | N15: 93 | O15: 0.689
A16: ='Control Panel'!H71 -> St James Medical Practice Ltd | B16: ='Control Panel'!I71 -> F86058 | C16: 16561 | D16: 775 | E16: 0.047 | F16: 678 | G16: 0.875 | H16: 570 | I16: 0.735 | J16: 439 | K16: 0.566 | L16: 386 | M16: 0.498 | N16: 393 | O16: 0.507
A17: ='Control Panel'!H72 -> The Grove Road Medical Centre | B17: ='Control Panel'!I72 -> F86062 | C17: 7155 | D17: 452 | E17: 0.063 | F17: 305 | G17: 0.675 | H17: 205 | I17: 0.454 | J17: 228 | K17: 0.504 | L17: 180 | M17: 0.398 | N17: 192 | O17: 0.425
A18: ='Control Panel'!H73 -> The Ridgeway Surgery | B18: ='Control Panel'!I73 -> F86078 | C18: 6869 | D18: 342 | E18: 0.05 | F18: 222 | G18: 0.649 | H18: 170 | I18: 0.497 | J18: 164 | K18: 0.48 | L18: 154 | M18: 0.45 | N18: 227 | O18: 0.664
A19: ='Control Panel'!H74 -> Dr Dhital Practice | B19: ='Control Panel'!I74 -> F86086 | C19: 6265 | D19: 322 | E19: 0.051 | F19: 234 | G19: 0.727 | H19: 192 | I19: 0.596 | J19: 145 | K19: 0.45 | L19: 118 | M19: 0.366 | N19: 147 | O19: 0.457
A20: ='Control Panel'!H75 -> The Lyndhurst Surgery | B20: ='Control Panel'!I75 -> F86088 | C20: 5027 | D20: 372 | E20: 0.074 | F20: 263 | G20: 0.707 | H20: 188 | I20: 0.505 | J20: 223 | K20: 0.599 | L20: 159 | M20: 0.427 | N20: 202 | O20: 0.543
A21: ='Control Panel'!H76 -> Addison Road Medical Practice | B21: ='Control Panel'!I76 -> F86607 | C21: 15547 | D21: 693 | E21: 0.045 | F21: 580 | G21: 0.837 | H21: 446 | I21: 0.644 | J21: 356 | K21: 0.514 | L21: 296 | M21: 0.427 | N21: 457 | O21: 0.659
A22: ='Control Panel'!H77 -> The Old Church Surgery | B22: ='Control Panel'!I77 -> F86616 | C22: 7996 | D22: 379 | E22: 0.047 | F22: 347 | G22: 0.916 | H22: 277 | I22: 0.731 | J22: 266 | K22: 0.702 | L22: 230 | M22: 0.607 | N22: 249 | O22: 0.657
A23: ='Control Panel'!H78 -> Green Man Medical Centre | B23: ='Control Panel'!I78 -> F86621 | C23: 6445 | D23: 322 | E23: 0.05 | F23: 265 | G23: 0.823 | H23: 218 | I23: 0.677 | J23: 213 | K23: 0.661 | L23: 195 | M23: 0.606 | N23: 254 | O23: 0.789
A24: ='Control Panel'!H79 -> L.L. Medical Care Ltd (Agarwal & Agrawal Practice) | B24: ='Control Panel'!I79 -> F86625 | C24: 5882 | D24: 431 | E24: 0.073 | F24: 380 | G24: 0.882 | H24: 247 | I24: 0.573 | J24: 275 | K24: 0.638 | L24: 218 | M24: 0.506 | N24: 257 | O24: 0.596
A25: ='Control Panel'!H80 -> Dr Shantir's Practice - Forest Road Medical Centre | B25: ='Control Panel'!I80 -> F86626 | C25: 7021 | D25: 310 | E25: 0.044 | F25: 196 | G25: 0.632 | H25: 140 | I25: 0.452 | J25: 132 | K25: 0.426 | L25: 129 | M25: 0.416 | N25: 160 | O25: 0.516
A26: ='Control Panel'!H81 -> Churchill Medical Centre | B26: ='Control Panel'!I81 -> F86627 | C26: 13283 | D26: 818 | E26: 0.062 | F26: 672 | G26: 0.822 | H26: 507 | I26: 0.62 | J26: 469 | K26: 0.573 | L26: 397 | M26: 0.485 | N26: 471 | O26: 0.576
A27: ='Control Panel'!H82 -> Waltham Forest Community And FHS Ltd | B27: ='Control Panel'!I82 -> F86644 | C27: =SUMIFS(OFFSET(REL_D,,MATCH(C$1,IND,0)-2),REL_D,$D$3,OrgID,$B27) -> 9254 | D27: 518 | E27: 0.056 | F27: 402 | G27: 0.776 | H27: 265 | I27: 0.512 | J27: 224 | K27: 0.432 | L27: 245 | M27: 0.473 | N27: 317 | O27: 0.612
A28: ='Control Panel'!H83 -> Lime Tree Surgery | B28: ='Control Panel'!I83 -> F86650 | C28: 8080 | D28: 515 | E28: 0.064 | F28: 362 | G28: 0.703 | H28: 301 | I28: 0.584 | J28: 254 | K28: 0.493 | L28: 242 | M28: 0.47 | N28: 266 | O28: 0.517
A29: ='Control Panel'!H84 -> Larkshall Medical Centre | B29: ='Control Panel'!I84 -> F86664 | C29: 8471 | D29: 424 | E29: 0.05 | F29: 309 | G29: 0.729 | H29: 287 | I29: 0.677 | J29: 179 | K29: 0.422 | L29: 153 | M29: 0.361 | N29: 245 | O29: 0.578
A30: ='Control Panel'!H85 -> The Harrow Rd GP Surgery | B30: ='Control Panel'!I85 -> F86666 | C30: 14983 | D30: 884 | E30: 0.059 | F30: 732 | G30: 0.828 | H30: 613 | I30: 0.693 | J30: 501 | K30: 0.567 | L30: 429 | M30: 0.485 | N30: 499 | O30: 0.564
A31: ='Control Panel'!H86 -> Higham Hill Medical Centre | B31: ='Control Panel'!I86 -> F86679 | C31: 6372 | D31: 241 | E31: 0.038 | F31: 230 | G31: 0.954 | H31: 189 | I31: 0.784 | J31: 157 | K31: 0.651 | L31: 127 | M31: 0.527 | N31: 141 | O31: 0.585
A32: ='Control Panel'!H87 -> The Bailey Practice | B32: ='Control Panel'!I87 -> F86689 | C32: 4395 | D32: 127 | E32: 0.029 | F32: 118 | G32: 0.929 | H32: 100 | I32: 0.787 | J32: 70 | K32: 0.551 | L32: 71 | M32: 0.559 | N32: 108 | O32: 0.85
A33: ='Control Panel'!H88 -> Francis Road Medical Centre | B33: ='Control Panel'!I88 -> F86696 | C33: 6883 | D33: 360 | E33: 0.052 | F33: 307 | G33: 0.853 | H33: 217 | I33: 0.603 | J33: 224 | K33: 0.622 | L33: 172 | M33: 0.478 | N33: 223 | O33: 0.619
A34: ='Control Panel'!H89 -> Kingshead Medical Practice | B34: ='Control Panel'!I89 -> F86700 | C34: 3901 | D34: 220 | E34: 0.056 | F34: 210 | G34: 0.955 | H34: 171 | I34: 0.777 | J34: 117 | K34: 0.532 | L34: 138 | M34: 0.627 | N34: 175 | O34: 0.795
A35: ='Control Panel'!H90 -> Kiyani Medical Practice | B35: ='Control Panel'!I90 -> F86701 | C35: 3853 | D35: 268 | E35: 0.07 | F35: 231 | G35: 0.862 | H35: 163 | I35: 0.608 | J35: 157 | K35: 0.586 | L35: 144 | M35: 0.537 | N35: 172 | O35: 0.642
A36: ='Control Panel'!H91 -> Langthorne Sharma Family Practice | B36: ='Control Panel'!I91 -> F86705 | C36: 3512 | D36: 214 | E36: 0.061 | F36: 200 | G36: 0.935 | H36: 151 | I36: 0.706 | J36: 115 | K36: 0.537 | L36: 115 | M36: 0.537 | N36: 170 | O36: 0.794
A37: ='Control Panel'!H92 -> Claremont Medical Centre | B37: ='Control Panel'!I92 -> F86708 | C37: 2782 | D37: 205 | E37: 0.074 | F37: 164 | G37: 0.8 | H37: 126 | I37: 0.615 | J37: 104 | K37: 0.507 | L37: 92 | M37: 0.449 | N37: 119 | O37: 0.58
A38: ='Control Panel'!H93 -> Hampton Medical Centre | B38: ='Control Panel'!I93 -> F86712 | C38: 3395 | D38: 220 | E38: 0.065 | F38: 178 | G38: 0.809 | H38: 141 | I38: 0.641 | J38: 130 | K38: 0.591 | L38: 112 | M38: 0.509 | N38: 143 | O38: 0.65
A39: ='Control Panel'!H94 -> Chingford Medical Practice | B39: ='Control Panel'!I94 -> Y01291 | C39: 9173 | D39: 503 | E39: 0.055 | F39: 456 | G39: 0.907 | H39: 376 | I39: 0.748 | J39: 321 | K39: 0.638 | L39: 260 | M39: 0.517 | N39: 300 | O39: 0.596
A40: ='Control Panel'!H95 -> Lime Tree and Sinnott Healthcare Ltd | B40: ='Control Panel'!I95 -> Y01839 | C40: 6236 | D40: 417 | E40: 0.067 | F40: 231 | G40: 0.554 | H40: 173 | I40: 0.415 | J40: 174 | K40: 0.417 | L40: 148 | M40: 0.355 | N40: 207 | O40: 0.496

Sheet Mental Health
C1: 01. Listsize | D1: =INDEX('Control Panel'!$B$107:$B$122,COLUMN(D1)-COLUMN($D$1)+1) -> CSPMH.01 SMI Register | E1: =INDEX('Control Panel'!$B$107:$B$122,COLUMN(E1)-COLUMN($D$1)+1) -> %CSPMH.01 SMI Register | F1: =INDEX('Control Panel'!$B$107:$B$122,COLUMN(F1)-COLUMN($D$1)+1) -> CSPMH.01.02 Smoking Status Recorded (12m) | G1: =INDEX('Control Panel'!$B$107:$B$122,COLUMN(G1)-COLUMN($D$1)+1) -> %CSPMH.01.02 Smoking Status Recorded (12m) | H1: =INDEX('Control Panel'!$B$107:$B$122,COLUMN(H1)-COLUMN($D$1)+1) -> CSPMH.01.02.01 Current Smoker (12m) | I1: =INDEX('Control Panel'!$B$107:$B$122,COLUMN(I1)-COLUMN($D$1)+1) -> %CSPMH.01.02.01 Current Smoker (12m) | J1: =INDEX('Control Panel'!$B$107:$B$122,COLUMN(J1)-COLUMN($D$1)+1) -> CSPMH 01.02.01.01 Ref to clinic 12m | K1: =INDEX('Control Panel'!$B$107:$B$122,COLUMN(K1)-COLUMN($D$1)+1) -> %CSPMH 01.02.01.01 Ref to clinic 12m | L1: =INDEX('Control Panel'!$B$107:$B$122,COLUMN(L1)-COLUMN($D$1)+1) -> CSPMH.01.02.02 Ex-smoker Recorded (latest 12m) | M1: =INDEX('Control Panel'!$B$107:$B$122,COLUMN(M1)-COLUMN($D$1)+1) -> %CSPMH.01.02.02 Ex-smoker Recorded (latest 12m) | N1: =INDEX('Control Panel'!$B$107:$B$122,COLUMN(N1)-COLUMN($D$1)+1) -> CSPMH. 01.03 QRisk Recorded (12m) | O1: =INDEX('Control Panel'!$B$107:$B$122,COLUMN(O1)-COLUMN($D$1)+1) -> %CSPMH. 01.03 QRisk Recorded (12m) | P1: =INDEX('Control Panel'!$B$107:$B$122,COLUMN(P1)-COLUMN($D$1)+1) -> CSPMH. 01.03.02 Qrisk>=20 (12m) | Q1: =INDEX('Control Panel'!$B$107:$B$122,COLUMN(Q1)-COLUMN($D$1)+1) -> %CSPMH. 01.03.02 Qrisk>=20 (12m) | R1: =INDEX('Control Panel'!$B$107:$B$122,COLUMN(R1)-COLUMN($D$1)+1) -> CSPMH. 01.03.01 BP recorded on same day as QRisk (12m) | S1: =INDEX('Control Panel'!$B$107:$B$122,COLUMN(S1)-COLUMN($D$1)+1) -> %CSPMH. 01.03.01 BP recorded on same day as QRisk (12m)
C2: Waltham Forest - Practice Clinical Trends (LDP) Report
B3: =VLOOKUP(C3,'Control Panel'!I14:J25,2,FALSE) -> 2022-04-01 | C3: March 2022 | D3: =VLOOKUP(C3,'Control Panel'!I14:J25,2,FALSE) -> 44652
B4: 2020-02-01 | C4: ='Control Panel'!B106 -> Mental Health
A5: Home | C5: =VLOOKUP(C1,'Control Panel'!$B$3:$C$131,2,FALSE) -> List Size | D5: =VLOOKUP(D1,'Control Panel'!$B$3:$D$131,3,FALSE) -> Mental Health register | E5: =VLOOKUP(E1,'Control Panel'!$B$3:$D$131,3,FALSE) -> % list size | F5: =VLOOKUP(F1,'Control Panel'!$B$3:$D$131,3,FALSE) -> No. of Mental Health Patients with smoking status recorded (last 12m) or never smoked | G5: =VLOOKUP(G1,'Control Panel'!$B$3:$D$131,3,FALSE) -> % Mental Health Register | H5: =VLOOKUP(H1,'Control Panel'!$B$3:$D$131,3,FALSE) -> No. of Mental Health patients recorded as a Smoker | I5: =VLOOKUP(I1,'Control Panel'!$B$3:$D$131,3,FALSE) -> % Mental Health Register | J5: =VLOOKUP(J1,'Control Panel'!$B$3:$D$131,3,FALSE) -> No. of Mental Health Patients who are current smokers & referred to the Stop Smoking Clinic | K5: =VLOOKUP(K1,'Control Panel'!$B$3:$D$131,3,FALSE) -> % Mental Health Register | L5: =VLOOKUP(L1,'Control Panel'!$B$3:$D$131,3,FALSE) -> No. Of Mental Health Patients who are recorded as quitters | M5: =VLOOKUP(M1,'Control Panel'!$B$3:$D$131,3,FALSE) -> % Mental Health Register | N5: =VLOOKUP(N1,'Control Panel'!$B$3:$D$131,3,FALSE) -> Patients with Mental Health with QRISK recorded in the last 12m | O5: =VLOOKUP(O1,'Control Panel'!$B$3:$D$131,3,FALSE) -> % Mental Health Register | P5: =VLOOKUP(P1,'Control Panel'!$B$3:$D$131,3,FALSE) -> Patients with Mental Health with QRISK 20% or higher in the last 12m | Q5: =VLOOKUP(Q1,'Control Panel'!$B$3:$D$131,3,FALSE) -> % patients with QRISK recorded | R5: =VLOOKUP(R1,'Control Panel'!$B$3:$D$131,3,FALSE) -> Patients with Mental Health with BP & QRisk on the same day in the last 12m | S5: =VLOOKUP(S1,'Control Panel'!$B$3:$D$131,3,FALSE) -> % Mental Health Register
A6: Practice Name | B6: Total | C6: =SUM(C7:C40) -> 269929 | D6: =SUM(D7:D40) -> 3204 | E6: =IFERROR(D6/C6,"N/A") -> 0.012 | F6: =SUM(F7:F40) -> 2709 | G6: =IFERROR(F6/$D$6,"N/A") -> 0.846 | H6: =SUM(H7:H40) -> 901 | I6: =IFERROR(H6/$D$6,"N/A") -> 0.281 | J6: =SUM(J7:J40) -> 20 | K6: =IFERROR(J6/$D$6,"N/A") -> 0.006 | L6: =SUM(L7:L40) -> 222 | M6: =IFERROR(L6/$D$6,"N/A") -> 0.069 | N6: =SUM(N7:N40) -> 1014 | O6: =IFERROR(N6/$D$6,"N/A") -> 0.316 | P6: =SUM(P7:P40) -> 182 | Q6: =IFERROR(P6/N6,"N/A") -> 0.179 | R6: =SUM(R7:R40) -> 568 | S6: =IFERROR(R6/$D$6,"N/A") -> 0.177
A7: ='Control Panel'!H62 -> The Firs Medical Centre | B7: ='Control Panel'!I62 -> F86001 | C7: =SUMIFS(OFFSET(REL_D,,MATCH(C$1,IND,0)-2),REL_D,$D$3,OrgID,$B7) -> 7729 | D7: 99 | E7: =IFERROR(D7/C7,"N/A") -> 0.013 | F7: =SUMIFS(OFFSET(REL_D,,MATCH(F$1,IND,0)-2),REL_D,$D$3,OrgID,$B7) -> 85 | G7: =IFERROR(F7/$D7,"N/A") -> 0.859 | H7: =SUMIFS(OFFSET(REL_D,,MATCH(H$1,IND,0)-2),REL_D,$D$3,OrgID,$B7) -> 29 | I7: =IFERROR(H7/$D7,"N/A") -> 0.293 | J7: =SUMIFS(OFFSET(REL_D,,MATCH(J$1,IND,0)-2),REL_D,$D$3,OrgID,$B7) -> 0 | K7: =IFERROR(J7/$D7,"N/A") -> 0 | L7: =SUMIFS(OFFSET(REL_D,,MATCH(L$1,IND,0)-2),REL_D,$D$3,OrgID,$B7) -> 7 | M7: =IFERROR(L7/$D7,"N/A") -> 0.071 | N7: =SUMIFS(OFFSET(REL_D,,MATCH(N$1,IND,0)-2),REL_D,$D$3,OrgID,$B7) -> 23 | O7: =IFERROR(N7/$D7,"N/A") -> 0.232 | P7: =SUMIFS(OFFSET(REL_D,,MATCH(P$1,IND,0)-2),REL_D,$D$3,OrgID,$B7) -> 4 | Q7: =IFERROR(P7/$N7,"N/A") -> 0.174 | R7: =SUMIFS(OFFSET(REL_D,,MATCH(R$1,IND,0)-2),REL_D,$D$3,OrgID,$B7) -> 18 | S7: =IFERROR(R7/$D7,"N/A") -> 0.182
A8: ='Control Panel'!H63 -> Penryhn Surgery | B8: ='Control Panel'!I63 -> F86005 | C8: 9510 | D8: 62 | E8: =IFERROR(D8/C8,"N/A") -> 0.007 | F8: 56 | G8: =IFERROR(F8/$D8,"N/A") -> 0.903 | H8: 25 | I8: =IFERROR(H8/$D8,"N/A") -> 0.403 | J8: 0 | K8: =IFERROR(J8/$D8,"N/A") -> 0 | L8: 3 | M8: =IFERROR(L8/$D8,"N/A") -> 0.048 | N8: 14 | O8: =IFERROR(N8/$D8,"N/A") -> 0.226 | P8: 2 | Q8: =IFERROR(P8/$N8,"N/A") -> 0.143 | R8: 10 | S8: 0.161
A9: ='Control Panel'!H64 -> Seymour Medical Centre | B9: ='Control Panel'!I64 -> F86006 | C9: 6825 | D9: 62 | E9: 0.009 | F9: 50 | G9: 0.806 | H9: 14 | I9: 0.226 | J9: 0 | K9: 0 | L9: 4 | M9: 0.065 | N9: 12 | O9: 0.194 | P9: 0 | Q9: 0 | R9: 4 | S9: 0.065
A10: ='Control Panel'!H65 -> The Manor Practice | B10: ='Control Panel'!I65 -> F86011 | C10: 9698 | D10: 173 | E10: 0.018 | F10: 164 | G10: 0.948 | H10: 73 | I10: 0.422 | J10: 4 | K10: 0.023 | L10: 17 | M10: 0.098 | N10: 83 | O10: 0.48 | P10: 22 | Q10: 0.265 | R10: 20 | S10: 0.116
A11: ='Control Panel'!H66 -> Queens Road Medical Centre | B11: ='Control Panel'!I66 -> F86030 | C11: 8161 | D11: 49 | E11: 0.006 | F11: 44 | G11: 0.898 | H11: 13 | I11: 0.265 | J11: 1 | K11: 0.02 | L11: 4 | M11: 0.082 | N11: 23 | O11: 0.469 | P11: 6 | Q11: 0.261 | R11: 12 | S11: 0.245
A12: ='Control Panel'!H67 -> The Allum Medical Centre | B12: ='Control Panel'!I67 -> F86036 | C12: 14732 | D12: 217 | E12: 0.015 | F12: 190 | G12: 0.876 | H12: 63 | I12: 0.29 | J12: 0 | K12: 0 | L12: 9 | M12: 0.041 | N12: 62 | O12: 0.286 | P12: 10 | Q12: 0.161 | R12: 27 | S12: 0.124
A13: ='Control Panel'!H68 -> SMA Medical Centre | B13: ='Control Panel'!I68 -> F86038 | C13: 11105 | D13: 129 | E13: 0.012 | F13: 127 | G13: 0.984 | H13: 36 | I13: 0.279 | J13: 0 | K13: 0 | L13: 15 | M13: 0.116 | N13: 69 | O13: 0.535 | P13: 14 | Q13: 0.203 | R13: 60 | S13: 0.465
A14: ='Control Panel'!H69 -> Crawley Road Medical Centre | B14: ='Control Panel'!I69 -> F86044 | C14: 10802 | D14: 123 | E14: 0.011 | F14: 95 | G14: 0.772 | H14: 31 | I14: 0.252 | J14: 0 | K14: 0 | L14: 4 | M14: 0.033 | N14: 11 | O14: 0.089 | P14: 3 | Q14: 0.273 | R14: 3 | S14: 0.024
A15: ='Control Panel'!H70 -> High Road Surgery | B15: ='Control Panel'!I70 -> F86045 | C15: 2026 | D15: 37 | E15: 0.018 | F15: 34 | G15: 0.919 | H15: 12 | I15: 0.324 | J15: 0 | K15: 0 | L15: 4 | M15: 0.108 | N15: 22 | O15: 0.595 | P15: 2 | Q15: 0.091 | R15: 8 | S15: 0.216
A16: ='Control Panel'!H71 -> St James Medical Practice Ltd | B16: ='Control Panel'!I71 -> F86058 | C16: 16561 | D16: 196 | E16: 0.012 | F16: 156 | G16: 0.796 | H16: 59 | I16: 0.301 | J16: 2 | K16: 0.01 | L16: 13 | M16: 0.066 | N16: 93 | O16: 0.474 | P16: 10 | Q16: 0.108 | R16: 51 | S16: 0.26
A17: ='Control Panel'!H72 -> The Grove Road Medical Centre | B17: ='Control Panel'!I72 -> F86062 | C17: 7155 | D17: 84 | E17: 0.012 | F17: 74 | G17: 0.881 | H17: 27 | I17: 0.321 | J17: 4 | K17: 0.048 | L17: 8 | M17: 0.095 | N17: 35 | O17: 0.417 | P17: 8 | Q17: 0.229 | R17: 23 | S17: 0.274
A18: ='Control Panel'!H73 -> The Ridgeway Surgery | B18: ='Control Panel'!I73 -> F86078 | C18: 6869 | D18: 63 | E18: 0.009 | F18: 44 | G18: 0.698 | H18: 8 | I18: 0.127 | J18: 0 | K18: 0 | L18: 3 | M18: 0.048 | N18: 14 | O18: 0.222 | P18: 4 | Q18: 0.286 | R18: 0 | S18: 0
A19: ='Control Panel'!H74 -> Dr Dhital Practice | B19: ='Control Panel'!I74 -> F86086 | C19: 6265 | D19: 85 | E19: 0.014 | F19: 65 | G19: 0.765 | H19: 21 | I19: 0.247 | J19: 0 | K19: 0 | L19: 3 | M19: 0.035 | N19: 19 | O19: 0.224 | P19: 6 | Q19: 0.316 | R19: 13 | S19: 0.153
A20: ='Control Panel'!H75 -> The Lyndhurst Surgery | B20: ='Control Panel'!I75 -> F86088 | C20: 5027 | D20: 56 | E20: 0.011 | F20: 41 | G20: 0.732 | H20: 7 | I20: 0.125 | J20: 0 | K20: 0 | L20: 1 | M20: 0.018 | N20: 4 | O20: 0.071 | P20: 1 | Q20: 0.25 | R20: 1 | S20: 0.018
A21: ='Control Panel'!H76 -> Addison Road Medical Practice | B21: ='Control Panel'!I76 -> F86607 | C21: 15547 | D21: 211 | E21: 0.014 | F21: 192 | G21: 0.91 | H21: 63 | I21: 0.299 | J21: 3 | K21: 0.014 | L21: 11 | M21: 0.052 | N21: 109 | O21: 0.517 | P21: 14 | Q21: 0.128 | R21: 55 | S21: 0.261
A22: ='Control Panel'!H77 -> The Old Church Surgery | B22: ='Control Panel'!I77 -> F86616 | C22: 7996 | D22: 54 | E22: 0.007 | F22: 45 | G22: 0.833 | H22: 19 | I22: 0.352 | J22: 0 | K22: 0 | L22: 2 | M22: 0.037 | N22: 21 | O22: 0.389 | P22: 2 | Q22: 0.095 | R22: 11 | S22: 0.204
A23: ='Control Panel'!H78 -> Green Man Medical Centre | B23: ='Control Panel'!I78 -> F86621 | C23: 6445 | D23: 81 | E23: 0.013 | F23: 71 | G23: 0.877 | H23: 15 | I23: 0.185 | J23: 0 | K23: 0 | L23: 4 | M23: 0.049 | N23: 28 | O23: 0.346 | P23: 4 | Q23: 0.143 | R23: 22 | S23: 0.272
A24: ='Control Panel'!H79 -> L.L. Medical Care Ltd (Agarwal & Agrawal Practice) | B24: ='Control Panel'!I79 -> F86625 | C24: 5882 | D24: 91 | E24: 0.015 | F24: 83 | G24: 0.912 | H24: 33 | I24: 0.363 | J24: 1 | K24: 0.011 | L24: 6 | M24: 0.066 | N24: 18 | O24: 0.198 | P24: 3 | Q24: 0.167 | R24: 7 | S24: 0.077
A25: ='Control Panel'!H80 -> Dr Shantir's Practice - Forest Road Medical Centre | B25: ='Control Panel'!I80 -> F86626 | C25: 7021 | D25: 51 | E25: 0.007 | F25: 44 | G25: 0.863 | H25: 8 | I25: 0.157 | J25: 1 | K25: 0.02 | L25: 3 | M25: 0.059 | N25: 9 | O25: 0.176 | P25: 2 | Q25: 0.222 | R25: 6 | S25: 0.118
A26: ='Control Panel'!H81 -> Churchill Medical Centre | B26: ='Control Panel'!I81 -> F86627 | C26: 13283 | D26: 211 | E26: 0.016 | F26: 159 | G26: 0.754 | H26: 57 | I26: 0.27 | J26: 0 | K26: 0 | L26: 11 | M26: 0.052 | N26: 38 | O26: 0.18 | P26: 5 | Q26: 0.132 | R26: 18 | S26: 0.085
A27: ='Control Panel'!H82 -> Waltham Forest Community And FHS Ltd | B27: ='Control Panel'!I82 -> F86644 | C27: =SUMIFS(OFFSET(REL_D,,MATCH(C$1,IND,0)-2),REL_D,$D$3,OrgID,$B27) -> 9254 | D27: 137 | E27: 0.015 | F27: 107 | G27: 0.781 | H27: 31 | I27: 0.226 | J27: 0 | K27: 0 | L27: 16 | M27: 0.117 | N27: 41 | O27: 0.299 | P27: 8 | Q27: 0.195 | R27: 22 | S27: 0.161
A28: ='Control Panel'!H83 -> Lime Tree Surgery | B28: ='Control Panel'!I83 -> F86650 | C28: 8080 | D28: 117 | E28: 0.014 | F28: 96 | G28: 0.821 | H28: 29 | I28: 0.248 | J28: 1 | K28: 0.009 | L28: 9 | M28: 0.077 | N28: 26 | O28: 0.222 | P28: 9 | Q28: 0.346 | R28: 17 | S28: 0.145
A29: ='Control Panel'!H84 -> Larkshall Medical Centre | B29: ='Control Panel'!I84 -> F86664 | C29: 8471 | D29: 99 | E29: 0.012 | F29: 82 | G29: 0.828 | H29: 28 | I29: 0.283 | J29: 0 | K29: 0 | L29: 8 | M29: 0.081 | N29: 26 | O29: 0.263 | P29: 4 | Q29: 0.154 | R29: 24 | S29: 0.242
A30: ='Control Panel'!H85 -> The Harrow Rd GP Surgery | B30: ='Control Panel'!I85 -> F86666 | C30: 14983 | D30: 224 | E30: 0.015 | F30: 190 | G30: 0.848 | H30: 71 | I30: 0.317 | J30: 0 | K30: 0 | L30: 24 | M30: 0.107 | N30: 90 | O30: 0.402 | P30: 22 | Q30: 0.244 | R30: 55 | S30: 0.246
A31: ='Control Panel'!H86 -> Higham Hill Medical Centre | B31: ='Control Panel'!I86 -> F86679 | C31: 6372 | D31: 32 | E31: 0.005 | F31: 28 | G31: 0.875 | H31: 10 | I31: 0.313 | J31: 2 | K31: 0.063 | L31: 4 | M31: 0.125 | N31: 14 | O31: 0.438 | P31: 3 | Q31: 0.214 | R31: 8 | S31: 0.25
A32: ='Control Panel'!H87 -> The Bailey Practice | B32: ='Control Panel'!I87 -> F86689 | C32: 4395 | D32: 27 | E32: 0.006 | F32: 25 | G32: 0.926 | H32: 5 | I32: 0.185 | J32: 0 | K32: 0 | L32: 4 | M32: 0.148 | N32: 7 | O32: 0.259 | P32: 0 | Q32: 0 | R32: 7 | S32: 0.259
A33: ='Control Panel'!H88 -> Francis Road Medical Centre | B33: ='Control Panel'!I88 -> F86696 | C33: 6883 | D33: 54 | E33: 0.008 | F33: 42 | G33: 0.778 | H33: 10 | I33: 0.185 | J33: 0 | K33: 0 | L33: 5 | M33: 0.093 | N33: 7 | O33: 0.13 | P33: 1 | Q33: 0.143 | R33: 2 | S33: 0.037
A34: ='Control Panel'!H89 -> Kingshead Medical Practice | B34: ='Control Panel'!I89 -> F86700 | C34: 3901 | D34: 49 | E34: 0.013 | F34: 42 | G34: 0.857 | H34: 14 | I34: 0.286 | J34: 0 | K34: 0 | L34: 2 | M34: 0.041 | N34: 3 | O34: 0.061 | P34: 1 | Q34: 0.333 | R34: 2 | S34: 0.041
A35: ='Control Panel'!H90 -> Kiyani Medical Practice | B35: ='Control Panel'!I90 -> F86701 | C35: 3853 | D35: 80 | E35: 0.021 | F35: 69 | G35: 0.863 | H35: 33 | I35: 0.413 | J35: 0 | K35: 0 | L35: 1 | M35: 0.013 | N35: 31 | O35: 0.388 | P35: 5 | Q35: 0.161 | R35: 27 | S35: 0.338
A36: ='Control Panel'!H91 -> Langthorne Sharma Family Practice | B36: ='Control Panel'!I91 -> F86705 | C36: 3512 | D36: 32 | E36: 0.009 | F36: 29 | G36: 0.906 | H36: 9 | I36: 0.281 | J36: 0 | K36: 0 | L36: 4 | M36: 0.125 | N36: 9 | O36: 0.281 | P36: 0 | Q36: 0 | R36: 8 | S36: 0.25
A37: ='Control Panel'!H92 -> Claremont Medical Centre | B37: ='Control Panel'!I92 -> F86708 | C37: 2782 | D37: 26 | E37: 0.009 | F37: 22 | G37: 0.846 | H37: 5 | I37: 0.192 | J37: 0 | K37: 0 | L37: 0 | M37: 0 | N37: 7 | O37: 0.269 | P37: 1 | Q37: 0.143 | R37: 5 | S37: 0.192
A38: ='Control Panel'!H93 -> Hampton Medical Centre | B38: ='Control Panel'!I93 -> F86712 | C38: 3395 | D38: 15 | E38: 0.004 | F38: 13 | G38: 0.867 | H38: 3 | I38: 0.2 | J38: 0 | K38: 0 | L38: 3 | M38: 0.2 | N38: 5 | O38: 0.333 | P38: 2 | Q38: 0.4 | R38: 2 | S38: 0.133
A39: ='Control Panel'!H94 -> Chingford Medical Practice | B39: ='Control Panel'!I94 -> Y01291 | C39: 9173 | D39: 96 | E39: 0.01 | F39: 79 | G39: 0.823 | H39: 26 | I39: 0.271 | J39: 1 | K39: 0.01 | L39: 6 | M39: 0.063 | N39: 25 | O39: 0.26 | P39: 4 | Q39: 0.16 | R39: 13 | S39: 0.135
A40: ='Control Panel'!H95 -> Lime Tree and Sinnott Healthcare Ltd | B40: ='Control Panel'!I95 -> Y01839 | C40: 6236 | D40: 82 | E40: =IFERROR(D40/C40,"N/A") -> 0.013 | F40: 66 | G40: =IFERROR(F40/$D40,"N/A") -> 0.805 | H40: 14 | I40: =IFERROR(H40/$D40,"N/A") -> 0.171 | J40: 0 | K40: =IFERROR(J40/$D40,"N/A") -> 0 | L40: 4 | M40: =IFERROR(L40/$D40,"N/A") -> 0.049 | N40: 16 | O40: =IFERROR(N40/$D40,"N/A") -> 0.195 | P40: 0 | Q40: 0 | R40: 7 | S40: =IFERROR(R40/$D40,"N/A") -> 0.085

Sheet CKD
C1: 01. Listsize | D1: =INDEX('Control Panel'!$B$124:$B$135,COLUMN(D1)-COLUMN($D$1)+1) -> LDP.08 CKD Register | E1: =INDEX('Control Panel'!$B$124:$B$135,COLUMN(E1)-COLUMN($D$1)+1) -> %LDP.08 CKD Register | F1: =INDEX('Control Panel'!$B$124:$B$135,COLUMN(F1)-COLUMN($D$1)+1) -> LDP.08.03 CKD and BP Recorded (last 12 m) | G1: =INDEX('Control Panel'!$B$124:$B$135,COLUMN(G1)-COLUMN($D$1)+1) -> %LDP.08.03 CKD and BP Recorded (last 12 m) | H1: =INDEX('Control Panel'!$B$124:$B$135,COLUMN(H1)-COLUMN($D$1)+1) -> LDP.08.01 CKD and BP less than 140/90 (last 12 m) | I1: =INDEX('Control Panel'!$B$124:$B$135,COLUMN(I1)-COLUMN($D$1)+1) -> %LDP.08.01 CKD and BP less than 140/90 (last 12 m) | J1: =INDEX('Control Panel'!$B$124:$B$135,COLUMN(J1)-COLUMN($D$1)+1) -> LDP.08.02 CKD Diagnosed (Last 6m) | K1: =INDEX('Control Panel'!$B$124:$B$135,COLUMN(K1)-COLUMN($D$1)+1) -> %LDP.08.02 CKD Diagnosed (Last 6m)
C2: Waltham Forest - Practice Clinical Trends (LDP) Report
B3: =VLOOKUP(C3,'Control Panel'!I14:J25,2,FALSE) -> 2022-04-01 | C3: March 2022 | D3: =VLOOKUP(C3,'Control Panel'!I14:J25,2,FALSE) -> 44652
B4: 2020-02-01 | C4: ='Control Panel'!B123 -> CKD
A5: Home | C5: =VLOOKUP(C1,'Control Panel'!$B$3:$C$131,2,FALSE) -> List Size | D5: =VLOOKUP(D1,'Control Panel'!$B$3:$D$131,3,FALSE) -> No. of patients on CKD register | E5: =VLOOKUP(E1,'Control Panel'!$B$3:$D$131,3,FALSE) -> % List Size | F5: =VLOOKUP(F1,'Control Panel'!$B$3:$D$131,3,FALSE) -> BP Recorded (last 12m) | G5: =VLOOKUP(G1,'Control Panel'!$B$3:$D$131,3,FALSE) -> % CKD register | H5: =VLOOKUP(H1,'Control Panel'!$B$3:$D$131,3,FALSE) -> BP < 140/90 | I5: =VLOOKUP(I1,'Control Panel'!$B$3:$D$131,3,FALSE) -> % CKD register | J5: =VLOOKUP(J1,'Control Panel'!$B$3:$D$131,3,FALSE) -> No of patients with new diagnosis of CKD (last 6m) | K5: =VLOOKUP(K1,'Control Panel'!$B$3:$D$131,3,FALSE) -> % CKD register
A6: Practice Name | B6: Total | C6: =SUM(C7:C40) -> 269929 | D6: =SUM(D7:D40) -> 8232 | E6: =IFERROR(D6/C6,"N/A") -> 0.03 | F6: =SUM(F7:F40) -> 6312 | G6: =IFERROR(F6/D6,"N/A") -> 0.767 | H6: =SUM(H7:H40) -> 4428 | I6: =IFERROR(H6/D6,"N/A") -> 0.538 | J6: =SUM(J7:J40) -> 352 | K6: =IFERROR(J6/D6,"N/A") -> 0.043
A7: ='Control Panel'!H62 -> The Firs Medical Centre | B7: ='Control Panel'!I62 -> F86001 | C7: =SUMIFS(OFFSET(REL_D,,MATCH(C$1,IND,0)-2),REL_D,$D$3,OrgID,$B7) -> 7729 | D7: 305 | E7: =IFERROR(D7/C7,"N/A") -> 0.039 | F7: =SUMIFS(OFFSET(REL_D,,MATCH(F$1,IND,0)-2),REL_D,$D$3,OrgID,$B7) -> 223 | G7: =IFERROR(F7/$D7,"N/A") -> 0.731 | H7: =SUMIFS(OFFSET(REL_D,,MATCH(H$1,IND,0)-2),REL_D,$D$3,OrgID,$B7) -> 154 | I7: =IFERROR(H7/$D7,"N/A") -> 0.505 | J7: =SUMIFS(OFFSET(REL_D,,MATCH(J$1,IND,0)-2),REL_D,$D$3,OrgID,$B7) -> 8 | K7: =IFERROR(J7/$D7,"N/A") -> 0.026
A8: ='Control Panel'!H63 -> Penryhn Surgery | B8: ='Control Panel'!I63 -> F86005 | C8: 9510 | D8: 338 | E8: =IFERROR(D8/C8,"N/A") -> 0.036 | F8: 245 | G8: =IFERROR(F8/$D8,"N/A") -> 0.725 | H8: 168 | I8: =IFERROR(H8/$D8,"N/A") -> 0.497 | J8: 7 | K8: =IFERROR(J8/$D8,"N/A") -> 0.021
A9: ='Control Panel'!H64 -> Seymour Medical Centre | B9: ='Control Panel'!I64 -> F86006 | C9: 6825 | D9: 154 | E9: 0.023 | F9: 130 | G9: 0.844 | H9: 66 | I9: 0.429 | J9: 0 | K9: 0
A10: ='Control Panel'!H65 -> The Manor Practice | B10: ='Control Panel'!I65 -> F86011 | C10: 9698 | D10: 254 | E10: 0.026 | F10: 211 | G10: 0.831 | H10: 132 | I10: 0.52 | J10: 9 | K10: 0.035
A11: ='Control Panel'!H66 -> Queens Road Medical Centre | B11: ='Control Panel'!I66 -> F86030 | C11: 8161 | D11: 216 | E11: 0.026 | F11: 191 | G11: 0.884 | H11: 144 | I11: 0.667 | J11: 6 | K11: 0.028
A12: ='Control Panel'!H67 -> The Allum Medical Centre | B12: ='Control Panel'!I67 -> F86036 | C12: 14732 | D12: 320 | E12: 0.022 | F12: 257 | G12: 0.803 | H12: 193 | I12: 0.603 | J12: 3 | K12: 0.009
A13: ='Control Panel'!H68 -> SMA Medical Centre | B13: ='Control Panel'!I68 -> F86038 | C13: 11105 | D13: 250 | E13: 0.023 | F13: 219 | G13: 0.876 | H13: 170 | I13: 0.68 | J13: 8 | K13: 0.032
A14: ='Control Panel'!H69 -> Crawley Road Medical Centre | B14: ='Control Panel'!I69 -> F86044 | C14: 10802 | D14: 227 | E14: 0.021 | F14: 148 | G14: 0.652 | H14: 94 | I14: 0.414 | J14: 5 | K14: 0.022
A15: ='Control Panel'!H70 -> High Road Surgery | B15: ='Control Panel'!I70 -> F86045 | C15: 2026 | D15: 60 | E15: 0.03 | F15: 51 | G15: 0.85 | H15: 43 | I15: 0.717 | J15: 2 | K15: 0.033
A16: ='Control Panel'!H71 -> St James Medical Practice Ltd | B16: ='Control Panel'!I71 -> F86058 | C16: 16561 | D16: 348 | E16: 0.021 | F16: 286 | G16: 0.822 | H16: 231 | I16: 0.664 | J16: 12 | K16: 0.034
A17: ='Control Panel'!H72 -> The Grove Road Medical Centre | B17: ='Control Panel'!I72 -> F86062 | C17: 7155 | D17: 167 | E17: 0.023 | F17: 124 | G17: 0.743 | H17: 75 | I17: 0.449 | J17: 16 | K17: 0.096
A18: ='Control Panel'!H73 -> The Ridgeway Surgery | B18: ='Control Panel'!I73 -> F86078 | C18: 6869 | D18: 156 | E18: 0.023 | F18: 93 | G18: 0.596 | H18: 66 | I18: 0.423 | J18: 4 | K18: 0.026
A19: ='Control Panel'!H74 -> Dr Dhital Practice | B19: ='Control Panel'!I74 -> F86086 | C19: 6265 | D19: 103 | E19: 0.016 | F19: 70 | G19: 0.68 | H19: 55 | I19: 0.534 | J19: 1 | K19: 0.01
A20: ='Control Panel'!H75 -> The Lyndhurst Surgery | B20: ='Control Panel'!I75 -> F86088 | C20: 5027 | D20: 185 | E20: 0.037 | F20: 128 | G20: 0.692 | H20: 88 | I20: 0.476 | J20: 5 | K20: 0.027
A21: ='Control Panel'!H76 -> Addison Road Medical Practice | B21: ='Control Panel'!I76 -> F86607 | C21: 15547 | D21: 370 | E21: 0.024 | F21: 284 | G21: 0.768 | H21: 183 | I21: 0.495 | J21: 20 | K21: 0.054
A22: ='Control Panel'!H77 -> The Old Church Surgery | B22: ='Control Panel'!I77 -> F86616 | C22: 7996 | D22: 345 | E22: 0.043 | F22: 306 | G22: 0.887 | H22: 236 | I22: 0.684 | J22: 11 | K22: 0.032
A23: ='Control Panel'!H78 -> Green Man Medical Centre | B23: ='Control Panel'!I78 -> F86621 | C23: 6445 | D23: 204 | E23: 0.032 | F23: 147 | G23: 0.721 | H23: 110 | I23: 0.539 | J23: 3 | K23: 0.015
A24: ='Control Panel'!H79 -> L.L. Medical Care Ltd (Agarwal & Agrawal Practice) | B24: ='Control Panel'!I79 -> F86625 | C24: 5882 | D24: 210 | E24: 0.036 | F24: 171 | G24: 0.814 | H24: 113 | I24: 0.538 | J24: 7 | K24: 0.033
A25: ='Control Panel'!H80 -> Dr Shantir's Practice - Forest Road Medical Centre | B25: ='Control Panel'!I80 -> F86626 | C25: 7021 | D25: 120 | E25: 0.017 | F25: 70 | G25: 0.583 | H25: 49 | I25: 0.408 | J25: 0 | K25: 0
A26: ='Control Panel'!H81 -> Churchill Medical Centre | B26: ='Control Panel'!I81 -> F86627 | C26: 13283 | D26: 712 | E26: 0.054 | F26: 538 | G26: 0.756 | H26: 349 | I26: 0.49 | J26: 2 | K26: 0.003
A27: ='Control Panel'!H82 -> Waltham Forest Community And FHS Ltd | B27: ='Control Panel'!I82 -> F86644 | C27: =SUMIFS(OFFSET(REL_D,,MATCH(C$1,IND,0)-2),REL_D,$D$3,OrgID,$B27) -> 9254 | D27: 330 | E27: 0.036 | F27: 213 | G27: 0.645 | H27: 144 | I27: 0.436 | J27: 38 | K27: 0.115
A28: ='Control Panel'!H83 -> Lime Tree Surgery | B28: ='Control Panel'!I83 -> F86650 | C28: 8080 | D28: 225 | E28: 0.028 | F28: 156 | G28: 0.693 | H28: 100 | I28: 0.444 | J28: 6 | K28: 0.027
A29: ='Control Panel'!H84 -> Larkshall Medical Centre | B29: ='Control Panel'!I84 -> F86664 | C29: 8471 | D29: 267 | E29: 0.032 | F29: 180 | G29: 0.674 | H29: 143 | I29: 0.536 | J29: 33 | K29: 0.124
A30: ='Control Panel'!H85 -> The Harrow Rd GP Surgery | B30: ='Control Panel'!I85 -> F86666 | C30: 14983 | D30: 414 | E30: 0.028 | F30: 342 | G30: 0.826 | H30: 247 | I30: 0.597 | J30: 15 | K30: 0.036
A31: ='Control Panel'!H86 -> Higham Hill Medical Centre | B31: ='Control Panel'!I86 -> F86679 | C31: 6372 | D31: 120 | E31: 0.019 | F31: 103 | G31: 0.858 | H31: 82 | I31: 0.683 | J31: 5 | K31: 0.042
A32: ='Control Panel'!H87 -> The Bailey Practice | B32: ='Control Panel'!I87 -> F86689 | C32: 4395 | D32: 99 | E32: 0.023 | F32: 74 | G32: 0.747 | H32: 51 | I32: 0.515 | J32: 2 | K32: 0.02
A33: ='Control Panel'!H88 -> Francis Road Medical Centre | B33: ='Control Panel'!I88 -> F86696 | C33: 6883 | D33: 166 | E33: 0.024 | F33: 145 | G33: 0.873 | H33: 77 | I33: 0.464 | J33: 5 | K33: 0.03
A34: ='Control Panel'!H89 -> Kingshead Medical Practice | B34: ='Control Panel'!I89 -> F86700 | C34: 3901 | D34: 344 | E34: 0.088 | F34: 270 | G34: 0.785 | H34: 212 | I34: 0.616 | J34: 12 | K34: 0.035
A35: ='Control Panel'!H90 -> Kiyani Medical Practice | B35: ='Control Panel'!I90 -> F86701 | C35: 3853 | D35: 141 | E35: 0.037 | F35: 106 | G35: 0.752 | H35: 79 | I35: 0.56 | J35: 7 | K35: 0.05
A36: ='Control Panel'!H91 -> Langthorne Sharma Family Practice | B36: ='Control Panel'!I91 -> F86705 | C36: 3512 | D36: 90 | E36: 0.026 | F36: 72 | G36: 0.8 | H36: 50 | I36: 0.556 | J36: 1 | K36: 0.011
A37: ='Control Panel'!H92 -> Claremont Medical Centre | B37: ='Control Panel'!I92 -> F86708 | C37: 2782 | D37: 98 | E37: 0.035 | F37: 73 | G37: 0.745 | H37: 51 | I37: 0.52 | J37: 3 | K37: 0.031
A38: ='Control Panel'!H93 -> Hampton Medical Centre | B38: ='Control Panel'!I93 -> F86712 | C38: 3395 | D38: 98 | E38: 0.029 | F38: 80 | G38: 0.816 | H38: 51 | I38: 0.52 | J38: 7 | K38: 0.071
A39: ='Control Panel'!H94 -> Chingford Medical Practice | B39: ='Control Panel'!I94 -> Y01291 | C39: 9173 | D39: 605 | E39: 0.066 | F39: 499 | G39: 0.825 | H39: 340 | I39: 0.562 | J39: 87 | K39: 0.144
A40: ='Control Panel'!H95 -> Lime Tree and Sinnott Healthcare Ltd | B40: ='Control Panel'!I95 -> Y01839 | C40: 6236 | D40: 191 | E40: =IFERROR(D40/C40,"N/A") -> 0.031 | F40: 107 | G40: =IFERROR(F40/$D40,"N/A") -> 0.56 | H40: 82 | I40: =IFERROR(H40/$D40,"N/A") -> 0.429 | J40: 2 | K40: =IFERROR(J40/$D40,"N/A") -> 0.01

Sheet COPD
C1: 01. Listsize | D1: LDP.09 COPD Register | E1: ="%"&D1 -> %LDP.09 COPD Register | F1: LDP.09.01 Patients with severe or very severe COPD (FEV1<50) | G1: ="%"&F1 -> %LDP.09.01 Patients with severe or very severe COPD (FEV1<50) | H1: LDP.09.02 Patients with smoking status recorded (last 12m) or never smoked | I1: ="%"&H1 -> %LDP.09.02 Patients with smoking status recorded (last 12m) or never smoked | J1: LDP.09.03 COPD patients recorded as a Smoker | K1: ="%"&J1 -> %LDP.09.03 COPD patients recorded as a Smoker | L1: LDP.09.04 COPD Patients who are current smokers & referred to the Stop Smoking C | M1: ="%"&L1 -> %LDP.09.04 COPD Patients who are current smokers & referred to the Stop Smoking C | N1: LDP.09.05 No of COPD with flu vaccination (From August 2018) | O1: ="%"&N1 -> %LDP.09.05 No of COPD with flu vaccination (From August 2018) | P1: LDP.09.06 No of COPD with pneumococcal vaccination ever | Q1: ="%"&P1 -> %LDP.09.06 No of COPD with pneumococcal vaccination ever | R1: LDP.09.07 No of COPD patients referred to pulmonary rehab ever | S1: ="%"&R1 -> %LDP.09.07 No of COPD patients referred to pulmonary rehab ever
C2: Waltham Forest - Practice Clinical Trends (LDP) Report
B3: =VLOOKUP(C3,'Control Panel'!I14:J25,2,FALSE) -> 2022-04-01 | C3: March 2022 | D3: =VLOOKUP(C3,'Control Panel'!I14:J25,2,FALSE) -> 44652
B4: 2020-02-01 | C4: ='Control Panel'!B132 -> COPD | D4: 1 | E4: 2 | F4: 3 | G4: 4 | H4: 5 | I4: 6 | J4: 7 | K4: 8 | L4: 9 | M4: 10 | N4: 11 | O4: 12 | P4: 13 | Q4: 14 | R4: 15 | S4: 16
A5: Home | C5: List Size | D5: No. of patients on COPD register | E5: % List Size | F5: No of patients with severe or very severe COPD (FEV1<50) | G5: % COPD register | H5: No. of COPD Patients with smoking status recorded (last 12m) or never smoked | I5: % COPD | J5: No. of COPD patients recorded as a Smoker | K5: % COPD | L5: No. of COPD Patients who are current smokers & referred to the Stop Smoking Clinic (12m) | M5: % of current COPD smokers | N5: No of COPD with flu vaccination (From August 2021) | O5: % of COPD register | P5: No of COPD with pneumococcal vaccination ever | Q5: % of COPD register | R5: No of COPD patients referred to pulmonary rehab ever | S5: % of COPD register
A6: Practice Name | B6: Total | C6: =SUM(C7:C40) -> 269929 | D6: =SUM(D7:D40) -> 2214 | E6: =IFERROR(D6/C6,"N/A") -> 0.008 | F6: =SUM(F7:F40) -> 360 | G6: =IFERROR(F6/$D$6,"N/A") -> 0.163 | H6: =SUM(H7:H40) -> 1895 | I6: =IFERROR(H6/$D$6,"N/A") -> 0.856 | J6: =SUM(J7:J40) -> 659 | K6: =IFERROR(J6/$D$6,"N/A") -> 0.298 | L6: =SUM(L7:L40) -> 22 | M6: =IFERROR(L6/$J$6,"N/A") -> 0.033 | N6: =SUM(N7:N40) -> 1539 | O6: =IFERROR(N6/$D$6,"N/A") -> 0.695 | P6: =SUM(P7:P40) -> 1654 | Q6: =IFERROR(P6/$D$6,"N/A") -> 0.747 | R6: =SUM(R7:R40) -> 1131 | S6: =IFERROR(R6/$D$6,"N/A") -> 0.511
A7: ='Control Panel'!H62 -> The Firs Medical Centre | B7: ='Control Panel'!I62 -> F86001 | C7: =SUMIFS(OFFSET(REL_D,,MATCH(C$1,IND,0)-2),REL_D,$D$3,OrgID,$B7) -> 7729 | D7: 84 | E7: =IFERROR(D7/C7,"N/A") -> 0.011 | F7: =SUMIFS(OFFSET(REL_D,,MATCH(F$1,IND,0)-2),REL_D,$D$3,OrgID,$B7) -> 11 | G7: =IFERROR(F7/$D7,"N/A") -> 0.131 | H7: =SUMIFS(OFFSET(REL_D,,MATCH(H$1,IND,0)-2),REL_D,$D$3,OrgID,$B7) -> 64 | I7: =IFERROR(H7/$D7,"N/A") -> 0.762 | J7: =SUMIFS(OFFSET(REL_D,,MATCH(J$1,IND,0)-2),REL_D,$D$3,OrgID,$B7) -> 17 | K7: =IFERROR(J7/$D7,"N/A") -> 0.202 | L7: =SUMIFS(OFFSET(REL_D,,MATCH(L$1,IND,0)-2),REL_D,$D$3,OrgID,$B7) -> 0 | M7: =IFERROR(L7/$J7,"N/A") -> 0 | N7: =SUMIFS(OFFSET(REL_D,,MATCH(N$1,IND,0)-2),REL_D,$D$3,OrgID,$B7) -> 48 | O7: =IFERROR(N7/$D7,"N/A") -> 0.571 | P7: =SUMIFS(OFFSET(REL_D,,MATCH(P$1,IND,0)-2),REL_D,$D$3,OrgID,$B7) -> 55 | Q7: =IFERROR(P7/$D7,"N/A") -> 0.655 | R7: =SUMIFS(OFFSET(REL_D,,MATCH(R$1,IND,0)-2),REL_D,$D$3,OrgID,$B7) -> 30 | S7: =IFERROR(R7/$D7,"N/A") -> 0.357
A8: ='Control Panel'!H63 -> Penryhn Surgery | B8: ='Control Panel'!I63 -> F86005 | C8: 9510 | D8: 105 | E8: 0.011 | F8: 11 | G8: 0.105 | H8: 90 | I8: 0.857 | J8: 33 | K8: 0.314 | L8: 0 | M8: =IFERROR(L8/$J8,"N/A") -> 0 | N8: 80 | O8: =IFERROR(N8/$D8,"N/A") -> 0.762 | P8: 81 | Q8: =IFERROR(P8/$D8,"N/A") -> 0.771 | R8: 52 | S8: =IFERROR(R8/$D8,"N/A") -> 0.495
A9: ='Control Panel'!H64 -> Seymour Medical Centre | B9: ='Control Panel'!I64 -> F86006 | C9: 6825 | D9: 56 | E9: 0.008 | F9: 18 | G9: 0.321 | H9: 35 | I9: 0.625 | J9: 17 | K9: 0.304 | L9: 1 | M9: 0.059 | N9: 33 | O9: =IFERROR(N9/$D9,"N/A") -> 0.589 | P9: 31 | Q9: =IFERROR(P9/$D9,"N/A") -> 0.554 | R9: 35 | S9: =IFERROR(R9/$D9,"N/A") -> 0.625
A10: ='Control Panel'!H65 -> The Manor Practice | B10: ='Control Panel'!I65 -> F86011 | C10: 9698 | D10: 93 | E10: 0.01 | F10: 18 | G10: 0.194 | H10: 91 | I10: 0.978 | J10: 27 | K10: 0.29 | L10: 6 | M10: 0.222 | N10: 62 | O10: =IFERROR(N10/$D10,"N/A") -> 0.667 | P10: 70 | Q10: =IFERROR(P10/$D10,"N/A") -> 0.753 | R10: 60 | S10: =IFERROR(R10/$D10,"N/A") -> 0.645
A11: ='Control Panel'!H66 -> Queens Road Medical Centre | B11: ='Control Panel'!I66 -> F86030 | C11: 8161 | D11: 38 | E11: 0.005 | F11: 4 | G11: 0.105 | H11: 36 | I11: 0.947 | J11: 10 | K11: 0.263 | L11: 0 | M11: 0 | N11: 30 | O11: =IFERROR(N11/$D11,"N/A") -> 0.789 | P11: 29 | Q11: =IFERROR(P11/$D11,"N/A") -> 0.763 | R11: 13 | S11: =IFERROR(R11/$D11,"N/A") -> 0.342
A12: ='Control Panel'!H67 -> The Allum Medical Centre | B12: ='Control Panel'!I67 -> F86036 | C12: 14732 | D12: 105 | E12: 0.007 | F12: 20 | G12: 0.19 | H12: 100 | I12: 0.952 | J12: 37 | K12: 0.352 | L12: 3 | M12: 0.081 | N12: 74 | O12: =IFERROR(N12/$D12,"N/A") -> 0.705 | P12: 85 | Q12: =IFERROR(P12/$D12,"N/A") -> 0.81 | R12: 81 | S12: =IFERROR(R12/$D12,"N/A") -> 0.771
A13: ='Control Panel'!H68 -> SMA Medical Centre | B13: ='Control Panel'!I68 -> F86038 | C13: 11105 | D13: 46 | E13: 0.004 | F13: 7 | G13: 0.152 | H13: 44 | I13: 0.957 | J13: 12 | K13: 0.261 | L13: 1 | M13: 0.083 | N13: 37 | O13: =IFERROR(N13/$D13,"N/A") -> 0.804 | P13: 30 | Q13: =IFERROR(P13/$D13,"N/A") -> 0.652 | R13: 22 | S13: =IFERROR(R13/$D13,"N/A") -> 0.478
A14: ='Control Panel'!H69 -> Crawley Road Medical Centre | B14: ='Control Panel'!I69 -> F86044 | C14: 10802 | D14: 35 | E14: 0.003 | F14: 5 | G14: 0.143 | H14: 33 | I14: 0.943 | J14: 8 | K14: 0.229 | L14: 0 | M14: 0 | N14: 19 | O14: =IFERROR(N14/$D14,"N/A") -> 0.543 | P14: 26 | Q14: =IFERROR(P14/$D14,"N/A") -> 0.743 | R14: 15 | S14: =IFERROR(R14/$D14,"N/A") -> 0.429
A15: ='Control Panel'!H70 -> High Road Surgery | B15: ='Control Panel'!I70 -> F86045 | C15: 2026 | D15: 20 | E15: 0.01 | F15: 1 | G15: 0.05 | H15: 19 | I15: 0.95 | J15: 8 | K15: 0.4 | L15: 0 | M15: 0 | N15: 16 | O15: =IFERROR(N15/$D15,"N/A") -> 0.8 | P15: 17 | Q15: =IFERROR(P15/$D15,"N/A") -> 0.85 | R15: 4 | S15: =IFERROR(R15/$D15,"N/A") -> 0.2
A16: ='Control Panel'!H71 -> St James Medical Practice Ltd | B16: ='Control Panel'!I71 -> F86058 | C16: 16561 | D16: 108 | E16: 0.007 | F16: 14 | G16: 0.13 | H16: 99 | I16: 0.917 | J16: 30 | K16: 0.278 | L16: 0 | M16: 0 | N16: 70 | O16: =IFERROR(N16/$D16,"N/A") -> 0.648 | P16: 85 | Q16: =IFERROR(P16/$D16,"N/A") -> 0.787 | R16: 45 | S16: =IFERROR(R16/$D16,"N/A") -> 0.417
A17: ='Control Panel'!H72 -> The Grove Road Medical Centre | B17: ='Control Panel'!I72 -> F86062 | C17: 7155 | D17: 61 | E17: 0.009 | F17: 16 | G17: 0.262 | H17: 60 | I17: 0.984 | J17: 21 | K17: 0.344 | L17: 2 | M17: 0.095 | N17: 34 | O17: =IFERROR(N17/$D17,"N/A") -> 0.557 | P17: 43 | Q17: =IFERROR(P17/$D17,"N/A") -> 0.705 | R17: 25 | S17: =IFERROR(R17/$D17,"N/A") -> 0.41
A18: ='Control Panel'!H73 -> The Ridgeway Surgery | B18: ='Control Panel'!I73 -> F86078 | C18: 6869 | D18: 72 | E18: 0.01 | F18: 6 | G18: 0.083 | H18: 47 | I18: 0.653 | J18: 14 | K18: 0.194 | L18: 0 | M18: 0 | N18: 59 | O18: =IFERROR(N18/$D18,"N/A") -> 0.819 | P18: 53 | Q18: =IFERROR(P18/$D18,"N/A") -> 0.736 | R18: 10 | S18: =IFERROR(R18/$D18,"N/A") -> 0.139
A19: ='Control Panel'!H74 -> Dr Dhital Practice | B19: ='Control Panel'!I74 -> F86086 | C19: 6265 | D19: 30 | E19: 0.005 | F19: 2 | G19: 0.067 | H19: 23 | I19: 0.767 | J19: 5 | K19: 0.167 | L19: 0 | M19: 0 | N19: 15 | O19: =IFERROR(N19/$D19,"N/A") -> 0.5 | P19: 16 | Q19: =IFERROR(P19/$D19,"N/A") -> 0.533 | R19: 11 | S19: =IFERROR(R19/$D19,"N/A") -> 0.367
A20: ='Control Panel'!H75 -> The Lyndhurst Surgery | B20: ='Control Panel'!I75 -> F86088 | C20: 5027 | D20: 36 | E20: 0.007 | F20: 7 | G20: 0.194 | H20: 24 | I20: 0.667 | J20: 7 | K20: 0.194 | L20: 0 | M20: 0 | N20: 21 | O20: =IFERROR(N20/$D20,"N/A") -> 0.583 | P20: 28 | Q20: =IFERROR(P20/$D20,"N/A") -> 0.778 | R20: 19 | S20: =IFERROR(R20/$D20,"N/A") -> 0.528
A21: ='Control Panel'!H76 -> Addison Road Medical Practice | B21: ='Control Panel'!I76 -> F86607 | C21: 15547 | D21: 88 | E21: 0.006 | F21: 10 | G21: 0.114 | H21: 77 | I21: 0.875 | J21: 34 | K21: 0.386 | L21: 3 | M21: 0.088 | N21: 66 | O21: =IFERROR(N21/$D21,"N/A") -> 0.75 | P21: 72 | Q21: =IFERROR(P21/$D21,"N/A") -> 0.818 | R21: 57 | S21: =IFERROR(R21/$D21,"N/A") -> 0.648
A22: ='Control Panel'!H77 -> The Old Church Surgery | B22: ='Control Panel'!I77 -> F86616 | C22: 7996 | D22: 69 | E22: 0.009 | F22: 6 | G22: 0.087 | H22: 58 | I22: 0.841 | J22: 15 | K22: 0.217 | L22: 0 | M22: 0 | N22: 52 | O22: =IFERROR(N22/$D22,"N/A") -> 0.754 | P22: 59 | Q22: =IFERROR(P22/$D22,"N/A") -> 0.855 | R22: 21 | S22: =IFERROR(R22/$D22,"N/A") -> 0.304
A23: ='Control Panel'!H78 -> Green Man Medical Centre | B23: ='Control Panel'!I78 -> F86621 | C23: 6445 | D23: 28 | E23: 0.004 | F23: 1 | G23: 0.036 | H23: 26 | I23: 0.929 | J23: 11 | K23: 0.393 | L23: 2 | M23: 0.182 | N23: 20 | O23: =IFERROR(N23/$D23,"N/A") -> 0.714 | P23: 24 | Q23: =IFERROR(P23/$D23,"N/A") -> 0.857 | R23: 24 | S23: =IFERROR(R23/$D23,"N/A") -> 0.857
A24: ='Control Panel'!H79 -> L.L. Medical Care Ltd (Agarwal & Agrawal Practice) | B24: ='Control Panel'!I79 -> F86625 | C24: 5882 | D24: 50 | E24: 0.009 | F24: 13 | G24: 0.26 | H24: 41 | I24: 0.82 | J24: 17 | K24: 0.34 | L24: 0 | M24: 0 | N24: 32 | O24: =IFERROR(N24/$D24,"N/A") -> 0.64 | P24: 31 | Q24: =IFERROR(P24/$D24,"N/A") -> 0.62 | R24: 47 | S24: =IFERROR(R24/$D24,"N/A") -> 0.94
A25: ='Control Panel'!H80 -> Dr Shantir's Practice - Forest Road Medical Centre | B25: ='Control Panel'!I80 -> F86626 | C25: 7021 | D25: 26 | E25: 0.004 | F25: 7 | G25: 0.269 | H25: 18 | I25: 0.692 | J25: 4 | K25: 0.154 | L25: 0 | M25: 0 | N25: 15 | O25: =IFERROR(N25/$D25,"N/A") -> 0.577 | P25: 18 | Q25: =IFERROR(P25/$D25,"N/A") -> 0.692 | R25: 10 | S25: =IFERROR(R25/$D25,"N/A") -> 0.385
A26: ='Control Panel'!H81 -> Churchill Medical Centre | B26: ='Control Panel'!I81 -> F86627 | C26: 13283 | D26: 223 | E26: 0.017 | F26: 35 | G26: 0.157 | H26: 186 | I26: 0.834 | J26: 76 | K26: 0.341 | L26: 0 | M26: 0 | N26: 142 | O26: =IFERROR(N26/$D26,"N/A") -> 0.637 | P26: 164 | Q26: =IFERROR(P26/$D26,"N/A") -> 0.735 | R26: 108 | S26: =IFERROR(R26/$D26,"N/A") -> 0.484
A27: ='Control Panel'!H82 -> Waltham Forest Community And FHS Ltd | B27: ='Control Panel'!I82 -> F86644 | C27: =SUMIFS(OFFSET(REL_D,,MATCH(C$1,IND,0)-2),REL_D,$D$3,OrgID,$B27) -> 9254 | D27: 89 | E27: 0.01 | F27: 10 | G27: 0.112 | H27: 77 | I27: 0.865 | J27: 19 | K27: 0.213 | L27: 1 | M27: 0.053 | N27: 59 | O27: =IFERROR(N27/$D27,"N/A") -> 0.663 | P27: 68 | Q27: =IFERROR(P27/$D27,"N/A") -> 0.764 | R27: 36 | S27: =IFERROR(R27/$D27,"N/A") -> 0.404
A28: ='Control Panel'!H83 -> Lime Tree Surgery | B28: ='Control Panel'!I83 -> F86650 | C28: 8080 | D28: 57 | E28: 0.007 | F28: 12 | G28: 0.211 | H28: 50 | I28: 0.877 | J28: 13 | K28: 0.228 | L28: 0 | M28: 0 | N28: 42 | O28: =IFERROR(N28/$D28,"N/A") -> 0.737 | P28: 37 | Q28: =IFERROR(P28/$D28,"N/A") -> 0.649 | R28: 42 | S28: =IFERROR(R28/$D28,"N/A") -> 0.737
A29: ='Control Panel'!H84 -> Larkshall Medical Centre | B29: ='Control Panel'!I84 -> F86664 | C29: 8471 | D29: 96 | E29: 0.011 | F29: 14 | G29: 0.146 | H29: 89 | I29: 0.927 | J29: 24 | K29: 0.25 | L29: 0 | M29: 0 | N29: 75 | O29: =IFERROR(N29/$D29,"N/A") -> 0.781 | P29: 81 | Q29: =IFERROR(P29/$D29,"N/A") -> 0.844 | R29: 32 | S29: =IFERROR(R29/$D29,"N/A") -> 0.333
A30: ='Control Panel'!H85 -> The Harrow Rd GP Surgery | B30: ='Control Panel'!I85 -> F86666 | C30: 14983 | D30: 122 | E30: 0.008 | F30: 38 | G30: 0.311 | H30: 115 | I30: 0.943 | J30: 60 | K30: 0.492 | L30: 1 | M30: 0.017 | N30: 83 | O30: =IFERROR(N30/$D30,"N/A") -> 0.68 | P30: 91 | Q30: =IFERROR(P30/$D30,"N/A") -> 0.746 | R30: 50 | S30: =IFERROR(R30/$D30,"N/A") -> 0.41
A31: ='Control Panel'!H86 -> Higham Hill Medical Centre | B31: ='Control Panel'!I86 -> F86679 | C31: 6372 | D31: 32 | E31: 0.005 | F31: 10 | G31: 0.313 | H31: 31 | I31: 0.969 | J31: 11 | K31: 0.344 | L31: 0 | M31: 0 | N31: 20 | O31: =IFERROR(N31/$D31,"N/A") -> 0.625 | P31: 19 | Q31: =IFERROR(P31/$D31,"N/A") -> 0.594 | R31: 12 | S31: =IFERROR(R31/$D31,"N/A") -> 0.375
A32: ='Control Panel'!H87 -> The Bailey Practice | B32: ='Control Panel'!I87 -> F86689 | C32: 4395 | D32: 44 | E32: 0.01 | F32: 2 | G32: 0.045 | H32: 41 | I32: 0.932 | J32: 15 | K32: 0.341 | L32: 1 | M32: 0.067 | N32: 31 | O32: =IFERROR(N32/$D32,"N/A") -> 0.705 | P32: 26 | Q32: =IFERROR(P32/$D32,"N/A") -> 0.591 | R32: 25 | S32: =IFERROR(R32/$D32,"N/A") -> 0.568
A33: ='Control Panel'!H88 -> Francis Road Medical Centre | B33: ='Control Panel'!I88 -> F86696 | C33: 6883 | D33: 25 | E33: 0.004 | F33: 3 | G33: 0.12 | H33: 21 | I33: 0.84 | J33: 5 | K33: 0.2 | L33: 0 | M33: 0 | N33: 13 | O33: =IFERROR(N33/$D33,"N/A") -> 0.52 | P33: 13 | Q33: =IFERROR(P33/$D33,"N/A") -> 0.52 | R33: 16 | S33: =IFERROR(R33/$D33,"N/A") -> 0.64
A34: ='Control Panel'!H89 -> Kingshead Medical Practice | B34: ='Control Panel'!I89 -> F86700 | C34: 3901 | D34: 104 | E34: 0.027 | F34: 13 | G34: 0.125 | H34: 93 | I34: 0.894 | J34: 31 | K34: 0.298 | L34: 0 | M34: 0 | N34: 90 | O34: =IFERROR(N34/$D34,"N/A") -> 0.865 | P34: 87 | Q34: =IFERROR(P34/$D34,"N/A") -> 0.837 | R34: 64 | S34: =IFERROR(R34/$D34,"N/A") -> 0.615
A35: ='Control Panel'!H90 -> Kiyani Medical Practice | B35: ='Control Panel'!I90 -> F86701 | C35: 3853 | D35: 24 | E35: 0.006 | F35: 6 | G35: 0.25 | H35: 17 | I35: 0.708 | J35: 10 | K35: 0.417 | L35: 0 | M35: 0 | N35: 18 | O35: =IFERROR(N35/$D35,"N/A") -> 0.75 | P35: 19 | Q35: =IFERROR(P35/$D35,"N/A") -> 0.792 | R35: 17 | S35: =IFERROR(R35/$D35,"N/A") -> 0.708
A36: ='Control Panel'!H91 -> Langthorne Sharma Family Practice | B36: ='Control Panel'!I91 -> F86705 | C36: 3512 | D36: 27 | E36: 0.008 | F36: 4 | G36: 0.148 | H36: 23 | I36: 0.852 | J36: 11 | K36: 0.407 | L36: 0 | M36: 0 | N36: 23 | O36: =IFERROR(N36/$D36,"N/A") -> 0.852 | P36: 18 | Q36: =IFERROR(P36/$D36,"N/A") -> 0.667 | R36: 14 | S36: =IFERROR(R36/$D36,"N/A") -> 0.519
A37: ='Control Panel'!H92 -> Claremont Medical Centre | B37: ='Control Panel'!I92 -> F86708 | C37: 2782 | D37: 17 | E37: 0.006 | F37: 3 | G37: 0.176 | H37: 14 | I37: 0.824 | J37: 1 | K37: 0.059 | L37: 1 | M37: 1 | N37: 13 | O37: =IFERROR(N37/$D37,"N/A") -> 0.765 | P37: 13 | Q37: =IFERROR(P37/$D37,"N/A") -> 0.765 | R37: 11 | S37: =IFERROR(R37/$D37,"N/A") -> 0.647
A38: ='Control Panel'!H93 -> Hampton Medical Centre | B38: ='Control Panel'!I93 -> F86712 | C38: 3395 | D38: 14 | E38: 0.004 | F38: 4 | G38: 0.286 | H38: 11 | I38: 0.786 | J38: 3 | K38: 0.214 | L38: 0 | M38: 0 | N38: 11 | O38: =IFERROR(N38/$D38,"N/A") -> 0.786 | P38: 11 | Q38: =IFERROR(P38/$D38,"N/A") -> 0.786 | R38: 6 | S38: =IFERROR(R38/$D38,"N/A") -> 0.429
A39: ='Control Panel'!H94 -> Chingford Medical Practice | B39: ='Control Panel'!I94 -> Y01291 | C39: 9173 | D39: 113 | E39: 0.012 | F39: 24 | G39: 0.212 | H39: 89 | I39: 0.788 | J39: 27 | K39: 0.239 | L39: 0 | M39: 0 | N39: 83 | O39: =IFERROR(N39/$D39,"N/A") -> 0.735 | P39: 90 | Q39: =IFERROR(P39/$D39,"N/A") -> 0.796 | R39: 96 | S39: =IFERROR(R39/$D39,"N/A") -> 0.85
A40: ='Control Panel'!H95 -> Lime Tree and Sinnott Healthcare Ltd | B40: ='Control Panel'!I95 -> Y01839 | C40: 6236 | D40: 77 | E40: 0.012 | F40: 5 | G40: 0.065 | H40: 53 | I40: 0.688 | J40: 26 | K40: 0.338 | L40: 0 | M40: 0 | N40: 53 | O40: =IFERROR(N40/$D40,"N/A") -> 0.688 | P40: 64 | Q40: =IFERROR(P40/$D40,"N/A") -> 0.831 | R40: 21 | S40: =IFERROR(R40/$D40,"N/A") -> 0.273

Sheet Practice list (hidden)
A1: Practice ID | B1: Practice | C1: Locality ID | D1: Locality | E1: SubLocality ID | F1: SubLocality | G1: Address 1 | H1: Address 2 | I1: Postcode | J1: Grid Reference | K1: X (easting) | L1: Y (northing) | M1: Latitude | N1: Longitude
A2: F86700 | B2: Kings Head Medical Practice | C2: WF | D2: Waltham Forest | E2: WF-1 | F2: Chingford/ Walthamstow | G2: 178 Kings Head Hill | H2: Chingford | I2: E4 7NX | J2: TQ 37715 94859 | K2: 537715 | L2: 194859 | M2: 51.635688 | N2: -0.011447793
A3: F86664 | B3: Larkshall Medical Centre | C3: WF | D3: Waltham Forest | E3: WF-1 | F3: Chingford/ Walthamstow | G3: 1 Larkshall Road | H3: Chingford | I3: E4 7HS | J3: TQ 38739 93914 | K3: 538739 | L3: 193914 | M3: 51.626945 | N3: 0.0029649466
A4: F86638 | B4: The Microfaculty | C4: WF | D4: Waltham Forest | E4: WF-1 | F4: Chingford/ Walthamstow | G4: 107 Chingford Mount Road | H4: Chingford | I4: E4 8LT | J4: TQ 37307 92314 | K4: 537307 | L4: 192314 | M4: 51.612918 | N4: -0.018336229
A5: F86005 | B5: The Penryhn Surgery | C5: WF | D5: Waltham Forest | E5: WF-1 | F5: Chingford/ Walthamstow | G5: 2a Penryn Avenue | H5: Walthamstow | I5: E17 5DB | J5: TQ 36985 90544 | K5: 536985 | L5: 190544 | M5: 51.597091 | N5: -0.023674555
A6: F86626 | B6: Dr Shantir Practice | C6: WF | D6: Waltham Forest | E6: WF-1 | F6: Chingford/ Walthamstow | G6: 354-358 Forest Rd | H6: Walthamstow | I6: E17 5JG | J6: TQ 36694 89687 | K6: 536694 | L6: 189687 | M6: 51.589461 | N6: -0.028206729
A7: Y01839 | B7: Lime Tree & Sinnott Healthcare Ltd | C7: WF | D7: Waltham Forest | E7: WF-1 | F7: Chingford/ Walthamstow | G7: 12b Sinnott Road | H7: Walthamstow | I7: E17 5QB | J7: TQ 35891 90652 | K7: 535891 | L7: 190652 | M7: 51.598327 | N7: -0.039417391
A8: F86689 | B8: The Bailey Practice | C8: WF | D8: Waltham Forest | E8: WF-1 | F8: Chingford/ Walthamstow | G8: 107 Shernhall Street | H8: Walthamstow | I8: E17 9HS | J8: TQ 38167 89081 | K8: 538167 | L8: 189081 | M8: 51.583657 | N8: -0.0071959319
A9: F86026 | B9: Forest Surgery | C9: WF | D9: Waltham Forest | E9: WF-1 | F9: Chingford/ Walthamstow | G9: 2 Macdonald Road | H9: Walthamstow | I9: E17 4BA | J9: TQ 38283 90316 | K9: 538283 | L9: 190316 | M9: 51.594726 | N9: -0.0050366318
A10: F86004 | B10: Handsworth Medical Centre | C10: WF | D10: Waltham Forest | E10: WF-2 | F10: Chingford E4 | G10: Highams Park, Handsworth Avenue | H10: Chingford | I10: E4 9PD
A11: Y01291 | B11: Chingford Medical Practice | C11: WF | D11: Waltham Forest | E11: WF-2 | F11: Chingford E4 | G11: 109 York Road | H11: Chingford | I11: E4 8LF | J11: TQ 37006 92657 | K11: 537006 | L11: 192657 | M11: 51.616074 | N11: -0.022546676
A12: F86627 | B12: Churchill Medical Centre | C12: WF | D12: Waltham Forest | E12: WF-2 | F12: Chingford E4 | G12: 1 Churchill Terrace | H12: Chingford | I12: E4 8DG | J12: TQ 37293 92913 | K12: 537293 | L12: 192913 | M12: 51.618304 | N12: -0.018303841
A13: F86078 | B13: The Ridgeway Surgery | C13: WF | D13: Waltham Forest | E13: WF-2 | F13: Chingford E4 | G13: 1 Mount Echo Avenue | H13: Chingford | I13: E4 7JX | J13: TQ 37765 94083 | K13: 537765 | L13: 194083 | M13: 51.628702 | N13: -0.011030843
A14: F86616 | B14: Old Church Surgery | C14: WF | D14: Waltham Forest | E14: WF-2 | F14: Chingford E4 | G14: 99 Chingford Avenue | H14: Chingford | I14: E4 6RG | J14: TQ 37534 93450 | K14: 537534 | L14: 193450 | M14: 51.623071 | N14: -0.014614411
A15: F86011 | B15: The Manor Practice | C15: WF | D15: Waltham Forest | E15: WF-3 | F15: Leyton Collaborative | G15: 454 Lea Bridge Road | H15: Leyton | I15: E10 7DY | J15: TQ 37179 87682 | K15: 537179 | L15: 187682 | M15: 51.571326 | N15: -0.021992728
A16: F86038 | B16: Sma Medical Centre | C16: WF | D16: Waltham Forest | E16: WF-3 | F16: Leyton Collaborative | G16: 693-695 High Road | H16: Leyton | I16: E10 6RA | J16: TQ 38108 87688 | K16: 538108 | L16: 187688 | M16: 51.571154 | N16: -0.0085942014
A17: Y02585 | B17: The Orient Practice | C17: WF | D17: Waltham Forest | E17: WF-3 | F17: Leyton Collaborative | G17: 75 Oliver Rd | H17: Leyton | I17: E10 5LG | J17: TQ 37815 86429 | K17: 537815 | L17: 186429 | M17: 51.559912 | N17: -0.013312475
A18: F86074 | B18: Leyton Healthcare (Oliver Road) | C18: WF | D18: Waltham Forest | E18: WF-3 | F18: Leyton Collaborative | G18: Leyton Orient Football Club (West Stand), 75 Oliver Road | H18: Leyton | I18: E10 5LG | J18: TQ 37815 86429 | K18: 537815 | L18: 186429 | M18: 51.559912 | N18: -0.013312475
A19: F86036 | B19: The Allum Medical Centre | C19: WF | D19: Waltham Forest | E19: WF-4 | F19: Forest Integrated Health | G19: Fairlop Road | H19: Leytonstone | I19: E11 1BN | J19: TQ 38947 87574 | K19: 538947 | L19: 187574 | M19: 51.569923 | N19: 0.0034589922
A20: F86044 | B20: Crawley Road Medical Centre | C20: WF | D20: Waltham Forest | E20: WF-4 | F20: Forest Integrated Health | G20: 479 High Road | H20: Leyton | I20: E10 5EL | J20: TQ 37940 86918 | K20: 537940 | L20: 186918 | M20: 51.564276 | N20: -0.011318719
A21: F86696 | B21: Francis Road Medical Centre | C21: WF | D21: Waltham Forest | E21: WF-4 | F21: Forest Integrated Health | G21: 94 Francis Road | H21: Leyton | I21: E10 6PP | J21: TQ 38466 86672 | K21: 538466 | L21: 186672 | M21: 51.561936 | N21: -0.0038318205
A22: F86712 | B22: Hampton Medical Centre | C22: WF | D22: Waltham Forest | E22: WF-4 | F22: Forest Integrated Health | G22: 1 Pretoria Road | H22: Leytonstone | I22: E11 4BB | J22: TQ 38721 87186 | K22: 538721 | L22: 187186 | M22: 51.566492 | N22: 4.7171126e-05
A23: F86650 | B23: Lime Tree Surgery | C23: WF | D23: Waltham Forest | E23: WF-4 | F23: Forest Integrated Health | G23: 38 Cann Hall Road | H23: Leytonstone | I23: E11 3HZ | J23: TQ 39258 85734 | K23: 539258 | L23: 185734 | M23: 51.553313 | N23: 0.007215192
A24: F86088 | B24: The Lyndhurst Surgery | C24: WF | D24: Waltham Forest | E24: WF-4 | F24: Forest Integrated Health | G24: 53 Lyndhurst Drive | H24: Leyton | I24: E10 6JB | J24: TQ 38433 87787 | K24: 538433 | L24: 187787 | M24: 51.571964 | N24: -0.0038687688
A25: F86018 | B25: The Ecclesbourne Practice | C25: WF | D25: Waltham Forest | E25: WF-4 | F25: Forest Integrated Health | G25: Ecclesbourne Warwick Terrace, Leabridge Rd | H25: Leyton | I25: E17 9DP | J25: TQ 38574 88755 | K25: 538574 | L25: 188755 | M25: 51.580627 | N25: -0.0014539803
A26: F86621 | B26: Green Man Medical Centre | C26: WF | D26: Waltham Forest | E26: WF-5 | F26: South Leytonstone | G26: 1 Hanbury Drive | H26: Leytonstone | I26: E11 1HR | J26: TQ 39685 87696 | K26: 539685 | L26: 187696 | M26: 51.570837 | N26: 0.014148923
A27: F86045 | B27: High Road Surgery | C27: WF | D27: Waltham Forest | E27: WF-5 | F27: South Leytonstone | G27: 287 High Road | H27: Leytonstone | I27: E11 4HH | J27: TQ 39101 85749 | K27: 539101 | L27: 185749 | M27: 51.553486 | N27: 0.004958098
A28: F86701 | B28: Kiyani Medical Practice | C28: WF | D28: Waltham Forest | E28: WF-5 | F28: South Leytonstone | G28: 13 Langthorne Rd | H28: Leytonstone | I28: E11 4HX | J28: TQ 38897 85957 | K28: 538897 | L28: 185957 | M28: 51.555406 | N28: 0.00209967
A29: F86625 | B29: LL Medical Care (Agarwal & Agrwal Practice) | C29: WF | D29: Waltham Forest | E29: WF-5 | F29: South Leytonstone | G29: 13 Langthorne Rd | H29: Leytonstone | I29: E11 4HX | J29: TQ 38897 85957 | K29: 538897 | L29: 185957 | M29: 51.555406 | N29: 0.00209967
A30: F86666 | B30: The Harrow Road Surgery | C30: WF | D30: Waltham Forest | E30: WF-5 | F30: South Leytonstone | G30: 2-8 Harrow Road | H30: Leytonstone | I30: E11 3QF | J30: TQ 39369 86366 | K30: 539369 | L30: 186366 | M30: 51.558964 | N30: 0.0090654108
A31: F86705 | B31: The Langthorne Sharma Family Practice | C31: WF | D31: Waltham Forest | E31: WF-5 | F31: South Leytonstone | G31: 13 Langthorne Rd | H31: Leytonstone | I31: E11 4HX | J31: TQ 38897 85957 | K31: 538897 | L31: 185957 | M31: 51.555406 | N31: 0.00209967
A32: F86607 | B32: Addison Road Medical Practice | C32: WF | D32: Waltham Forest | E32: WF-6 | F32: Central Walthamstow | G32: Comely Bank Clinic | H32: Walthamstow | I32: E17 9LY | J32: TQ 38040 89024 | K32: 538040 | L32: 189024 | M32: 51.583176 | N32: -0.0090501535
A33: F86708 | B33: Claremont Medical Centre | C33: WF | D33: Waltham Forest | E33: WF-6 | F33: Central Walthamstow | G33: 29-31 Claremont Medical Centre | H33: Walthamstow | I33: E17 5RJ | J33: TQ 36291 90221 | K33: 536291 | L33: 190221 | M33: 51.594357 | N33: -0.033813172
A34: F86001 | B34: The Firs | C34: WF | D34: Waltham Forest | E34: WF-6 | F34: Central Walthamstow | G34: 26 Stephenson Road | H34: Walthamstow | I34: E17 7JT | J34: TQ 36241 88655 | K34: 536241 | L34: 188655 | M34: 51.580297 | N34: -0.0351418
A35: F86086 | B35: Dr Dhital Practice | C35: WF | D35: Waltham Forest | E35: WF-6 | F35: Central Walthamstow | G35: 6 Linford Rd | H35: Walthamstow | I35: E17 3LA | J35: TQ 38444 89544 | K35: 538444 | L35: 189544 | M35: 51.587749 | N35: -0.003018105
A36: F86644 | B36: Waltham Forest Community & Family Health Services Ltd | C36: WF | D36: Waltham Forest | E36: WF-6 | F36: Central Walthamstow | G36: 6 Linford Rd | H36: Walthamstow | I36: E17 3LA | J36: TQ 38444 89544 | K36: 538444 | L36: 189544 | M36: 51.587749 | N36: -0.003018105
A37: F86006 | B37: Seymour Medical Centre | C37: WF | D37: Waltham Forest | E37: WF-7 | F37: Walthamstow West | G37: 266 Lea Bridge Road | H37: Walthamstow | I37: E10 7LD | J37: TQ 36763 87420 | K37: 536763 | L37: 187420 | M37: 51.569073 | N37: -0.028093386
A38: F86030 | B38: Queens Road Medical Centre | C38: WF | D38: Waltham Forest | E38: WF-7 | F38: Walthamstow West | G38: 48 Queens Road | H38: Walthamstow | I38: E17 8PX | J38: TQ 37259 88627 | K38: 537259 | L38: 188627 | M38: 51.579799 | N38: -0.020470187
A39: F86062 | B39: Grove Surgery | C39: WF | D39: Waltham Forest | E39: WF-7 | F39: Walthamstow West | G39: 103-105 Grove Road | H39: Walthamstow | I39: E17 9BU | J39: TQ 37919 88578 | K39: 537919 | L39: 188578 | M39: 51.579197 | N39: -0.010970442
A40: F86679 | B40: Higham Hill Medical Centre | C40: WF | D40: Waltham Forest | E40: WF-7 | F40: Walthamstow West | G40: 258-260 Higham Hill Road | H40: Walthamstow | I40: E17 5RQ | J40: TQ 36234 90272 | K40: 536234 | L40: 190272 | M40: 51.594829 | N40: -0.034615755
A41: F86058 | B41: St James Medical Practice Ltd | C41: WF | D41: Waltham Forest | E41: WF-7 | F41: Walthamstow West | G41: 47 St James St | H41: Walthamstow | I41: E17 7NH | J41: TQ 36455 88670 | K41: 536455 | L41: 188670 | M41: 51.58038 | N41: -0.032049451

Sheet WF LDP TABLE (hidden)
A1: ProjectID | B1: Rel_D | C1: Run_D | D1: Search | E1: 01. Listsize | F1: LDP.04.11: Diabetes and BP in last 12 months | G1: LDP.05: CVD 25-84yrs (excl CVD) | H1: LDP.08.02 CKD Diagnosed (Last 6m) | I1: LDP.08.03 CKD and BP Recorded (last 12 m) | J1: CSPMH. 01.03 QRisk Recorded (12m) | K1: CSPMH. 01.03.01 BP recorded on same day as QRisk (12m) | L1: CSPMH. 01.03.02 Qrisk>=20 (12m) | M1: LDP.08.01 CKD and BP less than 140/90 (last 12 m) | N1: LDP.08 CKD Register | O1: LDP.05.01: CVD QRISK greater than or equal 20% | P1: LDP.05.01.01: CVD Proxy Annual Review (last 12m) | Q1: LDP.05.02: Cardiovascular Risk Score Done (5y) | R1: LDP.04.09: Diabetes BP less than 145/85 (last 12m) | S1: LDP.04.08: Diabetes Chol less than 5mmol (last 12m) | T1: LDP.01.01.01: Obesity BMI more than or equal to 35 less than 40 (last 12m) | U1: LDP.01.01.02: Obesity BMI between 30-35 (last 12m) | V1: LDP.01.01.03: Obesity BMI equal to or over 40 (last 12m) | W1: LDP.01.02: Smoking Status (last 12m) or Never Smoked (25yrs+) | X1: LDP.01.03: Current Smoker (last 12m) | Y1: LDP.01.01: Obesity BMI recorded (last 12m) | Z1: LDP.01: Aged 16yrs+ | AA1: CSPMH.01 SMI Register | AB1: CSPMH.01.02 Smoking Status Recorded (12m) | AC1: CSPMH.01.02.01 Current Smoker (12m) | AD1: CSPMH 01.02.01.01 Ref to clinic 12m | AE1: CSPMH.01.02.02 Ex-smoker Recorded (latest 12m) | AF1: LDP.02: Hypertension Register | AG1: LDP.02.01: Hypertension and BP < 140/90 (age under 80) < 150/90 (Age 80+) | AH1: LDP.04.07: Diabetes Influenza Vaccinations (From August 2018) | AI1: LDP.04.01: Diabetes HbA1c <7.5% OR <59mmol (last 12m) | AJ1: LDP.02.02: Hypertension BP recorded (last 12m) | AK1: LDP.03: CHD Register | AL1: LDP.03.01: CHD Chol less than 5mmol (last 12m) | AM1: LDP.03.04: CHD Cholesterol recorded (last 12m) | AN1: LDP.04: Diabetes Register | AO1: LDP.09 COPD Register | AP1: LDP.09.01 Patients with severe or very severe COPD (FEV1<50) | AQ1: LDP.09.02 Patients with smoking status recorded (last 12m) or never smoked | AR1: LDP.09.03 COPD patients recorded as a Smoker | AS1: LDP.09.04 COPD Patients who are current smokers & referred to the Stop Smoking C | AT1: LDP.09.05 No of COPD with flu vaccination (From August 2018) | AU1: LDP.09.06 No of COPD with pneumococcal vaccination ever | AV1: LDP.09.07 No of COPD patients referred to pulmonary rehab ever | AW1: LDP.03.02: CHD BP less than or equal 150/90 (last 9m) | AX1: LDP.10 Stroke or TIA register | AY1: LDP.10.01: Stroke/TIA BP recorded (last 12m) | AZ1: LDP.10.02 Patients on Stroke/TIA register with BP <140/90 (12m) | BA1: Practice | BB1: Locality ID | BC1: SubLocality ID | BD1: SubLocality
A2: WF_LDP | B2: 43586 | C2: 43598 | D2: F86679 | E2: 5757 | F2: 240 | G2: 3628 | H2: 22 | I2: 77 | J2: 10 | K2: 9 | L2: 1 | M2: 50 | N2: 80 | O2: 118 | P2: 88 | Q2: 1049 | R2: 207 | S2: 162 | T2: 86 | U2: 213 | V2: 49 | W2: 3071 | X2: 385 | Y2: 1387 | Z2: 4317 | AA2: 34 | AB2: 29 | AC2: 13 | AD2: 1 | AE2: 4 | AF2: 469 | AG2: 309 | AH2: 140 | AI2: 145 | AJ2: 430 | AK2: 56 | AL2: 32 | AM2: 39 | AN2: 250 | AO2: 41 | AP2: 11 | AQ2: 37 | AR2: 12 | AS2: 0 | AT2: 25 | AU2: 16 | AV2: 8 | AW2: 47 | AX2: 40 | AY2: 37 | AZ2: 30 | BA2: Higham Hill Medical Centre | BB2: WF | BC2: WF-7 | BD2: Walthamstow West
A3: WF_LDP | B3: 43586 | C3: 43598 | D3: F86666 | E3: 14133 | F3: 748 | G3: 9594 | H3: 37 | I3: 322 | J3: 109 | K3: 94 | L3: 21 | M3: 215 | N3: 366 | O3: 615 | P3: 415 | Q3: 4349 | R3: 604 | S3: 525 | T3: 259 | U3: 578 | V3: 141 | W3: 7501 | X3: 912 | Y3: 3327 | Z3: 11406 | AA3: 222 | AB3: 182 | AC3: 84 | AD3: 0 | AE3: 23 | AF3: 1650 | AG3: 904 | AH3: 568 | AI3: 451 | AJ3: 1426 | AK3: 197 | AL3: 121 | AM3: 139 | AN3: 828 | AO3: 99 | AP3: 28 | AQ3: 89 | AR3: 41 | AS3: 0 | AT3: 67 | AU3: 76 | AV3: 5 | AW3: 157 | AX3: 108 | AY3: 92 | AZ3: 71 | BA3: The Harrow Road Surgery | BB3: WF | BC3: WF-5 | BD3: South Leytonstone
A4: WF_LDP | B4: 43586 | C4: 43598 | D4: F86696 | E4: 5139 | F4: 294 | G4: 3449 | H4: 16 | I4: 161 | J4: 5 | K4: 2 | L4: 0 | M4: 82 | N4: 186 | O4: 102 | P4: 74 | Q4: 823 | R4: 233 | S4: 205 | T4: 83 | U4: 177 | V4: 33 | W4: 1641 | X4: 266 | Y4: 1118 | Z4: 4130 | AA4: 47 | AB4: 29 | AC4: 14 | AD4: 0 | AE4: 7 | AF4: 553 | AG4: 278 | AH4: 251 | AI4: 167 | AJ4: 487 | AK4: 96 | AL4: 67 | AM4: 83 | AN4: 333 | AO4: 32 | AP4: 7 | AQ4: 29 | AR4: 5 | AS4: 0 | AT4: 22 | AU4: 13 | AV4: 2 | AW4: 81 | AX4: 40 | AY4: 36 | AZ4: 20 | BA4: Francis Road Medical Centre | BB4: WF | BC4: WF-4 | BD4: Forest Integrated Health
A5: WF_LDP | B5: 43586 | C5: 43598 | D5: F86689 | E5: 4059 | F5: 119 | G5: 2835 | H5: 13 | I5: 82 | J5: 6 | K5: 2 | L5: 1 | M5: 59 | N5: 83 | O5: 42 | P5: 29 | Q5: 512 | R5: 82 | S5: 82 | T5: 35 | U5: 115 | V5: 33 | W5: 2277 | X5: 131 | Y5: 785 | Z5: 3147 | AA5: 27 | AB5: 17 | AC5: 6 | AD5: 0 | AE5: 5 | AF5: 287 | AG5: 150 | AH5: 103 | AI5: 76 | AJ5: 261 | AK5: 54 | AL5: 35 | AM5: 41 | AN5: 124 | AO5: 33 | AP5: 1 | AQ5: 29 | AR5: 9 | AS5: 0 | AT5: 24 | AU5: 19 | AV5: 4 | AW5: 40 | AX5: 21 | AY5: 21 | AZ5: 13 | BA5: The Bailey Practice | BB5: WF | BC5: WF-1 | BD5: Chingford/ Walthamstow
A6: WF_LDP | B6: 43586 | C6: 43598 | D6: F86664 | E6: 8332 | F6: 330 | G6: 5288 | H6: 25 | I6: 140 | J6: 18 | K6: 16 | L6: 5 | M6: 115 | N6: 169 | O6: 174 | P6: 82 | Q6: 1345 | R6: 290 | S6: 211 | T6: 131 | U6: 299 | V6: 73 | W6: 4478 | X6: 421 | Y6: 1624 | Z6: 6567 | AA6: 91 | AB6: 60 | AC6: 36 | AD6: 0 | AE6: 6 | AF6: 885 | AG6: 487 | AH6: 355 | AI6: 177 | AJ6: 683 | AK6: 180 | AL6: 74 | AM6: 88 | AN6: 394 | AO6: 104 | AP6: 22 | AQ6: 92 | AR6: 32 | AS6: 0 | AT6: 98 | AU6: 69 | AV6: 15 | AW6: 135 | AX6: 86 | AY6: 73 | AZ6: 55 | BA6: Larkshall Medical Centre | BB6: WF | BC6: WF-1 | BD6: Chingford/ Walthamstow
A7: WF_LDP | B7: 43586 | C7: 43598 | D7: F86627 | E7: 13888 | F7: 788 | G7: 8938 | H7: 21 | I7: 606 | J7: 36 | K7: 27 | L7: 9 | M7: 328 | N7: 670 | O7: 629 | P7: 417 | Q7: 2808 | R7: 539 | S7: 484 | T7: 256 | U7: 626 | V7: 149 | W7: 8109 | X7: 978 | Y7: 2883 | Z7: 11332 | AA7: 207 | AB7: 150 | AC7: 71 | AD7: 12 | AE7: 25 | AF7: 1869 | AG7: 939 | AH7: 516 | AI7: 446 | AJ7: 1717 | AK7: 409 | AL7: 234 | AM7: 282 | AN7: 819 | AO7: 241 | AP7: 49 | AQ7: 217 | AR7: 72 | AS7: 6 | AT7: 171 | AU7: 163 | AV7: 41 | AW7: 300 | AX7: 255 | AY7: 234 | AZ7: 137 | BA7: Churchill Medical Centre | BB7: WF | BC7: WF-2 | BD7: Chingford E4
A8: WF_LDP | B8: 43586 | C8: 43598 | D8: F86626 | E8: 5305 | F8: 199 | G8: 3598 | H8: 3 | I8: 76 | J8: 7 | K8: 6 | L8: 1 | M8: 52 | N8: 81 | O8: 148 | P8: 111 | Q8: 718 | R8: 151 | S8: 138 | T8: 64 | U8: 163 | V8: 35 | W8: 2744 | X8: 232 | Y8: 913 | Z8: 4185 | AA8: 35 | AB8: 26 | AC8: 10 | AD8: 0 | AE8: 2 | AF8: 434 | AG8: 273 | AH8: 124 | AI8: 125 | AJ8: 401 | AK8: 68 | AL8: 47 | AM8: 54 | AN8: 205 | AO8: 21 | AP8: 6 | AQ8: 20 | AR8: 4 | AS8: 0 | AT8: 14 | AU8: 12 | AV8: 1 | AW8: 56 | AX8: 26 | AY8: 24 | AZ8: 18 | BA8: Dr Shantir Practice | BB8: WF | BC8: WF-1 | BD8: Chingford/ Walthamstow
A9: WF_LDP | B9: 43586 | C9: 43598 | D9: F86650 | E9: 8203 | F9: 437 | G9: 5522 | H9: 32 | I9: 141 | J9: 11 | K9: 8 | L9: 2 | M9: 88 | N9: 169 | O9: 205 | P9: 113 | Q9: 1410 | R9: 327 | S9: 288 | T9: 120 | U9: 329 | V9: 87 | W9: 4417 | X9: 530 | Y9: 2016 | Z9: 6589 | AA9: 112 | AB9: 54 | AC9: 27 | AD9: 0 | AE9: 14 | AF9: 732 | AG9: 328 | AH9: 248 | AI9: 249 | AJ9: 633 | AK9: 117 | AL9: 65 | AM9: 76 | AN9: 483 | AO9: 62 | AP9: 13 | AQ9: 45 | AR9: 15 | AS9: 1 | AT9: 42 | AU9: 37 | AV9: 10 | AW9: 90 | AX9: 71 | AY9: 64 | AZ9: 37 | BA9: Lime Tree Surgery | BB9: WF | BC9: WF-4 | BD9: Forest Integrated Health
A10: WF_LDP | B10: 43586 | C10: 43598 | D10: F86644 | E10: 10868 | F10: 506 | G10: 6982 | H10: 144 | I10: 241 | J10: 36 | K10: 29 | L10: 8 | M10: 164 | N10: 272 | O10: 274 | P10: 177 | Q10: 1843 | R10: 325 | S10: 319 | T10: 123 | U10: 325 | V10: 72 | W10: 5699 | X10: 638 | Y10: 1717 | Z10: 8450 | AA10: 153 | AB10: 118 | AC10: 55 | AD10: 0 | AE10: 23 | AF10: 1238 | AG10: 634 | AH10: 344 | AI10: 299 | AJ10: 1038 | AK10: 205 | AL10: 116 | AM10: 145 | AN10: 567 | AO10: 112 | AP10: 19 | AQ10: 97 | AR10: 37 | AS10: 2 | AT10: 76 | AU10: 80 | AV10: 13 | AW10: 156 | AX10: 80 | AY10: 68 | AZ10: 46 | BA10: Waltham Forest Community & Family Health Services Ltd | BB10: WF | BC10: WF-6 | BD10: Central Walthamstow
A11: WF_LDP | B11: 43586 | C11: 43598 | D11: Y01839 | E11: 6549 | F11: 361 | G11: 4330 | H11: 57 | I11: 123 | J11: 27 | K11: 17 | L11: 4 | M11: 97 | N11: 135 | O11: 188 | P11: 142 | Q11: 1131 | R11: 310 | S11: 241 | T11: 95 | U11: 222 | V11: 84 | W11: 3672 | X11: 486 | Y11: 1148 | Z11: 5221 | AA11: 97 | AB11: 67 | AC11: 29 | AD11: 0 | AE11: 11 | AF11: 743 | AG11: 441 | AH11: 209 | AI11: 209 | AJ11: 630 | AK11: 119 | AL11: 71 | AM11: 87 | AN11: 400 | AO11: 93 | AP11: 5 | AQ11: 80 | AR11: 39 | AS11: 0 | AT11: 67 | AU11: 73 | AV11: 4 | AW11: 93 | AX11: 52 | AY11: 47 | AZ11: 31 | BA11: Lime Tree & Sinnott Healthcare Ltd | BB11: WF | BC11: WF-1 | BD11: Chingford/ Walthamstow
A12: WF_LDP | B12: 43586 | C12: 43598 | D12: Y01291 | E12: 8792 | F12: 415 | G12: 5647 | H12: 39 | I12: 433 | J12: 10 | K12: 3 | L12: 0 | M12: 292 | N12: 516 | O12: 374 | P12: 209 | Q12: 2215 | R12: 391 | S12: 329 | T12: 137 | U12: 416 | V12: 80 | W12: 4624 | X12: 440 | Y12: 2216 | Z12: 7033 | AA12: 81 | AB12: 64 | AC12: 30 | AD12: 0 | AE12: 13 | AF12: 1172 | AG12: 724 | AH12: 279 | AI12: 249 | AJ12: 1041 | AK12: 201 | AL12: 123 | AM12: 145 | AN12: 434 | AO12: 114 | AP12: 31 | AQ12: 108 | AR12: 26 | AS12: 0 | AT12: 79 | AU12: 72 | AV12: 17 | AW12: 172 | AX12: 123 | AY12: 112 | AZ12: 79 | BA12: Chingford Medical Practice | BB12: WF | BC12: WF-2 | BD12: Chingford E4
A13: WF_LDP | B13: 43586 | C13: 43598 | D13: Total | E13: 269643 | F13: 13629 | G13: 177255 | H13: 1009 | I13: 6517 | J13: 797 | K13: 499 | L13: 127 | M13: 4491 | N13: 7274 | O13: 8067 | P13: 5439 | Q13: 63339 | R13: 10942 | S13: 9421 | T13: 4004 | U13: 10403 | V13: 2353 | W13: 147337 | X13: 16566 | Y13: 58098 | Z13: 215039 | AA13: 3209 | AB13: 2340 | AC13: 1034 | AD13: 34 | AE13: 407 | AF13: 28849 | AG13: 16317 | AH13: 10010 | AI13: 7982 | AJ13: 25304 | AK13: 4899 | AL13: 2902 | AM13: 3461 | AN13: 14670 | AO13: 2460 | AP13: 471 | AQ13: 2207 | AR13: 801 | AS13: 31 | AT13: 1812 | AU13: 1676 | AV13: 375 | AW13: 3811 | AX13: 2460 | AY13: 2224 | AZ13: 1534
A14: WF_LDP | B14: 43586 | C14: 43598 | D14: Y02585 | E14: 8112 | F14: 168 | G14: 5815 | H14: 1 | I14: 29 | J14: 15 | K14: 14 | L14: 1 | M14: 18 | N14: 31 | O14: 92 | P14: 66 | Q14: 2503 | R14: 119 | S14: 91 | T14: 70 | U14: 219 | V14: 52 | W14: 4032 | X14: 624 | Y14: 1365 | Z14: 6607 | AA14: 79 | AB14: 53 | AC14: 24 | AD14: 0 | AE14: 11 | AF14: 310 | AG14: 154 | AH14: 106 | AI14: 87 | AJ14: 277 | AK14: 39 | AL14: 28 | AM14: 33 | AN14: 176 | AO14: 30 | AP14: 4 | AQ14: 28 | AR14: 18 | AS14: 1 | AT14: 20 | AU14: 10 | AV14: 1 | AW14: 32 | AX14: 28 | AY14: 23 | AZ14: 19
A15: WF_LDP | B15: 43586 | C15: 43598 | D15: F86712 | E15: 3085 | F15: 196 | G15: 2200 | H15: 4 | I15: 77 | J15: 3 | K15: 3 | L15: 0 | M15: 48 | N15: 82 | O15: 31 | P15: 22 | Q15: 411 | R15: 161 | S15: 154 | T15: 54 | U15: 126 | V15: 31 | W15: 1850 | X15: 177 | Y15: 806 | Z15: 2605 | AA15: 21 | AB15: 16 | AC15: 7 | AD15: 0 | AE15: 2 | AF15: 350 | AG15: 196 | AH15: 165 | AI15: 129 | AJ15: 323 | AK15: 50 | AL15: 27 | AM15: 32 | AN15: 210 | AO15: 12 | AP15: 5 | AQ15: 11 | AR15: 1 | AS15: 1 | AT15: 10 | AU15: 11 | AV15: 0 | AW15: 40 | AX15: 13 | AY15: 13 | AZ15: 9 | BA15: Hampton Medical Centre | BB15: WF | BC15: WF-4 | BD15: Forest Integrated Health
A16: WF_LDP | B16: 43586 | C16: 43598 | D16: F86701 | E16: 3282 | F16: 222 | G16: 2284 | H16: 5 | I16: 114 | J16: 28 | K16: 20 | L16: 3 | M16: 93 | N16: 126 | O16: 152 | P16: 117 | Q16: 966 | R16: 194 | S16: 171 | T16: 52 | U16: 175 | V16: 24 | W16: 1834 | X16: 232 | Y16: 945 | Z16: 2693 | AA16: 75 | AB16: 58 | AC16: 32 | AD16: 0 | AE16: 11 | AF16: 425 | AG16: 288 | AH16: 193 | AI16: 137 | AJ16: 386 | AK16: 59 | AL16: 41 | AM16: 47 | AN16: 232 | AO16: 19 | AP16: 4 | AQ16: 19 | AR16: 8 | AS16: 0 | AT16: 19 | AU16: 19 | AV16: 2 | AW16: 48 | AX16: 30 | AY16: 27 | AZ16: 19 | BA16: Kiyani Medical Practice | BB16: WF | BC16: WF-5 | BD16: South Leytonstone
A17: WF_LDP | B17: 43586 | C17: 43598 | D17: F86700 | E17: 3772 | F17: 204 | G17: 2461 | H17: 23 | I17: 246 | J17: 6 | K17: 6 | L17: 0 | M17: 189 | N17: 274 | O17: 163 | P17: 109 | Q17: 592 | R17: 187 | S17: 152 | T17: 58 | U17: 166 | V17: 29 | W17: 2041 | X17: 185 | Y17: 866 | Z17: 3054 | AA17: 50 | AB17: 35 | AC17: 12 | AD17: 2 | AE17: 6 | AF17: 772 | AG17: 508 | AH17: 175 | AI17: 141 | AJ17: 684 | AK17: 135 | AL17: 70 | AM17: 82 | AN17: 216 | AO17: 121 | AP17: 20 | AQ17: 110 | AR17: 38 | AS17: 2 | AT17: 104 | AU17: 92 | AV17: 30 | AW17: 101 | AX17: 89 | AY17: 78 | AZ17: 61 | BA17: Kings Head Medical Practice | BB17: WF | BC17: WF-1 | BD17: Chingford/ Walthamstow
A18: WF_LDP | B18: 43586 | C18: 43598 | D18: F86708 | E18: 2776 | F18: 176 | G18: 1676 | H18: 28 | I18: 67 | J18: 13 | K18: 11 | L18: 4 | M18: 44 | N18: 69 | O18: 123 | P18: 81 | Q18: 907 | R18: 133 | S18: 105 | T18: 63 | U18: 156 | V18: 45 | W18: 1526 | X18: 122 | Y18: 656 | Z18: 2164 | AA18: 29 | AB18: 25 | AC18: 7 | AD18: 0 | AE18: 5 | AF18: 377 | AG18: 182 | AH18: 125 | AI18: 89 | AJ18: 344 | AK18: 61 | AL18: 34 | AM18: 42 | AN18: 194 | AO18: 14 | AP18: 3 | AQ18: 14 | AR18: 5 | AS18: 0 | AT18: 10 | AU18: 8 | AV18: 4 | AW18: 42 | AX18: 33 | AY18: 29 | AZ18: 15 | BA18: Claremont Medical Centre | BB18: WF | BC18: WF-6 | BD18: Central Walthamstow
A19: WF_LDP | B19: 43586 | C19: 43598 | D19: F86705 | E19: 3029 | F19: 168 | G19: 2100 | H19: 24 | I19: 49 | J19: 4 | K19: 4 | L19: 2 | M19: 32 | N19: 54 | O19: 115 | P19: 88 | Q19: 1089 | R19: 121 | S19: 114 | T19: 52 | U19: 156 | V19: 28 | W19: 1698 | X19: 205 | Y19: 826 | Z19: 2463 | AA19: 24 | AB19: 16 | AC19: 7 | AD19: 0 | AE19: 2 | AF19: 288 | AG19: 160 | AH19: 148 | AI19: 100 | AJ19: 249 | AK19: 51 | AL19: 30 | AM19: 34 | AN19: 176 | AO19: 29 | AP19: 4 | AQ19: 22 | AR19: 11 | AS19: 0 | AT19: 28 | AU19: 16 | AV19: 3 | AW19: 39 | AX19: 20 | AY19: 19 | AZ19: 12 | BA19: The Langthorne Sharma Family Practice | BB19: WF | BC19: WF-5 | BD19: South Leytonstone
A20: WF_LDP | B20: 43586 | C20: 43598 | D20: F86625 | E20: 6111 | F20: 382 | G20: 4056 | H20: 95 | I20: 155 | J20: 13 | K20: 3 | L20: 4 | M20: 101 | N20: 177 | O20: 141 | P20: 112 | Q20: 1006 | R20: 269 | S20: 272 | T20: 81 | U20: 232 | V20: 65 | W20: 3137 | X20: 335 | Y20: 1225 | Z20: 4908 | AA20: 97 | AB20: 70 | AC20: 32 | AD20: 2 | AE20: 15 | AF20: 719 | AG20: 382 | AH20: 267 | AI20: 233 | AJ20: 634 | AK20: 134 | AL20: 72 | AM20: 94 | AN20: 404 | AO20: 62 | AP20: 9 | AQ20: 58 | AR20: 17 | AS20: 2 | AT20: 44 | AU20: 38 | AV20: 3 | AW20: 97 | AX20: 57 | AY20: 52 | AZ20: 34 | BA20: LL Medical Care (Agarwal & Agrwal Practice) | BB20: WF | BC20: WF-5 | BD20: South Leytonstone
A21: WF_LDP | B21: 43586 | C21: 43598 | D21: F86036 | E21: 15798 | F21: 734 | G21: 11041 | H21: 28 | I21: 325 | J21: 39 | K21: 22 | L21: 6 | M21: 254 | N21: 360 | O21: 206 | P21: 135 | Q21: 2713 | R21: 667 | S21: 555 | T21: 234 | U21: 623 | V21: 134 | W21: 9485 | X21: 927 | Y21: 3630 | Z21: 12744 | AA21: 235 | AB21: 176 | AC21: 74 | AD21: 3 | AE21: 38 | AF21: 1460 | AG21: 834 | AH21: 569 | AI21: 486 | AJ21: 1221 | AK21: 243 | AL21: 157 | AM21: 185 | AN21: 817 | AO21: 117 | AP21: 30 | AQ21: 103 | AR21: 50 | AS21: 1 | AT21: 86 | AU21: 91 | AV21: 31 | AW21: 193 | AX21: 119 | AY21: 105 | AZ21: 69 | BA21: The Allum Medical Centre | BB21: WF | BC21: WF-4 | BD21: Forest Integrated Health
A22: WF_LDP | B22: 43586 | C22: 43598 | D22: F86030 | E22: 8091 | F22: 497 | G22: 5254 | H22: 12 | I22: 165 | J22: 12 | K22: 7 | L22: 3 | M22: 122 | N22: 172 | O22: 384 | P22: 293 | Q22: 4072 | R22: 432 | S22: 415 | T22: 98 | U22: 298 | V22: 44 | W22: 4422 | X22: 341 | Y22: 1530 | Z22: 6356 | AA22: 54 | AB22: 35 | AC22: 12 | AD22: 1 | AE22: 4 | AF22: 733 | AG22: 468 | AH22: 426 | AI22: 319 | AJ22: 667 | AK22: 169 | AL22: 130 | AM22: 145 | AN22: 531 | AO22: 44 | AP22: 5 | AQ22: 41 | AR22: 12 | AS22: 0 | AT22: 33 | AU22: 31 | AV22: 1 | AW22: 125 | AX22: 53 | AY22: 47 | AZ22: 30 | BA22: Queens Road Medical Centre | BB22: WF | BC22: WF-7 | BD22: Walthamstow West
A23: WF_LDP | B23: 43586 | C23: 43598 | D23: F86044 | E23: 8955 | F23: 333 | G23: 6380 | H23: 8 | I23: 141 | J23: 26 | K23: 23 | L23: 6 | M23: 90 | N23: 168 | O23: 242 | P23: 142 | Q23: 1288 | R23: 258 | S23: 205 | T23: 88 | U23: 225 | V23: 74 | W23: 5260 | X23: 682 | Y23: 1310 | Z23: 7426 | AA23: 108 | AB23: 79 | AC23: 34 | AD23: 0 | AE23: 5 | AF23: 766 | AG23: 388 | AH23: 229 | AI23: 192 | AJ23: 656 | AK23: 88 | AL23: 50 | AM23: 58 | AN23: 373 | AO23: 34 | AP23: 10 | AQ23: 28 | AR23: 17 | AS23: 0 | AT23: 24 | AU23: 21 | AV23: 8 | AW23: 65 | AX23: 48 | AY23: 43 | AZ23: 25 | BA23: Crawley Road Medical Centre | BB23: WF | BC23: WF-4 | BD23: Forest Integrated Health
A24: WF_LDP | B24: 43586 | C24: 43598 | D24: F86038 | E24: 10989 | F24: 727 | G24: 6586 | H24: 130 | I24: 231 | J24: 25 | K24: 18 | L24: 5 | M24: 172 | N24: 246 | O24: 438 | P24: 314 | Q24: 4398 | R24: 541 | S24: 485 | T24: 166 | U24: 408 | V24: 89 | W24: 5684 | X24: 460 | Y24: 1709 | Z24: 8262 | AA24: 133 | AB24: 78 | AC24: 25 | AD24: 0 | AE24: 5 | AF24: 1097 | AG24: 623 | AH24: 519 | AI24: 396 | AJ24: 988 | AK24: 255 | AL24: 165 | AM24: 196 | AN24: 782 | AO24: 38 | AP24: 3 | AQ24: 35 | AR24: 10 | AS24: 0 | AT24: 27 | AU24: 18 | AV24: 4 | AW24: 189 | AX24: 107 | AY24: 98 | AZ24: 63 | BA24: Sma Medical Centre | BB24: WF | BC24: WF-3 | BD24: Leyton Collaborative
A25: WF_LDP | B25: 43586 | C25: 43598 | D25: F86011 | E25: 9264 | F25: 681 | G25: 3876 | H25: 11 | I25: 228 | J25: 35 | K25: 23 | L25: 3 | M25: 171 | N25: 256 | O25: 238 | P25: 150 | Q25: 1930 | R25: 586 | S25: 450 | T25: 149 | U25: 354 | V25: 92 | W25: 5532 | X25: 689 | Y25: 1846 | Z25: 7562 | AA25: 153 | AB25: 123 | AC25: 54 | AD25: 6 | AE25: 25 | AF25: 1202 | AG25: 735 | AH25: 493 | AI25: 376 | AJ25: 1070 | AK25: 236 | AL25: 130 | AM25: 166 | AN25: 727 | AO25: 102 | AP25: 23 | AQ25: 99 | AR25: 28 | AS25: 1 | AT25: 76 | AU25: 78 | AV25: 9 | AW25: 194 | AX25: 152 | AY25: 147 | AZ25: 116 | BA25: The Manor Practice | BB25: WF | BC25: WF-3 | BD25: Leyton Collaborative
A26: WF_LDP | B26: 43586 | C26: 43598 | D26: F86001 | E26: 7940 | F26: 451 | G26: 5371 | H26: 54 | I26: 262 | J26: 44 | K26: 20 | L26: 6 | M26: 178 | N26: 294 | O26: 202 | P26: 131 | Q26: 2252 | R26: 372 | S26: 281 | T26: 126 | U26: 273 | V26: 60 | W26: 4375 | X26: 458 | Y26: 1542 | Z26: 6435 | AA26: 98 | AB26: 79 | AC26: 24 | AD26: 0 | AE26: 22 | AF26: 919 | AG26: 533 | AH26: 312 | AI26: 246 | AJ26: 823 | AK26: 156 | AL26: 84 | AM26: 107 | AN26: 493 | AO26: 107 | AP26: 16 | AQ26: 98 | AR26: 30 | AS26: 0 | AT26: 65 | AU26: 67 | AV26: 9 | AW26: 125 | AX26: 71 | AY26: 62 | AZ26: 44 | BA26: The Firs | BB26: WF | BC26: WF-6 | BD26: Central Walthamstow
A27: WF_LDP | B27: 43586 | C27: 43598 | D27: F84676 | E27: 4401 | F27: 267 | G27: 2905 | H27: 11 | I27: 133 | J27: 34 | K27: 32 | L27: 5 | M27: 119 | N27: 137 | O27: 192 | P27: 156 | Q27: 1484 | R27: 255 | S27: 215 | T27: 70 | U27: 209 | V27: 44 | W27: 2300 | X27: 382 | Y27: 1280 | Z27: 3536 | AA27: 55 | AB27: 47 | AC27: 26 | AD27: 2 | AE27: 6 | AF27: 295 | AG27: 233 | AH27: 206 | AI27: 174 | AJ27: 282 | AK27: 51 | AL27: 43 | AM27: 48 | AN27: 281 | AO27: 68 | AP27: 14 | AQ27: 68 | AR27: 36 | AS27: 4 | AT27: 49 | AU27: 52 | AV27: 60 | AW27: 42 | AX27: 22 | AY27: 20 | AZ27: 19
A28: WF_LDP | B28: 43586 | C28: 43598 | D28: F86006 | E28: 6199 | F28: 379 | G28: 4128 | H28: 13 | I28: 150 | J28: 4 | K28: 4 | L28: 0 | M28: 72 | N28: 170 | O28: 73 | P28: 45 | Q28: 1003 | R28: 269 | S28: 281 | T28: 91 | U28: 185 | V28: 54 | W28: 3315 | X28: 371 | Y28: 1033 | Z28: 4931 | AA28: 51 | AB28: 28 | AC28: 15 | AD28: 1 | AE28: 6 | AF28: 794 | AG28: 365 | AH28: 226 | AI28: 207 | AJ28: 703 | AK28: 101 | AL28: 61 | AM28: 70 | AN28: 414 | AO28: 53 | AP28: 21 | AQ28: 51 | AR28: 22 | AS28: 1 | AT28: 28 | AU28: 24 | AV28: 3 | AW28: 81 | AX28: 55 | AY28: 51 | AZ28: 29 | BA28: Seymour Medical Centre | BB28: WF | BC28: WF-7 | BD28: Walthamstow West
A29: WF_LDP | B29: 43586 | C29: 43598 | D29: F86005 | E29: 8200 | F29: 287 | G29: 5462 | H29: 7 | I29: 298 | J29: 9 | K29: 5 | L29: 1 | M29: 196 | N29: 345 | O29: 171 | P29: 139 | Q29: 2455 | R29: 248 | S29: 202 | T29: 109 | U29: 287 | V29: 67 | W29: 4486 | X29: 512 | Y29: 2002 | Z29: 6354 | AA29: 52 | AB29: 35 | AC29: 20 | AD29: 0 | AE29: 2 | AF29: 792 | AG29: 446 | AH29: 206 | AI29: 197 | AJ29: 718 | AK29: 87 | AL29: 62 | AM29: 73 | AN29: 295 | AO29: 110 | AP29: 16 | AQ29: 97 | AR29: 35 | AS29: 1 | AT29: 87 | AU29: 75 | AV29: 14 | AW29: 70 | AX29: 60 | AY29: 54 | AZ29: 35 | BA29: The Penryhn Surgery | BB29: WF | BC29: WF-1 | BD29: Chingford/ Walthamstow
A30: WF_LDP | B30: 43586 | C30: 43598 | D30: F86607 | E30: 14154 | F30: 605 | G30: 9302 | H30: 25 | I30: 165 | J30: 50 | K30: 30 | L30: 7 | M30: 120 | N30: 175 | O30: 468 | P30: 310 | Q30: 4027 | R30: 452 | S30: 392 | T30: 178 | U30: 478 | V30: 93 | W30: 7625 | X30: 841 | Y30: 3296 | Z30: 10810 | AA30: 184 | AB30: 148 | AC30: 64 | AD30: 3 | AE30: 23 | AF30: 1207 | AG30: 676 | AH30: 437 | AI30: 300 | AJ30: 1104 | AK30: 197 | AL30: 105 | AM30: 128 | AN30: 625 | AO30: 94 | AP30: 17 | AQ30: 87 | AR30: 42 | AS30: 4 | AT30: 74 | AU30: 72 | AV30: 21 | AW30: 150 | AX30: 105 | AY30: 100 | AZ30: 80 | BA30: Addison Road Medical Practice | BB30: WF | BC30: WF-6 | BD30: Central Walthamstow
A31: WF_LDP | B31: 43586 | C31: 43598 | D31: F86088 | E31: 4746 | F31: 304 | G31: 3293 | H31: 31 | I31: 146 | J31: 5 | K31: 4 | L31: 0 | M31: 106 | N31: 167 | O31: 84 | P31: 57 | Q31: 852 | R31: 242 | S31: 221 | T31: 67 | U31: 185 | V31: 42 | W31: 2532 | X31: 224 | Y31: 973 | Z31: 3973 | AA31: 42 | AB31: 27 | AC31: 6 | AD31: 0 | AE31: 4 | AF31: 663 | AG31: 375 | AH31: 224 | AI31: 187 | AJ31: 539 | AK31: 101 | AL31: 59 | AM31: 66 | AN31: 338 | AO31: 43 | AP31: 10 | AQ31: 36 | AR31: 10 | AS31: 0 | AT31: 35 | AU31: 36 | AV31: 7 | AW31: 64 | AX31: 34 | AY31: 27 | AZ31: 22 | BA31: The Lyndhurst Surgery | BB31: WF | BC31: WF-4 | BD31: Forest Integrated Health
A32: WF_LDP | B32: 43586 | C32: 43598 | D32: F86621 | E32: 5674 | F32: 306 | G32: 4100 | H32: 3 | I32: 144 | J32: 4 | K32: 3 | L32: 0 | M32: 108 | N32: 164 | O32: 54 | P32: 38 | Q32: 541 | R32: 275 | S32: 238 | T32: 54 | U32: 177 | V32: 26 | W32: 3349 | X32: 302 | Y32: 1170 | Z32: 4794 | AA32: 73 | AB32: 52 | AC32: 18 | AD32: 0 | AE32: 13 | AF32: 615 | AG32: 422 | AH32: 293 | AI32: 210 | AJ32: 551 | AK32: 102 | AL32: 65 | AM32: 72 | AN32: 313 | AO32: 29 | AP32: 3 | AQ32: 27 | AR32: 10 | AS32: 0 | AT32: 21 | AU32: 27 | AV32: 23 | AW32: 84 | AX32: 47 | AY32: 47 | AZ32: 38 | BA32: Green Man Medical Centre | BB32: WF | BC32: WF-5 | BD32: South Leytonstone
A33: WF_LDP | B33: 43586 | C33: 43598 | D33: F86616 | E33: 6670 | F33: 276 | G33: 4369 | H33: 16 | I33: 240 | J33: 7 | K33: 1 | L33: 1 | M33: 191 | N33: 259 | O33: 277 | P33: 176 | Q33: 1728 | R33: 232 | S33: 198 | T33: 104 | U33: 281 | V33: 66 | W33: 3664 | X33: 408 | Y33: 1551 | Z33: 5238 | AA33: 42 | AB33: 26 | AC33: 15 | AD33: 0 | AE33: 2 | AF33: 782 | AG33: 512 | AH33: 210 | AI33: 170 | AJ33: 725 | AK33: 185 | AL33: 108 | AM33: 124 | AN33: 287 | AO33: 57 | AP33: 12 | AQ33: 51 | AR33: 16 | AS33: 0 | AT33: 45 | AU33: 39 | AV33: 3 | AW33: 146 | AX33: 72 | AY33: 69 | AZ33: 59 | BA33: Old Church Surgery | BB33: WF | BC33: WF-2 | BD33: Chingford E4
A34: WF_LDP | B34: 43586 | C34: 43598 | D34: F86086 | E34: 5885 | F34: 260 | G34: 3675 | H34: 40 | I34: 88 | J34: 6 | K34: 5 | L34: 1 | M34: 59 | N34: 95 | O34: 134 | P34: 88 | Q34: 875 | R34: 215 | S34: 157 | T34: 115 | U34: 288 | V34: 65 | W34: 3141 | X34: 416 | Y34: 1484 | Z34: 4443 | AA34: 75 | AB34: 66 | AC34: 31 | AD34: 0 | AE34: 12 | AF34: 488 | AG34: 260 | AH34: 174 | AI34: 145 | AJ34: 413 | AK34: 93 | AL34: 42 | AM34: 58 | AN34: 274 | AO34: 33 | AP34: 4 | AQ34: 30 | AR34: 9 | AS34: 0 | AT34: 24 | AU34: 19 | AV34: 2 | AW34: 77 | AX34: 29 | AY34: 26 | AZ34: 17 | BA34: Dr Dhital Practice | BB34: WF | BC34: WF-6 | BD34: Central Walthamstow
A35: WF_LDP | B35: 43586 | C35: 43598 | D35: F86058 | E35: 15129 | F35: 689 | G35: 9852 | H35: 10 | I35: 338 | J35: 113 | K35: 14 | L35: 11 | M35: 268 | N35: 363 | O35: 463 | P35: 314 | Q35: 3962 | R35: 587 | S35: 479 | T35: 269 | U35: 724 | V35: 153 | W35: 7957 | X35: 1083 | Y35: 3804 | Z35: 11684 | AA35: 187 | AB35: 127 | AC35: 67 | AD35: 0 | AE35: 27 | AF35: 1461 | AG35: 918 | AH35: 511 | AI35: 362 | AJ35: 1261 | AK35: 218 | AL35: 138 | AM35: 162 | AN35: 714 | AO35: 103 | AP35: 17 | AQ35: 89 | AR35: 31 | AS35: 1 | AT35: 80 | AU35: 80 | AV35: 7 | AW35: 195 | AX35: 110 | AY35: 101 | AZ35: 78 | BA35: St James Medical Practice Ltd | BB35: WF | BC35: WF-7 | BD35: Walthamstow West
A36: WF_LDP | B36: 43586 | C36: 43598 | D36: F86045 | E36: 1912 | F36: 129 | G36: 1383 | H36: 4 | I36: 60 | J36: 11 | K36: 2 | L36: 3 | M36: 19 | N36: 60 | O36: 85 | P36: 68 | Q36: 624 | R36: 116 | S36: 110 | T36: 50 | U36: 125 | V36: 24 | W36: 1198 | X36: 150 | Y36: 599 | Z36: 1638 | AA36: 32 | AB36: 29 | AC36: 9 | AD36: 0 | AE36: 5 | AF36: 260 | AG36: 92 | AH36: 102 | AI36: 85 | AJ36: 229 | AK36: 55 | AL36: 42 | AM36: 51 | AN36: 134 | AO36: 26 | AP36: 2 | AQ36: 23 | AR36: 6 | AS36: 0 | AT36: 20 | AU36: 18 | AV36: 2 | AW36: 45 | AX36: 24 | AY36: 22 | AZ36: 7 | BA36: High Road Surgery | BB36: WF | BC36: WF-5 | BD36: South Leytonstone
A37: WF_LDP | B37: 43586 | C37: 43598 | D37: F86078 | E37: 7360 | F37: 336 | G37: 4982 | H37: 11 | I37: 113 | J37: 4 | K37: 0 | L37: 0 | M37: 68 | N37: 135 | O37: 396 | P37: 244 | Q37: 2008 | R37: 237 | S37: 213 | T37: 93 | U37: 236 | V37: 44 | W37: 4242 | X37: 399 | Y37: 1201 | Z37: 6193 | AA37: 57 | AB37: 33 | AC37: 13 | AD37: 0 | AE37: 7 | AF37: 1198 | AG37: 641 | AH37: 238 | AI37: 203 | AJ37: 961 | AK37: 184 | AL37: 91 | AM37: 112 | AN37: 367 | AO37: 95 | AP37: 10 | AQ37: 77 | AR37: 27 | AS37: 0 | AT37: 70 | AU37: 58 | AV37: 5 | AW37: 128 | AX37: 109 | AY37: 90 | AZ37: 57 | BA37: The Ridgeway Surgery | BB37: WF | BC37: WF-2 | BD37: Chingford E4
A38: WF_LDP | B38: 43586 | C38: 43598 | D38: F86062 | E38: 7084 | F38: 415 | G38: 4893 | H38: 6 | I38: 151 | J38: 12 | K38: 12 | L38: 3 | M38: 111 | N38: 168 | O38: 274 | P38: 187 | Q38: 1450 | R38: 315 | S38: 281 | T38: 124 | U38: 354 | V38: 72 | W38: 4419 | X38: 622 | Y38: 2315 | Z38: 5789 | AA38: 97 | AB38: 83 | AC38: 31 | AD38: 1 | AE38: 16 | AF38: 844 | AG38: 459 | AH38: 319 | AI38: 218 | AJ38: 749 | AK38: 147 | AL38: 83 | AM38: 97 | AN38: 460 | AO38: 68 | AP38: 17 | AQ38: 62 | AR38: 20 | AS38: 3 | AT38: 48 | AU38: 46 | AV38: 3 | AW38: 112 | AX38: 71 | AY38: 66 | AZ38: 40 | BA38: Grove Surgery | BB38: WF | BC38: WF-7 | BD38: Walthamstow West
A39: WF_LDP | B39: 43617 | C39: 43619 | D39: F86679 | E39: 5788 | F39: 244 | G39: 3653 | H39: 19 | I39: 74 | J39: 9 | K39: 8 | L39: 1 | M39: 51 | N39: 81 | O39: 125 | P39: 95 | Q39: 1084 | R39: 203 | S39: 156 | T39: 85 | U39: 212 | V39: 53 | W39: 3083 | X39: 373 | Y39: 1418 | Z39: 4343 | AA39: 35 | AB39: 31 | AC39: 14 | AD39: 1 | AE39: 4 | AF39: 472 | AG39: 305 | AH39: 140 | AI39: 141 | AJ39: 425 | AK39: 56 | AL39: 33 | AM39: 39 | AN39: 252 | AO39: 40 | AP39: 10 | AQ39: 37 | AR39: 11 | AS39: 0 | AT39: 25 | AU39: 15 | AV39: 8 | AW39: 45 | AX39: 38 | AY39: 33 | AZ39: 26 | BA39: Higham Hill Medical Centre | BB39: WF | BC39: WF-7 | BD39: Walthamstow West
A40: WF_LDP | B40: 43617 | C40: 43619 | D40: F86666 | E40: 14227 | F40: 747 | G40: 9650 | H40: 33 | I40: 323 | J40: 103 | K40: 89 | L40: 22 | M40: 209 | N40: 372 | O40: 623 | P40: 412 | Q40: 4393 | R40: 589 | S40: 509 | T40: 253 | U40: 556 | V40: 139 | W40: 7499 | X40: 913 | Y40: 3230 | Z40: 11481 | AA40: 225 | AB40: 176 | AC40: 81 | AD40: 0 | AE40: 19 | AF40: 1661 | AG40: 879 | AH40: 569 | AI40: 432 | AJ40: 1423 | AK40: 200 | AL40: 125 | AM40: 144 | AN40: 838 | AO40: 101 | AP40: 28 | AQ40: 89 | AR40: 41 | AS40: 0 | AT40: 68 | AU40: 77 | AV40: 6 | AW40: 155 | AX40: 108 | AY40: 91 | AZ40: 63 | BA40: The Harrow Road Surgery | BB40: WF | BC40: WF-5 | BD40: South Leytonstone
A41: WF_LDP | B41: 43617 | C41: 43619 | D41: F86696 | E41: 5140 | F41: 291 | G41: 3450 | H41: 12 | I41: 162 | J41: 7 | K41: 3 | L41: 0 | M41: 86 | N41: 185 | O41: 111 | P41: 85 | Q41: 865 | R41: 218 | S41: 199 | T41: 83 | U41: 179 | V41: 34 | W41: 1667 | X41: 265 | Y41: 1113 | Z41: 4141 | AA41: 48 | AB41: 31 | AC41: 13 | AD41: 0 | AE41: 8 | AF41: 550 | AG41: 282 | AH41: 249 | AI41: 162 | AJ41: 483 | AK41: 95 | AL41: 67 | AM41: 82 | AN41: 331 | AO41: 32 | AP41: 7 | AQ41: 29 | AR41: 5 | AS41: 0 | AT41: 23 | AU41: 13 | AV41: 2 | AW41: 78 | AX41: 40 | AY41: 35 | AZ41: 21 | BA41: Francis Road Medical Centre | BB41: WF | BC41: WF-4 | BD41: Forest Integrated Health
A42: WF_LDP | B42: 43617 | C42: 43619 | D42: F86689 | E42: 4092 | F42: 119 | G42: 2854 | H42: 15 | I42: 83 | J42: 6 | K42: 2 | L42: 1 | M42: 65 | N42: 86 | O42: 44 | P42: 31 | Q42: 533 | R42: 77 | S42: 78 | T42: 36 | U42: 121 | V42: 33 | W42: 2298 | X42: 136 | Y42: 805 | Z42: 3170 | AA42: 27 | AB42: 17 | AC42: 6 | AD42: 0 | AE42: 5 | AF42: 285 | AG42: 158 | AH42: 104 | AI42: 75 | AJ42: 262 | AK42: 54 | AL42: 34 | AM42: 40 | AN42: 124 | AO42: 34 | AP42: 1 | AQ42: 30 | AR42: 8 | AS42: 0 | AT42: 24 | AU42: 19 | AV42: 7 | AW42: 44 | AX42: 20 | AY42: 19 | AZ42: 11 | BA42: The Bailey Practice | BB42: WF | BC42: WF-1 | BD42: Chingford/ Walthamstow
A43: WF_LDP | B43: 43617 | C43: 43619 | D43: F86664 | E43: 8337 | F43: 332 | G43: 5299 | H43: 26 | I43: 141 | J43: 21 | K43: 18 | L43: 6 | M43: 114 | N43: 173 | O43: 179 | P43: 88 | Q43: 1380 | R43: 292 | S43: 219 | T43: 133 | U43: 299 | V43: 72 | W43: 4489 | X43: 426 | Y43: 1617 | Z43: 6578 | AA43: 94 | AB43: 62 | AC43: 37 | AD43: 0 | AE43: 6 | AF43: 883 | AG43: 483 | AH43: 355 | AI43: 184 | AJ43: 675 | AK43: 181 | AL43: 78 | AM43: 92 | AN43: 396 | AO43: 105 | AP43: 22 | AQ43: 92 | AR43: 32 | AS43: 0 | AT43: 98 | AU43: 69 | AV43: 15 | AW43: 134 | AX43: 85 | AY43: 70 | AZ43: 53 | BA43: Larkshall Medical Centre | BB43: WF | BC43: WF-1 | BD43: Chingford/ Walthamstow
A44: WF_LDP | B44: 43617 | C44: 43619 | D44: F86627 | E44: 13882 | F44: 795 | G44: 8942 | H44: 17 | I44: 608 | J44: 37 | K44: 29 | L44: 10 | M44: 332 | N44: 674 | O44: 633 | P44: 415 | Q44: 2871 | R44: 529 | S44: 469 | T44: 261 | U44: 635 | V44: 149 | W44: 8089 | X44: 984 | Y44: 2906 | Z44: 11332 | AA44: 211 | AB44: 148 | AC44: 69 | AD44: 12 | AE44: 23 | AF44: 1874 | AG44: 962 | AH44: 515 | AI44: 442 | AJ44: 1735 | AK44: 415 | AL44: 229 | AM44: 271 | AN44: 827 | AO44: 242 | AP44: 49 | AQ44: 212 | AR44: 71 | AS44: 6 | AT44: 171 | AU44: 163 | AV44: 41 | AW44: 306 | AX44: 258 | AY44: 234 | AZ44: 134 | BA44: Churchill Medical Centre | BB44: WF | BC44: WF-2 | BD44: Chingford E4
A45: WF_LDP | B45: 43617 | C45: 43619 | D45: F86626 | E45: 5320 | F45: 198 | G45: 3607 | H45: 3 | I45: 73 | J45: 7 | K45: 5 | L45: 1 | M45: 50 | N45: 80 | O45: 149 | P45: 104 | Q45: 742 | R45: 147 | S45: 137 | T45: 62 | U45: 163 | V45: 33 | W45: 2750 | X45: 227 | Y45: 929 | Z45: 4196 | AA45: 35 | AB45: 23 | AC45: 8 | AD45: 0 | AE45: 2 | AF45: 438 | AG45: 260 | AH45: 125 | AI45: 121 | AJ45: 401 | AK45: 67 | AL45: 46 | AM45: 53 | AN45: 208 | AO45: 19 | AP45: 6 | AQ45: 18 | AR45: 3 | AS45: 0 | AT45: 13 | AU45: 11 | AV45: 1 | AW45: 51 | AX45: 26 | AY45: 24 | AZ45: 18 | BA45: Dr Shantir Practice | BB45: WF | BC45: WF-1 | BD45: Chingford/ Walthamstow
A46: WF_LDP | B46: 43617 | C46: 43619 | D46: F86650 | E46: 8208 | F46: 431 | G46: 5528 | H46: 29 | I46: 145 | J46: 13 | K46: 10 | L46: 3 | M46: 88 | N46: 168 | O46: 203 | P46: 114 | Q46: 1439 | R46: 321 | S46: 277 | T46: 110 | U46: 324 | V46: 83 | W46: 4397 | X46: 520 | Y46: 1981 | Z46: 6591 | AA46: 110 | AB46: 53 | AC46: 27 | AD46: 0 | AE46: 12 | AF46: 730 | AG46: 316 | AH46: 246 | AI46: 244 | AJ46: 626 | AK46: 119 | AL46: 66 | AM46: 77 | AN46: 480 | AO46: 61 | AP46: 14 | AQ46: 44 | AR46: 15 | AS46: 1 | AT46: 42 | AU46: 36 | AV46: 10 | AW46: 93 | AX46: 71 | AY46: 64 | AZ46: 35 | BA46: Lime Tree Surgery | BB46: WF | BC46: WF-4 | BD46: Forest Integrated Health
A47: WF_LDP | B47: 43617 | C47: 43619 | D47: F86644 | E47: 10913 | F47: 505 | G47: 7009 | H47: 143 | I47: 242 | J47: 69 | K47: 59 | L47: 13 | M47: 169 | N47: 273 | O47: 283 | P47: 185 | Q47: 1925 | R47: 324 | S47: 316 | T47: 133 | U47: 333 | V47: 79 | W47: 5758 | X47: 655 | Y47: 1770 | Z47: 8479 | AA47: 156 | AB47: 125 | AC47: 55 | AD47: 0 | AE47: 26 | AF47: 1240 | AG47: 649 | AH47: 340 | AI47: 291 | AJ47: 1047 | AK47: 205 | AL47: 116 | AM47: 146 | AN47: 566 | AO47: 112 | AP47: 18 | AQ47: 101 | AR47: 37 | AS47: 2 | AT47: 75 | AU47: 79 | AV47: 12 | AW47: 154 | AX47: 80 | AY47: 67 | AZ47: 43 | BA47: Waltham Forest Community & Family Health Services Ltd | BB47: WF | BC47: WF-6 | BD47: Central Walthamstow
A48: WF_LDP | B48: 43617 | C48: 43619 | D48: Y01839 | E48: 6550 | F48: 357 | G48: 4328 | H48: 56 | I48: 123 | J48: 26 | K48: 17 | L48: 4 | M48: 95 | N48: 137 | O48: 190 | P48: 138 | Q48: 1146 | R48: 301 | S48: 240 | T48: 94 | U48: 215 | V48: 87 | W48: 3672 | X48: 480 | Y48: 1134 | Z48: 5222 | AA48: 96 | AB48: 65 | AC48: 29 | AD48: 0 | AE48: 10 | AF48: 746 | AG48: 437 | AH48: 210 | AI48: 203 | AJ48: 623 | AK48: 118 | AL48: 70 | AM48: 85 | AN48: 400 | AO48: 93 | AP48: 5 | AQ48: 78 | AR48: 40 | AS48: 0 | AT48: 67 | AU48: 73 | AV48: 4 | AW48: 91 | AX48: 52 | AY48: 48 | AZ48: 31 | BA48: Lime Tree & Sinnott Healthcare Ltd | BB48: WF | BC48: WF-1 | BD48: Chingford/ Walthamstow
A49: WF_LDP | B49: 43617 | C49: 43619 | D49: Y01291 | E49: 8804 | F49: 415 | G49: 5646 | H49: 38 | I49: 423 | J49: 11 | K49: 1 | L49: 0 | M49: 294 | N49: 514 | O49: 370 | P49: 208 | Q49: 2237 | R49: 389 | S49: 325 | T49: 135 | U49: 398 | V49: 81 | W49: 4614 | X49: 431 | Y49: 2162 | Z49: 7040 | AA49: 81 | AB49: 63 | AC49: 30 | AD49: 0 | AE49: 12 | AF49: 1178 | AG49: 714 | AH49: 278 | AI49: 242 | AJ49: 1038 | AK49: 201 | AL49: 121 | AM49: 144 | AN49: 435 | AO49: 115 | AP49: 31 | AQ49: 109 | AR49: 26 | AS49: 0 | AT49: 79 | AU49: 72 | AV49: 19 | AW49: 173 | AX49: 124 | AY49: 112 | AZ49: 79 | BA49: Chingford Medical Practice | BB49: WF | BC49: WF-2 | BD49: Chingford E4
A50: WF_LDP | B50: 43617 | C50: 43619 | D50: Total | E50: 270256 | F50: 13571 | G50: 177742 | H50: 1009 | I50: 6532 | J50: 853 | K50: 531 | L50: 139 | M50: 4504 | N50: 7349 | O50: 8118 | P50: 5409 | Q50: 64067 | R50: 10723 | S50: 9257 | T50: 3984 | U50: 10363 | V50: 2370 | W50: 147373 | X50: 16430 | Y50: 57939 | Z50: 215627 | AA50: 3233 | AB50: 2327 | AC50: 1015 | AD50: 34 | AE50: 402 | AF50: 28908 | AG50: 16247 | AH50: 9992 | AI50: 7838 | AJ50: 25208 | AK50: 4922 | AL50: 2880 | AM50: 3431 | AN50: 14709 | AO50: 2471 | AP50: 472 | AQ50: 2200 | AR50: 787 | AS50: 32 | AT50: 1813 | AU50: 1673 | AV50: 388 | AW50: 3805 | AX50: 2470 | AY50: 2222 | AZ50: 1517
A51: WF_LDP | B51: 43617 | C51: 43619 | D51: Y02585 | E51: 8051 | F51: 168 | G51: 5785 | H51: 1 | I51: 29 | J51: 17 | K51: 16 | L51: 1 | M51: 18 | N51: 31 | O51: 90 | P51: 65 | Q51: 2504 | R51: 127 | S51: 94 | T51: 70 | U51: 217 | V51: 53 | W51: 4022 | X51: 628 | Y51: 1367 | Z51: 6564 | AA51: 80 | AB51: 51 | AC51: 23 | AD51: 0 | AE51: 13 | AF51: 313 | AG51: 169 | AH51: 108 | AI51: 90 | AJ51: 285 | AK51: 38 | AL51: 27 | AM51: 32 | AN51: 177 | AO51: 27 | AP51: 3 | AQ51: 26 | AR51: 16 | AS51: 1 | AT51: 19 | AU51: 9 | AV51: 1 | AW51: 30 | AX51: 29 | AY51: 26 | AZ51: 19
A52: WF_LDP | B52: 43617 | C52: 43619 | D52: F86712 | E52: 3101 | F52: 195 | G52: 2210 | H52: 6 | I52: 84 | J52: 3 | K52: 3 | L52: 0 | M52: 60 | N52: 87 | O52: 30 | P52: 20 | Q52: 417 | R52: 157 | S52: 143 | T52: 52 | U52: 129 | V52: 29 | W52: 1844 | X52: 171 | Y52: 808 | Z52: 2619 | AA52: 21 | AB52: 15 | AC52: 6 | AD52: 0 | AE52: 2 | AF52: 352 | AG52: 198 | AH52: 166 | AI52: 122 | AJ52: 319 | AK52: 51 | AL52: 29 | AM52: 34 | AN52: 210 | AO52: 12 | AP52: 5 | AQ52: 11 | AR52: 1 | AS52: 1 | AT52: 10 | AU52: 11 | AV52: 0 | AW52: 43 | AX52: 14 | AY52: 14 | AZ52: 11 | BA52: Hampton Medical Centre | BB52: WF | BC52: WF-4 | BD52: Forest Integrated Health
A53: WF_LDP | B53: 43617 | C53: 43619 | D53: F86701 | E53: 3309 | F53: 216 | G53: 2307 | H53: 6 | I53: 111 | J53: 25 | K53: 19 | L53: 3 | M53: 89 | N53: 127 | O53: 152 | P53: 114 | Q53: 985 | R53: 188 | S53: 158 | T53: 48 | U53: 170 | V53: 24 | W53: 1822 | X53: 220 | Y53: 895 | Z53: 2712 | AA53: 74 | AB53: 57 | AC53: 31 | AD53: 0 | AE53: 11 | AF53: 425 | AG53: 281 | AH53: 190 | AI53: 131 | AJ53: 383 | AK53: 58 | AL53: 39 | AM53: 46 | AN53: 229 | AO53: 19 | AP53: 4 | AQ53: 19 | AR53: 7 | AS53: 0 | AT53: 19 | AU53: 19 | AV53: 2 | AW53: 40 | AX53: 30 | AY53: 26 | AZ53: 16 | BA53: Kiyani Medical Practice | BB53: WF | BC53: WF-5 | BD53: South Leytonstone
A54: WF_LDP | B54: 43617 | C54: 43619 | D54: F86700 | E54: 3810 | F54: 207 | G54: 2485 | H54: 39 | I54: 266 | J54: 9 | K54: 9 | L54: 3 | M54: 213 | N54: 291 | O54: 171 | P54: 112 | Q54: 610 | R54: 191 | S54: 153 | T54: 57 | U54: 163 | V54: 29 | W54: 2050 | X54: 179 | Y54: 864 | Z54: 3086 | AA54: 49 | AB54: 38 | AC54: 11 | AD54: 1 | AE54: 8 | AF54: 782 | AG54: 528 | AH54: 178 | AI54: 138 | AJ54: 701 | AK54: 138 | AL54: 68 | AM54: 85 | AN54: 220 | AO54: 124 | AP54: 20 | AQ54: 111 | AR54: 37 | AS54: 2 | AT54: 105 | AU54: 92 | AV54: 34 | AW54: 104 | AX54: 91 | AY54: 76 | AZ54: 57 | BA54: Kings Head Medical Practice | BB54: WF | BC54: WF-1 | BD54: Chingford/ Walthamstow
A55: WF_LDP | B55: 43617 | C55: 43619 | D55: F86708 | E55: 2786 | F55: 175 | G55: 1686 | H55: 28 | I55: 67 | J55: 11 | K55: 10 | L55: 3 | M55: 44 | N55: 70 | O55: 123 | P55: 81 | Q55: 911 | R55: 134 | S55: 106 | T55: 55 | U55: 160 | V55: 48 | W55: 1538 | X55: 125 | Y55: 659 | Z55: 2176 | AA55: 28 | AB55: 23 | AC55: 7 | AD55: 0 | AE55: 4 | AF55: 377 | AG55: 183 | AH55: 124 | AI55: 91 | AJ55: 341 | AK55: 61 | AL55: 35 | AM55: 42 | AN55: 193 | AO55: 14 | AP55: 3 | AQ55: 14 | AR55: 5 | AS55: 0 | AT55: 10 | AU55: 8 | AV55: 4 | AW55: 42 | AX55: 34 | AY55: 32 | AZ55: 16 | BA55: Claremont Medical Centre | BB55: WF | BC55: WF-6 | BD55: Central Walthamstow
A56: WF_LDP | B56: 43617 | C56: 43619 | D56: F86705 | E56: 3024 | F56: 166 | G56: 2102 | H56: 22 | I56: 49 | J56: 5 | K56: 4 | L56: 2 | M56: 30 | N56: 54 | O56: 114 | P56: 82 | Q56: 1096 | R56: 119 | S56: 115 | T56: 50 | U56: 148 | V56: 27 | W56: 1688 | X56: 199 | Y56: 807 | Z56: 2462 | AA56: 24 | AB56: 13 | AC56: 5 | AD56: 0 | AE56: 1 | AF56: 289 | AG56: 160 | AH56: 147 | AI56: 100 | AJ56: 246 | AK56: 51 | AL56: 31 | AM56: 36 | AN56: 176 | AO56: 31 | AP56: 4 | AQ56: 23 | AR56: 11 | AS56: 0 | AT56: 29 | AU56: 17 | AV56: 3 | AW56: 40 | AX56: 20 | AY56: 19 | AZ56: 13 | BA56: The Langthorne Sharma Family Practice | BB56: WF | BC56: WF-5 | BD56: South Leytonstone
A57: WF_LDP | B57: 43617 | C57: 43619 | D57: F86625 | E57: 6101 | F57: 380 | G57: 4051 | H57: 94 | I57: 152 | J57: 12 | K57: 3 | L57: 3 | M57: 99 | N57: 177 | O57: 143 | P57: 106 | Q57: 1024 | R57: 266 | S57: 268 | T57: 83 | U57: 225 | V57: 69 | W57: 3107 | X57: 322 | Y57: 1207 | Z57: 4904 | AA57: 97 | AB57: 71 | AC57: 33 | AD57: 2 | AE57: 15 | AF57: 719 | AG57: 363 | AH57: 267 | AI57: 227 | AJ57: 614 | AK57: 134 | AL57: 74 | AM57: 93 | AN57: 408 | AO57: 61 | AP57: 9 | AQ57: 55 | AR57: 16 | AS57: 1 | AT57: 44 | AU57: 38 | AV57: 3 | AW57: 95 | AX57: 57 | AY57: 53 | AZ57: 31 | BA57: LL Medical Care (Agarwal & Agrwal Practice) | BB57: WF | BC57: WF-5 | BD57: South Leytonstone
A58: WF_LDP | B58: 43617 | C58: 43619 | D58: F86036 | E58: 15888 | F58: 722 | G58: 11106 | H58: 26 | I58: 328 | J58: 41 | K58: 23 | L58: 6 | M58: 251 | N58: 367 | O58: 212 | P58: 138 | Q58: 2751 | R58: 644 | S58: 539 | T58: 228 | U58: 632 | V58: 142 | W58: 9524 | X58: 933 | Y58: 3646 | Z58: 12830 | AA58: 238 | AB58: 167 | AC58: 70 | AD58: 3 | AE58: 36 | AF58: 1468 | AG58: 831 | AH58: 569 | AI58: 470 | AJ58: 1210 | AK58: 243 | AL58: 154 | AM58: 177 | AN58: 818 | AO58: 120 | AP58: 31 | AQ58: 103 | AR58: 52 | AS58: 1 | AT58: 88 | AU58: 93 | AV58: 32 | AW58: 193 | AX58: 121 | AY58: 108 | AZ58: 72 | BA58: The Allum Medical Centre | BB58: WF | BC58: WF-4 | BD58: Forest Integrated Health
A59: WF_LDP | B59: 43617 | C59: 43619 | D59: F86030 | E59: 8103 | F59: 485 | G59: 5260 | H59: 17 | I59: 168 | J59: 12 | K59: 7 | L59: 3 | M59: 124 | N59: 177 | O59: 386 | P59: 270 | Q59: 4057 | R59: 408 | S59: 395 | T59: 91 | U59: 285 | V59: 41 | W59: 4405 | X59: 338 | Y59: 1487 | Z59: 6366 | AA59: 53 | AB59: 34 | AC59: 12 | AD59: 1 | AE59: 4 | AF59: 731 | AG59: 451 | AH59: 426 | AI59: 307 | AJ59: 652 | AK59: 170 | AL59: 128 | AM59: 139 | AN59: 534 | AO59: 45 | AP59: 5 | AQ59: 42 | AR59: 13 | AS59: 0 | AT59: 33 | AU59: 32 | AV59: 2 | AW59: 129 | AX59: 55 | AY59: 51 | AZ59: 31 | BA59: Queens Road Medical Centre | BB59: WF | BC59: WF-7 | BD59: Walthamstow West
A60: WF_LDP | B60: 43617 | C60: 43619 | D60: F86044 | E60: 8989 | F60: 328 | G60: 6417 | H60: 10 | I60: 142 | J60: 26 | K60: 22 | L60: 6 | M60: 92 | N60: 170 | O60: 241 | P60: 134 | Q60: 1303 | R60: 252 | S60: 202 | T60: 85 | U60: 214 | V60: 72 | W60: 5267 | X60: 683 | Y60: 1288 | Z60: 7465 | AA60: 109 | AB60: 81 | AC60: 34 | AD60: 0 | AE60: 6 | AF60: 764 | AG60: 391 | AH60: 233 | AI60: 184 | AJ60: 642 | AK60: 91 | AL60: 48 | AM60: 59 | AN60: 376 | AO60: 37 | AP60: 10 | AQ60: 28 | AR60: 15 | AS60: 0 | AT60: 25 | AU60: 23 | AV60: 8 | AW60: 68 | AX60: 50 | AY60: 44 | AZ60: 28 | BA60: Crawley Road Medical Centre | BB60: WF | BC60: WF-4 | BD60: Forest Integrated Health
A61: WF_LDP | B61: 43617 | C61: 43619 | D61: F86038 | E61: 11020 | F61: 730 | G61: 6613 | H61: 127 | I61: 228 | J61: 24 | K61: 18 | L61: 5 | M61: 164 | N61: 244 | O61: 436 | P61: 312 | Q61: 4378 | R61: 540 | S61: 472 | T61: 167 | U61: 405 | V61: 88 | W61: 5658 | X61: 441 | Y61: 1690 | Z61: 8294 | AA61: 131 | AB61: 77 | AC61: 25 | AD61: 0 | AE61: 4 | AF61: 1097 | AG61: 639 | AH61: 518 | AI61: 390 | AJ61: 988 | AK61: 254 | AL61: 157 | AM61: 188 | AN61: 780 | AO61: 38 | AP61: 3 | AQ61: 33 | AR61: 8 | AS61: 0 | AT61: 27 | AU61: 18 | AV61: 4 | AW61: 189 | AX61: 107 | AY61: 97 | AZ61: 69 | BA61: Sma Medical Centre | BB61: WF | BC61: WF-3 | BD61: Leyton Collaborative
A62: WF_LDP | B62: 43617 | C62: 43619 | D62: F86011 | E62: 9227 | F62: 680 | G62: 3874 | H62: 12 | I62: 230 | J62: 35 | K62: 22 | L62: 3 | M62: 168 | N62: 259 | O62: 236 | P62: 147 | Q62: 1933 | R62: 559 | S62: 442 | T62: 147 | U62: 348 | V62: 90 | W62: 5498 | X62: 682 | Y62: 1801 | Z62: 7542 | AA62: 155 | AB62: 126 | AC62: 55 | AD62: 6 | AE62: 25 | AF62: 1207 | AG62: 717 | AH62: 491 | AI62: 380 | AJ62: 1069 | AK62: 236 | AL62: 125 | AM62: 162 | AN62: 731 | AO62: 99 | AP62: 22 | AQ62: 92 | AR62: 26 | AS62: 1 | AT62: 73 | AU62: 76 | AV62: 8 | AW62: 192 | AX62: 151 | AY62: 148 | AZ62: 114 | BA62: The Manor Practice | BB62: WF | BC62: WF-3 | BD62: Leyton Collaborative
A63: WF_LDP | B63: 43617 | C63: 43619 | D63: F86001 | E63: 7931 | F63: 443 | G63: 5363 | H63: 50 | I63: 258 | J63: 44 | K63: 20 | L63: 6 | M63: 173 | N63: 295 | O63: 199 | P63: 126 | Q63: 2235 | R63: 353 | S63: 271 | T63: 122 | U63: 271 | V63: 60 | W63: 4312 | X63: 432 | Y63: 1484 | Z63: 6423 | AA63: 99 | AB63: 75 | AC63: 25 | AD63: 0 | AE63: 19 | AF63: 925 | AG63: 526 | AH63: 302 | AI63: 238 | AJ63: 812 | AK63: 160 | AL63: 86 | AM63: 111 | AN63: 482 | AO63: 109 | AP63: 16 | AQ63: 100 | AR63: 30 | AS63: 0 | AT63: 66 | AU63: 67 | AV63: 9 | AW63: 121 | AX63: 73 | AY63: 65 | AZ63: 47 | BA63: The Firs | BB63: WF | BC63: WF-6 | BD63: Central Walthamstow
A64: WF_LDP | B64: 43617 | C64: 43619 | D64: F84676 | E64: 4396 | F64: 271 | G64: 2906 | H64: 10 | I64: 134 | J64: 32 | K64: 32 | L64: 5 | M64: 121 | N64: 138 | O64: 194 | P64: 162 | Q64: 1498 | R64: 257 | S64: 221 | T64: 73 | U64: 208 | V64: 47 | W64: 2305 | X64: 385 | Y64: 1292 | Z64: 3537 | AA64: 54 | AB64: 46 | AC64: 26 | AD64: 3 | AE64: 5 | AF64: 294 | AG64: 236 | AH64: 206 | AI64: 169 | AJ64: 282 | AK64: 50 | AL64: 43 | AM64: 48 | AN64: 283 | AO64: 68 | AP64: 13 | AQ64: 67 | AR64: 36 | AS64: 4 | AT64: 49 | AU64: 52 | AV64: 60 | AW64: 45 | AX64: 22 | AY64: 20 | AZ64: 19
A65: WF_LDP | B65: 43617 | C65: 43619 | D65: F86006 | E65: 6212 | F65: 371 | G65: 4125 | H65: 9 | I65: 149 | J65: 4 | K65: 4 | L65: 0 | M65: 72 | N65: 169 | O65: 72 | P65: 45 | Q65: 1019 | R65: 260 | S65: 280 | T65: 98 | U65: 183 | V65: 52 | W65: 3312 | X65: 366 | Y65: 1049 | Z65: 4935 | AA65: 52 | AB65: 28 | AC65: 14 | AD65: 1 | AE65: 7 | AF65: 794 | AG65: 362 | AH65: 226 | AI65: 207 | AJ65: 699 | AK65: 102 | AL65: 61 | AM65: 71 | AN65: 413 | AO65: 55 | AP65: 24 | AQ65: 53 | AR65: 23 | AS65: 1 | AT65: 28 | AU65: 24 | AV65: 4 | AW65: 82 | AX65: 56 | AY65: 52 | AZ65: 31 | BA65: Seymour Medical Centre | BB65: WF | BC65: WF-7 | BD65: Walthamstow West
A66: WF_LDP | B66: 43617 | C66: 43619 | D66: F86005 | E66: 8218 | F66: 295 | G66: 5482 | H66: 8 | I66: 302 | J66: 9 | K66: 5 | L66: 1 | M66: 195 | N66: 347 | O66: 171 | P66: 140 | Q66: 2466 | R66: 251 | S66: 206 | T66: 108 | U66: 292 | V66: 67 | W66: 4487 | X66: 510 | Y66: 2006 | Z66: 6381 | AA66: 53 | AB66: 33 | AC66: 19 | AD66: 0 | AE66: 2 | AF66: 798 | AG66: 445 | AH66: 205 | AI66: 196 | AJ66: 730 | AK66: 88 | AL66: 59 | AM66: 72 | AN66: 300 | AO66: 109 | AP66: 16 | AQ66: 98 | AR66: 36 | AS66: 1 | AT66: 86 | AU66: 74 | AV66: 14 | AW66: 65 | AX66: 60 | AY66: 54 | AZ66: 38 | BA66: The Penryhn Surgery | BB66: WF | BC66: WF-1 | BD66: Chingford/ Walthamstow
A67: WF_LDP | B67: 43617 | C67: 43619 | D67: F86607 | E67: 14162 | F67: 600 | G67: 9312 | H67: 29 | I67: 167 | J67: 53 | K67: 30 | L67: 8 | M67: 121 | N67: 180 | O67: 473 | P67: 315 | Q67: 4056 | R67: 458 | S67: 395 | T67: 179 | U67: 475 | V67: 91 | W67: 7598 | X67: 830 | Y67: 3264 | Z67: 10818 | AA67: 183 | AB67: 149 | AC67: 61 | AD67: 3 | AE67: 24 | AF67: 1203 | AG67: 670 | AH67: 437 | AI67: 303 | AJ67: 1082 | AK67: 197 | AL67: 105 | AM67: 127 | AN67: 628 | AO67: 94 | AP67: 17 | AQ67: 87 | AR67: 41 | AS67: 5 | AT67: 73 | AU67: 71 | AV67: 22 | AW67: 146 | AX67: 104 | AY67: 94 | AZ67: 76 | BA67: Addison Road Medical Practice | BB67: WF | BC67: WF-6 | BD67: Central Walthamstow
A68: WF_LDP | B68: 43617 | C68: 43619 | D68: F86088 | E68: 4791 | F68: 295 | G68: 3318 | H68: 28 | I68: 144 | J68: 8 | K68: 4 | L68: 0 | M68: 107 | N68: 167 | O68: 83 | P68: 54 | Q68: 864 | R68: 232 | S68: 213 | T68: 68 | U68: 176 | V68: 41 | W68: 2546 | X68: 221 | Y68: 951 | Z68: 4003 | AA68: 44 | AB68: 31 | AC68: 6 | AD68: 0 | AE68: 6 | AF68: 664 | AG68: 378 | AH68: 226 | AI68: 176 | AJ68: 537 | AK68: 102 | AL68: 62 | AM68: 68 | AN68: 341 | AO68: 44 | AP68: 10 | AQ68: 38 | AR68: 8 | AS68: 0 | AT68: 35 | AU68: 37 | AV68: 7 | AW68: 68 | AX68: 33 | AY68: 27 | AZ68: 23 | BA68: The Lyndhurst Surgery | BB68: WF | BC68: WF-4 | BD68: Forest Integrated Health
A69: WF_LDP | B69: 43617 | C69: 43619 | D69: F86621 | E69: 5695 | F69: 302 | G69: 4112 | H69: 2 | I69: 142 | J69: 6 | K69: 4 | L69: 0 | M69: 107 | N69: 163 | O69: 56 | P69: 40 | Q69: 589 | R69: 261 | S69: 227 | T69: 52 | U69: 188 | V69: 29 | W69: 3371 | X69: 305 | Y69: 1234 | Z69: 4815 | AA69: 73 | AB69: 51 | AC69: 18 | AD69: 0 | AE69: 13 | AF69: 618 | AG69: 419 | AH69: 290 | AI69: 203 | AJ69: 548 | AK69: 102 | AL69: 61 | AM69: 68 | AN69: 312 | AO69: 28 | AP69: 3 | AQ69: 25 | AR69: 10 | AS69: 0 | AT69: 20 | AU69: 26 | AV69: 22 | AW69: 82 | AX69: 48 | AY69: 46 | AZ69: 36 | BA69: Green Man Medical Centre | BB69: WF | BC69: WF-5 | BD69: South Leytonstone
A70: WF_LDP | B70: 43617 | C70: 43619 | D70: F86616 | E70: 6736 | F70: 274 | G70: 4413 | H70: 12 | I70: 239 | J70: 7 | K70: 2 | L70: 1 | M70: 190 | N70: 260 | O70: 281 | P70: 176 | Q70: 1750 | R70: 229 | S70: 199 | T70: 103 | U70: 272 | V70: 63 | W70: 3658 | X70: 391 | Y70: 1524 | Z70: 5288 | AA70: 42 | AB70: 27 | AC70: 15 | AD70: 0 | AE70: 2 | AF70: 782 | AG70: 499 | AH70: 209 | AI70: 172 | AJ70: 717 | AK70: 185 | AL70: 105 | AM70: 120 | AN70: 287 | AO70: 57 | AP70: 12 | AQ70: 49 | AR70: 16 | AS70: 0 | AT70: 45 | AU70: 39 | AV70: 3 | AW70: 152 | AX70: 73 | AY70: 71 | AZ70: 60 | BA70: Old Church Surgery | BB70: WF | BC70: WF-2 | BD70: Chingford E4
A71: WF_LDP | B71: 43617 | C71: 43619 | D71: F86086 | E71: 5939 | F71: 256 | G71: 3714 | H71: 43 | I71: 88 | J71: 6 | K71: 5 | L71: 1 | M71: 61 | N71: 98 | O71: 132 | P71: 85 | Q71: 870 | R71: 214 | S71: 150 | T71: 117 | U71: 276 | V71: 60 | W71: 3164 | X71: 414 | Y71: 1462 | Z71: 4487 | AA71: 76 | AB71: 64 | AC71: 29 | AD71: 0 | AE71: 12 | AF71: 491 | AG71: 268 | AH71: 173 | AI71: 142 | AJ71: 412 | AK71: 93 | AL71: 41 | AM71: 57 | AN71: 274 | AO71: 33 | AP71: 4 | AQ71: 28 | AR71: 7 | AS71: 0 | AT71: 24 | AU71: 18 | AV71: 2 | AW71: 78 | AX71: 30 | AY71: 26 | AZ71: 16 | BA71: Dr Dhital Practice | BB71: WF | BC71: WF-6 | BD71: Central Walthamstow
A72: WF_LDP | B72: 43617 | C72: 43619 | D72: F86058 | E72: 15141 | F72: 692 | G72: 9883 | H72: 10 | I72: 330 | J72: 125 | K72: 12 | L72: 13 | M72: 254 | N72: 364 | O72: 460 | P72: 310 | Q72: 4002 | R72: 556 | S72: 491 | T72: 265 | U72: 743 | V72: 159 | W72: 7988 | X72: 1079 | Y72: 3873 | Z72: 11712 | AA72: 190 | AB72: 134 | AC72: 69 | AD72: 0 | AE72: 30 | AF72: 1460 | AG72: 898 | AH72: 513 | AI72: 364 | AJ72: 1256 | AK72: 218 | AL72: 144 | AM72: 164 | AN72: 717 | AO72: 103 | AP72: 17 | AQ72: 92 | AR72: 30 | AS72: 1 | AT72: 81 | AU72: 79 | AV72: 8 | AW72: 191 | AX72: 109 | AY72: 100 | AZ72: 77 | BA72: St James Medical Practice Ltd | BB72: WF | BC72: WF-7 | BD72: Walthamstow West
A73: WF_LDP | B73: 43617 | C73: 43619 | D73: F86045 | E73: 1921 | F73: 128 | G73: 1388 | H73: 4 | I73: 59 | J73: 14 | K73: 4 | L73: 3 | M73: 17 | N73: 60 | O73: 84 | P73: 65 | Q73: 628 | R73: 111 | S73: 108 | T73: 53 | U73: 129 | V73: 25 | W73: 1200 | X73: 154 | Y73: 604 | Z73: 1645 | AA73: 34 | AB73: 28 | AC73: 10 | AD73: 0 | AE73: 3 | AF73: 259 | AG73: 86 | AH73: 102 | AI73: 82 | AJ73: 226 | AK73: 55 | AL73: 41 | AM73: 51 | AN73: 134 | AO73: 26 | AP73: 2 | AQ73: 24 | AR73: 6 | AS73: 0 | AT73: 20 | AU73: 18 | AV73: 3 | AW73: 41 | AX73: 24 | AY73: 22 | AZ73: 8 | BA73: High Road Surgery | BB73: WF | BC73: WF-5 | BD73: South Leytonstone
A74: WF_LDP | B74: 43617 | C74: 43619 | D74: F86078 | E74: 7358 | F74: 338 | G74: 4974 | H74: 12 | I74: 111 | J74: 5 | K74: 1 | L74: 0 | M74: 68 | N74: 136 | O74: 395 | P74: 248 | Q74: 2007 | R74: 246 | S74: 210 | T74: 100 | U74: 250 | V74: 46 | W74: 4258 | X74: 391 | Y74: 1271 | Z74: 6195 | AA74: 58 | AB74: 34 | AC74: 14 | AD74: 0 | AE74: 7 | AF74: 1197 | AG74: 646 | AH74: 239 | AI74: 200 | AJ74: 974 | AK74: 185 | AL74: 89 | AM74: 108 | AN74: 367 | AO74: 96 | AP74: 10 | AQ74: 79 | AR74: 27 | AS74: 0 | AT74: 71 | AU74: 59 | AV74: 5 | AW74: 126 | AX74: 108 | AY74: 89 | AZ74: 56 | BA74: The Ridgeway Surgery | BB74: WF | BC74: WF-2 | BD74: Chingford E4
A75: WF_LDP | B75: 43617 | C75: 43619 | D75: F86062 | E75: 7086 | F75: 420 | G75: 4890 | H75: 13 | I75: 158 | J75: 11 | K75: 11 | L75: 2 | M75: 113 | N75: 175 | O75: 274 | P75: 187 | Q75: 1499 | R75: 320 | S75: 274 | T75: 128 | U75: 369 | V75: 75 | W75: 4435 | X75: 621 | Y75: 2341 | Z75: 5795 | AA75: 98 | AB75: 80 | AC75: 28 | AD75: 1 | AE75: 16 | AF75: 842 | AG75: 458 | AH75: 316 | AI75: 219 | AJ75: 745 | AK75: 149 | AL75: 83 | AM75: 100 | AN75: 462 | AO75: 68 | AP75: 18 | AQ75: 64 | AR75: 21 | AS75: 4 | AT75: 48 | AU75: 46 | AV75: 3 | AW75: 119 | AX75: 69 | AY75: 65 | AZ75: 39 | BA75: Grove Surgery | BB75: WF | BC75: WF-7 | BD75: Walthamstow West
A76: WF_LDP | B76: 43647 | C76: 43648 | D76: F86689 | E76: 4112 | F76: 118 | G76: 2859 | H76: 14 | I76: 83 | J76: 5 | K76: 2 | L76: 1 | M76: 65 | N76: 87 | O76: 48 | P76: 38 | Q76: 541 | R76: 81 | S76: 75 | T76: 40 | U76: 121 | V76: 34 | W76: 2318 | X76: 144 | Y76: 814 | Z76: 3178 | AA76: 28 | AB76: 17 | AC76: 6 | AD76: 0 | AE76: 6 | AF76: 287 | AG76: 159 | AH76: 102 | AI76: 70 | AJ76: 264 | AK76: 54 | AL76: 33 | AM76: 40 | AN76: 122 | AO76: 33 | AP76: 1 | AQ76: 28 | AR76: 8 | AS76: 1 | AT76: 23 | AU76: 20 | AV76: 6 | AW76: 45 | AX76: 21 | AY76: 20 | AZ76: 11 | BA76: The Bailey Practice | BB76: WF | BC76: WF-1 | BD76: Chingford/ Walthamstow
A77: WF_LDP | B77: 43647 | C77: 43648 | D77: F86679 | E77: 5849 | F77: 243 | G77: 3689 | H77: 19 | I77: 75 | J77: 9 | K77: 8 | L77: 1 | M77: 51 | N77: 81 | O77: 129 | P77: 97 | Q77: 1101 | R77: 202 | S77: 155 | T77: 89 | U77: 214 | V77: 53 | W77: 3067 | X77: 361 | Y77: 1450 | Z77: 4382 | AA77: 34 | AB77: 30 | AC77: 13 | AD77: 1 | AE77: 4 | AF77: 470 | AG77: 310 | AH77: 139 | AI77: 139 | AJ77: 426 | AK77: 55 | AL77: 34 | AM77: 38 | AN77: 251 | AO77: 40 | AP77: 10 | AQ77: 36 | AR77: 11 | AS77: 0 | AT77: 25 | AU77: 15 | AV77: 8 | AW77: 49 | AX77: 38 | AY77: 34 | AZ77: 27 | BA77: Higham Hill Medical Centre | BB77: WF | BC77: WF-7 | BD77: Walthamstow West
A78: WF_LDP | B78: 43647 | C78: 43648 | D78: F86700 | E78: 3834 | F78: 208 | G78: 2498 | H78: 28 | I78: 266 | J78: 8 | K78: 8 | L78: 3 | M78: 216 | N78: 291 | O78: 172 | P78: 110 | Q78: 605 | R78: 196 | S78: 149 | T78: 54 | U78: 168 | V78: 30 | W78: 2064 | X78: 186 | Y78: 845 | Z78: 3106 | AA78: 49 | AB78: 35 | AC78: 10 | AD78: 1 | AE78: 8 | AF78: 785 | AG78: 547 | AH78: 177 | AI78: 137 | AJ78: 706 | AK78: 138 | AL78: 62 | AM78: 80 | AN78: 219 | AO78: 123 | AP78: 17 | AQ78: 113 | AR78: 40 | AS78: 3 | AT78: 104 | AU78: 92 | AV78: 41 | AW78: 106 | AX78: 91 | AY78: 74 | AZ78: 56 | BA78: Kings Head Medical Practice | BB78: WF | BC78: WF-1 | BD78: Chingford/ Walthamstow
A79: WF_LDP | B79: 43647 | C79: 43648 | D79: F86696 | E79: 5156 | F79: 292 | G79: 3462 | H79: 10 | I79: 160 | J79: 9 | K79: 5 | L79: 0 | M79: 84 | N79: 183 | O79: 124 | P79: 94 | Q79: 894 | R79: 211 | S79: 201 | T79: 86 | U79: 168 | V79: 32 | W79: 1702 | X79: 275 | Y79: 1091 | Z79: 4151 | AA79: 49 | AB79: 30 | AC79: 13 | AD79: 0 | AE79: 8 | AF79: 551 | AG79: 276 | AH79: 249 | AI79: 161 | AJ79: 479 | AK79: 93 | AL79: 68 | AM79: 80 | AN79: 332 | AO79: 32 | AP79: 7 | AQ79: 30 | AR79: 5 | AS79: 0 | AT79: 23 | AU79: 13 | AV79: 2 | AW79: 78 | AX79: 40 | AY79: 35 | AZ79: 26 | BA79: Francis Road Medical Centre | BB79: WF | BC79: WF-4 | BD79: Forest Integrated Health
A80: WF_LDP | B80: 43647 | C80: 43648 | D80: F86666 | E80: 14259 | F80: 735 | G80: 9654 | H80: 34 | I80: 330 | J80: 99 | K80: 83 | L80: 19 | M80: 216 | N80: 377 | O80: 624 | P80: 392 | Q80: 4460 | R80: 557 | S80: 477 | T80: 240 | U80: 531 | V80: 131 | W80: 7477 | X80: 906 | Y80: 3093 | Z80: 11507 | AA80: 225 | AB80: 168 | AC80: 80 | AD80: 1 | AE80: 16 | AF80: 1672 | AG80: 847 | AH80: 570 | AI80: 415 | AJ80: 1401 | AK80: 203 | AL80: 123 | AM80: 146 | AN80: 843 | AO80: 104 | AP80: 28 | AQ80: 90 | AR80: 40 | AS80: 0 | AT80: 69 | AU80: 78 | AV80: 6 | AW80: 158 | AX80: 110 | AY80: 91 | AZ80: 64 | BA80: The Harrow Road Surgery | BB80: WF | BC80: WF-5 | BD80: South Leytonstone
A81: WF_LDP | B81: 43647 | C81: 43648 | D81: F86644 | E81: 10849 | F81: 495 | G81: 6975 | H81: 114 | I81: 245 | J81: 77 | K81: 64 | L81: 15 | M81: 164 | N81: 272 | O81: 287 | P81: 181 | Q81: 1945 | R81: 311 | S81: 308 | T81: 132 | U81: 323 | V81: 80 | W81: 5702 | X81: 633 | Y81: 1736 | Z81: 8452 | AA81: 150 | AB81: 122 | AC81: 54 | AD81: 0 | AE81: 25 | AF81: 1237 | AG81: 627 | AH81: 337 | AI81: 289 | AJ81: 1030 | AK81: 205 | AL81: 114 | AM81: 144 | AN81: 561 | AO81: 114 | AP81: 19 | AQ81: 102 | AR81: 39 | AS81: 2 | AT81: 75 | AU81: 79 | AV81: 12 | AW81: 150 | AX81: 75 | AY81: 63 | AZ81: 40 | BA81: Waltham Forest Community & Family Health Services Ltd | BB81: WF | BC81: WF-6 | BD81: Central Walthamstow
A82: WF_LDP | B82: 43647 | C82: 43648 | D82: F86627 | E82: 13882 | F82: 795 | G82: 8936 | H82: 18 | I82: 610 | J82: 36 | K82: 28 | L82: 9 | M82: 340 | N82: 678 | O82: 642 | P82: 426 | Q82: 2909 | R82: 533 | S82: 465 | T82: 281 | U82: 641 | V82: 144 | W82: 8065 | X82: 980 | Y82: 2890 | Z82: 11333 | AA82: 214 | AB82: 153 | AC82: 68 | AD82: 14 | AE82: 25 | AF82: 1872 | AG82: 959 | AH82: 514 | AI82: 447 | AJ82: 1732 | AK82: 417 | AL82: 221 | AM82: 261 | AN82: 830 | AO82: 242 | AP82: 47 | AQ82: 206 | AR82: 70 | AS82: 6 | AT82: 171 | AU82: 163 | AV82: 42 | AW82: 304 | AX82: 258 | AY82: 229 | AZ82: 143 | BA82: Churchill Medical Centre | BB82: WF | BC82: WF-2 | BD82: Chingford E4
A83: WF_LDP | B83: 43647 | C83: 43648 | D83: F86664 | E83: 8373 | F83: 331 | G83: 5319 | H83: 24 | I83: 142 | J83: 22 | K83: 19 | L83: 6 | M83: 111 | N83: 173 | O83: 182 | P83: 83 | Q83: 1401 | R83: 294 | S83: 224 | T83: 135 | U83: 294 | V83: 74 | W83: 4507 | X83: 426 | Y83: 1626 | Z83: 6610 | AA83: 98 | AB83: 63 | AC83: 38 | AD83: 0 | AE83: 7 | AF83: 889 | AG83: 489 | AH83: 354 | AI83: 186 | AJ83: 672 | AK83: 183 | AL83: 79 | AM83: 90 | AN83: 395 | AO83: 104 | AP83: 22 | AQ83: 90 | AR83: 33 | AS83: 0 | AT83: 97 | AU83: 68 | AV83: 15 | AW83: 134 | AX83: 86 | AY83: 71 | AZ83: 51 | BA83: Larkshall Medical Centre | BB83: WF | BC83: WF-1 | BD83: Chingford/ Walthamstow
A84: WF_LDP | B84: 43647 | C84: 43648 | D84: F86650 | E84: 8292 | F84: 436 | G84: 5585 | H84: 31 | I84: 149 | J84: 16 | K84: 13 | L84: 3 | M84: 88 | N84: 174 | O84: 210 | P84: 123 | Q84: 1453 | R84: 313 | S84: 275 | T84: 107 | U84: 325 | V84: 82 | W84: 4405 | X84: 511 | Y84: 1957 | Z84: 6654 | AA84: 113 | AB84: 55 | AC84: 28 | AD84: 0 | AE84: 14 | AF84: 738 | AG84: 319 | AH84: 247 | AI84: 248 | AJ84: 628 | AK84: 122 | AL84: 70 | AM84: 81 | AN84: 486 | AO84: 64 | AP84: 14 | AQ84: 47 | AR84: 16 | AS84: 0 | AT84: 44 | AU84: 36 | AV84: 11 | AW84: 93 | AX84: 72 | AY84: 63 | AZ84: 33 | BA84: Lime Tree Surgery | BB84: WF | BC84: WF-4 | BD84: Forest Integrated Health
A85: WF_LDP | B85: 43647 | C85: 43648 | D85: Y02585 | E85: 7977 | F85: 171 | G85: 5745 | H85: 0 | I85: 29 | J85: 17 | K85: 16 | L85: 1 | M85: 19 | N85: 30 | O85: 92 | P85: 72 | Q85: 2480 | R85: 126 | S85: 98 | T85: 70 | U85: 212 | V85: 53 | W85: 3953 | X85: 610 | Y85: 1333 | Z85: 6505 | AA85: 81 | AB85: 55 | AC85: 23 | AD85: 0 | AE85: 15 | AF85: 311 | AG85: 168 | AH85: 108 | AI85: 89 | AJ85: 284 | AK85: 37 | AL85: 26 | AM85: 30 | AN85: 177 | AO85: 27 | AP85: 4 | AQ85: 25 | AR85: 17 | AS85: 1 | AT85: 19 | AU85: 9 | AV85: 1 | AW85: 32 | AX85: 29 | AY85: 26 | AZ85: 20
A86: WF_LDP | B86: 43647 | C86: 43648 | D86: Y01839 | E86: 6535 | F86: 345 | G86: 4313 | H86: 52 | I86: 121 | J86: 25 | K86: 16 | L86: 4 | M86: 91 | N86: 139 | O86: 191 | P86: 138 | Q86: 1154 | R86: 290 | S86: 239 | T86: 90 | U86: 194 | V86: 79 | W86: 3513 | X86: 425 | Y86: 1060 | Z86: 5205 | AA86: 95 | AB86: 53 | AC86: 24 | AD86: 0 | AE86: 9 | AF86: 747 | AG86: 422 | AH86: 212 | AI86: 201 | AJ86: 602 | AK86: 118 | AL86: 72 | AM86: 85 | AN86: 404 | AO86: 93 | AP86: 6 | AQ86: 75 | AR86: 36 | AS86: 0 | AT86: 66 | AU86: 72 | AV86: 4 | AW86: 86 | AX86: 55 | AY86: 50 | AZ86: 28 | BA86: Lime Tree & Sinnott Healthcare Ltd | BB86: WF | BC86: WF-1 | BD86: Chingford/ Walthamstow
A87: WF_LDP | B87: 43647 | C87: 43648 | D87: F84676 | E87: 4383 | F87: 274 | G87: 2905 | H87: 12 | I87: 134 | J87: 35 | K87: 35 | L87: 5 | M87: 122 | N87: 138 | O87: 191 | P87: 161 | Q87: 1503 | R87: 260 | S87: 224 | T87: 75 | U87: 209 | V87: 47 | W87: 2293 | X87: 375 | Y87: 1301 | Z87: 3529 | AA87: 55 | AB87: 49 | AC87: 27 | AD87: 3 | AE87: 5 | AF87: 293 | AG87: 237 | AH87: 208 | AI87: 171 | AJ87: 284 | AK87: 51 | AL87: 43 | AM87: 48 | AN87: 287 | AO87: 67 | AP87: 14 | AQ87: 66 | AR87: 36 | AS87: 4 | AT87: 49 | AU87: 51 | AV87: 60 | AW87: 45 | AX87: 21 | AY87: 19 | AZ87: 18
A88: WF_LDP | B88: 43647 | C88: 43648 | D88: Total | E88: 270844 | F88: 13514 | G88: 178198 | H88: 945 | I88: 6563 | J88: 871 | K88: 533 | L88: 136 | M88: 4525 | N88: 7393 | O88: 8197 | P88: 5419 | Q88: 61973 | R88: 10569 | S88: 9209 | T88: 4011 | U88: 10282 | V88: 2347 | W88: 147087 | X88: 16183 | Y88: 57664 | Z88: 216173 | AA88: 3251 | AB88: 2302 | AC88: 987 | AD88: 36 | AE88: 415 | AF88: 28957 | AG88: 16098 | AH88: 9973 | AI88: 7706 | AJ88: 25044 | AK88: 4923 | AL88: 2868 | AM88: 3426 | AN88: 14745 | AO88: 2471 | AP88: 473 | AQ88: 2196 | AR88: 786 | AS88: 31 | AT88: 1801 | AU88: 1667 | AV88: 400 | AW88: 3773 | AX88: 2484 | AY88: 2203 | AZ88: 1533
A89: WF_LDP | B89: 43647 | C89: 43648 | D89: Y01291 | E89: 8805 | F89: 411 | G89: 5658 | H89: 40 | I89: 424 | J89: 10 | K89: 1 | L89: 0 | M89: 295 | N89: 513 | O89: 368 | P89: 199 | Q89: 2247 | R89: 377 | S89: 321 | T89: 142 | U89: 400 | V89: 83 | W89: 4763 | X89: 457 | Y89: 2176 | Z89: 7042 | AA89: 80 | AB89: 63 | AC89: 28 | AD89: 0 | AE89: 13 | AF89: 1177 | AG89: 707 | AH89: 277 | AI89: 238 | AJ89: 1019 | AK89: 201 | AL89: 122 | AM89: 143 | AN89: 434 | AO89: 117 | AP89: 31 | AQ89: 111 | AR89: 29 | AS89: 0 | AT89: 79 | AU89: 73 | AV89: 19 | AW89: 173 | AX89: 123 | AY89: 108 | AZ89: 80 | BA89: Chingford Medical Practice | BB89: WF | BC89: WF-2 | BD89: Chingford E4
